Workbook

Sheet Contents

Sheet 1
A1: Summarized product ion scan data
A2: ID | B2: NL (Da) | C2: CE (V) | D2: Exact mass | E2: MW + Salt | F2: Formula | G2: Monoisotopic Mass | H2: Charge State | I2: Selected Tune | J2: Tune Result | K2: Polarity | L2: Q1 | M2: Q1 Intensity | N2: DP | O2: DP Intensity | P2: EP | Q2: Q3 Mass 1 | R2: NL (Da) | S2: Q3 Intensity 1 | T2: CE 1 | U2: CE Intensity 1 | V2: CXP 1 | W2: CXP Intensity 1 | X2: Q3 Mass 2 | Y2: NL (Da) | Z2: Q3 Intensity 2 | AA2: CE 2 | AB2: CE Intensity 2 | AC2: CXP 2 | AD2: CXP Intensity 2
A3: 1 | B3: =R3 -> 86 | C3: =T3 -> 31 | D3: 325.10 | E3: 326.10 | F3: C13H17BClN3O4 | G3: 325.10 | H3: 1 | I3: FineTune + | J3: Pass | K3: Positive | L3: 326.08 | M3: 5.4E+06 | N3: 100 | O3: 7.4E+06 | P3: 10 | Q3: 240.53 | R3: =L3-Q3 -> 86 | S3: 1.2E+06 | T3: 31 | U3: 1.2E+06 | V3: 13 | W3: 1.2E+06 | X3: 176.54 | Y3: =L3-X3 -> 150 | Z3: 2.2E+05 | AA3: 43 | AB3: 2.2E+05 | AC3: 10 | AD3: 2.2E+05
A4: 2 | B4: =R4 -> 86 | C4: =T4 -> 30 | D4: 318.14 | E4: 319.14 | F4: C15H19BN2O5 | G4: 318.14 | H4: 1 | I4: FineTune + | J4: Pass | K4: Positive | L4: 319.15 | M4: 6.5E+06 | N4: 100 | O4: 6.5E+06 | P4: 10 | Q4: 233.19 | R4: =L4-Q4 -> 86 | S4: 5.3E+06 | T4: 30 | U4: 5.3E+06 | V4: 14 | W4: 4.8E+06 | X4: 72.10 | Y4: =L4-X4 -> 247 | Z4: 1.2E+06 | AA4: 48 | AB4: 1.2E+06 | AC4: 9 | AD4: 1.2E+06
A5: 3 | B5: 86 | C5: 32 | D5: 304.16 | E5: 305.16 | F5: C15H21BN2O4 | G5: 304.16 | H5: 1 | I5: FineTune + | J5: Pass | K5: Positive | L5: 305.19 | M5: 5.7E+06 | N5: 100 | O5: 6.0E+06 | P5: 10 | Q5: 219.19 | R5: 86 | S5: 4.8E+06 | T5: 32 | U5: 4.8E+06 | V5: 16 | W5: 4.5E+06 | X5: 120.12 | Y5: 185 | Z5: 1.1E+06 | AA5: 55 | AB5: 1.1E+06 | AC5: 13 | AD5: 1.1E+06
A6: 4 | B6: =Y6 -> 86 | C6: =AA6 -> 23 | D6: 346.17 | E6: 347.17 | F6: C17H23BN2O5 | G6: 346.17 | H6: 1 | I6: FineTune + | J6: Pass | K6: Positive | L6: 347.21 | M6: 2.7E+07 | N6: 110 | O6: 2.7E+07 | P6: 10 | Q6: 233.22 | R6: 114 | S6: 9.8E+06 | T6: 34 | U6: 9.8E+06 | V6: 13 | W6: 9.9E+06 | X6: 261.23 | Y6: 86 | Z6: 7.1E+06 | AA6: 23 | AB6: 7.1E+06 | AC6: 16 | AD6: 7.3E+06
A7: 5 | B7: 158 | C7: 32 | D7: 954.46 | E7: 955.46 | F7: C47H75BrN2O13 | G7: 954.46 | H7: 1 | I7: FineTune + | J7: Pass | K7: Positive | L7: 955.48 | M7: 1.1E+06 | N7: 50 | O7: 1.1E+06 | P7: 10 | Q7: 797.36 | R7: 158 | S7: 5.1E+05 | T7: 32 | U7: 5.1E+05 | V7: 16 | W7: 5.0E+05 | X7: 158.17 | Y7: 797 | Z7: 1.7E+05 | AA7: 42 | AB7: 1.7E+05 | AC7: 8 | AD7: 1.6E+05
A8: 6 | B8: 181 | C8: 29 | D8: 923.50 | E8: 924.50 | F8: C47H73NO17 | G8: 923.50 | H8: 1 | I8: FineTune + | J8: Pass | K8: Positive | L8: 924.52 | M8: 1.3E+06 | N8: 60 | O8: 1.4E+06 | P8: 10 | Q8: 743.42 | R8: 181 | S8: 5.5E+05 | T8: 29 | U8: 5.5E+05 | V8: 11 | W8: 3.6E+05 | X8: 725.42 | Y8: 199 | Z8: 1.1E+05 | AA8: 32 | AB8: 1.1E+05 | AC8: 14 | AD8: 1.1E+05
A9: 7 | B9: 56 | C9: 15 | D9: 272.02 | E9: 273.02 | F9: C10H13BrN2O2 | G9: 272.02 | H9: 1 | I9: FineTune + | J9: Pass | K9: Positive | L9: 273.06 | M9: 5.0E+07 | N9: 80 | O9: 4.8E+07 | P9: 10 | Q9: 217.02 | R9: 56 | S9: 4.3E+07 | T9: 15 | U9: 4.3E+07 | V9: 3 | W9: 4.3E+07 | X9: 173.06 | Y9: 100 | Z9: 3.4E+07 | AA9: 36 | AB9: 3.4E+07 | AC9: 10 | AD9: 3.3E+07
A10: 8 | B10: =R10 -> 56 | C10: =T10 -> 11 | D10: 215.12 | E10: 216.12 | F10: C10H17NO4 | G10: 215.12 | H10: 1 | I10: FineTune + | J10: Pass | K10: Positive | L10: 216.19 | M10: 2.4E+05 | N10: 70 | O10: 2.6E+05 | P10: 10 | Q10: 160.14 | R10: 56 | S10: 4.2E+04 | T10: 11 | U10: 4.2E+04 | V10: 9 | W10: 2.7E+04 | X10: 70.09 | Y10: 146 | Z10: 3.2E+04 | AA10: 37 | AB10: 3.2E+04 | AC10: 8 | AD10: 3.3E+04
A11: 9 | B11: 84 | C11: 22 | D11: 257.01 | E11: 258.01 | F11: C10H12BrNO2 | G11: 257.01 | H11: 1 | I11: FineTune + | J11: Pass | K11: Positive | L11: 258.09 | M11: 1.7E+07 | N11: 70 | O11: 1.9E+07 | P11: 10 | Q11: 174.04 | R11: 84 | S11: 1.5E+07 | T11: 22 | U11: 1.5E+07 | V11: 10 | W11: 1.5E+07 | X11: 95.05 | Y11: 163 | Z11: 3.5E+06 | AA11: 54 | AB11: 3.5E+06 | AC11: 11 | AD11: 3.4E+06
A12: 10 | B12: 56 | C12: 23 | D12: 456.14 | E12: 457.14 | F12: C23H25ClN4O2S | G12: 456.14 | H12: 1 | I12: FineTune + | J12: Pass | K12: Positive | L12: 457.17 | M12: 6.7E+06 | N12: 100 | O12: 4.0E+06 | P12: 10 | Q12: 401.13 | R12: 56 | S12: 6.4E+06 | T12: 23 | U12: 6.4E+06 | V12: 12 | W12: 6.5E+06 | X12: 383.11 | Y12: 74 | Z12: 3.4E+06 | AA12: 34 | AB12: 3.4E+06 | AC12: 12 | AD12: 3.3E+06
A13: 11 | B13: 219 | C13: =T13 -> 29 | D13: 357.08 | E13: 358.08 | F13: C19H16ClNO4 | G13: 357.08 | H13: 1 | I13: FineTune + | J13: Pass | K13: Positive | L13: 358.11 | M13: 1.9E+06 | N13: 90 | O13: 2.0E+06 | P13: 10 | Q13: 139.06 | R13: 219 | S13: 1.3E+06 | T13: 29 | U13: 1.3E+06 | V13: 9 | W13: 1.2E+06 | X13: 111.03 | Y13: 247 | Z13: 8.4E+05 | AA13: 72 | AB13: 8.4E+05 | AC13: 13 | AD13: 5.3E+05
A14: 12 | B14: 111 | C14: 25 | D14: 259.10 | E14: 260.10 | F14: C13H13N3O3 | G14: 259.10 | H14: 1 | I14: FineTune + | J14: Pass | K14: Positive | L14: 260.17 | M14: 1.8E+06 | N14: 90 | O14: 1.7E+06 | P14: 10 | Q14: 149.14 | R14: 111 | S14: 1.3E+06 | T14: 25 | U14: 1.3E+06 | V14: 10 | W14: 1.4E+06 | X14: 187.15 | Y14: 73 | Z14: 3.9E+05 | AA14: 35 | AB14: 3.9E+05 | AC14: 11 | AD14: 3.9E+05
A15: 13 | B15: 111 | C15: 26 | D15: 322.00 | E15: 323.00 | F15: C13H11BrN2O3 | G15: 322.00 | H15: 1 | I15: FineTune + | J15: Pass | K15: Positive | L15: 323.02 | M15: 8.3E+05 | N15: 90 | O15: 7.8E+05 | P15: 10 | Q15: 212.04 | R15: 111 | S15: 4.0E+05 | T15: 26 | U15: 4.0E+05 | V15: 14 | W15: 4.0E+05 | X15: 250.08 | Y15: 73 | Z15: 1.3E+05 | AA15: 38 | AB15: 1.3E+05 | AC15: 18 | AD15: 1.3E+05
A16: 14 | B16: 86 | C16: 31 | D16: 342.10 | E16: 343.10 | F16: C14H17BClFN2O4 | G16: 342.10 | H16: 1 | I16: FineTune + | J16: Pass | K16: Positive | L16: 343.12 | M16: 4.4E+06 | N16: 110 | O16: 4.5E+06 | P16: 10 | Q16: 257.09 | R16: 86 | S16: 3.3E+06 | T16: 31 | U16: 3.3E+06 | V16: 15 | W16: 3.3E+06 | X16: 211.11 | Y16: 132 | Z16: 7.6E+05 | AA16: 44 | AB16: 7.6E+05 | AC16: 12 | AD16: 7.8E+05
A17: 15 | B17: 86 | C17: 23 | D17: 348.11 | E17: 349.11 | F17: C16H18BClN2O4 | G17: 348.11 | H17: 1 | I17: FineTune + | J17: Pass | K17: Positive | L17: 349.12 | M17: 5.0E+05 | N17: 100 | O17: 3.9E+05 | P17: 10 | Q17: 263.08 | R17: 86 | S17: 1.2E+05 | T17: 23 | U17: 1.2E+05 | V17: 16 | W17: 1.3E+05 | X17: 158.09 | Y17: 191 | Z17: 5.4E+04 | AA17: 26 | AB17: 5.4E+04 | AC17: 9 | AD17: 5.3E+04
A18: 16 | B18: 86 | C18: 30 | D18: 354.12 | E18: 355.12 | F18: C15H20BClN2O5 | G18: 354.12 | H18: 1 | I18: FineTune + | J18: Pass | K18: Positive | L18: 355.15 | M18: 6.5E+06 | N18: 100 | O18: 6.6E+06 | P18: 10 | Q18: 269.17 | R18: 86 | S18: 4.7E+06 | T18: 30 | U18: 4.7E+06 | V18: 15 | W18: 4.5E+06 | X18: 241.18 | Y18: 114 | Z18: 1.8E+06 | AA18: 42 | AB18: 1.8E+06 | AC18: 14 | AD18: 1.8E+06
A19: 17 | B19: 86 | C19: 26 | D19: 363.11 | E19: 364.11 | F19: C17H19BClNO5 | G19: 363.11 | H19: 1 | I19: FineTune + | J19: Pass | K19: Positive | L19: 364.14 | M19: 5.5E+05 | N19: 200 | O19: 5.7E+05 | P19: 10 | Q19: 278.15 | R19: 86 | S19: 2.8E+05 | T19: 26 | U19: 2.8E+05 | V19: 16 | W19: 3.0E+05 | X19: 100.10 | Y19: 264 | Z19: 9.5E+04 | AA19: 42 | AB19: 9.5E+04 | AC19: 12 | AD19: 7.9E+04
A20: 18 | B20: 86 | C20: 23 | D20: 368.10 | E20: 369.10 | F20: C15H18BClN2O6 | G20: 368.10 | H20: 1 | I20: FineTune + | J20: Pass | K20: Positive | L20: 369.17 | M20: 7.1E+05 | N20: 110 | O20: 6.6E+05 | P20: 10 | Q20: 283.06 | R20: 86 | S20: 1.4E+05 | T20: 23 | U20: 1.4E+05 | V20: 17 | W20: 1.6E+05 | X20: 158.10 | Y20: 211 | Z20: 5.4E+04 | AA20: 28 | AB20: 5.4E+04 | AC20: 9 | AD20: 5.2E+04
A21: 19 | B21: 86 | C21: 32 | D21: 374.12 | E21: 375.12 | F21: C18H20BClN2O4 | G21: 374.12 | H21: 1 | I21: FineTune + | J21: Pass | K21: Positive | L21: 375.17 | M21: 1.6E+07 | N21: 120 | O21: 1.5E+07 | P21: 10 | Q21: 288.99 | R21: 86 | S21: 1.2E+07 | T21: 32 | U21: 1.2E+07 | V21: 16 | W21: 9.1E+06 | X21: 190.03 | Y21: 185 | Z21: 5.6E+06 | AA21: 62 | AB21: 5.6E+06 | AC21: 11 | AD21: 4.9E+06
A22: 20 | B22: 86 | C22: 26 | D22: 391.10 | E22: 392.10 | F22: C16H18BClF3NO4 | G22: 391.10 | H22: 1 | I22: FineTune + | J22: Pass | K22: Positive | L22: 392.15 | M22: 7.0E+05 | N22: 100 | O22: 7.0E+05 | P22: 10 | Q22: 306.09 | R22: 86 | S22: 3.0E+05 | T22: 26 | U22: 3.0E+05 | V22: 10 | W22: 3.3E+05 | X22: 158.09 | Y22: 234 | Z22: 1.0E+05 | AA22: 30 | AB22: 1.0E+05 | AC22: 19 | AD22: 8.2E+04
A23: S1 | B23: 86 | C23: 24 | D23: 367.06 | E23: 368.06 | F23: C15H19BBrNO4 | G23: 367.06 | H23: 1 | I23: FineTune + | J23: Pass | K23: Positive | L23: 368.08 | M23: 4.1E+05 | N23: 120 | O23: 5.7E+05 | P23: 10 | Q23: 282.43 | R23: 86 | S23: 7.6E+04 | T23: 24 | U23: 7.6E+04 | V23: 8 | W23: 8.0E+04 | X23: 158.46 | Y23: 210 | Z23: 4.0E+04 | AA23: 29 | AB23: 4.0E+04 | AC23: 9 | AD23: 3.6E+04
A24: S2 | B24: 86 | C24: 30 | D24: 324.11 | E24: 325.11 | F24: C14H18BClN2O4 | G24: 324.11 | H24: 1 | I24: FineTune + | J24: Pass | K24: Positive | L24: 325.10 | M24: 2.3E+07 | N24: 100 | O24: 2.8E+07 | P24: 10 | Q24: 239.55 | R24: 86 | S24: 5.1E+06 | T24: 30 | U24: 5.1E+06 | V24: 14 | W24: 4.7E+06 | X24: 140.34 | Y24: 185 | Z24: 3.2E+06 | AA24: 56 | AB24: 3.2E+06 | AC24: 8 | AD24: 3.2E+06
A25: S3 | B25: 86 | C25: 30 | D25: 324.11 | E25: 325.11 | F25: C14H18BClN2O4 | G25: 324.11 | H25: 1 | I25: FineTune + | J25: Pass | K25: Positive | L25: 325.08 | M25: 1.8E+07 | N25: 100 | O25: 2.2E+07 | P25: 10 | Q25: 239.54 | R25: 86 | S25: 4.2E+06 | T25: 30 | U25: 4.2E+06 | V25: 13 | W25: 4.0E+06 | X25: 140.32 | Y25: 185 | Z25: 2.9E+06 | AA25: 61 | AB25: 2.9E+06 | AC25: 9 | AD25: 3.0E+06
A26: S4 | B26: =Y26 -> 86 | C26: 23 | D26: 386.05 | E26: 387.05 | F26: C14H17BBrFN2O4 | G26: 386.05 | H26: 1 | I26: FineTune + | J26: Pass | K26: Positive | L26: 387.14 | M26: 5.4E+06 | N26: 100 | O26: 6.8E+06 | P26: 10 | Q26: 105.29 | R26: 282 | S26: 1.0E+06 | T26: 23 | U26: 1.0E+06 | V26: 9 | W26: 7.7E+05 | X26: 301.46 | Y26: 86 | Z26: 6.1E+05 | AA26: 30 | AB26: 6.1E+05 | AC26: 27 | AD26: 6.8E+05
A27: S5 | B27: 86 | C27: =T27 -> 33 | D27: 398.07 | E27: 399.07 | F27: C15H20BBrN2O5 | G27: 398.07 | H27: 1 | I27: FineTune + | J27: Pass | K27: Positive | L27: 399.10 | M27: 1.1E+07 | N27: 100 | O27: 1.3E+07 | P27: 10 | Q27: 313.44 | R27: 86 | S27: 4.3E+06 | T27: 33 | U27: 4.3E+06 | V27: 10 | W27: 4.4E+06 | X27: 285.45 | Y27: 114 | Z27: 1.4E+06 | AA27: 44 | AB27: 1.4E+06 | AC27: 9 | AD27: 1.5E+06
A28: S6 | B28: 86 | C28: =T28 -> 31 | D28: 384.17 | E28: 385.17 | F28: C17H21BN6O4 | G28: 384.18 | H28: 1 | I28: FineTune + | J28: Pass | K28: Positive | L28: 385.20 | M28: 3.1E+07 | N28: 110 | O28: 3.9E+07 | P28: 10 | Q28: 299.56 | R28: 86 | S28: 1.4E+07 | T28: 31 | U28: 1.4E+07 | V28: 9 | W28: 1.4E+07 | X28: 200.46 | Y28: 185 | Z28: 1.1E+07 | AA28: 59 | AB28: 1.1E+07 | AC28: 12 | AD28: 1.1E+07
A29: S7 | B29: 86 | C29: =T29 -> 35 | D29: 403.15 | E29: 404.15 | F29: C17H22BN5O4S | G29: 403.15 | H29: 1 | I29: FineTune + | J29: Pass | K29: Positive | L29: 404.17 | M29: 4.7E+07 | N29: 120 | O29: 6.1E+07 | P29: 10 | Q29: 318.53 | R29: 86 | S29: 2.6E+07 | T29: 35 | U29: 2.6E+07 | V29: 9 | W29: 2.7E+07 | X29: 219.46 | Y29: 185 | Z29: 2.1E+07 | AA29: 58 | AB29: 2.1E+07 | AC29: 12 | AD29: 1.9E+07
A30: S8 | B30: 86 | C30: 38 | D30: 440.19 | E30: 441.19 | F30: C21H25BN4O6 | G30: 440.19 | H30: 1 | I30: FineTune + | J30: Pass | K30: Positive | L30: 441.22 | M30: 4.0E+07 | N30: 50 | O30: 5.0E+07 | P30: 10 | Q30: 355.55 | R30: 86 | S30: 2.1E+07 | T30: 38 | U30: 2.1E+07 | V30: 7 | W30: 2.0E+07 | X30: 210.47 | Y30: 231 | Z30: 1.1E+07 | AA30: 77 | AB30: 1.1E+07 | AC30: 11 | AD30: 1.1E+07
A31: S9 | B31: =Y31 -> 86 | C31: 39 | D31: 447.21 | E31: 448.21 | F31: C23H26BN5O4 | G31: 447.21 | H31: 1 | I31: FineTune + | J31: Pass | K31: Positive | L31: 448.22 | M31: 5.6E+07 | N31: 80 | O31: 7.0E+07 | P31: 10 | Q31: 263.52 | R31: 185 | S31: 3.2E+07 | T31: 39 | U31: 3.2E+07 | V31: 15 | W31: 2.6E+07 | X31: 362.60 | Y31: 86 | Z31: 3.1E+07 | AA31: 39 | AB31: 3.1E+07 | AC31: 11 | AD31: 2.9E+07
A32: S10 | B32: 86 | C32: 35 | D32: 454.20 | E32: 455.20 | F32: C22H27BN4O6 | G32: 454.21 | H32: 1 | I32: FineTune + | J32: Pass | K32: Positive | L32: 455.21 | M32: 5.4E+07 | N32: 120 | O32: 6.7E+07 | P32: 10 | Q32: 369.58 | R32: 86 | S32: 2.9E+07 | T32: 35 | U32: 2.9E+07 | V32: 11 | W32: 2.7E+07 | X32: 270.51 | Y32: 185 | Z32: 3.9E+06 | AA32: 55 | AB32: 3.9E+06 | AC32: 8 | AD32: 4.2E+06
A33: S11 | B33: 86 | C33: 37 | D33: 495.15 | E33: 496.15 | F33: C20H21BF3N5O6 | G33: 495.16 | H33: 1 | I33: FineTune + | J33: Pass | K33: Positive | L33: 496.18 | M33: 4.1E+07 | N33: 80 | O33: 4.5E+07 | P33: 10 | Q33: 410.09 | R33: 86 | S33: 3.6E+07 | T33: 37 | U33: 3.6E+07 | V33: 14 | W33: 3.8E+07 | X33: 364.14 | Y33: 132 | Z33: 1.9E+07 | AA33: 57 | AB33: 1.9E+07 | AC33: 12 | AD33: 1.8E+07
A34: S12 | B34: 86 | C34: 38 | D34: 488.22 | E34: 489.22 | F34: C26H29BN4O5 | G34: 488.23 | H34: 1 | I34: FineTune + | J34: Pass | K34: Positive | L34: 489.22 | M34: 5.4E+07 | N34: 80 | O34: 6.7E+07 | P34: 10 | Q34: 403.65 | R34: 86 | S34: 1.6E+07 | T34: 38 | U34: 1.6E+07 | V34: 12 | W34: 1.3E+07 | X34: 304.55 | Y34: 185 | Z34: 9.1E+06 | AA34: 62 | AB34: 9.1E+06 | AC34: 9 | AD34: 8.3E+06
A35: S13 | B35: 86 | C35: 35 | D35: 532.23 | E35: 533.23 | F35: C24H34BN4O7P | G35: 532.23 | H35: 1 | I35: FineTune + | J35: Pass | K35: Positive | L35: 533.21 | M35: 6.4E+07 | N35: 50 | O35: 7.8E+07 | P35: 10 | Q35: 447.60 | R35: 86 | S35: 3.2E+07 | T35: 35 | U35: 3.2E+07 | V35: 13 | W35: 3.3E+07 | X35: 309.45 | Y35: 224 | Z35: 3.1E+07 | AA35: 60 | AB35: 3.1E+07 | AC35: 9 | AD35: 2.8E+07
A36: S14 | B36: 86 | C36: 34 | D36: 390.13 | E36: 391.13 | F36: C15H19BN6O4S | G36: 390.13 | H36: 1 | I36: FineTune + | J36: Pass | K36: Positive | L36: 391.17 | M36: 3.6E+07 | N36: 110 | O36: 4.3E+07 | P36: 10 | Q36: 305.52 | R36: 86 | S36: 1.5E+07 | T36: 34 | U36: 1.5E+07 | V36: 9 | W36: 1.5E+07 | X36: 206.42 | Y36: 185 | Z36: 9.3E+06 | AA36: 59 | AB36: 9.3E+06 | AC36: 12 | AD36: 8.5E+06
A37: S15 | B37: 86 | C37: 42 | D37: 523.17 | E37: 524.17 | F37: C24H26BN5O6S | G37: 523.17 | H37: 1 | I37: FineTune + | J37: Pass | K37: Positive | L37: 524.19 | M37: 3.8E+07 | N37: 50 | O37: 4.5E+07 | P37: 10 | Q37: 438.09 | R37: 86 | S37: 3.6E+07 | T37: 42 | U37: 3.6E+07 | V37: 14 | W37: 3.7E+07 | X37: 339.09 | Y37: 185 | Z37: 3.3E+07 | AA37: 67 | AB37: 3.3E+07 | AC37: 21 | AD37: 3.0E+07
A38: S16 | B38: 86 | C38: 37 | D38: 477.18 | E38: 478.18 | F38: C23H24BN5O6 | G38: 477.19 | H38: 1 | I38: FineTune + | J38: Pass | K38: Positive | L38: 478.22 | M38: 3.7E+07 | N38: 50 | O38: 4.7E+07 | P38: 10 | Q38: 392.14 | R38: 86 | S38: 3.4E+07 | T38: 37 | U38: 3.4E+07 | V38: 13 | W38: 3.6E+07 | X38: 246.12 | Y38: 232 | Z38: 2.4E+07 | AA38: 88 | AB38: 2.4E+07 | AC38: 14 | AD38: 2.1E+07
A39: S17 | B39: 86 | C39: 39 | D39: 398.18 | E39: 399.18 | F39: C21H24BFN2O4 | G39: 398.19 | H39: 1 | I39: FineTune + | J39: Pass | K39: Positive | L39: 399.22 | M39: 3.0E+07 | N39: 120 | O39: 4.1E+07 | P39: 10 | Q39: 313.56 | R39: 86 | S39: 1.2E+07 | T39: 39 | U39: 1.2E+07 | V39: 9 | W39: 1.3E+07 | X39: 214.47 | Y39: 185 | Z39: 7.2E+06 | AA39: 59 | AB39: 7.2E+06 | AC39: 14 | AD39: 6.5E+06
A40: S18 | B40: 86 | C40: 33 | D40: 425.18 | E40: 426.18 | F40: C21H24BN3O6 | G40: 425.18 | H40: 1 | I40: FineTune + | J40: Pass | K40: Positive | L40: 426.20 | M40: 5.9E+06 | N40: 110 | O40: 7.5E+06 | P40: 10 | Q40: 340.56 | R40: 86 | S40: 1.0E+06 | T40: 33 | U40: 1.0E+06 | V40: 10 | W40: 1.0E+06 | X40: 184.51 | Y40: 242 | Z40: 7.4E+05 | AA40: 28 | AB40: 7.4E+05 | AC40: 10 | AD40: 6.4E+05
A41: S19 | B41: 86 | C41: 39 | D41: 422.24 | E41: 423.24 | F41: C24H31BN2O4 | G41: 422.24 | H41: 1 | I41: FineTune + | J41: Pass | K41: Positive | L41: 423.28 | M41: 5.0E+07 | N41: 120 | O41: 6.3E+07 | P41: 10 | Q41: 337.61 | R41: 86 | S41: 2.7E+07 | T41: 39 | U41: 2.7E+07 | V41: 10 | W41: 2.2E+07 | X41: 238.56 | Y41: 185 | Z41: 7.8E+06 | AA41: 58 | AB41: 7.8E+06 | AC41: 14 | AD41: 7.3E+06
A42: S20 | B42: 86 | C42: 40 | D42: 434.16 | E42: 435.16 | F42: C21H22BF3N2O4 | G42: 434.17 | H42: 1 | I42: FineTune + | J42: Pass | K42: Positive | L42: 435.18 | M42: 9.0E+06 | N42: 100 | O42: 1.0E+07 | P42: 10 | Q42: 349.55 | R42: 86 | S42: 3.0E+06 | T42: 40 | U42: 3.0E+06 | V42: 11 | W42: 2.9E+06 | X42: 250.48 | Y42: 185 | Z42: 1.1E+06 | AA42: 60 | AB42: 1.1E+06 | AC42: 20 | AD42: 1.1E+06
A43: S21 | B43: 56 | C43: 27 | D43: 440.26 | E43: 441.26 | F43: C23H33BN4O4 | G43: 440.27 | H43: 1 | I43: FineTune + | J43: Pass | K43: Positive | L43: 441.29 | M43: 5.8E+07 | N43: 100 | O43: 7.2E+07 | P43: 10 | Q43: 385.61 | R43: 56 | S43: 4.0E+07 | T43: 27 | U43: 4.0E+07 | V43: 8 | W43: 3.9E+07 | X43: 299.56 | Y43: 142 | Z43: 3.3E+07 | AA43: 41 | AB43: 3.3E+07 | AC43: 9 | AD43: 3.4E+07
A44: S22 | B44: 86 | C44: =T44 -> 40 | D44: 457.22 | E44: 458.22 | F44: C26H28BN3O4 | G44: 457.22 | H44: 1 | I44: FineTune + | J44: Pass | K44: Positive | L44: 458.21 | M44: 6.5E+07 | N44: 70 | O44: 7.8E+07 | P44: 10 | Q44: 372.62 | R44: 86 | S44: 3.5E+07 | T44: 40 | U44: 3.5E+07 | V44: 11 | W44: 3.0E+07 | X44: 273.52 | Y44: 185 | Z44: 3.0E+07 | AA44: 66 | AB44: 3.0E+07 | AC44: 8 | AD44: 2.2E+07
A45: S23 | B45: 86 | C45: =T45 -> 35 | D45: 401.16 | E45: 402.16 | F45: C19H24BN3O4S | G45: 401.16 | H45: 1 | I45: FineTune + | J45: Pass | K45: Positive | L45: 402.19 | M45: 5.4E+07 | N45: 70 | O45: 8.1E+07 | P45: 10 | Q45: 316.55 | R45: 86 | S45: 2.8E+07 | T45: 35 | U45: 2.8E+07 | V45: 9 | W45: 3.0E+07 | X45: 217.45 | Y45: 185 | Z45: 2.6E+07 | AA45: 60 | AB45: 2.6E+07 | AC45: 14 | AD45: 2.4E+07
A46: S24 | B46: 86 | C46: =T46 -> 33 | D46: 382.18 | E46: 383.18 | F46: C19H23BN4O4 | G46: 382.19 | H46: 1 | I46: FineTune + | J46: Pass | K46: Positive | L46: 383.21 | M46: 4.1E+07 | N46: 120 | O46: 4.8E+07 | P46: 10 | Q46: 297.55 | R46: 86 | S46: 1.4E+07 | T46: 33 | U46: 1.4E+07 | V46: 9 | W46: 1.3E+07 | X46: 198.49 | Y46: 185 | Z46: 7.8E+06 | AA46: 57 | AB46: 7.8E+06 | AC46: 11 | AD46: 7.8E+06
A47: S25 | B47: 224 | C47: =T47 -> 58 | D47: 530.24 | E47: 531.24 | F47: C26H36BN2O7P | G47: 530.24 | H47: 1 | I47: FineTune + | J47: Pass | K47: Positive | L47: 531.23 | M47: 5.9E+07 | N47: 80 | O47: 7.4E+07 | P47: 10 | Q47: 307.53 | R47: 224 | S47: 2.5E+07 | T47: 58 | U47: 2.5E+07 | V47: 9 | W47: 2.6E+07 | X47: 208.50 | Y47: 323 | Z47: 2.1E+07 | AA47: 92 | AB47: 2.1E+07 | AC47: 12 | AD47: 1.3E+07
A48: S26 | B48: =R48 -> 86 | C48: =T48 -> 39 | D48: 452.21 | E48: 453.21 | F48: C24H29BN2O6 | G48: 452.22 | H48: 1 | I48: FineTune + | J48: Pass | K48: Positive | L48: 453.22 | M48: 1.9E+07 | N48: 110 | O48: 2.2E+07 | P48: 10 | Q48: 367.59 | R48: 86 | S48: 7.8E+06 | T48: 39 | U48: 7.8E+06 | V48: 10 | W48: 7.4E+06 | X48: 339.58 | Y48: 114 | Z48: 1.2E+06 | AA48: 52 | AB48: 1.2E+06 | AC48: 10 | AD48: 1.1E+06
A49: S27 | B49: =Y49 -> 86 | C49: =AA49 -> 35 | D49: 485.22 | E49: 486.22 | F49: C26H28BN5O4 | G49: 485.23 | H49: 1 | I49: FineTune + | J49: Pass | K49: Positive | L49: 486.23 | M49: 4.8E+07 | N49: 70 | O49: 5.6E+07 | P49: 10 | Q49: 301.56 | R49: 185 | S49: 4.2E+06 | T49: 35 | U49: 4.2E+06 | V49: 24 | W49: 4.5E+06 | X49: 400.67 | Y49: 86 | Z49: 4.2E+06 | AA49: 35 | AB49: 4.2E+06 | AC49: 12 | AD49: 4.2E+06
A50: S28 | B50: 86 | C50: =AA49 -> 35 | D50: 449.17 | E50: 450.17 | F50: C21H23BF3N3O4 | G50: 449.18 | H50: 1 | I50: FineTune + | J50: Pass | K50: Positive | L50: 450.18 | M50: 6.0E+07 | N50: 80 | O50: 7.9E+07 | P50: 10 | Q50: 364.56 | R50: 86 | S50: 3.3E+07 | T50: 38 | U50: 3.3E+07 | V50: 11 | W50: 3.2E+07 | X50: 265.46 | Y50: 185 | Z50: 2.7E+07 | AA50: 65 | AB50: 2.7E+07 | AC50: 18 | AD50: 2.4E+07
A51: S29 | B51: 86 | C51: =T50 -> 38 | D51: 465.24 | E51: 466.24 | F51: C25H32BN3O5 | G51: 465.25 | H51: 1 | I51: FineTune + | J51: Pass | K51: Positive | L51: 466.25 | M51: 5.6E+07 | N51: 110 | O51: 7.0E+07 | P51: 10 | Q51: 380.64 | R51: 86 | S51: 1.5E+07 | T51: 39 | U51: 1.5E+07 | V51: 11 | W51: 1.1E+07 | X51: 235.52 | Y51: 231 | Z51: 2.8E+06 | AA51: 61 | AB51: 2.8E+06 | AC51: 18 | AD51: 2.6E+06
A52: S30 | B52: =Y52 -> 86 | C52: =AA52 -> 42 | D52: 521.18 | E52: 522.18 | F52: C26H28BN3O6S | G52: 521.18 | H52: 1 | I52: FineTune + | J52: Pass | K52: Positive | L52: 522.17 | M52: 5.9E+07 | N52: 100 | O52: 7.1E+07 | P52: 10 | Q52: 337.48 | R52: 185 | S52: 2.3E+07 | T52: 42 | U52: 2.3E+07 | V52: 10 | W52: 1.8E+07 | X52: 436.59 | Y52: 86 | Z52: 2.0E+07 | AA52: 42 | AB52: 2.0E+07 | AC52: 13 | AD52: 2.2E+07
A53: S31 | B53: =R53 -> 86 | C53: =T53 -> 38 | D53: 434.16 | E53: 435.16 | F53: C21H22BF3N2O4 | G53: 434.17 | H53: 1 | I53: FineTune + | J53: Pass | K53: Positive | L53: 435.21 | M53: 1.2E+07 | N53: 130 | O53: 1.4E+07 | P53: 10 | Q53: 349.14 | R53: 86 | S53: 1.1E+07 | T53: 38 | U53: 1.1E+07 | V53: 11 | W53: 1.1E+07 | X53: 250.13 | Y53: 185 | Z53: 3.4E+06 | AA53: 58 | AB53: 3.4E+06 | AC53: 14 | AD53: 3.3E+06
A54: S32 | B54: 86 | C54: =T54 -> 40 | D54: 445.22 | E54: 446.22 | F54: C25H28BN3O4 | G54: 445.22 | H54: 1 | I54: FineTune + | J54: Pass | K54: Positive | L54: 446.26 | M54: 2.5E+07 | N54: 90 | O54: 2.9E+07 | P54: 10 | Q54: 360.20 | R54: 86 | S54: 2.0E+07 | T54: 40 | U54: 2.0E+07 | V54: 12 | W54: 1.8E+07 | X54: 158.05 | Y54: 288 | Z54: 4.7E+06 | AA54: 71 | AB54: 4.7E+06 | AC54: 9 | AD54: 4.7E+06
A55: S33 | B55: 86 | C55: 44 | D55: 521.18 | E55: 522.18 | F55: C26H28BN3O6S | G55: 521.18 | H55: 1 | I55: FineTune + | J55: Pass | K55: Positive | L55: 522.20 | M55: 3.1E+07 | N55: 50 | O55: 3.8E+07 | P55: 10 | Q55: 436.11 | R55: 86 | S55: 2.8E+07 | T55: 44 | U55: 2.8E+07 | V55: 14 | W55: 3.0E+07 | X55: 337.10 | Y55: 185 | Z55: 2.4E+07 | AA55: 67 | AB55: 2.4E+07 | AC55: 18 | AD55: 2.1E+07
A56: S34 | B56: 86 | C56: 40 | D56: 426.24 | E56: 427.24 | F56: C22H31BN4O4 | G56: 426.25 | H56: 1 | I56: FineTune + | J56: Pass | K56: Positive | L56: 427.22 | M56: 3.6E+07 | N56: 50 | O56: 4.2E+07 | P56: 10 | Q56: 341.24 | R56: 86 | S56: 3.2E+07 | T56: 40 | U56: 3.2E+07 | V56: 6 | W56: 3.2E+07 | X56: 242.20 | Y56: 185 | Z56: 2.0E+07 | AA56: 59 | AB56: 2.0E+07 | AC56: 14 | AD56: 2.0E+07
A57: S35 | B57: 86 | C57: 38 | D57: 493.16 | E57: 494.16 | F57: C22H23BF3N3O6 | G57: 493.17 | H57: 1 | I57: FineTune + | J57: Pass | K57: Positive | L57: 494.19 | M57: 4.7E+06 | N57: 120 | O57: 5.8E+06 | P57: 10 | Q57: 408.11 | R57: 86 | S57: 1.3E+06 | T57: 38 | U57: 1.3E+06 | V57: 13 | W57: 1.4E+06 | X57: 388.13 | Y57: 106 | Z57: 1.2E+06 | AA57: 38 | AB57: 1.2E+06 | AC57: 13 | AD57: 1.2E+06
A58: S36 | B58: 86 | C58: 35 | D58: 415.15 | E58: 416.15 | F58: C20H23BClN3O4 | G58: 415.15 | H58: 1 | I58: FineTune + | J58: Pass | K58: Positive | L58: 416.18 | M58: 4.5E+07 | N58: 120 | O58: 5.6E+07 | P58: 10 | Q58: 330.53 | R58: 86 | S58: 2.5E+07 | T58: 35 | U58: 2.5E+07 | V58: 10 | W58: 2.5E+07 | X58: 231.45 | Y58: 185 | Z58: 1.6E+07 | AA58: 62 | AB58: 1.6E+07 | AC58: 12 | AD58: 1.4E+07
A59: S37 | B59: 86 | C59: 34 | D59: 426.17 | E59: 427.17 | F59: C20H23BN4O6 | G59: 426.18 | H59: 1 | I59: FineTune + | J59: Pass | K59: Positive | L59: 427.20 | M59: 4.3E+07 | N59: 120 | O59: 5.5E+07 | P59: 10 | Q59: 341.54 | R59: 86 | S59: 2.5E+07 | T59: 34 | U59: 2.5E+07 | V59: 10 | W59: 2.4E+07 | X59: 195.46 | Y59: 232 | Z59: 1.3E+07 | AA59: 95 | AB59: 1.3E+07 | AC59: 17 | AD59: 6.8E+06
A60: S38 | B60: 86 | C60: 35 | D60: 409.22 | E60: 410.22 | F60: C22H28BN3O4 | G60: 409.22 | H60: 1 | I60: FineTune + | J60: Pass | K60: Positive | L60: 410.23 | M60: 5.8E+07 | N60: 50 | O60: 7.4E+07 | P60: 10 | Q60: 324.59 | R60: 86 | S60: 4.3E+07 | T60: 35 | U60: 4.3E+07 | V60: 9 | W60: 4.4E+07 | X60: 225.49 | Y60: 185 | Z60: 3.9E+07 | AA60: 60 | AB60: 3.9E+07 | AC60: 14 | AD60: 3.5E+07
A61: S39 | B61: 86 | C61: 36 | D61: 435.16 | E61: 436.16 | F61: C20H21BF3N3O4 | G61: 435.16 | H61: 1 | I61: FineTune + | J61: Pass | K61: Positive | L61: 436.19 | M61: 5.2E+07 | N61: 120 | O61: 6.2E+07 | P61: 10 | Q61: 350.53 | R61: 86 | S61: 3.1E+07 | T61: 36 | U61: 3.1E+07 | V61: 10 | W61: 2.9E+07 | X61: 251.45 | Y61: 185 | Z61: 1.9E+07 | AA61: 66 | AB61: 1.9E+07 | AC61: 7 | AD61: 1.5E+07
A62: S40 | B62: 86 | C62: 34 | D62: 383.18 | E62: 384.18 | F62: C18H22BN5O4 | G62: 383.18 | H62: 1 | I62: FineTune + | J62: Pass | K62: Positive | L62: 384.20 | M62: 4.4E+07 | N62: 120 | O62: 5.8E+07 | P62: 10 | Q62: 298.56 | R62: 86 | S62: 2.1E+07 | T62: 34 | U62: 2.1E+07 | V62: 9 | W62: 2.3E+07 | X62: 199.46 | Y62: 185 | Z62: 2.0E+07 | AA62: 61 | AB62: 2.0E+07 | AC62: 11 | AD62: 1.8E+07
A63: S41 | B63: 86 | C63: 39 | D63: 531.23 | E63: 532.23 | F63: C25H35BN3O7P | G63: 531.24 | H63: 1 | I63: FineTune + | J63: Pass | K63: Positive | L63: 532.22 | M63: 6.2E+07 | N63: 70 | O63: 7.7E+07 | P63: 10 | Q63: 446.65 | R63: 86 | S63: 1.8E+07 | T63: 39 | U63: 1.8E+07 | V63: 13 | W63: 2.0E+07 | X63: 308.62 | Y63: 224 | Z63: 8.8E+06 | AA63: 61 | AB63: 8.8E+06 | AC63: 26 | AD63: 9.5E+06
A64: S42 | B64: 86 | C64: 48 | D64: 518.22 | E64: 519.22 | F64: C27H31BN4O4S | G64: 518.22 | H64: 1 | I64: FineTune + | J64: Pass | K64: Positive | L64: 519.23 | M64: 3.9E+07 | N64: 190 | O64: 4.3E+07 | P64: 10 | Q64: 433.11 | R64: 86 | S64: 3.6E+07 | T64: 48 | U64: 3.6E+07 | V64: 15 | W64: 3.7E+07 | X64: 334.13 | Y64: 185 | Z64: 3.5E+07 | AA64: 69 | AB64: 3.5E+07 | AC64: 20 | AD64: 3.4E+07
A65: S43 | B65: 86 | C65: 43 | D65: 494.16 | E65: 495.16 | F65: C21H22BF3N4O6 | G65: 494.16 | H65: 1 | I65: FineTune + | J65: Pass | K65: Positive | L65: 495.18 | M65: 3.7E+07 | N65: 60 | O65: 4.5E+07 | P65: 10 | Q65: 409.09 | R65: 86 | S65: 3.4E+07 | T65: 43 | U65: 3.4E+07 | V65: 8 | W65: 3.5E+07 | X65: 363.15 | Y65: 132 | Z65: 2.8E+07 | AA65: 57 | AB65: 2.8E+07 | AC65: 12 | AD65: 2.7E+07
A66: S44 | B66: 86 | C66: 40 | D66: 476.19 | E66: 477.19 | F66: C24H25BN4O6 | G66: 476.19 | H66: 1 | I66: FineTune + | J66: Pass | K66: Positive | L66: 477.22 | M66: 3.6E+07 | N66: 50 | O66: 4.3E+07 | P66: 10 | Q66: 391.15 | R66: 86 | S66: 3.3E+07 | T66: 40 | U66: 3.3E+07 | V66: 13 | W66: 3.4E+07 | X66: 245.11 | Y66: 232 | Z66: 2.8E+07 | AA66: 92 | AB66: 2.8E+07 | AC66: 14 | AD66: 2.4E+07
A67: S45 | B67: 86 | C67: 49 | D67: 520.23 | E67: 521.23 | F67: C27H33BN4O4S | G67: 520.24 | H67: 1 | I67: FineTune + | J67: Pass | K67: Positive | L67: 521.26 | M67: 4.0E+07 | N67: 50 | O67: 4.2E+07 | P67: 10 | Q67: 435.12 | R67: 86 | S67: 3.7E+07 | T67: 49 | U67: 3.7E+07 | V67: 1 | W67: 3.7E+07 | X67: 336.15 | Y67: 185 | Z67: 3.5E+07 | AA67: 67 | AB67: 3.5E+07 | AC67: 19 | AD67: 3.2E+07
A68: S46 | B68: =R68 -> 86 | C68: 41 | D68: 494.16 | E68: 495.16 | F68: C21H22BF3N4O6 | G68: 494.16 | H68: 1 | I68: FineTune + | J68: Pass | K68: Positive | L68: 495.32 | M68: 3.7E+07 | N68: 50 | O68: 4.2E+07 | P68: 10 | Q68: 409.07 | R68: 86 | S68: 3.4E+07 | T68: 41 | U68: 3.4E+07 | V68: 1 | W68: 3.4E+07 | X68: 363.15 | Y68: =L68-X68 -> 132 | Z68: 2.8E+07 | AA68: 57 | AB68: 2.8E+07 | AC68: 12 | AD68: 2.7E+07
A69: S47 | B69: 86 | C69: 39 | D69: 476.19 | E69: 477.19 | F69: C24H25BN4O6 | G69: 476.19 | H69: 1 | I69: FineTune + | J69: Pass | K69: Positive | L69: 477.18 | M69: 3.5E+07 | N69: 50 | O69: 4.2E+07 | P69: 10 | Q69: 391.14 | R69: 86 | S69: 3.2E+07 | T69: 39 | U69: 3.2E+07 | V69: 14 | W69: 3.3E+07 | X69: 245.13 | Y69: 232 | Z69: 3.0E+07 | AA69: 90 | AB69: 3.0E+07 | AC69: 14 | AD69: 2.7E+07
A70: S48 | B70: 86 | C70: 34 | D70: 464.20 | E70: 465.20 | F70: C24H26BFN4O4 | G70: 464.21 | H70: 1 | I70: FineTune + | J70: Pass | K70: Positive | L70: 465.19 | M70: 2.2E+07 | N70: 120 | O70: 2.8E+07 | P70: 10 | Q70: 379.58 | R70: 86 | S70: 9.8E+06 | T70: 34 | U70: 9.8E+06 | V70: 11 | W70: 9.5E+06 | X70: 280.49 | Y70: 185 | Z70: 4.0E+06 | AA70: 61 | AB70: 4.0E+06 | AC70: 8 | AD70: 3.6E+06
A71: S49 | B71: 86 | C71: 46 | D71: 536.21 | E71: 537.21 | F71: C27H30BFN4O4S | G71: 536.21 | H71: 1 | I71: FineTune + | J71: Pass | K71: Positive | L71: 537.20 | M71: 3.9E+07 | N71: 110 | O71: 4.5E+07 | P71: 10 | Q71: 451.65 | R71: 86 | S71: 6.6E+06 | T71: 46 | U71: 6.6E+06 | V71: 14 | W71: 7.9E+06 | X71: 352.55 | Y71: 185 | Z71: 6.1E+06 | AA71: 70 | AB71: 6.1E+06 | AC71: 10 | AD71: 5.2E+06
A72: S50 | B72: 86 | C72: 42 | D72: 538.22 | E72: 539.22 | F72: C27H32BFN4O4S | G72: 538.23 | H72: 1 | I72: FineTune + | J72: Pass | K72: Positive | L72: 539.22 | M72: 4.3E+07 | N72: 100 | O72: 4.9E+07 | P72: 10 | Q72: 453.66 | R72: 86 | S72: 7.7E+06 | T72: 42 | U72: 7.7E+06 | V72: 14 | W72: 8.4E+06 | X72: 397.62 | Y72: 142 | Z72: 2.2E+06 | AA72: 59 | AB72: 2.2E+06 | AC72: 12 | AD72: 2.2E+06
A73: S51 | B73: 86 | C73: 42 | D73: 540.17 | E73: 541.17 | F73: C25H26BFN4O6S | G73: 540.17 | H73: 1 | I73: FineTune + | J73: Pass | K73: Positive | L73: 541.17 | M73: 4.4E+07 | N73: 100 | O73: 5.2E+07 | P73: 10 | Q73: 455.58 | R73: 86 | S73: 1.0E+07 | T73: 42 | U73: 1.0E+07 | V73: 14 | W73: 9.7E+06 | X73: 356.50 | Y73: 185 | Z73: 7.2E+06 | AA73: 66 | AB73: 7.2E+06 | AC73: 11 | AD73: 5.1E+06
A74: S52 | B74: 86 | C74: 36 | D74: 512.15 | E74: 513.15 | F74: C21H21BF4N4O6 | G74: 512.15 | H74: 1 | I74: FineTune + | J74: Pass | K74: Positive | L74: 513.13 | M74: 1.5E+07 | N74: 90 | O74: 1.8E+07 | P74: 10 | Q74: 427.53 | R74: 86 | S74: 5.2E+06 | T74: 36 | U74: 5.2E+06 | V74: 8 | W74: 5.2E+06 | X74: 381.56 | Y74: 132 | Z74: 8.4E+05 | AA74: 56 | AB74: 8.4E+05 | AC74: 11 | AD74: 8.4E+05
A75: S53 | B75: 86 | C75: 35 | D75: 459.20 | E75: 460.20 | F75: C22H27BFN3O6 | G75: 459.20 | H75: 1 | I75: FineTune + | J75: Pass | K75: Positive | L75: 460.21 | M75: 2.8E+07 | N75: 70 | O75: 3.7E+07 | P75: 10 | Q75: 374.54 | R75: 86 | S75: 1.5E+07 | T75: 35 | U75: 1.5E+07 | V75: 11 | W75: 1.5E+07 | X75: 275.49 | Y75: 185 | Z75: 3.3E+06 | AA75: 58 | AB75: 3.3E+06 | AC75: 8 | AD75: 3.5E+06
A76: S54 | B76: 86 | C76: 34 | D76: 427.21 | E76: 428.21 | F76: C22H27BFN3O4 | G76: 427.21 | H76: 1 | I76: FineTune + | J76: Pass | K76: Positive | L76: 428.23 | M76: 3.5E+07 | N76: 60 | O76: 4.1E+07 | P76: 10 | Q76: 342.60 | R76: 86 | S76: 1.4E+07 | T76: 34 | U76: 1.4E+07 | V76: 10 | W76: 1.4E+07 | X76: 243.51 | Y76: 185 | Z76: 6.2E+06 | AA76: 57 | AB76: 6.2E+06 | AC76: 7 | AD76: 6.1E+06
A77: S55 | B77: 86 | C77: 36 | D77: 485.15 | E77: 486.15 | F77: C21H21BF5N3O4 | G77: 485.16 | H77: 1 | I77: FineTune + | J77: Pass | K77: Positive | L77: 486.16 | M77: 3.3E+07 | N77: 120 | O77: 4.3E+07 | P77: 10 | Q77: 400.55 | R77: 86 | S77: 1.1E+07 | T77: 36 | U77: 1.1E+07 | V77: 12 | W77: 1.0E+07 | X77: 301.46 | Y77: 185 | Z77: 4.6E+06 | AA77: 67 | AB77: 4.6E+06 | AC77: 9 | AD77: 4.3E+06
A78: S56 | B78: 86 | C78: 34 | D78: 427.21 | E78: 428.21 | F78: C22H27BFN3O4 | G78: 427.21 | H78: 1 | I78: FineTune + | J78: Pass | K78: Positive | L78: 428.25 | M78: 3.1E+07 | N78: 120 | O78: 3.6E+07 | P78: 10 | Q78: 342.59 | R78: 86 | S78: 1.4E+07 | T78: 34 | U78: 1.4E+07 | V78: 10 | W78: 1.4E+07 | X78: 243.54 | Y78: 185 | Z78: 5.0E+06 | AA78: 57 | AB78: 5.0E+06 | AC78: 14 | AD78: 5.1E+06
A79: S57 | B79: 86 | C79: 43 | D79: 550.24 | E79: 551.24 | F79: C28H35BN4O5S | G79: 550.25 | H79: 1 | I79: FineTune + | J79: Pass | K79: Positive | L79: 551.25 | M79: 5.8E+07 | N79: 90 | O79: 7.4E+07 | P79: 10 | Q79: 465.67 | R79: 86 | S79: 1.6E+07 | T79: 43 | U79: 1.6E+07 | V79: 14 | W79: 1.8E+07 | X79: 366.57 | Y79: 185 | Z79: 7.4E+06 | AA79: 66 | AB79: 7.4E+06 | AC79: 11 | AD79: 4.7E+06
A80: S58 | B80: 86 | C80: 40 | D80: 457.25 | E80: 458.25 | F80: C22H32BN5O5 | G80: 457.26 | H80: 1 | I80: FineTune + | J80: Pass | K80: Positive | L80: 458.25 | M80: 6.8E+07 | N80: 90 | O80: 7.8E+07 | P80: 10 | Q80: 372.67 | R80: 86 | S80: 3.0E+07 | T80: 40 | U80: 3.0E+07 | V80: 11 | W80: 2.5E+07 | X80: 273.55 | Y80: 185 | Z80: 1.7E+07 | AA80: 61 | AB80: 1.7E+07 | AC80: 8 | AD80: 1.5E+07
A81: S59 | B81: 86 | C81: 36 | D81: 459.20 | E81: 460.20 | F81: C22H27BFN3O6 | G81: 459.20 | H81: 1 | I81: FineTune + | J81: Pass | K81: Positive | L81: 460.21 | M81: 5.9E+07 | N81: 80 | O81: 7.1E+07 | P81: 10 | Q81: 374.61 | R81: 86 | S81: 1.7E+07 | T81: 36 | U81: 1.7E+07 | V81: 11 | W81: 1.6E+07 | X81: 346.64 | Y81: 114 | Z81: 2.5E+06 | AA81: 46 | AB81: 2.5E+06 | AC81: 19 | AD81: 2.4E+06
A82: S60 | B82: 86 | C82: 35 | D82: 471.22 | E82: 472.22 | F82: C23H30BN3O7 | G82: 471.22 | H82: 1 | I82: FineTune + | J82: Pass | K82: Positive | L82: 472.23 | M82: 5.9E+07 | N82: 50 | O82: 7.4E+07 | P82: 10 | Q82: 386.63 | R82: 86 | S82: 1.8E+07 | T82: 35 | U82: 1.8E+07 | V82: 12 | W82: 1.7E+07 | X82: 358.63 | Y82: 114 | Z82: 2.0E+06 | AA82: 47 | AB82: 2.0E+06 | AC82: 11 | AD82: 1.8E+06
A83: S61 | B83: 86 | C83: 37 | D83: 439.23 | E83: 440.23 | F83: C23H30BN3O5 | G83: 439.23 | H83: 1 | I83: FineTune + | J83: Pass | K83: Positive | L83: 440.23 | M83: 6.4E+07 | N83: 80 | O83: 7.8E+07 | P83: 10 | Q83: 354.64 | R83: 86 | S83: 2.7E+07 | T83: 37 | U83: 2.7E+07 | V83: 11 | W83: 2.7E+07 | X83: 326.63 | Y83: 114 | Z83: 4.9E+06 | AA83: 46 | AB83: 4.9E+06 | AC83: 10 | AD83: 5.3E+06
A84: S62 | B84: 86 | C84: 34 | D84: 429.19 | E84: 430.19 | F84: C21H25BFN3O5 | G84: 429.19 | H84: 1 | I84: FineTune + | J84: Pass | K84: Positive | L84: 430.21 | M84: 5.1E+07 | N84: 120 | O84: 5.8E+07 | P84: 10 | Q84: 344.56 | R84: 86 | S84: 2.3E+07 | T84: 34 | U84: 2.3E+07 | V84: 10 | W84: 2.2E+07 | X84: 316.59 | Y84: 114 | Z84: 4.1E+06 | AA84: 46 | AB84: 4.1E+06 | AC84: 10 | AD84: 4.5E+06
A85: S63 | B85: 86 | C85: 44 | D85: 547.23 | E85: 548.23 | F85: C29H34BN3O5S | G85: 547.24 | H85: 1 | I85: FineTune + | J85: Pass | K85: Positive | L85: 548.28 | M85: 3.5E+07 | N85: 130 | O85: 1.8E+07 | P85: 10 | Q85: 462.14 | R85: 86 | S85: 1.5E+07 | T85: 44 | U85: 1.5E+07 | V85: 15 | W85: 1.7E+07 | X85: 363.14 | Y85: 185 | Z85: 6.1E+06 | AA85: 68 | AB85: 6.1E+06 | AC85: 12 | AD85: 4.8E+06
A86: S64 | B86: 86 | C86: 43 | D86: 551.19 | E86: 552.19 | F86: C27H30BN3O7S | G86: 551.20 | H86: 1 | I86: FineTune + | J86: Pass | K86: Positive | L86: 552.24 | M86: 3.6E+07 | N86: 120 | O86: 2.3E+07 | P86: 10 | Q86: 466.12 | R86: 86 | S86: 1.8E+07 | T86: 43 | U86: 1.8E+07 | V86: 15 | W86: 2.0E+07 | X86: 367.07 | Y86: 185 | Z86: 7.6E+06 | AA86: 66 | AB86: 7.6E+06 | AC86: 12 | AD86: 5.2E+06
A87: S65 | B87: 86 | C87: 40 | D87: 456.25 | E87: 457.25 | F87: C23H33BN4O5 | G87: 456.26 | H87: 1 | I87: FineTune + | J87: Pass | K87: Positive | L87: 457.30 | M87: 3.7E+07 | N87: 90 | O87: 3.3E+07 | P87: 10 | Q87: 371.21 | R87: 86 | S87: 2.7E+07 | T87: 40 | U87: 2.7E+07 | V87: 12 | W87: 2.6E+07 | X87: 272.19 | Y87: 185 | Z87: 1.2E+07 | AA87: 61 | AB87: 1.2E+07 | AC87: 16 | AD87: 1.1E+07
A88: S96 | B88: 56 | C88: 30 | D88: 496.26 | E88: 497.26 | F88: C25H33BN4O6 | G88: 496.26 | H88: 1 | I88: FineTune + | J88: Pass | K88: Positive | L88: 497.26 | M88: 9.5E+06 | N88: 110 | O88: 1.0E+07 | P88: 10 | Q88: 441.25 | R88: =L88-Q88 -> 56 | S88: 8.5E+06 | T88: 30 | U88: 8.5E+06 | V88: 14 | W88: 7.6E+06 | X88: 355.19 | Y88: =L88-X88 -> 142 | Z88: 7.5E+06 | AA88: 47 | AB88: 7.5E+06 | AC88: 11 | AD88: 7.1E+06

Sheet 2
A1: Data associated with Extended Data Fig 1b, c
A17: ID | B17: Log Q3 intensity | C17: CE | D17: Exact mass | E17: MW + Salt | F17: Formula | G17: Monoisotopic Mass | H17: Charge State | I17: Selected Tune | J17: Tune Result | K17: Polarity | L17: Q1 | M17: Q1 Intensity | N17: DP | O17: DP Intensity | P17: EP | Q17: Q3 Mass 1 | R17: Q1-Q3 | S17: Q3 Intensity 1 | T17: CE 1 | U17: CE Intensity 1 | V17: CXP 1 | W17: CXP Intensity 1 | X17: Q3 Mass 2 | Y17: Q1-Q3 | Z17: Q3 Intensity 2 | AA17: CE 2 | AB17: CE Intensity 2 | AC17: CXP 2 | AD17: CXP Intensity 2
A18: S6 | B18: =LOG(S18) -> 7.1 | C18: =T18 -> 31 | D18: 384.17 | E18: 385.17 | F18: C17H21BN6O4 | G18: 384.18 | H18: 1 | I18: FineTune + | J18: Pass | K18: Positive | L18: 385.20 | M18: 31411077 | N18: 110 | O18: 39186021 | P18: 10 | Q18: 299.56 | R18: =L18-Q18 -> 86 | S18: 13612048 | T18: 31 | U18: 13612048 | V18: 9 | W18: 14092800 | X18: 200.46 | Y18: =L18-X18 -> 185 | Z18: 11188917 | AA18: 59 | AB18: 11188917 | AC18: 12 | AD18: 10929397
A19: S7 | B19: =LOG(S19) -> 7.4 | C19: =T19 -> 35 | D19: 403.15 | E19: 404.15 | F19: C17H22BN5O4S | G19: 403.15 | H19: 1 | I19: FineTune + | J19: Pass | K19: Positive | L19: 404.17 | M19: 47333231 | N19: 120 | O19: 60633844 | P19: 10 | Q19: 318.53 | R19: =L19-Q19 -> 86 | S19: 26256170 | T19: 35 | U19: 26256170 | V19: 9 | W19: 26808965 | X19: 219.46 | Y19: =L19-X19 -> 185 | Z19: 20579736 | AA19: 58 | AB19: 20579736 | AC19: 12 | AD19: 19185006
A20: S8 | B20: =LOG(S20) -> 7.3 | C20: =T20 -> 38 | D20: 440.19 | E20: 441.19 | F20: C21H25BN4O6 | G20: 440.19 | H20: 1 | I20: FineTune + | J20: Pass | K20: Positive | L20: 441.22 | M20: 39857385 | N20: 50 | O20: 49742464 | P20: 10 | Q20: 355.55 | R20: 86 | S20: 20951850 | T20: 38 | U20: 20951850 | V20: 7 | W20: 20234376 | X20: 210.47 | Y20: 231 | Z20: 11036692 | AA20: 77 | AB20: 11036692 | AC20: 11 | AD20: 10965938
A21: S9 | B21: =LOG(Z21) -> 7.5 | C21: =AA21 -> 39 | D21: 447.21 | E21: 448.21 | F21: C23H26BN5O4 | G21: 447.21 | H21: 1 | I21: FineTune + | J21: Pass | K21: Positive | L21: 448.22 | M21: 55990154 | N21: 80 | O21: 70464735 | P21: 10 | Q21: 263.52 | R21: 185 | S21: 32158328 | T21: 65 | U21: 32158328 | V21: 15 | W21: 26439773 | X21: 362.60 | Y21: 86 | Z21: 30712074 | AA21: 39 | AB21: 30712074 | AC21: 11 | AD21: 28763106
A22: S10 | B22: =LOG(S22) -> 7.5 | C22: =T22 -> 35 | D22: 454.20 | E22: 455.20 | F22: C22H27BN4O6 | G22: 454.21 | H22: 1 | I22: FineTune + | J22: Pass | K22: Positive | L22: 455.21 | M22: 53866000 | N22: 120 | O22: 66819561 | P22: 10 | Q22: 369.58 | R22: 86 | S22: 28796690 | T22: 35 | U22: 28796690 | V22: 11 | W22: 27437875 | X22: 270.51 | Y22: 185 | Z22: 3948807 | AA22: 55 | AB22: 3948807 | AC22: 8 | AD22: 4239133
A23: S11 | B23: 7.6 | C23: 37 | D23: 495.15 | E23: 496.15 | F23: C20H21BF3N5O6 | G23: 495.16 | H23: 1 | I23: FineTune + | J23: Pass | K23: Positive | L23: 496.18 | M23: 40584429 | N23: 80 | O23: 45173991 | P23: 10 | Q23: 410.09 | R23: 86 | S23: 36472363 | T23: 37 | U23: 36472363 | V23: 14 | W23: 38177378 | X23: 364.14 | Y23: 132 | Z23: 18634770 | AA23: 57 | AB23: 18634770 | AC23: 12 | AD23: 17636821
A24: S12 | B24: 7.2 | C24: 38 | D24: 488.22 | E24: 489.22 | F24: C26H29BN4O5 | G24: 488.23 | H24: 1 | I24: FineTune + | J24: Pass | K24: Positive | L24: 489.22 | M24: 54463538 | N24: 80 | O24: 67082403 | P24: 10 | Q24: 403.65 | R24: 86 | S24: 15504343 | T24: 38 | U24: 15504343 | V24: 12 | W24: 13074455 | X24: 304.55 | Y24: 185 | Z24: 9096046 | AA24: 62 | AB24: 9096046 | AC24: 9 | AD24: 8298954
A25: S13 | B25: 7.5 | C25: 35 | D25: 532.23 | E25: 533.23 | F25: C24H34BN4O7P | G25: 532.23 | H25: 1 | I25: FineTune + | J25: Pass | K25: Positive | L25: 533.21 | M25: 64380462 | N25: 50 | O25: 77997097 | P25: 10 | Q25: 447.60 | R25: 86 | S25: 32130666 | T25: 35 | U25: 32130666 | V25: 13 | W25: 32793835 | X25: 309.45 | Y25: 224 | Z25: 30762864 | AA25: 60 | AB25: 30762864 | AC25: 9 | AD25: 28460472
A26: S14 | B26: 7.2 | C26: 34 | D26: 390.13 | E26: 391.13 | F26: C15H19BN6O4S | G26: 390.13 | H26: 1 | I26: FineTune + | J26: Pass | K26: Positive | L26: 391.17 | M26: 36085846 | N26: 110 | O26: 42707142 | P26: 10 | Q26: 305.52 | R26: 86 | S26: 14660987 | T26: 34 | U26: 14660987 | V26: 9 | W26: 15446139 | X26: 206.42 | Y26: 185 | Z26: 9331125 | AA26: 59 | AB26: 9331125 | AC26: 12 | AD26: 8533385
A27: S15 | B27: 7.6 | C27: 42 | D27: 523.17 | E27: 524.17 | F27: C24H26BN5O6S | G27: 523.17 | H27: 1 | I27: FineTune + | J27: Pass | K27: Positive | L27: 524.19 | M27: 38353143 | N27: 50 | O27: 45212113 | P27: 10 | Q27: 438.09 | R27: 86 | S27: 36314290 | T27: 42 | U27: 36314290 | V27: 14 | W27: 36730699 | X27: 339.09 | Y27: 185 | Z27: 32853486 | AA27: 67 | AB27: 32853486 | AC27: 21 | AD27: 29648242
A28: S16 | B28: 7.5 | C28: 37 | D28: 477.18 | E28: 478.18 | F28: C23H24BN5O6 | G28: 477.19 | H28: 1 | I28: FineTune + | J28: Pass | K28: Positive | L28: 478.22 | M28: 36888462 | N28: 50 | O28: 46900772 | P28: 10 | Q28: 392.14 | R28: 86 | S28: 34297947 | T28: 37 | U28: 34297947 | V28: 13 | W28: 35663727 | X28: 246.12 | Y28: 232 | Z28: 23515109 | AA28: 88 | AB28: 23515109 | AC28: 14 | AD28: 20662475
A29: S17 | B29: 7.1 | C29: 39 | D29: 398.18 | E29: 399.18 | F29: C21H24BFN2O4 | G29: 398.19 | H29: 1 | I29: FineTune + | J29: Pass | K29: Positive | L29: 399.22 | M29: 30182000 | N29: 120 | O29: 40685222 | P29: 10 | Q29: 313.56 | R29: 86 | S29: 12319951 | T29: 39 | U29: 12319951 | V29: 9 | W29: 13454465 | X29: 214.47 | Y29: 185 | Z29: 7234010 | AA29: 59 | AB29: 7234010 | AC29: 14 | AD29: 6528721
A30: S18 | B30: 6.0 | C30: 33 | D30: 425.18 | E30: 426.18 | F30: C21H24BN3O6 | G30: 425.18 | H30: 1 | I30: FineTune + | J30: Pass | K30: Positive | L30: 426.20 | M30: 5914615 | N30: 110 | O30: 7497223 | P30: 10 | Q30: 340.56 | R30: 86 | S30: 1011576 | T30: 33 | U30: 1011576 | V30: 10 | W30: 1026287 | X30: 184.51 | Y30: 242 | Z30: 743633 | AA30: 28 | AB30: 743633 | AC30: 10 | AD30: 641900
A31: S19 | B31: 7.4 | C31: 39 | D31: 422.24 | E31: 423.24 | F31: C24H31BN2O4 | G31: 422.24 | H31: 1 | I31: FineTune + | J31: Pass | K31: Positive | L31: 423.28 | M31: 50012143 | N31: 120 | O31: 63323480 | P31: 10 | Q31: 337.61 | R31: 86 | S31: 27333271 | T31: 39 | U31: 27333271 | V31: 10 | W31: 22360881 | X31: 238.56 | Y31: 185 | Z31: 7779659 | AA31: 58 | AB31: 7779659 | AC31: 14 | AD31: 7333221
A32: S20 | B32: 6.5 | C32: 40 | D32: 434.16 | E32: 435.16 | F32: C21H22BF3N2O4 | G32: 434.17 | H32: 1 | I32: FineTune + | J32: Pass | K32: Positive | L32: 435.18 | M32: 8997077 | N32: 100 | O32: 10398077 | P32: 10 | Q32: 349.55 | R32: 86 | S32: 2997680 | T32: 40 | U32: 2997680 | V32: 11 | W32: 2919671 | X32: 250.48 | Y32: 185 | Z32: 1084096 | AA32: 60 | AB32: 1084096 | AC32: 20 | AD32: 1072487
A33: S21 | B33: NA | C33: NA | D33: 440.26 | E33: 441.26 | F33: C23H33BN4O4 | G33: 440.27 | H33: 1 | I33: FineTune + | J33: Pass | K33: Positive | L33: 441.29 | M33: 58146462 | N33: 100 | O33: 72348358 | P33: 10 | Q33: 385.61 | R33: 56 | S33: 40198457 | T33: 27 | U33: 40198457 | V33: 8 | W33: 38984330 | X33: 299.56 | Y33: 142 | Z33: 32637910 | AA33: 41 | AB33: 32637910 | AC33: 9 | AD33: 33932385
A34: S22 | B34: =LOG(S34) -> 7.5 | C34: =T34 -> 40 | D34: 457.22 | E34: 458.22 | F34: C26H28BN3O4 | G34: 457.22 | H34: 1 | I34: FineTune + | J34: Pass | K34: Positive | L34: 458.21 | M34: 64550923 | N34: 70 | O34: 77739997 | P34: 10 | Q34: 372.62 | R34: 86 | S34: 34655729 | T34: 40 | U34: 34655729 | V34: 11 | W34: 29778591 | X34: 273.52 | Y34: 185 | Z34: 29581924 | AA34: 66 | AB34: 29581924 | AC34: 8 | AD34: 22089419
A35: S23 | B35: =LOG(S35) -> 7.4 | C35: =T35 -> 35 | D35: 401.16 | E35: 402.16 | F35: C19H24BN3O4S | G35: 401.16 | H35: 1 | I35: FineTune + | J35: Pass | K35: Positive | L35: 402.19 | M35: 54450615 | N35: 70 | O35: 81070468 | P35: 10 | Q35: 316.55 | R35: 86 | S35: 28162752 | T35: 35 | U35: 28162752 | V35: 9 | W35: 29759170 | X35: 217.45 | Y35: 185 | Z35: 25981845 | AA35: 60 | AB35: 25981845 | AC35: 14 | AD35: 24080651
A36: S24 | B36: =LOG(S36) -> 7.1 | C36: =T36 -> 33 | D36: 382.18 | E36: 383.18 | F36: C19H23BN4O4 | G36: 382.19 | H36: 1 | I36: FineTune + | J36: Pass | K36: Positive | L36: 383.21 | M36: 40545538 | N36: 120 | O36: 48326330 | P36: 10 | Q36: 297.55 | R36: 86 | S36: 13537866 | T36: 33 | U36: 13537866 | V36: 9 | W36: 13291413 | X36: 198.49 | Y36: 185 | Z36: 7779375 | AA36: 57 | AB36: 7779375 | AC36: 11 | AD36: 7757064
A37: S25 | B37: NA | C37: NA | D37: 530.24 | E37: 531.24 | F37: C26H36BN2O7P | G37: 530.24 | H37: 1 | I37: FineTune + | J37: Pass | K37: Positive | L37: 531.23 | M37: 59203286 | N37: 80 | O37: 73663210 | P37: 10 | Q37: 307.53 | R37: 224 | S37: 25467067 | T37: 58 | U37: 25467067 | V37: 9 | W37: 25915016 | X37: 208.50 | Y37: 323 | Z37: 20726771 | AA37: 92 | AB37: 20726771 | AC37: 12 | AD37: 13466446
A38: S26 | B38: =LOG(S38) -> 6.9 | C38: =T38 -> 39 | D38: 452.21 | E38: 453.21 | F38: C24H29BN2O6 | G38: 452.22 | H38: 1 | I38: FineTune + | J38: Pass | K38: Positive | L38: 453.22 | M38: 19321571 | N38: 110 | O38: 22108392 | P38: 10 | Q38: 367.59 | R38: 86 | S38: 7843137 | T38: 39 | U38: 7843137 | V38: 10 | W38: 7400727 | X38: 339.58 | Y38: 114 | Z38: 1163899 | AA38: 52 | AB38: 1163899 | AC38: 10 | AD38: 1129851
A39: S27 | B39: =LOG(Z39) -> 6.6 | C39: =AA39 -> 35 | D39: 485.22 | E39: 486.22 | F39: C26H28BN5O4 | G39: 485.23 | H39: 1 | I39: FineTune + | J39: Pass | K39: Positive | L39: 486.23 | M39: 48182615 | N39: 70 | O39: 55641611 | P39: 10 | Q39: 301.56 | R39: 185 | S39: 4181887 | T39: 59 | U39: 4181887 | V39: 24 | W39: 4525148 | X39: 400.67 | Y39: 86 | Z39: 4163644 | AA39: 35 | AB39: 4163644 | AC39: 12 | AD39: 4192127
A40: S28 | B40: =LOG(S40) -> 7.5 | C40: =T40 -> 38 | D40: 449.17 | E40: 450.17 | F40: C21H23BF3N3O4 | G40: 449.18 | H40: 1 | I40: FineTune + | J40: Pass | K40: Positive | L40: 450.18 | M40: 60480923 | N40: 80 | O40: 78568682 | P40: 10 | Q40: 364.56 | R40: 86 | S40: 33033440 | T40: 38 | U40: 33033440 | V40: 11 | W40: 31717954 | X40: 265.46 | Y40: 185 | Z40: 26631980 | AA40: 65 | AB40: 26631980 | AC40: 18 | AD40: 24349486
A41: S29 | B41: =LOG(S41) -> 7.2 | C41: =T41 -> 39 | D41: 465.24 | E41: 466.24 | F41: C25H32BN3O5 | G41: 465.25 | H41: 1 | I41: FineTune + | J41: Pass | K41: Positive | L41: 466.25 | M41: 56097385 | N41: 110 | O41: 69570101 | P41: 10 | Q41: 380.64 | R41: 86 | S41: 14901316 | T41: 39 | U41: 14901316 | V41: 11 | W41: 11311382 | X41: 235.52 | Y41: 231 | Z41: 2786403 | AA41: 61 | AB41: 2786403 | AC41: 18 | AD41: 2611123
A42: S30 | B42: =LOG(Z42) -> 7.3 | C42: =AA42 -> 42 | D42: 521.18 | E42: 522.18 | F42: C26H28BN3O6S | G42: 521.18 | H42: 1 | I42: FineTune + | J42: Pass | K42: Positive | L42: 522.17 | M42: 59404000 | N42: 100 | O42: 70817014 | P42: 10 | Q42: 337.48 | R42: 185 | S42: 22633474 | T42: 66 | U42: 22633474 | V42: 10 | W42: 18090220 | X42: 436.59 | Y42: 86 | Z42: 20106976 | AA42: 42 | AB42: 20106976 | AC42: 13 | AD42: 21653193
A43: S31 | B43: =LOG(S43) -> 7.0 | C43: =T43 -> 38 | D43: 434.16 | E43: 435.16 | F43: C21H22BF3N2O4 | G43: 434.17 | H43: 1 | I43: FineTune + | J43: Pass | K43: Positive | L43: 435.21 | M43: 11878615 | N43: 130 | O43: 14167632 | P43: 10 | Q43: 349.14 | R43: 86 | S43: 11044682 | T43: 38 | U43: 11044682 | V43: 11 | W43: 10734295 | X43: 250.13 | Y43: 185 | Z43: 3358815 | AA43: 58 | AB43: 3358815 | AC43: 14 | AD43: 3297551
A44: S32 | B44: 7.3 | C44: 40 | D44: 445.22 | E44: 446.22 | F44: C25H28BN3O4 | G44: 445.22 | H44: 1 | I44: FineTune + | J44: Pass | K44: Positive | L44: 446.26 | M44: 24580615 | N44: 90 | O44: 29422407 | P44: 10 | Q44: 360.20 | R44: 86 | S44: 19580989 | T44: 40 | U44: 19580989 | V44: 12 | W44: 18448398 | X44: 158.05 | Y44: 288 | Z44: 4655177 | AA44: 71 | AB44: 4655177 | AC44: 9 | AD44: 4728235
A45: S33 | B45: 7.4 | C45: 44 | D45: 521.18 | E45: 522.18 | F45: C26H28BN3O6S | G45: 521.18 | H45: 1 | I45: FineTune + | J45: Pass | K45: Positive | L45: 522.20 | M45: 31323429 | N45: 50 | O45: 38261324 | P45: 10 | Q45: 436.11 | R45: 86 | S45: 28183744 | T45: 44 | U45: 28183744 | V45: 14 | W45: 30296561 | X45: 337.10 | Y45: 185 | Z45: 23923017 | AA45: 67 | AB45: 23923017 | AC45: 18 | AD45: 21130080
A46: S34 | B46: 7.5 | C46: 40 | D46: 426.24 | E46: 427.24 | F46: C22H31BN4O4 | G46: 426.25 | H46: 1 | I46: FineTune + | J46: Pass | K46: Positive | L46: 427.22 | M46: 36297286 | N46: 50 | O46: 41530470 | P46: 10 | Q46: 341.24 | R46: 86 | S46: 31519465 | T46: 40 | U46: 31519465 | V46: 6 | W46: 31822654 | X46: 242.20 | Y46: 185 | Z46: 20037546 | AA46: 59 | AB46: 20037546 | AC46: 14 | AD46: 20203224
A47: S35 | B47: 6.1 | C47: 38 | D47: 493.16 | E47: 494.16 | F47: C22H23BF3N3O6 | G47: 493.17 | H47: 1 | I47: FineTune + | J47: Pass | K47: Positive | L47: 494.19 | M47: 4654923 | N47: 120 | O47: 5777624 | P47: 10 | Q47: 408.11 | R47: 86 | S47: 1292006 | T47: 38 | U47: 1292006 | V47: 13 | W47: 1382093 | X47: 388.13 | Y47: 106 | Z47: 1164471 | AA47: 38 | AB47: 1164471 | AC47: 13 | AD47: 1180123
A48: S36 | B48: 7.4 | C48: 35 | D48: 415.15 | E48: 416.15 | F48: C20H23BClN3O4 | G48: 415.15 | H48: 1 | I48: FineTune + | J48: Pass | K48: Positive | L48: 416.18 | M48: 44594154 | N48: 120 | O48: 55961571 | P48: 10 | Q48: 330.53 | R48: 86 | S48: 24808302 | T48: 35 | U48: 24808302 | V48: 10 | W48: 24678019 | X48: 231.45 | Y48: 185 | Z48: 15874296 | AA48: 62 | AB48: 15874296 | AC48: 12 | AD48: 13913213
A49: S37 | B49: 7.4 | C49: 34 | D49: 426.17 | E49: 427.17 | F49: C20H23BN4O6 | G49: 426.18 | H49: 1 | I49: FineTune + | J49: Pass | K49: Positive | L49: 427.20 | M49: 43318154 | N49: 120 | O49: 55272489 | P49: 10 | Q49: 341.54 | R49: 86 | S49: 24639281 | T49: 34 | U49: 24639281 | V49: 10 | W49: 23630149 | X49: 195.46 | Y49: 232 | Z49: 13354638 | AA49: 95 | AB49: 13354638 | AC49: 17 | AD49: 6805493
A50: S38 | B50: 7.6 | C50: 35 | D50: 409.22 | E50: 410.22 | F50: C22H28BN3O4 | G50: 409.22 | H50: 1 | I50: FineTune + | J50: Pass | K50: Positive | L50: 410.23 | M50: 58416308 | N50: 50 | O50: 73545753 | P50: 10 | Q50: 324.59 | R50: 86 | S50: 43112789 | T50: 35 | U50: 43112789 | V50: 9 | W50: 43553058 | X50: 225.49 | Y50: 185 | Z50: 38956187 | AA50: 60 | AB50: 38956187 | AC50: 14 | AD50: 35442329
A51: S39 | B51: 7.5 | C51: 36 | D51: 435.16 | E51: 436.16 | F51: C20H21BF3N3O4 | G51: 435.16 | H51: 1 | I51: FineTune + | J51: Pass | K51: Positive | L51: 436.19 | M51: 51737077 | N51: 120 | O51: 62335324 | P51: 10 | Q51: 350.53 | R51: 86 | S51: 30576131 | T51: 36 | U51: 30576131 | V51: 10 | W51: 29230135 | X51: 251.45 | Y51: 185 | Z51: 18522903 | AA51: 66 | AB51: 18522903 | AC51: 7 | AD51: 14868430
A52: S40 | B52: 7.3 | C52: 34 | D52: 383.18 | E52: 384.18 | F52: C18H22BN5O4 | G52: 383.18 | H52: 1 | I52: FineTune + | J52: Pass | K52: Positive | L52: 384.20 | M52: 44211692 | N52: 120 | O52: 58491040 | P52: 10 | Q52: 298.56 | R52: 86 | S52: 21174995 | T52: 34 | U52: 21174995 | V52: 9 | W52: 23191640 | X52: 199.46 | Y52: 185 | Z52: 19603813 | AA52: 61 | AB52: 19603813 | AC52: 11 | AD52: 17787585
A53: S41 | B53: 7.3 | C53: 39 | D53: 531.23 | E53: 532.23 | F53: C25H35BN3O7P | G53: 531.24 | H53: 1 | I53: FineTune + | J53: Pass | K53: Positive | L53: 532.22 | M53: 61883846 | N53: 70 | O53: 76694702 | P53: 10 | Q53: 446.65 | R53: 86 | S53: 18212488 | T53: 39 | U53: 18212488 | V53: 13 | W53: 19968983 | X53: 308.62 | Y53: 224 | Z53: 8779737 | AA53: 61 | AB53: 8779737 | AC53: 26 | AD53: 9511861
A54: S42 | B54: 7.6 | C54: 48 | D54: 518.22 | E54: 519.22 | F54: C27H31BN4O4S | G54: 518.22 | H54: 1 | I54: FineTune + | J54: Pass | K54: Positive | L54: 519.23 | M54: 38515857 | N54: 190 | O54: 43069553 | P54: 10 | Q54: 433.11 | R54: 86 | S54: 36409183 | T54: 48 | U54: 36409183 | V54: 15 | W54: 36907894 | X54: 334.13 | Y54: 185 | Z54: 34888564 | AA54: 69 | AB54: 34888564 | AC54: 20 | AD54: 33716580
A55: S43 | B55: 7.5 | C55: 43 | D55: 494.16 | E55: 495.16 | F55: C21H22BF3N4O6 | G55: 494.16 | H55: 1 | I55: FineTune + | J55: Pass | K55: Positive | L55: 495.18 | M55: 37129714 | N55: 60 | O55: 45329709 | P55: 10 | Q55: 409.09 | R55: 86 | S55: 34051364 | T55: 43 | U55: 34051364 | V55: 8 | W55: 34721929 | X55: 363.15 | Y55: 132 | Z55: 27668950 | AA55: 57 | AB55: 27668950 | AC55: 12 | AD55: 26793406
A56: S44 | B56: 7.5 | C56: 40 | D56: 476.19 | E56: 477.19 | F56: C24H25BN4O6 | G56: 476.19 | H56: 1 | I56: FineTune + | J56: Pass | K56: Positive | L56: 477.22 | M56: 35979143 | N56: 50 | O56: 43075522 | P56: 10 | Q56: 391.15 | R56: 86 | S56: 32752163 | T56: 40 | U56: 32752163 | V56: 13 | W56: 33786502 | X56: 245.11 | Y56: 232 | Z56: 27877039 | AA56: 92 | AB56: 27877039 | AC56: 14 | AD56: 24045058
A57: S45 | B57: 7.6 | C57: 49 | D57: 520.23 | E57: 521.23 | F57: C27H33BN4O4S | G57: 520.24 | H57: 1 | I57: FineTune + | J57: Pass | K57: Positive | L57: 521.26 | M57: 39648714 | N57: 50 | O57: 42414204 | P57: 10 | Q57: 435.12 | R57: 86 | S57: 36957312 | T57: 49 | U57: 36957312 | V57: 1 | W57: 37493955 | X57: 336.15 | Y57: 185 | Z57: 34793427 | AA57: 67 | AB57: 34793427 | AC57: 19 | AD57: 31986577
A58: S46 | B58: 7.5 | C58: 41 | D58: 494.16 | E58: 495.16 | F58: C21H22BF3N4O6 | G58: 494.16 | H58: 1 | I58: FineTune + | J58: Pass | K58: Positive | L58: 495.32 | M58: 36500143 | N58: 50 | O58: 41708187 | P58: 10 | Q58: 409.07 | R58: 86 | S58: 33524649 | T58: 41 | U58: 33524649 | V58: 1 | W58: 34315913 | X58: 363.15 | Y58: 132 | Z58: 27544349 | AA58: 57 | AB58: 27544349 | AC58: 12 | AD58: 26647810
A59: S47 | B59: 7.5 | C59: 39 | D59: 476.19 | E59: 477.19 | F59: C24H25BN4O6 | G59: 476.19 | H59: 1 | I59: FineTune + | J59: Pass | K59: Positive | L59: 477.18 | M59: 35050429 | N59: 50 | O59: 41685235 | P59: 10 | Q59: 391.14 | R59: 86 | S59: 31958404 | T59: 39 | U59: 31958404 | V59: 14 | W59: 32550065 | X59: 245.13 | Y59: 232 | Z59: 29648299 | AA59: 90 | AB59: 29648299 | AC59: 14 | AD59: 26710890
A60: S48 | B60: 7.0 | C60: 34 | D60: 464.20 | E60: 465.20 | F60: C24H26BFN4O4 | G60: 464.21 | H60: 1 | I60: FineTune + | J60: Pass | K60: Positive | L60: 465.19 | M60: 22363286 | N60: 120 | O60: 28124173 | P60: 10 | Q60: 379.58 | R60: 86 | S60: 9783445 | T60: 34 | U60: 9783445 | V60: 11 | W60: 9546431 | X60: 280.49 | Y60: 185 | Z60: 3977893 | AA60: 61 | AB60: 3977893 | AC60: 8 | AD60: 3641729
A61: S49 | B61: 6.8 | C61: 46 | D61: 536.21 | E61: 537.21 | F61: C27H30BFN4O4S | G61: 536.21 | H61: 1 | I61: FineTune + | J61: Pass | K61: Positive | L61: 537.20 | M61: 38638143 | N61: 110 | O61: 45140941 | P61: 10 | Q61: 451.65 | R61: 86 | S61: 6644804 | T61: 46 | U61: 6644804 | V61: 14 | W61: 7890664 | X61: 352.55 | Y61: 185 | Z61: 6085971 | AA61: 70 | AB61: 6085971 | AC61: 10 | AD61: 5199387
A62: S50 | B62: 6.9 | C62: 42 | D62: 538.22 | E62: 539.22 | F62: C27H32BFN4O4S | G62: 538.23 | H62: 1 | I62: FineTune + | J62: Pass | K62: Positive | L62: 539.22 | M62: 43126286 | N62: 100 | O62: 49155921 | P62: 10 | Q62: 453.66 | R62: 86 | S62: 7658184 | T62: 42 | U62: 7658184 | V62: 14 | W62: 8406384 | X62: 397.62 | Y62: 142 | Z62: 2226845 | AA62: 59 | AB62: 2226845 | AC62: 12 | AD62: 2190587
A63: S51 | B63: 7.0 | C63: 42 | D63: 540.17 | E63: 541.17 | F63: C25H26BFN4O6S | G63: 540.17 | H63: 1 | I63: FineTune + | J63: Pass | K63: Positive | L63: 541.17 | M63: 44042286 | N63: 100 | O63: 51933648 | P63: 10 | Q63: 455.58 | R63: 86 | S63: 10227003 | T63: 42 | U63: 10227003 | V63: 14 | W63: 9721459 | X63: 356.50 | Y63: 185 | Z63: 7154821 | AA63: 66 | AB63: 7154821 | AC63: 11 | AD63: 5100245
A64: S52 | B64: 6.7 | C64: 36 | D64: 512.15 | E64: 513.15 | F64: C21H21BF4N4O6 | G64: 512.15 | H64: 1 | I64: FineTune + | J64: Pass | K64: Positive | L64: 513.13 | M64: 15087538 | N64: 90 | O64: 18303056 | P64: 10 | Q64: 427.53 | R64: 86 | S64: 5206578 | T64: 36 | U64: 5206578 | V64: 8 | W64: 5227282 | X64: 381.56 | Y64: 132 | Z64: 842299 | AA64: 56 | AB64: 842299 | AC64: 11 | AD64: 837463
A65: S53 | B65: 7.2 | C65: 35 | D65: 459.20 | E65: 460.20 | F65: C22H27BFN3O6 | G65: 459.20 | H65: 1 | I65: FineTune + | J65: Pass | K65: Positive | L65: 460.21 | M65: 28401571 | N65: 70 | O65: 37306075 | P65: 10 | Q65: 374.54 | R65: 86 | S65: 15329352 | T65: 35 | U65: 15329352 | V65: 11 | W65: 14633274 | X65: 275.49 | Y65: 185 | Z65: 3308890 | AA65: 58 | AB65: 3308890 | AC65: 8 | AD65: 3517629
A66: S54 | B66: 7.1 | C66: 34 | D66: 427.21 | E66: 428.21 | F66: C22H27BFN3O4 | G66: 427.21 | H66: 1 | I66: FineTune + | J66: Pass | K66: Positive | L66: 428.23 | M66: 35307857 | N66: 60 | O66: 41202649 | P66: 10 | Q66: 342.60 | R66: 86 | S66: 13893646 | T66: 34 | U66: 13893646 | V66: 10 | W66: 13906690 | X66: 243.51 | Y66: 185 | Z66: 6166354 | AA66: 57 | AB66: 6166354 | AC66: 7 | AD66: 6104932
A67: S55 | B67: 7.0 | C67: 36 | D67: 485.15 | E67: 486.15 | F67: C21H21BF5N3O4 | G67: 485.16 | H67: 1 | I67: FineTune + | J67: Pass | K67: Positive | L67: 486.16 | M67: 33267571 | N67: 120 | O67: 43003802 | P67: 10 | Q67: 400.55 | R67: 86 | S67: 10690617 | T67: 36 | U67: 10690617 | V67: 12 | W67: 10186514 | X67: 301.46 | Y67: 185 | Z67: 4614422 | AA67: 67 | AB67: 4614422 | AC67: 9 | AD67: 4264463
A68: S56 | B68: 7.2 | C68: 34 | D68: 427.21 | E68: 428.21 | F68: C22H27BFN3O4 | G68: 427.21 | H68: 1 | I68: FineTune + | J68: Pass | K68: Positive | L68: 428.25 | M68: 31341571 | N68: 120 | O68: 35945027 | P68: 10 | Q68: 342.59 | R68: 86 | S68: 14239654 | T68: 34 | U68: 14239654 | V68: 10 | W68: 14045660 | X68: 243.54 | Y68: 185 | Z68: 5001536 | AA68: 57 | AB68: 5001536 | AC68: 14 | AD68: 5080384
A69: S57 | B69: 7.2 | C69: 43 | D69: 550.24 | E69: 551.24 | F69: C28H35BN4O5S | G69: 550.25 | H69: 1 | I69: FineTune + | J69: Pass | K69: Positive | L69: 551.25 | M69: 58158143 | N69: 90 | O69: 73690044 | P69: 10 | Q69: 465.67 | R69: 86 | S69: 16028768 | T69: 43 | U69: 16028768 | V69: 14 | W69: 17862502 | X69: 366.57 | Y69: 185 | Z69: 7352880 | AA69: 66 | AB69: 7352880 | AC69: 11 | AD69: 4651586
A70: S58 | B70: 7.5 | C70: 40 | D70: 457.25 | E70: 458.25 | F70: C22H32BN5O5 | G70: 457.26 | H70: 1 | I70: FineTune + | J70: Pass | K70: Positive | L70: 458.25 | M70: 67616923 | N70: 90 | O70: 78348248 | P70: 10 | Q70: 372.67 | R70: 86 | S70: 30362837 | T70: 40 | U70: 30362837 | V70: 11 | W70: 25499222 | X70: 273.55 | Y70: 185 | Z70: 17048594 | AA70: 61 | AB70: 17048594 | AC70: 8 | AD70: 15333955
A71: S59 | B71: 7.2 | C71: 36 | D71: 459.20 | E71: 460.20 | F71: C22H27BFN3O6 | G71: 459.20 | H71: 1 | I71: FineTune + | J71: Pass | K71: Positive | L71: 460.21 | M71: 59121429 | N71: 80 | O71: 71033299 | P71: 10 | Q71: 374.61 | R71: 86 | S71: 17111368 | T71: 36 | U71: 17111368 | V71: 11 | W71: 15753589 | X71: 346.64 | Y71: 114 | Z71: 2460740 | AA71: 46 | AB71: 2460740 | AC71: 19 | AD71: 2390237
A72: S60 | B72: 7.3 | C72: 35 | D72: 471.22 | E72: 472.22 | F72: C23H30BN3O7 | G72: 471.22 | H72: 1 | I72: FineTune + | J72: Pass | K72: Positive | L72: 472.23 | M72: 58727429 | N72: 50 | O72: 73990959 | P72: 10 | Q72: 386.63 | R72: 86 | S72: 18157087 | T72: 35 | U72: 18157087 | V72: 12 | W72: 16917167 | X72: 358.63 | Y72: 114 | Z72: 1953542 | AA72: 47 | AB72: 1953542 | AC72: 11 | AD72: 1846032
A73: S61 | B73: 7.4 | C73: 37 | D73: 439.23 | E73: 440.23 | F73: C23H30BN3O5 | G73: 439.23 | H73: 1 | I73: FineTune + | J73: Pass | K73: Positive | L73: 440.23 | M73: 63604308 | N73: 80 | O73: 77531888 | P73: 10 | Q73: 354.64 | R73: 86 | S73: 27390506 | T73: 37 | U73: 27390506 | V73: 11 | W73: 26708761 | X73: 326.63 | Y73: 114 | Z73: 4898039 | AA73: 46 | AB73: 4898039 | AC73: 10 | AD73: 5333041
A74: S62 | B74: 7.4 | C74: 34 | D74: 429.19 | E74: 430.19 | F74: C21H25BFN3O5 | G74: 429.19 | H74: 1 | I74: FineTune + | J74: Pass | K74: Positive | L74: 430.21 | M74: 50951714 | N74: 120 | O74: 58452190 | P74: 10 | Q74: 344.56 | R74: 86 | S74: 22679284 | T74: 34 | U74: 22679284 | V74: 10 | W74: 22250875 | X74: 316.59 | Y74: 114 | Z74: 4066811 | AA74: 46 | AB74: 4066811 | AC74: 10 | AD74: 4456206
A75: S63 | B75: =LOG(S75) -> 7.1 | C75: =T75 -> 46 | D75: 548.23 | E75: 549.23 | F75: C28H33BN4O5S | G75: 548.23 | H75: 1 | I75: Positive | J75: FineTune + | K75: Pass | L75: 549.26 | M75: 12414800 | N75: 50 | O75: 13753688 | P75: 10 | Q75: 463.25 | R75: 86 | S75: 11528663 | T75: 46 | U75: 11528663 | V75: 15 | W75: 12167236 | X75: 364.15 | Y75: 185 | Z75: 4114361 | AA75: 68 | AB75: 4114361 | AC75: 12 | AD75: 3238672
A76: S64 | B76: =LOG(S76) -> 7.3 | C76: =T76 -> 43 | D76: 552.19 | E76: 553.19 | F76: C26H29BN4O7S | G76: 552.19 | H76: 1 | I76: Positive | J76: FineTune + | K76: Pass | L76: 553.22 | M76: 20449120 | N76: 50 | O76: 21322502 | P76: 10 | Q76: 467.22 | R76: 86 | S76: 18417662 | T76: 43 | U76: 18417662 | V76: 10 | W76: 19009381 | X76: 368.13 | Y76: 185 | Z76: 6295627 | AA76: 66 | AB76: 6295627 | AC76: 12 | AD76: 4402167
A77: S65 | B77: =LOG(S77) -> 7.4 | C77: =T77 -> 41 | D77: 457.26 | E77: 458.26 | F77: C22H32BN5O5 | G77: 457.26 | H77: 1 | I77: Positive | J77: FineTune + | K77: Pass | L77: 458.29 | M77: 25884240 | N77: 60 | O77: 27629632 | P77: 10 | Q77: 372.26 | R77: 86 | S77: 24809099 | T77: 41 | U77: 24809099 | V77: 12 | W77: 23063043 | X77: 273.23 | Y77: 185 | Z77: 7081479 | AA77: 61 | AB77: 7081479 | AC77: 16 | AD77: 6038526

Sheet 3
A1: Data associated with Extended Data Fig 2c
B18: NL-ADE-MS signal intensity | C18: S6 | D18: S7 | E18: S8 | F18: S9 | G18: S10 | H18: S11 | I18: S12 | J18: S13 | K18: S14 | L18: S15 | M18: S16 | N18: S17 | O18: S18 | P18: S19 | Q18: S20 | R18: S21 | S18: S22 | T18: S23 | U18: S24 | V18: S25 | W18: S26 | X18: S27 | Y18: S28 | Z18: S29 | AA18: S30 | AB18: S31 | AC18: S32 | AD18: S33 | AE18: S34 | AF18: S35 | AG18: S36 | AH18: S37 | AI18: S38 | AJ18: S39 | AK18: S40 | AL18: S41 | AM18: S42 | AN18: S43 | AO18: S44 | AP18: S45 | AQ18: S46 | AR18: S47 | AS18: S48 | AT18: S49 | AU18: S50 | AV18: S51 | AW18: S52 | AX18: S53 | AY18: S54 | AZ18: S55 | BA18: S56 | BB18: S57 | BC18: S58 | BD18: S59 | BE18: S60 | BF18: S61 | BG18: S62 | BH18: S63 | BI18: S64 | BJ18: S65
A19: Concentration | B19: 0 | C19: 0 | D19: 0 | E19: 0 | F19: 0 | G19: 0 | H19: 0 | I19: 0 | J19: 0 | K19: 0 | L19: 0 | M19: 0 | N19: 0 | O19: 0 | P19: 0 | Q19: 0 | R19: 0 | S19: 0 | T19: 0 | U19: 0 | V19: 0 | W19: 0 | X19: 0 | Y19: 0 | Z19: 0 | AA19: 0 | AB19: 0 | AC19: 0 | AD19: 0 | AE19: 0 | AF19: 0 | AG19: 0 | AH19: 0 | AI19: 0 | AJ19: 0 | AK19: 0 | AL19: 0 | AM19: 0 | AN19: 0 | AO19: 0 | AP19: 0 | AQ19: 0 | AR19: 0 | AS19: 0 | AT19: 0 | AU19: 0 | AV19: 0 | AW19: 0 | AX19: 0 | AY19: 0 | AZ19: 0 | BA19: 0 | BB19: 0 | BC19: 0 | BD19: 0 | BE19: 0 | BF19: 0 | BG19: 0 | BH19: 0 | BI19: 0 | BJ19: 0
B20: 0.5 | C20: 2088350.911 | D20: 4537029.739 | E20: 2800790.946 | F20: 8089805.31 | G20: 4229464.753 | H20: 2917523.759 | I20: 6180874.077 | J20: 4941904.447 | K20: 1967014.105 | L20: 9309544.795 | M20: 4529510.723 | N20: 3795745.167 | O20: 515500.7019 | P20: 4776189.645 | Q20: 1772865.453 | R20: 608645.0289 | S20: 8159506.547 | T20: 7087979.22 | U20: 1971529.625 | V20: 260417.4067 | W20: 4888344.541 | X20: 4353020.884 | Y20: 5816152.952 | Z20: 7,861,127 | AA20: 7833124.171 | AB20: 2577651.971 | AC20: 4961193.508 | AD20: 3730800.707 | AE20: 3326288.709 | AF20: 400648.9309 | AG20: 7986973.681 | AH20: 2873858.993 | AI20: 7299641.952 | AJ20: 5007390.187 | AK20: 4799358.472 | AL20: 2822550.328 | AM20: 8627382.911 | AN20: 2806303.235 | AO20: 8307513.326 | AP20: 7987026.228 | AQ20: 5488012.699 | AR20: 8549650.961 | AS20: 4577475.231 | AT20: 9025964.472 | AU20: 6122975.269 | AV20: 5127687.589 | AW20: 3167786.552 | AX20: 7421285.801 | AY20: 3756331.012 | AZ20: 3670985.637 | BA20: 4851232.187 | BB20: 9007869.917 | BC20: 6932805.389 | BD20: 7698455.592 | BE20: 7192506.479 | BF20: 7482335.928 | BG20: 6851807.151 | BH20: 5419381.45 | BI20: 6630419.785 | BJ20: 5990144.536
B21: 1 | C21: 5419407.581 | D21: 9709558.039 | E21: 6112547.321 | F21: 12446939.72 | G21: 11201668.84 | H21: 3775167.69 | I21: 14389418.98 | J21: 14772414.43 | K21: 5832234.719 | L21: 15732789.05 | M21: 10721623.87 | N21: 7178316.292 | O21: 1558576.65 | P21: 8631798.654 | Q21: 5017074.863 | R21: 2429660.047 | S21: 15540153.92 | T21: 11589591.67 | U21: 3669045.888 | V21: 514321.0063 | W21: 7998045.596 | X21: 9941245.497 | Y21: 10844742.93 | Z21: 13881531.7 | AA21: 13208917.03 | AB21: 5582903.433 | AC21: 10065805.24 | AD21: 7202815.766 | AE21: 4909137.891 | AF21: 877505.0809 | AG21: 12116526.12 | AH21: 6071292.054 | AI21: 15094606.29 | AJ21: 11243092.64 | AK21: 9519853.096 | AL21: 5398628.383 | AM21: 22306323.23 | AN21: 4801624.138 | AO21: 15272321.55 | AP21: 20621439.79 | AQ21: 10026424.38 | AR21: 13703298.47 | AS21: 8444949.979 | AT21: 14501492.5 | AU21: 8575529.092 | AV21: 12990990.68 | AW21: 4695139.127 | AX21: 10063670.94 | AY21: 10266668.7 | AZ21: 6969217.529 | BA21: 12765365.73 | BB21: 22620003.27 | BC21: 14566313.87 | BD21: 16588315.81 | BE21: 13612588.98 | BF21: 12402814.7 | BG21: 13535847.21 | BH21: 9632871.721 | BI21: 15192372.71 | BJ21: 11231936.35
B22: 1.5 | C22: 6466146.508 | D22: 16891337.97 | E22: 10428807.47 | F22: 20214128.48 | G22: 13665754.63 | H22: 6,702,660 | I22: 22,605,885 | J22: 20,578,286 | K22: 6785978.681 | L22: 31,775,421 | M22: 9468655.988 | N22: 8413715.361 | O22: 1890389.596 | P22: 13520772.05 | Q22: 6500599.045 | R22: 5097388.674 | S22: 24513280.48 | T22: 19991223.37 | U22: 4310652.39 | V22: 496,334 | W22: 11273391.17 | X22: 10,738,538 | Y22: 16216241.66 | Z22: 20,316,557 | AA22: 19,376,201 | AB22: 8786749.565 | AC22: 13003367.39 | AD22: 11,229,132 | AE22: 9633993.417 | AF22: 1,684,874 | AG22: 17409715.35 | AH22: 10561783.71 | AI22: 21863419.78 | AJ22: 12465239.76 | AK22: 13942007.79 | AL22: 7,850,079 | AM22: 23,467,337 | AN22: 6,650,313 | AO22: 26662718.84 | AP22: 32,677,570 | AQ22: 16,091,999 | AR22: 21712464.42 | AS22: 13590040.13 | AT22: 15,490,313 | AU22: 24,705,835 | AV22: 23,665,499 | AW22: 7,603,712 | AX22: 17204600.11 | AY22: 11773016.9 | AZ22: 11761767.43 | BA22: 18802615.17 | BB22: 21,396,371 | BC22: 19483645.8 | BD22: 20577839.63 | BE22: 19108063.72 | BF22: 23931079.01 | BG22: 21300929.2 | BH22: 12,841,463 | BI22: 18,489,721 | BJ22: 19143723.07
B23: 2 | C23: 12495025.13 | D23: 17545580.72 | E23: 14185521.86 | F23: 25108886.66 | G23: 22142444.09 | H23: 9935233.043 | I23: 29538510.77 | J23: 25165794.98 | K23: 6591080.467 | L23: 31042010.06 | M23: 13315674.11 | N23: 11951270.56 | O23: 2568918.037 | P23: 18295912.92 | Q23: 7370817.398 | R23: 6002888.622 | S23: 37737447.27 | T23: 26889830.54 | U23: 6992788.271 | V23: 816881.3131 | W23: 17661659.06 | X23: 13954679.24 | Y23: 27205398.9 | Z23: 36,189,897 | AA23: 32553650.27 | AB23: 8669294.403 | AC23: 18218952.13 | AD23: 14849001.52 | AE23: 10565536.58 | AF23: 1495572.673 | AG23: 34846822.81 | AH23: 12244342.92 | AI23: 33840515.98 | AJ23: 17789430.83 | AK23: 25489451.29 | AL23: 8018215.601 | AM23: 35211159.89 | AN23: 8791550.362 | AO23: 28429604.62 | AP23: 33974473.65 | AQ23: 22101009.12 | AR23: 30645476.76 | AS23: 14530418.03 | AT23: 32141846.77 | AU23: 19196673.85 | AV23: 25486643.19 | AW23: 9418555.858 | AX23: 27591530.67 | AY23: 16335231.56 | AZ23: 12803019.71 | BA23: 19675727.42 | BB23: 34196765.67 | BC23: 28277219.35 | BD23: 25364457.08 | BE23: 24801470.95 | BF23: 34303015.12 | BG23: 32133456.14 | BH23: 26031643.12 | BI23: 25684460.3 | BJ23: 23057082.17
B24: 2.5 | C24: 12567076.77 | D24: 24971204.06 | E24: 14537065.73 | F24: 33812958.46 | G24: 16801762.58 | H24: 9633904.679 | I24: 36773859.74 | J24: 36762589.63 | K24: 13167679.32 | L24: 50134720.61 | M24: 27420677.01 | N24: 18369240.78 | O24: 3724487.58 | P24: 23989400.3 | Q24: 10434459.56 | R24: 7267796.463 | S24: 39863816.91 | T24: 33327505.74 | U24: 11581928.35 | V24: 1270911.585 | W24: 21534516.26 | X24: 21656182.19 | Y24: 21878102.82 | Z24: 34,927,250 | AA24: 40362309.2 | AB24: 15477231.26 | AC24: 21603808.27 | AD24: 16634540.08 | AE24: 13547340.01 | AF24: 2423205.913 | AG24: 35843534.93 | AH24: 14391392.31 | AI24: 38732139.83 | AJ24: 16026956.82 | AK24: 28234129.2 | AL24: 12629839.98 | AM24: 49442972.26 | AN24: 17914786.77 | AO24: 45654541.18 | AP24: 33810424.49 | AQ24: 20348812.25 | AR24: 43119525.74 | AS24: 22347752.91 | AT24: 38938364.98 | AU24: 37690162.26 | AV24: 22213902.12 | AW24: 11181503.95 | AX24: 26223251.65 | AY24: 21510799.93 | AZ24: 19616129.9 | BA24: 27225278.89 | BB24: 50036207.62 | BC24: 27901818.21 | BD24: 36010624.03 | BE24: 34399104.53 | BF24: 36781775.64 | BG24: 30937523.14 | BH24: 17553432.1 | BI24: 36146542.63 | BJ24: 36860257.39
B25: 3 | C25: 16382269.49 | D25: 24802352.03 | E25: 18353260.8 | F25: 44669339.22 | G25: 23644037.74 | H25: 17847656.51 | I25: 43646034.57 | J25: 34491961.51 | K25: 14088008.93 | L25: 57427260.03 | M25: 34795087.45 | N25: 21044301.9 | O25: 5163716.725 | P25: 23843214.26 | Q25: 13182922.89 | R25: 9066486.73 | S25: 49283958.88 | T25: 43240804.83 | U25: 13024655.13 | V25: 1545754.152 | W25: 23396277.25 | X25: 23845420.91 | Y25: 33094753.13 | Z25: 50,479,363 | AA25: 41080881.19 | AB25: 16597924.95 | AC25: 26856354.48 | AD25: 19947002.02 | AE25: 17222717.38 | AF25: 2164967.02 | AG25: 40408601.85 | AH25: 28536703.95 | AI25: 40030175.53 | AJ25: 21977188.79 | AK25: 33498668.46 | AL25: 16032160.04 | AM25: 47067240.53 | AN25: 19203298.33 | AO25: 30599704.29 | AP25: 51062513.94 | AQ25: 24160654.81 | AR25: 55972110.71 | AS25: 28390526.48 | AT25: 38515979.68 | AU25: 28741626.92 | AV25: 29251684.92 | AW25: 20349826.46 | AX25: 38690921.91 | AY25: 32496548.37 | AZ25: 14397988.58 | BA25: 32090124.55 | BB25: 69947907.64 | BC25: 40993088.22 | BD25: 48070300.22 | BE25: 42038624.03 | BF25: 40858617.33 | BG25: 43886779.15 | BH25: 22095249.23 | BI25: 51844366.11 | BJ25: 46030863.19
B26: 3.5 | C26: 22982783.81 | D26: 32808926.14 | E26: 19375234.63 | F26: 39774460.12 | G26: 29411241.56 | H26: 10244223.48 | I26: 52392352.31 | J26: 40578583.79 | K26: 16616055.45 | L26: 57987158.73 | M26: 29118071.18 | N26: 25798059.27 | O26: 3965359.477 | P26: 31003842.76 | Q26: 17961427.54 | R26: 9925938.781 | S26: 55982979.96 | T26: 38628142.11 | U26: 17537293.38 | V26: 1457555.652 | W26: 33751745.53 | X26: 19513938.81 | Y26: 41269409.69 | Z26: 49,746,365 | AA26: 62093411.06 | AB26: 19922378.58 | AC26: 32984877.81 | AD26: 18858451.62 | AE26: 19003909.32 | AF26: 3122696.335 | AG26: 46317355.86 | AH26: 22593663.63 | AI26: 48722443.49 | AJ26: 31184114.04 | AK26: 47401059.33 | AL26: 15767399.78 | AM26: 62443514.56 | AN26: 24851505.3 | AO26: 38547156.68 | AP26: 55084379.62 | AQ26: 19903349.66 | AR26: 47656950.5 | AS26: 33323198.25 | AT26: 55993229.95 | AU26: 47010654.79 | AV26: 40411290.49 | AW26: 14883062.21 | AX26: 43497584.96 | AY26: 34183511.9 | AZ26: 33152585.2 | BA26: 33877440.52 | BB26: 61404078.23 | BC26: 45322268.54 | BD26: 53613474.69 | BE26: 50423461.84 | BF26: 59055827.29 | BG26: 46498886.24 | BH26: 37631199.03 | BI26: 45997437.36 | BJ26: 47445058.99
B27: 4 | C27: 19950597.21 | D27: 30772996.74 | E27: 20888524.44 | F27: 43972472.62 | G27: 30710953.94 | H27: 17645957.33 | I27: 51897102.58 | J27: 54925977.48 | K27: 17899904.23 | L27: 61381340.85 | M27: 32083539.65 | N27: 25360438.02 | O27: 5234846.431 | P27: 39306737.96 | Q27: 16782279.33 | R27: 10840524.85 | S27: 61683867.51 | T27: 50492063.74 | U27: 14362211.15 | V27: 1912797.356 | W27: 35027237.82 | X27: 31585054.44 | Y27: 45957008.78 | Z27: 64,388,867 | AA27: 68067066.23 | AB27: 17855371.58 | AC27: 32950849.64 | AD27: 24512414.24 | AE27: 20100981.77 | AF27: 3706984.064 | AG27: 52265876.24 | AH27: 33377260.52 | AI27: 60113954.19 | AJ27: 38946741.67 | AK27: 52693925.67 | AL27: 22000689.72 | AM27: 56014812.49 | AN27: 25080633.12 | AO27: 50216849.46 | AP27: 54481014.22 | AQ27: 28364502.49 | AR27: 78272096.75 | AS27: 33551652.67 | AT27: 54440622.18 | AU27: 46910615.01 | AV27: 53547773.86 | AW27: 17464488.57 | AX27: 52306278.78 | AY27: 41791747.96 | AZ27: 26924493.42 | BA27: 46539701.91 | BB27: 63217261.99 | BC27: 54023315.71 | BD27: 59894830.85 | BE27: 70463262.13 | BF27: 66688773.24 | BG27: 46644672.15 | BH27: 39082757.86 | BI27: 64017805.94 | BJ27: 60214570.13
B28: 4.5 | C28: 24743715.83 | D28: 43609707.06 | E28: 16960330.71 | F28: 58059395.49 | G28: 38194186 | H28: 21828688.12 | I28: 55891223.94 | J28: 48242450.38 | K28: 19411430.45 | L28: 80403175.03 | M28: 41503239.88 | N28: 27005362.02 | O28: 6038186.563 | P28: 38397299.75 | Q28: 22125574.66 | R28: 13354667.15 | S28: 76465391.54 | T28: 57074559.14 | U28: 22603893.82 | V28: 2133318.062 | W28: 42591548.88 | X28: 36223023.35 | Y28: 58914414.79 | Z28: 65,635,840 | AA28: 78295960.02 | AB28: 28071104.77 | AC28: 51585925.06 | AD28: 32395941.8 | AE28: 24166324 | AF28: 3808528.057 | AG28: 50710436.33 | AH28: 25269321.13 | AI28: 69248727.92 | AJ28: 34755356.66 | AK28: 52097714.08 | AL28: 23392091.58 | AM28: 83863574.38 | AN28: 34633895.16 | AO28: 59660752.28 | AP28: 73445406.34 | AQ28: 49047592.88 | AR28: 87090353.75 | AS28: 35641772.04 | AT28: 55927764.86 | AU28: 59861541.01 | AV28: 60676651.32 | AW28: 30089600.26 | AX28: 51004645.5 | AY28: 40168692.14 | AZ28: 31991934.72 | BA28: 45417306.15 | BB28: 99770208.33 | BC28: 68037625.51 | BD28: 57758266.37 | BE28: 62033178.4 | BF28: 65024116.72 | BG28: 54805799.91 | BH28: 43421214.46 | BI28: 73230395.26 | BJ28: 60183260.78
B29: 5 | C29: 33510143.8 | D29: 39217660.29 | E29: 29348686.91 | F29: 63579407.2 | G29: 46633618.65 | H29: 29179729.51 | I29: 64239493.55 | J29: 73237242.1 | K29: 23923497.36 | L29: 90310720.11 | M29: 38793108.16 | N29: 35751409.85 | O29: 8246861.749 | P29: 44877915.59 | Q29: 18497366.98 | R29: 13799959.74 | S29: 61989784.24 | T29: 65168736.61 | U29: 24922070.63 | V29: 1462666.267 | W29: 44768029.15 | X29: 43179757.36 | Y29: 60847423.97 | Z29: 49,534,718 | AA29: 87787109.28 | AB29: 27529040.58 | AC29: 55206121.2 | AD29: 30140945.08 | AE29: 35633240.58 | AF29: 4602278.055 | AG29: 67568703 | AH29: 34818682.29 | AI29: 83027083.59 | AJ29: 53660782.32 | AK29: 58475864.63 | AL29: 22832383.06 | AM29: 69600421.24 | AN29: 39255347.93 | AO29: 67614604.91 | AP29: 71574507.39 | AQ29: 44376147.86 | AR29: 94398446.29 | AS29: 38955732.33 | AT29: 77465114.21 | AU29: 63760533.98 | AV29: 74765599.19 | AW29: 37141467.99 | AX29: 60885697.09 | AY29: 51612861.9 | AZ29: 45059224.65 | BA29: 40722406.33 | BB29: 103885766.5 | BC29: 79607568.26 | BD29: 61085765.19 | BE29: 88121347.09 | BF29: 80326812.45 | BG29: 68937792.32 | BH29: 56737852.47 | BI29: 81102818.45 | BJ29: 57667726.69
B30: 5.5 | C30: 29134551.79 | D30: 63262466.95 | E30: 27387720.47 | F30: 87510552.65 | G30: 55330970.63 | H30: 27067122 | I30: 64074268.91 | J30: 102164469.9 | K30: 24224901.58 | L30: 80054043.48 | M30: 41063039.43 | N30: 39207995.62 | O30: 8061016.747 | P30: 43209213.58 | Q30: 20670487.91 | R30: 14358570.77 | S30: 80250768.49 | T30: 59918649.4 | U30: 26151082.55 | V30: 2647723.945 | W30: 55496240.42 | X30: 39549392.06 | Y30: 57829994.22 | Z30: 78,905,863 | AA30: 79437315.26 | AB30: 28261538.73 | AC30: 48560081.76 | AD30: 39596722.54 | AE30: 29245449.33 | AF30: 4725665.876 | AG30: 87670803.16 | AH30: 41909483.13 | AI30: 72989177.51 | AJ30: 38847365.5 | AK30: 57348477.16 | AL30: 23988327.56 | AM30: 112901728.1 | AN30: 27876751.51 | AO30: 73148632.32 | AP30: 84050946.75 | AQ30: 58239233.36 | AR30: 87763193.66 | AS30: 53526711.56 | AT30: 93716318.97 | AU30: 61764394.83 | AV30: 60581094.44 | AW30: 29821726.77 | AX30: 69088872.43 | AY30: 47161370.31 | AZ30: 36283233.6 | BA30: 55271715.05 | BB30: 97626593.14 | BC30: 78422102.94 | BD30: 78585117.76 | BE30: 65829522.79 | BF30: 92388330.12 | BG30: 65438041.52 | BH30: 48165004.6 | BI30: 71319394.97 | BJ30: 81227298.64
B31: 6 | C31: 35280022.89 | D31: 54105110.03 | E31: 37004358.76 | F31: 78261159.68 | G31: 53458629.69 | H31: 31024143.96 | I31: 85346137.26 | J31: 82020851.3 | K31: 28813283.29 | L31: 100549336 | M31: 61577385.38 | N31: 37445457.26 | O31: 10468947.06 | P31: 41477999.24 | Q31: 35604125.48 | R31: 16391457.28 | S31: 101684167.4 | T31: 86172792.42 | U31: 24402191.6 | V31: 2368787.688 | W31: 52327318.27 | X31: 39623519.35 | Y31: 66605889.06 | Z31: 95,269,760 | AA31: 93971968.72 | AB31: 24947975.98 | AC31: 50824219.9 | AD31: 35442337.31 | AE31: 40435726.56 | AF31: 4155008.583 | AG31: 100090353.4 | AH31: 53116231.62 | AI31: 78856836.62 | AJ31: 55097517.37 | AK31: 57001221.35 | AL31: 24677283.34 | AM31: 100056436.2 | AN31: 38680587.48 | AO31: 78142307.95 | AP31: 72482103.56 | AQ31: 51989870.76 | AR31: 118985718.1 | AS31: 50455738.28 | AT31: 93262035.6 | AU31: 66446088 | AV31: 64880235.47 | AW31: 39913480.64 | AX31: 67184549.7 | AY31: 57569338.85 | AZ31: 49826891.88 | BA31: 61410740.85 | BB31: 113443048.3 | BC31: 85779722.63 | BD31: 59336440.83 | BE31: 92638701.05 | BF31: 106922897.1 | BG31: 65533862.77 | BH31: 54676971.58 | BI31: 78742458.27 | BJ31: 94179430.26
B32: 6.5 | C32: 32797672.95 | D32: 58466647.15 | E32: 47990815.92 | F32: 85922309.14 | G32: 54877947.33 | H32: 30826088.85 | I32: 85217596.87 | J32: 73378698.86 | K32: 28916003.25 | L32: 132761073.3 | M32: 58428007.24 | N32: 48810673.56 | O32: 7730796.469 | P32: 63944644.17 | Q32: 32309015.75 | R32: 18163316.62 | S32: 107729325.6 | T32: 68731233.84 | U32: 39922096.63 | V32: 2627488.364 | W32: 71741496.33 | X32: 33241021.11 | Y32: 83407359.66 | Z32: 134,742,255 | AA32: 100266690.9 | AB32: 33696192.14 | AC32: 42837948.03 | AD32: 48298093.31 | AE32: 25406729.1 | AF32: 4536574.598 | AG32: 88915630.66 | AH32: 28034956.95 | AI32: 101459549.4 | AJ32: 58283345.1 | AK32: 67628825.96 | AL32: 31732867.19 | AM32: 109222827.2 | AN32: 29515160.66 | AO32: 96936959.15 | AP32: 68840129.37 | AQ32: 52741904.74 | AR32: 116363948.3 | AS32: 55051877.37 | AT32: 92493542.69 | AU32: 66661011.74 | AV32: 95794163.72 | AW32: 33973666.68 | AX32: 76691167.05 | AY32: 60469169.77 | AZ32: 46805611.14 | BA32: 59374703.98 | BB32: 105946672.3 | BC32: 112626389.1 | BD32: 77393539.04 | BE32: 83781334.1 | BF32: 123434816.2 | BG32: 92899443.11 | BH32: 78498354.1 | BI32: 78509493.72 | BJ32: 87403683.73
B33: 7 | C33: 35458088.26 | D33: 76603958.46 | E33: 30257865.63 | F33: 99977195.01 | G33: 65862639.99 | H33: 26360068.96 | I33: 97278846.22 | J33: 72448175.13 | K33: 31486421.02 | L33: 132597355.5 | M33: 58018191.62 | N33: 43380134.16 | O33: 10669848.06 | P33: 55621179.09 | Q33: 29788486.22 | R33: 19612688.05 | S33: 124199164.6 | T33: 90259347.58 | U33: 29001504.18 | V33: 2784586.121 | W33: 46245762.83 | X33: 67549324.9 | Y33: 49564522.88 | Z33: 141,171,415 | AA33: 113959425.2 | AB33: 49290972.2 | AC33: 73176038.39 | AD33: 38335737.3 | AE33: 45542423.24 | AF33: 6113893.401 | AG33: 89285512.15 | AH33: 66687393.31 | AI33: 113286496.5 | AJ33: 67210151.73 | AK33: 87285038.33 | AL33: 38684322.83 | AM33: 139766230.7 | AN33: 36835910.72 | AO33: 95948074.14 | AP33: 70058315.85 | AQ33: 74419467.45 | AR33: 98117766.48 | AS33: 64993048.71 | AT33: 102589661.4 | AU33: 70243980.89 | AV33: 75213816.46 | AW33: 36377504.45 | AX33: 76757604.96 | AY33: 60773945.56 | AZ33: 46888376.77 | BA33: 58208809.09 | BB33: 161945421.7 | BC33: 99407462.25 | BD33: 107207406.6 | BE33: 97135719.03 | BF33: 112265361.4 | BG33: 91304243.47 | BH33: 67551796.1 | BI33: 114271996.4 | BJ33: 86615248.37
B34: 7.5 | C34: 41450221.18 | D34: 78056530.82 | E34: 42894290.27 | F34: 127430156.4 | G34: 49116424.05 | H34: 37878286.76 | I34: 105406491.6 | J34: 106334066.9 | K34: 36693858.23 | L34: 149090664.5 | M34: 66755825.49 | N34: 49007280.61 | O34: 8380608.905 | P34: 69988725.04 | Q34: 29341684.79 | R34: 15832535.54 | S34: 111350987 | T34: 115685319.6 | U34: 30138486.01 | V34: 3048732.279 | W34: 69603296.84 | X34: 72444338.42 | Y34: 100088201.1 | Z34: 110,749,557 | AA34: 116385951.7 | AB34: 57701665.19 | AC34: 62190685.12 | AD34: 40714525.86 | AE34: 27345992.63 | AF34: 6187111.885 | AG34: 105676767.3 | AH34: 49170076.99 | AI34: 107285077 | AJ34: 83581686.53 | AK34: 80827324.39 | AL34: 37627782.4 | AM34: 132926708.5 | AN34: 64854301.39 | AO34: 123886615.9 | AP34: 108534133.6 | AQ34: 55246100.89 | AR34: 85206080.06 | AS34: 62395703.54 | AT34: 89998185.52 | AU34: 94368457.16 | AV34: 91863167.23 | AW34: 32827188.41 | AX34: 120536503.6 | AY34: 73315876.17 | AZ34: 54758160.02 | BA34: 67375583.57 | BB34: 91515475.92 | BC34: 100004551.7 | BD34: 107086393.5 | BE34: 73940012.96 | BF34: 126264321.6 | BG34: 79367095.51 | BH34: 67400783.14 | BI34: 106050052.5 | BJ34: 84333202.29
B35: 8 | C35: 39300585.39 | D35: 77042821.86 | E35: 41643329.71 | F35: 110946720.1 | G35: 91121121.51 | H35: 41252311.43 | I35: 132532831.7 | J35: 96391376.82 | K35: 38721745.39 | L35: 124962861 | M35: 60018580.61 | N35: 55289191.62 | O35: 13337221.7 | P35: 77499909.73 | Q35: 33160980.09 | R35: 22327476.25 | S35: 136316358.3 | T35: 105013319.9 | U35: 40331318.18 | V35: 3688423.932 | W35: 73088347.17 | X35: 51837187.17 | Y35: 98281005.32 | Z35: 150,682,577 | AA35: 140804907.7 | AB35: 50897498.95 | AC35: 74014468.5 | AD35: 52823116.45 | AE35: 47358212.98 | AF35: 8249787.197 | AG35: 119354542.5 | AH35: 46785535 | AI35: 111013294.6 | AJ35: 83117152.88 | AK35: 82469127.5 | AL35: 40540178.49 | AM35: 120682515.3 | AN35: 28365571.68 | AO35: 107301320.3 | AP35: 93497858.17 | AQ35: 64849779.52 | AR35: 155849327.1 | AS35: 66966648.87 | AT35: 100020990 | AU35: 103995588.3 | AV35: 92684010.54 | AW35: 41268972.87 | AX35: 83521650.57 | AY35: 68556833.02 | AZ35: 55789370.96 | BA35: 63610264.51 | BB35: 89859749.66 | BC35: 112978693.1 | BD35: 119693197.8 | BE35: 101120935.5 | BF35: 117733160 | BG35: 124267966.2 | BH35: 76487838.08 | BI35: 123013853.3 | BJ35: 83562391.56
B36: 8.5 | C36: 37371750.44 | D36: 106357654.1 | E36: 55481716.69 | F36: 169032892.8 | G36: 67729116.75 | H36: 39346681.74 | I36: 103530047.5 | J36: 74427691.99 | K36: 31537886.31 | L36: 117829958.5 | M36: 76364481.68 | N36: 51305477.92 | O36: 10777929.31 | P36: 70273895.94 | Q36: 40654645.94 | R36: 22131592.12 | S36: 134085491.9 | T36: 125352405.4 | U36: 37574748.41 | V36: 4708829.725 | W36: 62484734.75 | X36: 64091425.66 | Y36: 87170813.16 | Z36: 163,881,293 | AA36: 183765571.9 | AB36: 44708877.03 | AC36: 74944116.65 | AD36: 58581798.72 | AE36: 47036284.88 | AF36: 5633551.355 | AG36: 107763399.4 | AH36: 49296991.1 | AI36: 113161100.4 | AJ36: 83033531.69 | AK36: 107329676.2 | AL36: 40948441.82 | AM36: 103847288.7 | AN36: 37688603.73 | AO36: 121240123.6 | AP36: 93987664.87 | AQ36: 104537859.2 | AR36: 161641667 | AS36: 58237250.03 | AT36: 112458651.9 | AU36: 82165610.82 | AV36: 85791068.64 | AW36: 45949638.99 | AX36: 99227285.21 | AY36: 94885540.86 | AZ36: 98696030.5 | BA36: 89078463.39 | BB36: 100457703.6 | BC36: 110379882.7 | BD36: 159201143.9 | BE36: 143427944.6 | BF36: 142458881.8 | BG36: 102318839.3 | BH36: 64656315.68 | BI36: 131592569.6 | BJ36: 132085747
B37: 9 | C37: 36562045.02 | D37: 86006835.9 | E37: 56405571.05 | F37: 121566923.8 | G37: 98333998.33 | H37: 37907807.06 | I37: 152023364.2 | J37: 108790182.6 | K37: 33688206.73 | L37: 116678393 | M37: 72932086.79 | N37: 61351638.45 | O37: 18285163.02 | P37: 60386025.97 | Q37: 38901323.19 | R37: 33828173.46 | S37: 178988065.7 | T37: 91695091.26 | U37: 43291235.27 | V37: 3877229.158 | W37: 85714460.83 | X37: 61248972.48 | Y37: 109287496 | Z37: 131,090,482 | AA37: 204287924.2 | AB37: 49182749.36 | AC37: 84684214.92 | AD37: 58790095.47 | AE37: 56265044.78 | AF37: 7703654.629 | AG37: 155479434.8 | AH37: 55571139.01 | AI37: 131321559.2 | AJ37: 89088979.2 | AK37: 89752285.36 | AL37: 50963007.73 | AM37: 172355570.6 | AN37: 71514861.94 | AO37: 86719926.13 | AP37: 112762667.4 | AQ37: 82892615.12 | AR37: 142263540 | AS37: 59753357.96 | AT37: 116184798.3 | AU37: 87270728.92 | AV37: 110356492.8 | AW37: 50721433.09 | AX37: 94571787.27 | AY37: 82171442.44 | AZ37: 66967957.24 | BA37: 91165614.7 | BB37: 121460364.5 | BC37: 131474402.6 | BD37: 138770645 | BE37: 152158900.3 | BF37: 135823664 | BG37: 117382669.2 | BH37: 64849830.95 | BI37: 139508770 | BJ37: 99327263.59
B38: 9.5 | C38: 49914898.09 | D38: 92222375.95 | E38: 60391035.96 | F38: 141963689 | G38: 88024640.86 | H38: 42448313.61 | I38: 110097877.6 | J38: 140399799.9 | K38: 57212707.8 | L38: 141081397.5 | M38: 70018188.17 | N38: 60057649.87 | O38: 10453783.92 | P38: 70764384.84 | Q38: 40171438.62 | R38: 30231423.59 | S38: 135602639 | T38: 125420542.5 | U38: 45374872.99 | V38: 3428115.627 | W38: 74553732.25 | X38: 63110664.65 | Y38: 110062568.5 | Z38: 126,074,234 | AA38: 103921654.2 | AB38: 54897217.18 | AC38: 83848375.42 | AD38: 72886540.96 | AE38: 57907159.69 | AF38: 7283843.85 | AG38: 139210317.1 | AH38: 81334111.87 | AI38: 141943838.6 | AJ38: 70347156.28 | AK38: 93028873.58 | AL38: 39227423.07 | AM38: 145290233.6 | AN38: 65380156.41 | AO38: 129946366.2 | AP38: 107320064.7 | AQ38: 55888509.77 | AR38: 155714444.9 | AS38: 82564608.99 | AT38: 124915534.2 | AU38: 76505544.08 | AV38: 127527030.5 | AW38: 59352668.03 | AX38: 117408263.6 | AY38: 100625198.6 | AZ38: 58499166.7 | BA38: 93716123.4 | BB38: 107985668.9 | BC38: 139080933.9 | BD38: 129627698.1 | BE38: 131883813.4 | BF38: 125870224.2 | BG38: 115726716.8 | BH38: 81012226.64 | BI38: 120964486.9 | BJ38: 148012458.5
B39: 10 | C39: 56665446.88 | D39: 94795737.64 | E39: 35843093.57 | F39: 165931566.4 | G39: 79914817.13 | H39: 40054836.78 | I39: 155723308 | J39: 109373153.9 | K39: 53186886.64 | L39: 199321985.8 | M39: 102023475.3 | N39: 51373299.59 | O39: 11925448.07 | P39: 86514988.7 | Q39: 38701129.08 | R39: 28727169.94 | S39: 131829300.2 | T39: 125875475.4 | U39: 49732473.81 | V39: 4509004.159 | W39: 81797685.54 | X39: 69058796.51 | Y39: 95211631.64 | Z39: 233,009,516 | AA39: 146436381.8 | AB39: 63850451.94 | AC39: 101568344.1 | AD39: 56809496.56 | AE39: 62002973.29 | AF39: 7060838.324 | AG39: 138527612.3 | AH39: 54488624.22 | AI39: 125801675.1 | AJ39: 82440130.85 | AK39: 103058746.1 | AL39: 46672325.4 | AM39: 145094859.7 | AN39: 66481407.57 | AO39: 108740527 | AP39: 139795172.4 | AQ39: 106171047.2 | AR39: 110852178.4 | AS39: 79266447.52 | AT39: 114873191.2 | AU39: 98540716.33 | AV39: 109091173.2 | AW39: 30702978.6 | AX39: 114003644.2 | AY39: 85442844.18 | AZ39: 73484980.02 | BA39: 95978928.49 | BB39: 119257478.5 | BC39: 112249112.7 | BD39: 137932809.8 | BE39: 128620646.5 | BF39: 151443078.1 | BG39: 130149595.5 | BH39: 102484075.9 | BI39: 159657959.8 | BJ39: 136368736.2
B40: 10.5 | C40: 57144649.92 | D40: 96524797.28 | E40: 72622845.36 | F40: 167716615.3 | G40: 96599925.4 | H40: 47136877.89 | I40: 139042327.5 | J40: 112879653.3 | K40: 67874236.2 | L40: 159174495.1 | M40: 49855857.63 | N40: 68887014.85 | O40: 15488946.58 | P40: 86350393.43 | Q40: 44732690.41 | R40: 28803578.12 | S40: 146173148.8 | T40: 104291720.8 | U40: 48344150.42 | V40: 4857673.999 | W40: 70263179.83 | X40: 105754729.2 | Y40: 140339332.3 | Z40: 167,253,198 | AA40: 183747803.5 | AB40: 54137011.6 | AC40: 90224522.91 | AD40: 70837879.02 | AE40: 63887119.04 | AF40: 8539589.713 | AG40: 135809121.8 | AH40: 75697012.47 | AI40: 121429221.9 | AJ40: 101127872.5 | AK40: 108954681.5 | AL40: 49091405.87 | AM40: 166169588.6 | AN40: 58509279.62 | AO40: 158556669.1 | AP40: 137452001.3 | AQ40: 88635518.55 | AR40: 140914184.5 | AS40: 84677433.46 | AT40: 151573898.8 | AU40: 126463104.9 | AV40: 134124182 | AW40: 61038430.15 | AX40: 112369839.4 | AY40: 83927500.87 | AZ40: 67222516.91 | BA40: 126720654.1 | BB40: 142358707.2 | BC40: 143259941.1 | BD40: 159535961.1 | BE40: 154106725.8 | BF40: 160291865 | BG40: 129330106.5 | BH40: 90889831.46 | BI40: 140867333.7 | BJ40: 120698576.1
B41: 11 | C41: 53646669.53 | D41: 100922218.7 | E41: 68521583.43 | F41: 144078087.1 | G41: 101674731.4 | H41: 53107550.15 | I41: 122386205.7 | J41: 168258417.8 | K41: 48720872.62 | L41: 186051443.4 | M41: 92904733.83 | N41: 71800386.22 | O41: 14981334.96 | P41: 92363698.7 | Q41: 44354217.05 | R41: 34976684.34 | S41: 190666829.5 | T41: 147783365.9 | U41: 41930808.06 | V41: 4994467.167 | W41: 71826489.98 | X41: 85517642.28 | Y41: 132217571 | Z41: 208,650,970 | AA41: 199233963.3 | AB41: 54824958.62 | AC41: 101017246 | AD41: 81315033.26 | AE41: 53162128.16 | AF41: 8981646.312 | AG41: 136444504.5 | AH41: 77460193.78 | AI41: 145119026.3 | AJ41: 141283643.9 | AK41: 126497618.9 | AL41: 51717062.42 | AM41: 185788404.9 | AN41: 86435923.79 | AO41: 151983632.7 | AP41: 196781869.8 | AQ41: 129083602.2 | AR41: 156094653.7 | AS41: 84904627.88 | AT41: 144451596.7 | AU41: 147835778.2 | AV41: 113258181.8 | AW41: 57792959.45 | AX41: 131500684.3 | AY41: 87787194.29 | AZ41: 104302811.3 | BA41: 111331630.3 | BB41: 199560039.4 | BC41: 159866101.5 | BD41: 131421650.2 | BE41: 169874789.2 | BF41: 139849106.6 | BG41: 137917426.8 | BH41: 102484542.1 | BI41: 153214090.4 | BJ41: 145579799.5
B42: 11.5 | C42: 50713342.85 | D42: 117814352.8 | E42: 45920385.05 | F42: 174118135.8 | G42: 109034838.2 | H42: 46312561.64 | I42: 153220295.1 | J42: 138977466.8 | K42: 50083005.16 | L42: 177221271.2 | M42: 86020334.94 | N42: 80041298.67 | O42: 28575846.24 | P42: 88376029.15 | Q42: 60034336.33 | R42: 28000789.51 | S42: 198796618.6 | T42: 135740208.8 | U42: 56169402.79 | V42: 6644950.572 | W42: 106272174 | X42: 83467195.71 | Y42: 161480654.3 | Z42: 165,285,444 | AA42: 232068468 | AB42: 74708405 | AC42: 101027095.6 | AD42: 92384774.99 | AE42: 78264641.79 | AF42: 8195048.623 | AG42: 127834220.5 | AH42: 67772396.84 | AI42: 121619012 | AJ42: 91877455.8 | AK42: 130062533.9 | AL42: 62566378.45 | AM42: 220008806.6 | AN42: 62372194.26 | AO42: 117448707.5 | AP42: 190023469 | AQ42: 151103062.8 | AR42: 129611692.8 | AS42: 81591217.5 | AT42: 161630884.8 | AU42: 145120648.3 | AV42: 95893465.92 | AW42: 66760719.38 | AX42: 140006298.3 | AY42: 88248759.1 | AZ42: 97915868.6 | BA42: 122206664.4 | BB42: 143607137.2 | BC42: 127083619.9 | BD42: 165980230.9 | BE42: 164088529.2 | BF42: 172068233.3 | BG42: 161865926.9 | BH42: 107017377.6 | BI42: 144146377.4 | BJ42: 157555519.8

Sheet 4
A1: Data associated with Extended Data Fig 2d
B2: Exact mass | C2: signal intensity | D2: Log(signal intensity)
A3: S6 | B3: 384.1717 | C3: 17938375.02 | D3: =LOG(C3) -> 7.3
A4: S7 | B4: 403.1486 | C4: 31926370.6 | D4: =LOG(C4) -> 7.5
A5: S8 | B5: 440.1867 | C5: 16749070.71 | D5: 7.2
A6: S9 | B6: 447.2078 | C6: 42805585.97 | D6: 7.6
A7: S10 | B7: 454.2024 | C7: 30227457.19 | D7: 7.5
A8: S11 | B8: 495.1537 | C8: 13539200.04 | D8: 7.1
A9: S12 | B9: 488.2231 | C9: 41552814.5 | D9: 7.6
A10: S13 | B10: 532.2258 | C10: 37669308.74 | D10: 7.6
A11: S14 | B11: 390.1282 | C11: 17474498.84 | D11: 7.2
A12: S15 | B12: 523.1697 | C12: 54131069.1 | D12: 7.7
A13: S16 | B13: 477.182 | C13: 43270289.73 | D13: 7.6
A14: S17 | B14: 398.1813 | C14: 22082626.31 | D14: 7.3
A15: S18 | B15: 425.1758 | C15: 29128446.76 | D15: 7.5
A16: S19 | B16: 422.2377 | C16: 5061433.652 | D16: 6.7
A17: S20 | B17: 434.1625 | C17: 14096279.2 | D17: 7.1
A18: S21 | B18: 440.2595 | C18: 7375277.027 | D18: 6.9
A19: S22 | B19: 457.2173 | C19: 48568424.2 | D19: 7.7
A20: S23 | B20: 401.1581 | C20: 41162009.82 | D20: 7.6
A21: S24 | B21: 382.1812 | C21: 17576193.75 | D21: 7.2
A22: S25 | B22: 530.2353 | C22: 1363807.3 | D22: 6.1
A23: S26 | B23: 452.2119 | C23: 27263094.34 | D23: 7.4
A24: S27 | B24: 485.2234 | C24: 23993116.73 | D24: 7.4
A25: S28 | B25: 449.1734 | C25: 34037222.61 | D25: 7.5
A26: S29 | B26: 465.2435 | C26: 44244441.79 | D26: 7.6
A27: S30 | B27: 521.1792 | C27: 46378905.13 | D27: 7.7
A28: S31 | B28: 434.1625 | C28: 15739377.34 | D28: 7.2
A29: S32 | B29: 445.2173 | C29: 28888331.8 | D29: 7.5
A30: S33 | B30: 521.1792 | C30: 20356742.67 | D30: 7.3
A31: S34 | B31: 426.2438 | C31: 16937154.68 | D31: 7.2
A32: S35 | B32: 493.1632 | C32: 2686236.861 | D32: 6.4
A33: S36 | B33: 415.147 | C33: 45986138.38 | D33: 7.7
A34: S37 | B34: 426.1711 | C34: 22771459.29 | D34: 7.4
A35: S38 | B35: 409.2173 | C35: 43685164.93 | D35: 7.6
A36: S39 | B36: 435.1577 | C36: 25539591.64 | D36: 7.4
A37: S40 | B37: 383.1765 | C37: 35961567.95 | D37: 7.6
A38: S41 | B38: 531.2306 | C38: 37669308.74 | D38: 7.6
A39: S42 | B39: 518.2159 | C39: 45529279.24 | D39: 7.7
A40: S43 | B40: 494.1584 | C40: 20270896.74 | D40: 7.3
A41: S44 | B41: 476.1867 | C41: 27187443.09 | D41: 7.4
A42: S45 | B42: 520.2316 | C42: 44077729.28 | D42: 7.6
A43: S46 | B43: 494.1584 | C43: 27887783.56 | D43: 7.4
A44: S47 | B44: 476.1867 | C44: 45563462.87 | D44: 7.7
A45: S48 | B45: 464.2031 | C45: 24146141.81 | D45: 7.4
A46: S49 | B46: 536.2065 | C46: 40143327.89 | D46: 7.6
A47: S50 | B47: 538.2221 | C47: 46303128.17 | D47: 7.7
A48: S51 | B48: 540.165 | C48: 30476032.01 | D48: 7.5
A49: S52 | B49: 512.149 | C49: 27613001.37 | D49: 7.4
A50: S53 | B50: 459.1977 | C50: 34932787.3 | D50: 7.5
A51: S54 | B51: 427.2079 | C51: 25402481.2 | D51: 7.4
A52: S55 | B52: 485.1545 | C52: 22618226.94 | D52: 7.4
A53: S56 | B53: 427.2079 | C53: 28976450.35 | D53: 7.5
A54: S57 | B54: 550.2421 | C54: 38843237.38 | D54: 7.6
A55: S58 | B55: 457.2496 | C55: 39608596.69 | D55: 7.6
A56: S59 | B56: 459.1977 | C56: 41467422.72 | D56: 7.6
A57: S60 | B57: 471.2177 | C57: 43445577.29 | D57: 7.6
A58: S61 | B58: 439.2279 | C58: 43401673.9 | D58: 7.6
A59: S62 | B59: 429.1871 | C59: 38219246.43 | D59: 7.6
A60: S63 | B60: 547.2312 | C60: 24089729.93 | D60: 7.4
A61: S64 | B61: 551.1898 | C61: 73143035.36 | D61: 7.9
A62: S65 | B62: 456.2544 | C62: 37907593.47 | D62: 7.6

Sheet 5
A1: Data associated with Extended Data Fig 3a, b, and c
B2: Smiles | C2: FORMULA_WT | D2: AMW | E2: SlogP | F2: TPSA
A3: S111 | B3: CSc1nnc2N(CCn12)c3ccc(F)cc3 | C3: 250.2952 | D3: 250.302 | E3: 2.2908 | F3: 33.95
A4: S112 | B4: Fc1ccc(NC(=O)CSc2c[nH]nn2)cc1 | C4: 252.268 | D4: 252.274 | E4: 1.6746 | F4: 70.67
A5: S113 | B5: CCC(Oc1ccc(Cl)cc1)C(=O)NC2CC2 | C5: 253.7246 | D5: 253.729 | E5: 2.776 | F5: 38.33
A6: S114 | B6: Fc1ccccc1NC(=O)C2CC2c3ccccc3 | C6: 255.2868 | D6: 255.292 | E6: 3.5679 | F6: 29.1
A7: S115 | B7: COc1ccc(cc1)C(C)NC(=O)c2cccnc2 | C7: 256.2997 | D7: 256.305 | E7: 2.5812 | F7: 51.22
A8: S116 | B8: CC(NC(=O)C1CCCCC1)c2ccc(C)c(C)c2 | C8: 259.3865 | D8: 259.393 | E8: 4.06094 | F8: 29.1
A9: S117 | B9: CN(CC(=O)Nc1ccccc1C)C2CCCCC2 | C9: 260.3745 | D9: 260.381 | E9: 3.19802 | F9: 32.34
A10: S118 | B10: Cc1ccccc1\C=C\c2ccc3cccc(O)c3n2 | C10: 261.3178 | D10: 261.324 | E10: 4.41922 | F10: 33.12
A11: S119 | B11: COc1ccc(cc1OC)c2nn3cnnc3s2 | C11: 262.2877 | D11: 262.294 | E11: 1.87 | F11: 61.54
A12: S120 | B12: Fc1ccc(CCNC(=O)NC2CCCCC2)cc1 | C12: 264.3384 | D12: 264.344 | E12: 3.0001 | F12: 41.13
A13: S121 | B13: OCCN1COc2c(C1)cc(Cl)c3cccnc23 | C13: 264.7075 | D13: 264.712 | E13: 2.0324 | F13: 45.59
A14: S122 | B14: CN(C)c1nc(Nc2ccccc2)c3nccnc3n1 | C14: 266.3011 | D14: 266.308 | E14: 2.2294 | F14: 66.83
A15: S123 | B15: CCCCn1c(C)nc2ccc(cc12)S(=O)(=O)N | C15: 267.3472 | D15: 267.354 | E15: 1.79222 | F15: 77.98
A16: S124 | B16: COc1cc(CN2CCc3ccccc3C2)ccc1O | C16: 269.3382 | D16: 269.344 | E16: 2.9591 | F16: 32.7
A17: S125 | B17: OC(=O)COc1ccc(cc1)C2SCCCS2 | C17: 270.3677 | D17: 270.375 | E17: 3.0187 | F17: 46.53
A18: S126 | B18: COCc1nnc2sc(\C=C\c3ccccc3)nn12 | C18: 272.3255 | D18: 272.333 | E18: 2.5026 | F18: 52.31
A19: S127 | B19: COc1cccc(CC(=O)Nc2ccc(C)c(F)c2)c1 | C19: 273.3021 | D19: 273.307 | E19: 3.32392 | F19: 38.33
A20: S128 | B20: Cc1ccc(COn2nnc3ccc(Cl)cc23)cc1 | C20: 273.7175 | D20: 273.723 | E20: 3.02192 | F20: 39.94
A21: S129 | B21: CC(=O)Nc1cccc(NC(=O)c2csc(C)c2)c1 | C21: 274.3381 | D21: 274.345 | E21: 3.26722 | F21: 58.2
A22: S130 | B22: Clc1cccc(c1)C2CC(=O)NC3=C2C(=O)CCC3 | C22: 275.7301 | D22: 275.735 | E22: 2.9506 | F22: 46.17
A23: S131 | B23: CC(CC(=O)Nc1ccc(F)cc1)n2nc(C)nc2C | C23: 276.3093 | D23: 276.315 | E23: 2.62384 | F23: 59.81
A24: S132 | B24: COc1ccc(NC(=O)C(F)(F)c2ccccc2)cc1 | C24: 277.266 | D24: 277.27 | E24: 3.4257 | F24: 38.33
A25: S133 | B25: CSc1ccccc1NC(=O)CN2CCCCC2C | C25: 278.4129 | D25: 278.421 | E25: 3.2214 | F25: 32.34
A26: S134 | B26: CCC(Oc1ccc(OC)cc1)C(=O)N2CCOCC2 | C26: 279.3315 | D26: 279.336 | E26: 1.7114 | F26: 48
A27: S135 | B27: CC(C)(C)c1cnnn1c2ccc(cc2)S(=O)(=O)N | C27: 280.346 | D27: 280.353 | E27: 1.2122 | F27: 90.87
A28: S136 | B28: CC(C)Oc1ccc(cc1)c2onc(n2)c3ccccn3 | C28: 281.3092 | D28: 281.315 | E28: 3.5858 | F28: 61.04
A29: S137 | B29: CC(=O)c1ccccc1OCC(=O)c2ccc(C)c(C)c2 | C29: 282.3337 | D29: 282.339 | E29: 3.76774 | F29: 43.37
A30: S138 | B30: OC1C2CCN(CC2)/C/1=C/c3ccc(cc3)C(F)(F)F | C30: 283.2888 | D30: 283.293 | E30: 3.1328 | F30: 23.47
A31: S139 | B31: CCOC1CCCCC1NS(=O)(=O)c2ccccc2 | C31: 283.3864 | D31: 283.393 | E31: 2.3126 | F31: 55.4
A32: S140 | B32: CCC(=O)c1ccc(Oc2ncnc3sccc23)cc1 | C32: 284.3329 | D32: 284.34 | E32: 4.0763 | F32: 52.08
A33: S141 | B33: CCOc1ccc(CNc2cccc(C(=O)O)c2C)cc1 | C33: 285.3376 | D33: 285.343 | E33: 3.70402 | F33: 58.56
A34: S142 | B34: CCCn1nnnc1NCc2ccc(Cl)cc2Cl | C34: 286.1604 | D34: 286.166 | E34: 3.002 | F34: 55.63
A35: S143 | B35: COc1ccc(OCC(O)CNc2ccc(C)cc2)cc1 | C35: 287.3535 | D35: 287.359 | E35: 2.85542 | F35: 50.72
A36: S144 | B36: COc1ccccc1n2ncc3C(=O)NC(=Nc23)SC | C36: 288.3249 | D36: 288.332 | E36: 1.8393 | F36: 72.8
A37: S145 | B37: Cc1ccc(C)c(c1)C(=O)NC2CC(C)(C)NC(C)(C)C2 | C37: 288.4277 | D37: 288.435 | E37: 3.34244 | F37: 41.13
A38: S146 | B38: Cc1c(NC(=O)CCC2CCCCC2)cccc1C(=O)O | C38: 289.3694 | D38: 289.375 | E38: 3.99222 | F38: 66.4
A39: S147 | B39: CC1=CC(=O)C(=CN1CC(=O)N)OCc2ccccc2F | C39: 290.2896 | D39: 290.294 | E39: 1.36012 | F39: 74.32
A40: S148 | B40: OC(=O)CSc1nc2ccccc2n1C3CCCCC3 | C40: 290.3806 | D40: 290.388 | E40: 3.7182 | F40: 55.12
A41: S149 | B41: Brc1cccc(c1)c2oc(nn2)c3occc3 | C41: 291.1001 | D41: 291.104 | E41: 3.7591 | F41: 52.06
A42: S150 | B42: CCCC(=O)N1CCN(CC1)c2cc(OCC)nc(C)n2 | C42: 292.3766 | D42: 292.383 | E42: 1.63242 | F42: 58.56
A43: S151 | B43: CC(C)(C)NCc1cccc(Oc2ncccn2)c1 | C43: 292.787549 | D43: 257.337 | E43: 3.157 | F43: 47.04
A44: S152 | B44: CCOc1ccc(\C=C\C2=NC(=O)c3ccccc3O2)cc1 | C44: 293.3166 | D44: 293.322 | E44: 3.7571 | F44: 52.33
A45: S153 | B45: COc1ccc(cc1)c2c3CN(C)CCc3nc(N)c2C#N | C45: 294.351 | D45: 294.358 | E45: 2.19898 | F45: 75.17
A46: S154 | B46: CN1CCN(CC1)C(=O)C(c2ccccc2)c3ccccc3 | C46: 294.3907 | D46: 294.398 | E46: 2.5925 | F46: 23.55
A47: S155 | B47: Cc1ccc(cc1)c2csc(\C=C\c3cccc(F)c3)n2 | C47: 295.3738 | D47: 295.382 | E47: 5.42802 | F47: 12.89
A48: S156 | B48: COc1cccc(c1)c2noc(n2)C(C)Oc3ccccc3 | C48: 296.3205 | D48: 296.326 | E48: 3.8852 | F48: 57.38
A49: S157 | B49: CC(C)(C)c1onc(NC(=O)c2c(F)cccc2Cl)c1 | C49: 296.7245 | D49: 296.729 | E49: 4.0169 | F49: 55.13
A50: S158 | B50: Cc1ccccc1CS(=O)(=O)Nc2ccc(F)c(F)c2 | C50: 297.3203 | D50: 297.326 | E50: 3.21512 | F50: 46.17
A51: S159 | B51: Cc1ccc(C)c(NC(=O)CSc2ncccc2C#N)c1 | C51: 297.3748 | D51: 297.383 | E51: 3.30092 | F51: 65.78
A52: S160 | B52: COc1cccc(c1)C(=O)Nc2ncccc2Cl | C52: 298.143549 | D52: 262.696 | E52: 2.9959 | F52: 51.22
A53: S161 | B53: CN1C(=O)Cc2cc(NC(=O)Cc3ccc(F)cc3)ccc12 | C53: 298.3116 | D53: 298.317 | E53: 2.5258 | F53: 49.41
A54: S162 | B54: Brc1ccc(\C=C\c2nc3ccccc3[nH]2)cc1 | C54: 299.1652 | D54: 299.171 | E54: 4.4958 | F54: 28.68
A55: S163 | B55: COc1ccc(cc1)C2CC(=O)NC3=C2C(=O)CC(C)(C)C3 | C55: 299.3642 | D55: 299.37 | E55: 2.9419 | F55: 55.4
A56: S164 | B56: Cc1ccc(Cl)c2sc(nc12)N3CCOCC3 | C56: 304.209549 | D56: 268.769 | E56: 3.09472 | F56: 25.36
A57: S165 | B57: CCN(CCO)c1nc(N2CCCCC2)c3cnn(C)c3n1 | C57: 304.3906 | D57: 304.398 | E57: 1.1722 | F57: 70.31
A58: S166 | B58: CCc1ccc(Nc2cc(C)c3ccc(O)cc3n2)cc1 | C58: 313.805549 | D58: 278.355 | E58: 4.55482 | F58: 45.15
A59: S167 | B59: CCc1cccc2c(cn(CCOc3ccccc3Cl)c12)C#N | C59: 324.804 | D59: 324.811 | E59: 4.80778 | F59: 37.95
A60: S168 | B60: COCC(C)NC1=NN=C(CS1)c2ccc(C)c(C)c2 | C60: 326.863549 | D60: 291.42 | E60: 2.73484 | F60: 45.98
A61: S169 | B61: Cc1cc(Nc2ccc(Br)c(C)c2)n3nc(C)nc3n1 | C61: 332.1984 | D61: 332.205 | E61: 3.55566 | F61: 55.11
A62: S170 | B62: Clc1cccc(c1)c2nc(NCc3occc3)c4ccccc4n2 | C62: 335.7869 | D62: 335.794 | E62: 5.1553 | F62: 50.95
A63: S171 | B63: Cc1ccccc1OCC(=O)NS(=O)(=O)c2ccc(Cl)cc2 | C63: 339.7939 | D63: 339.8 | E63: 2.53232 | F63: 72.47
A64: S172 | B64: CCOc1cc2CCNC(c3cc(C)c(O)c(C)c3)c2cc1OCC | C64: 341.44398 | D64: 341.451 | E64: 4.04154 | F64: 50.72
A65: S173 | B65: Fc1ccc(NC(=O)Cc2csc(NC(=O)c3occc3)n2)cc1 | C65: 345.3481 | D65: 345.355 | E65: 3.3087 | F65: 84.23
A66: S174 | B66: CCOc1ccc2nc(C)cc(Nc3ccc(Cl)cc3)c2c1 | C66: 348.247549 | D66: 312.8 | E66: 5.33892 | F66: 34.15
A67: S175 | B67: OCCNc1nc(Nc2ccc(Cl)cc2)nc3ccccc13 | C67: 350.223549 | D67: 314.776 | E67: 3.431 | F67: 70.07
A68: S176 | B68: CCN1N=C(N=C2C(=O)N(C)C(=O)N=C12)c3ccc(cc3)C(F)(F)F | C68: 351.2832 | D68: 351.288 | E68: 1.5425 | F68: 82.67
A69: S177 | B69: COc1ccc(cc1)N(C(C)C(=O)N2CCCCCC2)S(=O)(=O)C | C69: 354.4643 | D69: 354.472 | E69: 2.2523 | F69: 66.92
A70: S178 | B70: CN(C)CCN(C(=O)C)c1nc2cc3OCCOc3cc2s1 | C70: 356.845549 | D70: 321.402 | E70: 1.982 | F70: 54.9
A71: S179 | B71: OCCN1CCN(CC(O)COC2CCCCC2)CC1 | C71: 357.317097 | D71: 286.416 | E71: 0.3065 | F71: 56.17
A72: S180 | B72: CCN(CC)CCN1C(Nc2ccccc2C1=O)c3ccc(Cl)cc3 | C72: 357.877 | D72: 357.885 | E72: 4.2483 | F72: 35.58
A73: S181 | B73: Cc1ccc(NC(=O)CSC2=Nc3c(cnn3CCO)C(=O)N2)cc1 | C73: 359.4028 | D73: 359.411 | E73: 1.15112 | F73: 112.9
A74: S182 | B74: Cc1ccc(Cl)cc1NC(=O)NC2CN(C(=O)C2)c3cccc(F)c3 | C74: 361.7978 | D74: 361.804 | E74: 3.71452 | F74: 61.44
A75: S183 | B75: CCNC(=O)Cn1c(CO)cnc1SCc2cc(OC)cc(OC)c2 | C75: 365.4472 | D75: 365.455 | E75: 1.821 | F75: 85.61
A76: S184 | B76: CC(C)(C)c1ccc(NC(=O)NCc2nnnn2c3cccc(F)c3)cc1 | C76: 368.408 | D76: 368.416 | E76: 3.4206 | F76: 84.73
A77: S185 | B77: Fc1ccc(cc1)c2nc3ncccn3c2Nc4cccc(c4)C(F)(F)F | C77: 372.3189 | D77: 372.325 | E77: 5.2978 | F77: 42.22
A78: S186 | B78: OC(CNC1CCCC1)Cn2c3ccc(Cl)cc3c4cc(Cl)ccc24 | C78: 377.3074 | D78: 377.315 | E78: 4.9944 | F78: 37.19
A79: S187 | B79: COc1cc2NC(=O)CC(c3cccc(Cl)c3Cl)c2c(OC)c1OC | C79: 382.2378 | D79: 382.243 | E79: 4.4933 | F79: 56.79
A80: S188 | B80: CC(C)(C)C(=O)Nc1nc(CC(=O)Nc2ccc(Cl)c(Cl)c2)cs1 | C80: 386.296 | D80: 386.304 | E80: 4.6157 | F80: 71.09
A81: S189 | B81: Clc1ccc(cc1)N2CC(CC2=O)NC(=O)NCc3ccc4OCOc4c3 | C81: 387.8169 | D81: 387.823 | E81: 2.6734 | F81: 79.9
A82: S190 | B82: OC(CNc1ccc(Br)cc1)Cn2c3ccccc3c4ccccc24 | C82: 395.2923 | D82: 395.3 | E82: 5.03 | F82: 37.19
A83: S191 | B83: COCCN(Cc1ccc(OCC(O)CN(C)Cc2ccccc2)cc1)C(C)C | C83: 400.5542 | D83: 400.563 | E83: 3.4151 | F83: 45.17
A84: S192 | B84: CCOC(=O)N1CCN(CC1)C(=O)C2=NN(C(=O)C=C2OC)c3ccc(F)cc3 | C84: 404.3922 | D84: 404.398 | E84: 1.2945 | F84: 93.97
A85: S193 | B85: Cc1ccc(NC(=O)c2cn(C)c3C(=O)N(C(=O)Nc23)c4ccc(F)cc4)c(C)c1 | C85: 406.4096 | D85: 406.417 | E85: 3.02574 | F85: 88.89
A86: S194 | B86: Cc1onc(c2ccccc2Cl)c1C(=O)NCc3nnnn3c4ccc(F)cc4 | C86: 412.8048 | D86: 412.812 | E86: 3.34822 | F86: 98.73
A87: S195 | B87: CCOc1ccc2nc(NC(=O)NC3CN(C(=O)C3)c4ccc(F)cc4)sc2c1 | C87: 414.4532 | D87: 414.462 | E87: 3.7611 | F87: 83.56
A88: S196 | B88: COc1ccc2sc(nc2c1)N(CCN(C)C)C(=O)c3ccc(cc3)C#N | C88: 415.916549 | D88: 380.473 | E88: 3.38498 | F88: 69.46
A89: S197 | B89: FC(F)(F)c1ccccc1C2CC(=O)NC3=C2C(=O)CC(C3)c4ccccc4Cl | C89: 419.824 | D89: 419.83 | E89: 5.3631 | F89: 46.17
A90: S198 | B90: COc1ccc(OC)c(NC(=O)CSc2nc(ns2)c3ccccc3Cl)c1 | C90: 421.9209 | D90: 421.931 | E90: 4.6065 | F90: 73.34
A91: S199 | B91: CS(=O)(=O)N(CC(O)Cn1c2ccccc2c3ccccc13)c4ccc(Cl)cc4 | C91: 428.9317 | D91: 428.941 | E91: 4.275 | F91: 62.54
A92: S200 | B92: CCS(=O)(=O)N1CCCc2cc(NS(=O)(=O)c3ccc(F)c(Cl)c3)ccc12 | C92: 432.9172 | D92: 432.926 | E92: 3.3822 | F92: 83.55
A93: S201 | B93: CN(C)CCN(C(=O)c1ccc2CCCCc2c1)c3nc4c(F)cccc4s3 | C93: 432.962952 | D93: 397.519 | E93: 4.5226 | F93: 36.44
A94: S202 | B94: CCOc1cc(ccc1O)C2CC(=O)NC3=C2C(=O)CC(C3)c4ccc(OC)c(OC)c4 | C94: 437.4849 | D94: 437.492 | E94: 3.8124 | F94: 94.09
A95: S203 | B95: COc1ccc(cc1OC)N2CC(CC2=O)NC(=O)N3CCN(CC3)c4ccccc4F | C95: 442.4832 | D95: 442.491 | E95: 2.48 | F95: 74.35
A96: S204 | B96: NC(=O)C1CCN(CC1)c2ccc3cccc(OCC(=O)Nc4ccc(cc4)C(=O)N)c3n2 | C96: 447.4864 | D96: 447.495 | E96: 2.0529 | F96: 140.64
A97: S205 | B97: CCN(CC)C(=O)CSc1nc2cc(OC)c(OC)cc2c3nc(nn13)c4ccccc4 | C97: 451.5413 | D97: 451.552 | E97: 3.9222 | F97: 81.85
A98: S206 | B98: COc1ccc(OC)c(NC(=O)C2C(N(CC(C)C)C(=O)c3ccccc23)c4cccs4)c1 | C98: 464.5765 | D98: 464.587 | E98: 5.3407 | F98: 67.87
A99: S207 | B99: CCCN1C=C(C(=O)N2CCN(CC2)c3ccccc3OC)C4=NN(C(=O)C4=C1)c5ccccc5 | C99: 471.5508 | D99: 471.561 | E99: 3.5198 | F99: 72.6
A100: S208 | B100: CCS(=O)(=O)c1ccc(nn1)c2cccc(NC(=O)c3ccc(cc3)S(=O)(=O)N(C)C)c2 | C100: 474.5531 | D100: 474.564 | E100: 2.4398 | F100: 126.4
A101: S209 | B101: CN1C(=O)N(C)c2c(C1=O)n(CCCc3ccccc3)c4nnc(c5ccc(Br)cc5)n24 | C101: 493.3558 | D101: 493.365 | E101: 3.1437 | F101: 79.12
A102: S210 | B102: COCCN1C(=O)C2=C(CC(C)S2)N=C1SCC(=O)Nc3cc(ccc3Cl)C(F)(F)F | C102: 493.9506 | D102: 493.96 | E102: 4.3294 | F102: 73.22

Sheet 6
A1: Data associated with Extended Data Fig 3e
A14: ID | B14: Exact mass | C14: NL (Da) | D14: CE (V) | E14: Exact mass | F14: MW + Salt | G14: Formula | H14: Monoisotopic Mass | I14: Charge State | J14: Selected Tune | K14: Tune Result | L14: Polarity | M14: Q1 | N14: Q1 Intensity | O14: DP | P14: DP Intensity | Q14: EP | R14: Q3 Mass 1 | S14: NL (Da) | T14: Q3 Intensity 1 | U14: CE 1 | V14: CE Intensity 1 | W14: CXP 1 | X14: CXP Intensity 1 | Y14: Q3 Mass 2 | Z14: NL (Da) | AA14: Q3 Intensity 2 | AB14: CE 2 | AC14: CE Intensity 2 | AD14: CXP 2 | AE14: CXP Intensity 2
A15: S6 | B15: 384.17 | C15: =S15 -> 86 | D15: =U15 -> 31 | E15: 384.17 | F15: 385.17 | G15: C17H21BN6O4 | H15: 384.175 | I15: 1 | J15: FineTune + | K15: Pass | L15: Positive | M15: 385.203 | N15: 3.1E+07 | O15: 110 | P15: 3.9E+07 | Q15: 10 | R15: 299.559 | S15: 86 | T15: 1.4E+07 | U15: 31 | V15: 1.4E+07 | W15: 9 | X15: 1.4E+07 | Y15: 200.455 | Z15: =M15-Y15 -> 185 | AA15: 1.1E+07 | AB15: 59 | AC15: 1.1E+07 | AD15: 12 | AE15: 1.1E+07
A16: S7 | B16: 403.15 | C16: 86 | D16: =U16 -> 35 | E16: 403.15 | F16: 404.15 | G16: C17H22BN5O4S | H16: 403.152 | I16: 1 | J16: FineTune + | K16: Pass | L16: Positive | M16: 404.173 | N16: 4.7E+07 | O16: 120 | P16: 6.1E+07 | Q16: 10 | R16: 318.527 | S16: 86 | T16: 2.6E+07 | U16: 35 | V16: 2.6E+07 | W16: 9 | X16: 2.7E+07 | Y16: 219.455 | Z16: 185 | AA16: 2.1E+07 | AB16: 58 | AC16: 2.1E+07 | AD16: 12 | AE16: 1.9E+07
A17: S8 | B17: 440.19 | C17: 86 | D17: 38 | E17: 440.19 | F17: 441.19 | G17: C21H25BN4O6 | H17: 440.191 | I17: 1 | J17: FineTune + | K17: Pass | L17: Positive | M17: 441.219 | N17: 4.0E+07 | O17: 50 | P17: 5.0E+07 | Q17: 10 | R17: 355.553 | S17: 86 | T17: 2.1E+07 | U17: 38 | V17: 2.1E+07 | W17: 7 | X17: 2.0E+07 | Y17: 210.472 | Z17: 231 | AA17: 1.1E+07 | AB17: 77 | AC17: 1.1E+07 | AD17: 11 | AE17: 1.1E+07
A18: S9 | B18: 447.21 | C18: =Z18 -> 86 | D18: 39 | E18: 447.21 | F18: 448.21 | G18: C23H26BN5O4 | H18: 447.212 | I18: 1 | J18: FineTune + | K18: Pass | L18: Positive | M18: 448.221 | N18: 5.6E+07 | O18: 80 | P18: 7.0E+07 | Q18: 10 | R18: 263.519 | S18: 185 | T18: 3.2E+07 | U18: 39 | V18: 3.2E+07 | W18: 15 | X18: 2.6E+07 | Y18: 362.6 | Z18: 86 | AA18: 3.1E+07 | AB18: 39 | AC18: 3.1E+07 | AD18: 11 | AE18: 2.9E+07
A19: S10 | B19: 454.20 | C19: =S19 -> 86 | D19: 35 | E19: 454.20 | F19: 455.20 | G19: C22H27BN4O6 | H19: 454.207 | I19: 1 | J19: FineTune + | K19: Pass | L19: Positive | M19: 455.213 | N19: 5.4E+07 | O19: 120 | P19: 6.7E+07 | Q19: 10 | R19: 369.582 | S19: 86 | T19: 2.9E+07 | U19: 35 | V19: 2.9E+07 | W19: 11 | X19: 2.7E+07 | Y19: 270.511 | Z19: 185 | AA19: 3.9E+06 | AB19: 55 | AC19: 3.9E+06 | AD19: 8 | AE19: 4.2E+06
A20: S11 | B20: 495.15 | C20: 86 | D20: 37 | E20: 495.15 | F20: 496.15 | G20: C20H21BF3N5O6 | H20: 495.156 | I20: 1 | J20: FineTune + | K20: Pass | L20: Positive | M20: 496.177 | N20: 4.1E+07 | O20: 80 | P20: 4.5E+07 | Q20: 10 | R20: 410.087 | S20: 86 | T20: 3.6E+07 | U20: 37 | V20: 3.6E+07 | W20: 14 | X20: 3.8E+07 | Y20: 364.144 | Z20: 132 | AA20: 1.9E+07 | AB20: 57 | AC20: 1.9E+07 | AD20: 12 | AE20: 1.8E+07
A21: S12 | B21: 488.22 | C21: 86 | D21: 38 | E21: 488.22 | F21: 489.22 | G21: C26H29BN4O5 | H21: 488.228 | I21: 1 | J21: FineTune + | K21: Pass | L21: Positive | M21: 489.219 | N21: 5.4E+07 | O21: 80 | P21: 6.7E+07 | Q21: 10 | R21: 403.647 | S21: 86 | T21: 1.6E+07 | U21: 38 | V21: 1.6E+07 | W21: 12 | X21: 1.3E+07 | Y21: 304.553 | Z21: 185 | AA21: 9.1E+06 | AB21: 62 | AC21: 9.1E+06 | AD21: 9 | AE21: 8.3E+06
A22: S13 | B22: 532.23 | C22: 86 | D22: 35 | E22: 532.23 | F22: 533.23 | G22: C24H34BN4O7P | H22: 532.232 | I22: 1 | J22: FineTune + | K22: Pass | L22: Positive | M22: 533.214 | N22: 6.4E+07 | O22: 50 | P22: 7.8E+07 | Q22: 10 | R22: 447.603 | S22: 86 | T22: 3.2E+07 | U22: 35 | V22: 3.2E+07 | W22: 13 | X22: 3.3E+07 | Y22: 309.449 | Z22: 224 | AA22: 3.1E+07 | AB22: 60 | AC22: 3.1E+07 | AD22: 9 | AE22: 2.8E+07
A23: S14 | B23: 390.13 | C23: 86 | D23: 34 | E23: 390.13 | F23: 391.13 | G23: C15H19BN6O4S | H23: 390.131 | I23: 1 | J23: FineTune + | K23: Pass | L23: Positive | M23: 391.169 | N23: 3.6E+07 | O23: 110 | P23: 4.3E+07 | Q23: 10 | R23: 305.515 | S23: 86 | T23: 1.5E+07 | U23: 34 | V23: 1.5E+07 | W23: 9 | X23: 1.5E+07 | Y23: 206.421 | Z23: 185 | AA23: 9.3E+06 | AB23: 59 | AC23: 9.3E+06 | AD23: 12 | AE23: 8.5E+06
A24: S15 | B24: 523.17 | C24: 86 | D24: 42 | E24: 523.17 | F24: 524.17 | G24: C24H26BN5O6S | H24: 523.174 | I24: 1 | J24: FineTune + | K24: Pass | L24: Positive | M24: 524.188 | N24: 3.8E+07 | O24: 50 | P24: 4.5E+07 | Q24: 10 | R24: 438.092 | S24: 86 | T24: 3.6E+07 | U24: 42 | V24: 3.6E+07 | W24: 14 | X24: 3.7E+07 | Y24: 339.091 | Z24: 185 | AA24: 3.3E+07 | AB24: 67 | AC24: 3.3E+07 | AD24: 21 | AE24: 3.0E+07
A25: S16 | B25: 477.18 | C25: 86 | D25: 37 | E25: 477.18 | F25: 478.18 | G25: C23H24BN5O6 | H25: 477.186 | I25: 1 | J25: FineTune + | K25: Pass | L25: Positive | M25: 478.218 | N25: 3.7E+07 | O25: 50 | P25: 4.7E+07 | Q25: 10 | R25: 392.141 | S25: 86 | T25: 3.4E+07 | U25: 37 | V25: 3.4E+07 | W25: 13 | X25: 3.6E+07 | Y25: 246.118 | Z25: 232 | AA25: 2.4E+07 | AB25: 88 | AC25: 2.4E+07 | AD25: 14 | AE25: 2.1E+07
A26: S17 | B26: 398.18 | C26: 86 | D26: 39 | E26: 398.18 | F26: 399.18 | G26: C21H24BFN2O4 | H26: 398.185 | I26: 1 | J26: FineTune + | K26: Pass | L26: Positive | M26: 399.223 | N26: 3.0E+07 | O26: 120 | P26: 4.1E+07 | Q26: 10 | R26: 313.562 | S26: 86 | T26: 1.2E+07 | U26: 39 | V26: 1.2E+07 | W26: 9 | X26: 1.3E+07 | Y26: 214.471 | Z26: 185 | AA26: 7.2E+06 | AB26: 59 | AC26: 7.2E+06 | AD26: 14 | AE26: 6.5E+06
A27: S18 | B27: 425.18 | C27: 86 | D27: 33 | E27: 425.18 | F27: 426.18 | G27: C21H24BN3O6 | H27: 425.18 | I27: 1 | J27: FineTune + | K27: Pass | L27: Positive | M27: 426.199 | N27: 5.9E+06 | O27: 110 | P27: 7.5E+06 | Q27: 10 | R27: 340.564 | S27: 86 | T27: 1.0E+06 | U27: 33 | V27: 1.0E+06 | W27: 10 | X27: 1.0E+06 | Y27: 184.514 | Z27: 242 | AA27: 7.4E+05 | AB27: 28 | AC27: 7.4E+05 | AD27: 10 | AE27: 6.4E+05
A28: S19 | B28: 422.24 | C28: 86 | D28: 39 | E28: 422.24 | F28: 423.24 | G28: C24H31BN2O4 | H28: 422.243 | I28: 1 | J28: FineTune + | K28: Pass | L28: Positive | M28: 423.277 | N28: 5.0E+07 | O28: 120 | P28: 6.3E+07 | Q28: 10 | R28: 337.607 | S28: 86 | T28: 2.7E+07 | U28: 39 | V28: 2.7E+07 | W28: 10 | X28: 2.2E+07 | Y28: 238.563 | Z28: 185 | AA28: 7.8E+06 | AB28: 58 | AC28: 7.8E+06 | AD28: 14 | AE28: 7.3E+06
A29: S20 | B29: 434.16 | C29: 86 | D29: 40 | E29: 434.16 | F29: 435.16 | G29: C21H22BF3N2O4 | H29: 434.165 | I29: 1 | J29: FineTune + | K29: Pass | L29: Positive | M29: 435.183 | N29: 9.0E+06 | O29: 100 | P29: 1.0E+07 | Q29: 10 | R29: 349.55 | S29: 86 | T29: 3.0E+06 | U29: 40 | V29: 3.0E+06 | W29: 11 | X29: 2.9E+06 | Y29: 250.484 | Z29: 185 | AA29: 1.1E+06 | AB29: 60 | AC29: 1.1E+06 | AD29: 20 | AE29: 1.1E+06
A30: S21 | B30: 440.26 | C30: 56 | E30: 440.26 | F30: 441.26 | G30: C23H33BN4O4 | H30: 440.265 | I30: 1 | J30: FineTune + | K30: Pass | L30: Positive | M30: 441.287 | N30: 5.8E+07 | O30: 100 | P30: 7.2E+07 | Q30: 10 | R30: 385.612 | S30: 56 | T30: 4.0E+07 | U30: 27 | V30: 4.0E+07 | W30: 8 | X30: 3.9E+07 | Y30: 299.558 | Z30: 142 | AA30: 3.3E+07 | AB30: 41 | AC30: 3.3E+07 | AD30: 9 | AE30: 3.4E+07
A31: S22 | B31: 457.22 | C31: 86 | D31: =U31 -> 40 | E31: 457.22 | F31: 458.22 | G31: C26H28BN3O4 | H31: 457.222 | I31: 1 | J31: FineTune + | K31: Pass | L31: Positive | M31: 458.213 | N31: 6.5E+07 | O31: 70 | P31: 7.8E+07 | Q31: 10 | R31: 372.618 | S31: 86 | T31: 3.5E+07 | U31: 40 | V31: 3.5E+07 | W31: 11 | X31: 3.0E+07 | Y31: 273.52 | Z31: 185 | AA31: 3.0E+07 | AB31: 66 | AC31: 3.0E+07 | AD31: 8 | AE31: 2.2E+07
A32: S23 | B32: 401.16 | C32: 86 | D32: =U32 -> 35 | E32: 401.16 | F32: 402.16 | G32: C19H24BN3O4S | H32: 401.162 | I32: 1 | J32: FineTune + | K32: Pass | L32: Positive | M32: 402.194 | N32: 5.4E+07 | O32: 70 | P32: 8.1E+07 | Q32: 10 | R32: 316.55 | S32: 86 | T32: 2.8E+07 | U32: 35 | V32: 2.8E+07 | W32: 9 | X32: 3.0E+07 | Y32: 217.445 | Z32: 185 | AA32: 2.6E+07 | AB32: 60 | AC32: 2.6E+07 | AD32: 14 | AE32: 2.4E+07
A33: S24 | B33: 382.18 | C33: 86 | D33: =U33 -> 33 | E33: 382.18 | F33: 383.18 | G33: C19H23BN4O4 | H33: 382.185 | I33: 1 | J33: FineTune + | K33: Pass | L33: Positive | M33: 383.21 | N33: 4.1E+07 | O33: 120 | P33: 4.8E+07 | Q33: 10 | R33: 297.551 | S33: 86 | T33: 1.4E+07 | U33: 33 | V33: 1.4E+07 | W33: 9 | X33: 1.3E+07 | Y33: 198.489 | Z33: 185 | AA33: 7.8E+06 | AB33: 57 | AC33: 7.8E+06 | AD33: 11 | AE33: 7.8E+06
A34: S25 | B34: 530.24 | C34: 224 | E34: 530.24 | F34: 531.24 | G34: C26H36BN2O7P | H34: 530.242 | I34: 1 | J34: FineTune + | K34: Pass | L34: Positive | M34: 531.225 | N34: 5.9E+07 | O34: 80 | P34: 7.4E+07 | Q34: 10 | R34: 307.526 | S34: 224 | T34: 2.5E+07 | U34: 58 | V34: 2.5E+07 | W34: 9 | X34: 2.6E+07 | Y34: 208.495 | Z34: 323 | AA34: 2.1E+07 | AB34: 92 | AC34: 2.1E+07 | AD34: 12 | AE34: 1.3E+07
A35: S26 | B35: 452.21 | C35: =S35 -> 86 | D35: =U35 -> 39 | E35: 452.21 | F35: 453.21 | G35: C24H29BN2O6 | H35: 452.217 | I35: 1 | J35: FineTune + | K35: Pass | L35: Positive | M35: 453.223 | N35: 1.9E+07 | O35: 110 | P35: 2.2E+07 | Q35: 10 | R35: 367.586 | S35: 86 | T35: 7.8E+06 | U35: 39 | V35: 7.8E+06 | W35: 10 | X35: 7.4E+06 | Y35: 339.578 | Z35: 114 | AA35: 1.2E+06 | AB35: 52 | AC35: 1.2E+06 | AD35: 10 | AE35: 1.1E+06
A36: S27 | B36: 485.22 | C36: =Z36 -> 86 | D36: =AB36 -> 35 | E36: 485.22 | F36: 486.22 | G36: C26H28BN5O4 | H36: 485.228 | I36: 1 | J36: FineTune + | K36: Pass | L36: Positive | M36: 486.232 | N36: 4.8E+07 | O36: 70 | P36: 5.6E+07 | Q36: 10 | R36: 301.561 | S36: 185 | T36: 4.2E+06 | U36: 35 | V36: 4.2E+06 | W36: 24 | X36: 4.5E+06 | Y36: 400.665 | Z36: 86 | AA36: 4.2E+06 | AB36: 35 | AC36: 4.2E+06 | AD36: 12 | AE36: 4.2E+06
A37: S28 | B37: 449.17 | C37: =S37 -> 86 | D37: =AB36 -> 35 | E37: 449.17 | F37: 450.17 | G37: C21H23BF3N3O4 | H37: 449.176 | I37: 1 | J37: FineTune + | K37: Pass | L37: Positive | M37: 450.178 | N37: 6.0E+07 | O37: 80 | P37: 7.9E+07 | Q37: 10 | R37: 364.562 | S37: 86 | T37: 3.3E+07 | U37: 38 | V37: 3.3E+07 | W37: 11 | X37: 3.2E+07 | Y37: 265.464 | Z37: 185 | AA37: 2.7E+07 | AB37: 65 | AC37: 2.7E+07 | AD37: 18 | AE37: 2.4E+07
A38: S29 | B38: 465.24 | C38: 86 | D38: =U38 -> 39 | E38: 465.24 | F38: 466.24 | G38: C25H32BN3O5 | H38: 465.249 | I38: 1 | J38: FineTune + | K38: Pass | L38: Positive | M38: 466.248 | N38: 5.6E+07 | O38: 110 | P38: 7.0E+07 | Q38: 10 | R38: 380.638 | S38: 86 | T38: 1.5E+07 | U38: 39 | V38: 1.5E+07 | W38: 11 | X38: 1.1E+07 | Y38: 235.523 | Z38: 231 | AA38: 2.8E+06 | AB38: 61 | AC38: 2.8E+06 | AD38: 18 | AE38: 2.6E+06
A39: S30 | B39: 521.18 | C39: =Z39 -> 86 | D39: =AB39 -> 42 | E39: 521.18 | F39: 522.18 | G39: C26H28BN3O6S | H39: 521.184 | I39: 1 | J39: FineTune + | K39: Pass | L39: Positive | M39: 522.172 | N39: 5.9E+07 | O39: 100 | P39: 7.1E+07 | Q39: 10 | R39: 337.484 | S39: 185 | T39: 2.3E+07 | U39: 42 | V39: 2.3E+07 | W39: 10 | X39: 1.8E+07 | Y39: 436.592 | Z39: 86 | AA39: 2.0E+07 | AB39: 42 | AC39: 2.0E+07 | AD39: 13 | AE39: 2.2E+07
A40: S31 | B40: 434.16 | C40: =S40 -> 86 | D40: =U40 -> 38 | E40: 434.16 | F40: 435.16 | G40: C21H22BF3N2O4 | H40: 434.165 | I40: 1 | J40: FineTune + | K40: Pass | L40: Positive | M40: 435.21 | N40: 1.2E+07 | O40: 130 | P40: 1.4E+07 | Q40: 10 | R40: 349.141 | S40: 86 | T40: 1.1E+07 | U40: 38 | V40: 1.1E+07 | W40: 11 | X40: 1.1E+07 | Y40: 250.126 | Z40: 185 | AA40: 3.4E+06 | AB40: 58 | AC40: 3.4E+06 | AD40: 14 | AE40: 3.3E+06
A41: S32 | B41: 445.22 | C41: =S41 -> 86 | D41: =U41 -> 40 | E41: 445.22 | F41: 446.22 | G41: C25H28BN3O4 | H41: 445.222 | I41: 1 | J41: FineTune + | K41: Pass | L41: Positive | M41: 446.262 | N41: 2.5E+07 | O41: 90 | P41: 2.9E+07 | Q41: 10 | R41: 360.201 | S41: 86 | T41: 2.0E+07 | U41: 40 | V41: 2.0E+07 | W41: 12 | X41: 1.8E+07 | Y41: 158.048 | Z41: 288 | AA41: 4.7E+06 | AB41: 71 | AC41: 4.7E+06 | AD41: 9 | AE41: 4.7E+06
A42: S33 | B42: 521.18 | C42: 86 | D42: 44 | E42: 521.18 | F42: 522.18 | G42: C26H28BN3O6S | H42: 521.184 | I42: 1 | J42: FineTune + | K42: Pass | L42: Positive | M42: 522.202 | N42: 3.1E+07 | O42: 50 | P42: 3.8E+07 | Q42: 10 | R42: 436.112 | S42: 86 | T42: 2.8E+07 | U42: 44 | V42: 2.8E+07 | W42: 14 | X42: 3.0E+07 | Y42: 337.095 | Z42: 185 | AA42: 2.4E+07 | AB42: 67 | AC42: 2.4E+07 | AD42: 18 | AE42: 2.1E+07
A43: S34 | B43: 426.24 | C43: 86 | D43: 40 | E43: 426.24 | F43: 427.24 | G43: C22H31BN4O4 | H43: 426.249 | I43: 1 | J43: FineTune + | K43: Pass | L43: Positive | M43: 427.22 | N43: 3.6E+07 | O43: 50 | P43: 4.2E+07 | Q43: 10 | R43: 341.235 | S43: 86 | T43: 3.2E+07 | U43: 40 | V43: 3.2E+07 | W43: 6 | X43: 3.2E+07 | Y43: 242.196 | Z43: 185 | AA43: 2.0E+07 | AB43: 59 | AC43: 2.0E+07 | AD43: 14 | AE43: 2.0E+07
A44: S35 | B44: 493.16 | C44: 86 | D44: 38 | E44: 493.16 | F44: 494.16 | G44: C22H23BF3N3O6 | H44: 493.166 | I44: 1 | J44: FineTune + | K44: Pass | L44: Positive | M44: 494.189 | N44: 4.7E+06 | O44: 120 | P44: 5.8E+06 | Q44: 10 | R44: 408.106 | S44: 86 | T44: 1.3E+06 | U44: 38 | V44: 1.3E+06 | W44: 13 | X44: 1.4E+06 | Y44: 388.127 | Z44: 106 | AA44: 1.2E+06 | AB44: 38 | AC44: 1.2E+06 | AD44: 13 | AE44: 1.2E+06
A45: S36 | B45: 415.15 | C45: 86 | D45: 35 | E45: 415.15 | F45: 416.15 | G45: C20H23BClN3O4 | H45: 415.151 | I45: 1 | J45: FineTune + | K45: Pass | L45: Positive | M45: 416.175 | N45: 4.5E+07 | O45: 120 | P45: 5.6E+07 | Q45: 10 | R45: 330.526 | S45: 86 | T45: 2.5E+07 | U45: 35 | V45: 2.5E+07 | W45: 10 | X45: 2.5E+07 | Y45: 231.448 | Z45: 185 | AA45: 1.6E+07 | AB45: 62 | AC45: 1.6E+07 | AD45: 12 | AE45: 1.4E+07
A46: S37 | B46: 426.17 | C46: 86 | D46: 34 | E46: 426.17 | F46: 427.17 | G46: C20H23BN4O6 | H46: 426.175 | I46: 1 | J46: FineTune + | K46: Pass | L46: Positive | M46: 427.195 | N46: 4.3E+07 | O46: 120 | P46: 5.5E+07 | Q46: 10 | R46: 341.543 | S46: 86 | T46: 2.5E+07 | U46: 34 | V46: 2.5E+07 | W46: 10 | X46: 2.4E+07 | Y46: 195.459 | Z46: 232 | AA46: 1.3E+07 | AB46: 95 | AC46: 1.3E+07 | AD46: 17 | AE46: 6.8E+06
A47: S38 | B47: 409.22 | C47: 86 | D47: 35 | E47: 409.22 | F47: 410.22 | G47: C22H28BN3O4 | H47: 409.222 | I47: 1 | J47: FineTune + | K47: Pass | L47: Positive | M47: 410.23 | N47: 5.8E+07 | O47: 50 | P47: 7.4E+07 | Q47: 10 | R47: 324.59 | S47: 86 | T47: 4.3E+07 | U47: 35 | V47: 4.3E+07 | W47: 9 | X47: 4.4E+07 | Y47: 225.486 | Z47: 185 | AA47: 3.9E+07 | AB47: 60 | AC47: 3.9E+07 | AD47: 14 | AE47: 3.5E+07
A48: S39 | B48: 435.16 | C48: 86 | D48: 36 | E48: 435.16 | F48: 436.16 | G48: C20H21BF3N3O4 | H48: 435.16 | I48: 1 | J48: FineTune + | K48: Pass | L48: Positive | M48: 436.186 | N48: 5.2E+07 | O48: 120 | P48: 6.2E+07 | Q48: 10 | R48: 350.529 | S48: 86 | T48: 3.1E+07 | U48: 36 | V48: 3.1E+07 | W48: 10 | X48: 2.9E+07 | Y48: 251.448 | Z48: 185 | AA48: 1.9E+07 | AB48: 66 | AC48: 1.9E+07 | AD48: 7 | AE48: 1.5E+07
A49: S40 | B49: 383.18 | C49: 86 | D49: 34 | E49: 383.18 | F49: 384.18 | G49: C18H22BN5O4 | H49: 383.18 | I49: 1 | J49: FineTune + | K49: Pass | L49: Positive | M49: 384.199 | N49: 4.4E+07 | O49: 120 | P49: 5.8E+07 | Q49: 10 | R49: 298.562 | S49: 86 | T49: 2.1E+07 | U49: 34 | V49: 2.1E+07 | W49: 9 | X49: 2.3E+07 | Y49: 199.463 | Z49: 185 | AA49: 2.0E+07 | AB49: 61 | AC49: 2.0E+07 | AD49: 11 | AE49: 1.8E+07
A50: S41 | B50: 531.23 | C50: 86 | D50: 39 | E50: 531.23 | F50: 532.23 | G50: C25H35BN3O7P | H50: 531.237 | I50: 1 | J50: FineTune + | K50: Pass | L50: Positive | M50: 532.222 | N50: 6.2E+07 | O50: 70 | P50: 7.7E+07 | Q50: 10 | R50: 446.654 | S50: 86 | T50: 1.8E+07 | U50: 39 | V50: 1.8E+07 | W50: 13 | X50: 2.0E+07 | Y50: 308.621 | Z50: 224 | AA50: 8.8E+06 | AB50: 61 | AC50: 8.8E+06 | AD50: 26 | AE50: 9.5E+06
A51: S42 | B51: 518.22 | C51: 86 | D51: 48 | E51: 518.22 | F51: 519.22 | G51: C27H31BN4O4S | H51: 518.221 | I51: 1 | J51: FineTune + | K51: Pass | L51: Positive | M51: 519.226 | N51: 3.9E+07 | O51: 190 | P51: 4.3E+07 | Q51: 10 | R51: 433.105 | S51: 86 | T51: 3.6E+07 | U51: 48 | V51: 3.6E+07 | W51: 15 | X51: 3.7E+07 | Y51: 334.128 | Z51: 185 | AA51: 3.5E+07 | AB51: 69 | AC51: 3.5E+07 | AD51: 20 | AE51: 3.4E+07
A52: S43 | B52: 494.16 | C52: 86 | D52: 43 | E52: 494.16 | F52: 495.16 | G52: C21H22BF3N4O6 | H52: 494.161 | I52: 1 | J52: FineTune + | K52: Pass | L52: Positive | M52: 495.175 | N52: 3.7E+07 | O52: 60 | P52: 4.5E+07 | Q52: 10 | R52: 409.093 | S52: 86 | T52: 3.4E+07 | U52: 43 | V52: 3.4E+07 | W52: 8 | X52: 3.5E+07 | Y52: 363.152 | Z52: 132 | AA52: 2.8E+07 | AB52: 57 | AC52: 2.8E+07 | AD52: 12 | AE52: 2.7E+07
A53: S44 | B53: 476.19 | C53: 86 | D53: 40 | E53: 476.19 | F53: 477.19 | G53: C24H25BN4O6 | H53: 476.191 | I53: 1 | J53: FineTune + | K53: Pass | L53: Positive | M53: 477.217 | N53: 3.6E+07 | O53: 50 | P53: 4.3E+07 | Q53: 10 | R53: 391.147 | S53: 86 | T53: 3.3E+07 | U53: 40 | V53: 3.3E+07 | W53: 13 | X53: 3.4E+07 | Y53: 245.11 | Z53: 232 | AA53: 2.8E+07 | AB53: 92 | AC53: 2.8E+07 | AD53: 14 | AE53: 2.4E+07
A54: S45 | B54: 520.23 | C54: 86 | D54: 49 | E54: 520.23 | F54: 521.23 | G54: C27H33BN4O4S | H54: 520.237 | I54: 1 | J54: FineTune + | K54: Pass | L54: Positive | M54: 521.257 | N54: 4.0E+07 | O54: 50 | P54: 4.2E+07 | Q54: 10 | R54: 435.118 | S54: 86 | T54: 3.7E+07 | U54: 49 | V54: 3.7E+07 | W54: 1 | X54: 3.7E+07 | Y54: 336.154 | Z54: 185 | AA54: 3.5E+07 | AB54: 67 | AC54: 3.5E+07 | AD54: 19 | AE54: 3.2E+07
A55: S46 | B55: 494.16 | C55: 86 | D55: 41 | E55: 494.16 | F55: 495.16 | G55: C21H22BF3N4O6 | H55: 494.161 | I55: 1 | J55: FineTune + | K55: Pass | L55: Positive | M55: 495.316 | N55: 3.7E+07 | O55: 50 | P55: 4.2E+07 | Q55: 10 | R55: 409.072 | S55: 86 | T55: 3.4E+07 | U55: 41 | V55: 3.4E+07 | W55: 1 | X55: 3.4E+07 | Y55: 363.149 | Z55: 132 | AA55: 2.8E+07 | AB55: 57 | AC55: 2.8E+07 | AD55: 12 | AE55: 2.7E+07
A56: S47 | B56: 476.19 | C56: 86 | D56: 39 | E56: 476.19 | F56: 477.19 | G56: C24H25BN4O6 | H56: 476.191 | I56: 1 | J56: FineTune + | K56: Pass | L56: Positive | M56: 477.18 | N56: 3.5E+07 | O56: 50 | P56: 4.2E+07 | Q56: 10 | R56: 391.136 | S56: 86 | T56: 3.2E+07 | U56: 39 | V56: 3.2E+07 | W56: 14 | X56: 3.3E+07 | Y56: 245.126 | Z56: 232 | AA56: 3.0E+07 | AB56: 90 | AC56: 3.0E+07 | AD56: 14 | AE56: 2.7E+07
A57: S48 | B57: 464.20 | C57: 86 | D57: 34 | E57: 464.20 | F57: 465.20 | G57: C24H26BFN4O4 | H57: 464.207 | I57: 1 | J57: FineTune + | K57: Pass | L57: Positive | M57: 465.191 | N57: 2.2E+07 | O57: 120 | P57: 2.8E+07 | Q57: 10 | R57: 379.582 | S57: 86 | T57: 9.8E+06 | U57: 34 | V57: 9.8E+06 | W57: 11 | X57: 9.5E+06 | Y57: 280.492 | Z57: 185 | AA57: 4.0E+06 | AB57: 61 | AC57: 4.0E+06 | AD57: 8 | AE57: 3.6E+06
A58: S49 | B58: 536.21 | C58: 86 | D58: 46 | E58: 536.21 | F58: 537.21 | G58: C27H30BFN4O4S | H58: 536.211 | I58: 1 | J58: FineTune + | K58: Pass | L58: Positive | M58: 537.201 | N58: 3.9E+07 | O58: 110 | P58: 4.5E+07 | Q58: 10 | R58: 451.651 | S58: 86 | T58: 6.6E+06 | U58: 46 | V58: 6.6E+06 | W58: 14 | X58: 7.9E+06 | Y58: 352.545 | Z58: 185 | AA58: 6.1E+06 | AB58: 70 | AC58: 6.1E+06 | AD58: 10 | AE58: 5.2E+06
A59: S50 | B59: 538.22 | C59: 86 | D59: 42 | E59: 538.22 | F59: 539.22 | G59: C27H32BFN4O4S | H59: 538.227 | I59: 1 | J59: FineTune + | K59: Pass | L59: Positive | M59: 539.224 | N59: 4.3E+07 | O59: 100 | P59: 4.9E+07 | Q59: 10 | R59: 453.655 | S59: 86 | T59: 7.7E+06 | U59: 42 | V59: 7.7E+06 | W59: 14 | X59: 8.4E+06 | Y59: 397.619 | Z59: 142 | AA59: 2.2E+06 | AB59: 59 | AC59: 2.2E+06 | AD59: 12 | AE59: 2.2E+06
A60: S51 | B60: 540.17 | C60: 86 | D60: 42 | E60: 540.17 | F60: 541.17 | G60: C25H26BFN4O6S | H60: 540.169 | I60: 1 | J60: FineTune + | K60: Pass | L60: Positive | M60: 541.169 | N60: 4.4E+07 | O60: 100 | P60: 5.2E+07 | Q60: 10 | R60: 455.584 | S60: 86 | T60: 1.0E+07 | U60: 42 | V60: 1.0E+07 | W60: 14 | X60: 9.7E+06 | Y60: 356.496 | Z60: 185 | AA60: 7.2E+06 | AB60: 66 | AC60: 7.2E+06 | AD60: 11 | AE60: 5.1E+06
A61: S52 | B61: 512.15 | C61: 86 | D61: 36 | E61: 512.15 | F61: 513.15 | G61: C21H21BF4N4O6 | H61: 512.151 | I61: 1 | J61: FineTune + | K61: Pass | L61: Positive | M61: 513.131 | N61: 1.5E+07 | O61: 90 | P61: 1.8E+07 | Q61: 10 | R61: 427.531 | S61: 86 | T61: 5.2E+06 | U61: 36 | V61: 5.2E+06 | W61: 8 | X61: 5.2E+06 | Y61: 381.564 | Z61: 132 | AA61: 8.4E+05 | AB61: 56 | AC61: 8.4E+05 | AD61: 11 | AE61: 8.4E+05
A62: S53 | B62: 459.20 | C62: 86 | D62: 35 | E62: 459.20 | F62: 460.20 | G62: C22H27BFN3O6 | H62: 459.202 | I62: 1 | J62: FineTune + | K62: Pass | L62: Positive | M62: 460.208 | N62: 2.8E+07 | O62: 70 | P62: 3.7E+07 | Q62: 10 | R62: 374.541 | S62: 86 | T62: 1.5E+07 | U62: 35 | V62: 1.5E+07 | W62: 11 | X62: 1.5E+07 | Y62: 275.486 | Z62: 185 | AA62: 3.3E+06 | AB62: 58 | AC62: 3.3E+06 | AD62: 8 | AE62: 3.5E+06
A63: S54 | B63: 427.21 | C63: 86 | D63: 34 | E63: 427.21 | F63: 428.21 | G63: C22H27BFN3O4 | H63: 427.212 | I63: 1 | J63: FineTune + | K63: Pass | L63: Positive | M63: 428.233 | N63: 3.5E+07 | O63: 60 | P63: 4.1E+07 | Q63: 10 | R63: 342.595 | S63: 86 | T63: 1.4E+07 | U63: 34 | V63: 1.4E+07 | W63: 10 | X63: 1.4E+07 | Y63: 243.514 | Z63: 185 | AA63: 6.2E+06 | AB63: 57 | AC63: 6.2E+06 | AD63: 7 | AE63: 6.1E+06
A64: S55 | B64: 485.15 | C64: 86 | D64: 36 | E64: 485.15 | F64: 486.15 | G64: C21H21BF5N3O4 | H64: 485.156 | I64: 1 | J64: FineTune + | K64: Pass | L64: Positive | M64: 486.161 | N64: 3.3E+07 | O64: 120 | P64: 4.3E+07 | Q64: 10 | R64: 400.552 | S64: 86 | T64: 1.1E+07 | U64: 36 | V64: 1.1E+07 | W64: 12 | X64: 1.0E+07 | Y64: 301.46 | Z64: 185 | AA64: 4.6E+06 | AB64: 67 | AC64: 4.6E+06 | AD64: 9 | AE64: 4.3E+06
A65: S56 | B65: 427.21 | C65: 86 | D65: 34 | E65: 427.21 | F65: 428.21 | G65: C22H27BFN3O4 | H65: 427.212 | I65: 1 | J65: FineTune + | K65: Pass | L65: Positive | M65: 428.245 | N65: 3.1E+07 | O65: 120 | P65: 3.6E+07 | Q65: 10 | R65: 342.588 | S65: 86 | T65: 1.4E+07 | U65: 34 | V65: 1.4E+07 | W65: 10 | X65: 1.4E+07 | Y65: 243.537 | Z65: 185 | AA65: 5.0E+06 | AB65: 57 | AC65: 5.0E+06 | AD65: 14 | AE65: 5.1E+06
A66: S57 | B66: 550.24 | C66: 86 | D66: 43 | E66: 550.24 | F66: 551.24 | G66: C28H35BN4O5S | H66: 550.248 | I66: 1 | J66: FineTune + | K66: Pass | L66: Positive | M66: 551.246 | N66: 5.8E+07 | O66: 90 | P66: 7.4E+07 | Q66: 10 | R66: 465.665 | S66: 86 | T66: 1.6E+07 | U66: 43 | V66: 1.6E+07 | W66: 14 | X66: 1.8E+07 | Y66: 366.571 | Z66: 185 | AA66: 7.4E+06 | AB66: 66 | AC66: 7.4E+06 | AD66: 11 | AE66: 4.7E+06
A67: S58 | B67: 457.25 | C67: 86 | D67: 40 | E67: 457.25 | F67: 458.25 | G67: C22H32BN5O5 | H67: 457.255 | I67: 1 | J67: FineTune + | K67: Pass | L67: Positive | M67: 458.246 | N67: 6.8E+07 | O67: 90 | P67: 7.8E+07 | Q67: 10 | R67: 372.673 | S67: 86 | T67: 3.0E+07 | U67: 40 | V67: 3.0E+07 | W67: 11 | X67: 2.5E+07 | Y67: 273.551 | Z67: 185 | AA67: 1.7E+07 | AB67: 61 | AC67: 1.7E+07 | AD67: 8 | AE67: 1.5E+07
A68: S59 | B68: 459.20 | C68: 86 | D68: 36 | E68: 459.20 | F68: 460.20 | G68: C22H27BFN3O6 | H68: 459.202 | I68: 1 | J68: FineTune + | K68: Pass | L68: Positive | M68: 460.209 | N68: 5.9E+07 | O68: 80 | P68: 7.1E+07 | Q68: 10 | R68: 374.608 | S68: 86 | T68: 1.7E+07 | U68: 36 | V68: 1.7E+07 | W68: 11 | X68: 1.6E+07 | Y68: 346.637 | Z68: 114 | AA68: 2.5E+06 | AB68: 46 | AC68: 2.5E+06 | AD68: 19 | AE68: 2.4E+06
A69: S60 | B69: 471.22 | C69: 86 | D69: 35 | E69: 471.22 | F69: 472.22 | G69: C23H30BN3O7 | H69: 471.223 | I69: 1 | J69: FineTune + | K69: Pass | L69: Positive | M69: 472.228 | N69: 5.9E+07 | O69: 50 | P69: 7.4E+07 | Q69: 10 | R69: 386.625 | S69: 86 | T69: 1.8E+07 | U69: 35 | V69: 1.8E+07 | W69: 12 | X69: 1.7E+07 | Y69: 358.631 | Z69: 114 | AA69: 2.0E+06 | AB69: 47 | AC69: 2.0E+06 | AD69: 11 | AE69: 1.8E+06
A70: S61 | B70: 439.23 | C70: 86 | D70: 37 | E70: 439.23 | F70: 440.23 | G70: C23H30BN3O5 | H70: 439.233 | I70: 1 | J70: FineTune + | K70: Pass | L70: Positive | M70: 440.23 | N70: 6.4E+07 | O70: 80 | P70: 7.8E+07 | Q70: 10 | R70: 354.635 | S70: 86 | T70: 2.7E+07 | U70: 37 | V70: 2.7E+07 | W70: 11 | X70: 2.7E+07 | Y70: 326.632 | Z70: 114 | AA70: 4.9E+06 | AB70: 46 | AC70: 4.9E+06 | AD70: 10 | AE70: 5.3E+06
A71: S62 | B71: 429.19 | C71: 86 | D71: 34 | E71: 429.19 | F71: 430.19 | G71: C21H25BFN3O5 | H71: 429.191 | I71: 1 | J71: FineTune + | K71: Pass | L71: Positive | M71: 430.213 | N71: 5.1E+07 | O71: 120 | P71: 5.8E+07 | Q71: 10 | R71: 344.558 | S71: 86 | T71: 2.3E+07 | U71: 34 | V71: 2.3E+07 | W71: 10 | X71: 2.2E+07 | Y71: 316.585 | Z71: 114 | AA71: 4.1E+06 | AB71: 46 | AC71: 4.1E+06 | AD71: 10 | AE71: 4.5E+06
A72: S63 | B72: 547.23 | C72: 86 | D72: 44 | E72: 547.23 | F72: 548.23 | G72: C29H34BN3O5S | H72: 547.237 | I72: 1 | J72: FineTune + | K72: Pass | L72: Positive | M72: 548.282 | N72: 3.5E+07 | O72: 130 | P72: 1.8E+07 | Q72: 10 | R72: 462.142 | S72: 86 | T72: 1.5E+07 | U72: 44 | V72: 1.5E+07 | W72: 15 | X72: 1.7E+07 | Y72: 363.136 | Z72: 185 | AA72: 6.1E+06 | AB72: 68 | AC72: 6.1E+06 | AD72: 12 | AE72: 4.8E+06
A73: S64 | B73: 551.19 | C73: 86 | D73: 43 | E73: 551.19 | F73: 552.19 | G73: C27H30BN3O7S | H73: 551.195 | I73: 1 | J73: FineTune + | K73: Pass | L73: Positive | M73: 552.24 | N73: 3.6E+07 | O73: 120 | P73: 2.3E+07 | Q73: 10 | R73: 466.115 | S73: 86 | T73: 1.8E+07 | U73: 43 | V73: 1.8E+07 | W73: 15 | X73: 2.0E+07 | Y73: 367.069 | Z73: 185 | AA73: 7.6E+06 | AB73: 66 | AC73: 7.6E+06 | AD73: 12 | AE73: 5.2E+06
A74: S65 | B74: 456.25 | C74: 86 | D74: 40 | E74: 456.25 | F74: 457.25 | G74: C23H33BN4O5 | H74: 456.26 | I74: 1 | J74: FineTune + | K74: Pass | L74: Positive | M74: 457.304 | N74: 3.7E+07 | O74: 90 | P74: 3.3E+07 | Q74: 10 | R74: 371.209 | S74: 86 | T74: 2.7E+07 | U74: 40 | V74: 2.7E+07 | W74: 12 | X74: 2.6E+07 | Y74: 272.185 | Z74: 185 | AA74: 1.2E+07 | AB74: 61 | AC74: 1.2E+07 | AD74: 16 | AE74: 1.1E+07

Sheet 7
A1: Data associated with Extended Data Fig 3f
C2: CE36 | H2: CE42 | N2: 4CEs | T2: Collision energy | U2: Average
A3: ID | B3: Exact mass | C3: Average of 5 replicates | D3: Stdev.p | E3: %CV | F3: Average | G3: Stdev.p | H3: Average of 5 replicates | I3: Stdev.p | J3: %CV | K3: Average | L3: Stdev.p | N3: Average of 5 replicates | O3: Stdev.p | P3: %CV | Q3: Average | R3: Stdev.p | T3: CE36 | U3: =F4 -> 2.7E+7
A4: S24 | B4: 382.1812 | C4: 17740088.26 | D4: 2786247.916 | E4: 15.70594168 | F4: =AVERAGE(C4:C63) -> 2.7E+07 | G4: =AVERAGE(D4:D63) -> 5.8E+06 | H4: 11044054.92 | I4: 2259952.451 | J4: 20.46306783 | K4: =AVERAGE(H4:H63) -> 3.0E+07 | L4: =AVERAGE(I4:I63) -> 5.5E+06 | M4: CE33 | N4: 22487067.93 | O4: 2601629.883 | P4: 11.56944912 | Q4: =AVERAGE(N4:N63) -> 3.2E+07 | R4: =AVERAGE(O4:O63) -> 7.3E+06 | T4: CE42 | U4: =K4 -> 3.0E+7
A5: S40 | B5: 383.1765 | C5: 34860826.85 | D5: 3937923.538 | E5: 11.29612776 | H5: 27582256.71 | I5: 7356611.565 | J5: 26.67153613 | N5: 37525954.74 | O5: 6987293.951 | P5: 18.61989655 | T5: 4CEs | U5: =Q4 -> 3.2E+7
A6: S6 | B6: 384.1717 | C6: 15094009.65 | D6: 2891780.227 | E6: 19.15846282 | H6: 12456998.54 | I6: 3006217.399 | J6: 24.13275871 | N6: 18788841.82 | O6: 4579406.483 | P6: 24.373011
A7: S14 | B7: 390.1282 | C7: 17791626.51 | D7: 6008447.011 | E7: 33.77120696 | H7: 15021633.06 | I7: 2345744.145 | J7: 15.61577317 | N7: 18482506.35 | O7: 3944759.894 | P7: 21.34320865
A8: S17 | B8: 398.1813 | C8: 21694957.1 | D8: 2720936.896 | E8: 12.54179432 | H8: 18807843.4 | I8: 4376013.111 | J8: 23.26695846 | N8: 23960414.03 | O8: 3183160.567 | P8: 13.28508165
A9: S23 | B9: 401.1581 | C9: 36345613.25 | D9: 8802594.892 | E9: 24.21913982 | H9: 34653711.12 | I9: 4577689.335 | J9: 13.20980982 | M9: CE36 | N9: 47126977.35 | O9: 13689859.51 | P9: 29.04888088
A10: S7 | B10: 403.1486 | C10: 26172119.45 | D10: 7539781.023 | E10: 28.80844648 | H10: 32957834.58 | I10: 6054761.152 | J10: 18.37123473 | N10: 41999901.31 | O10: 6858223.719 | P10: 16.32914246
A11: S38 | B11: 409.2173 | C11: 46503867.65 | D11: 10579868.56 | E11: 22.75051322 | H11: 38982093.45 | I11: 6741630.837 | J11: 17.2941734 | N11: 47993189.84 | O11: 14955045.24 | P11: 31.16076528
A12: S36 | B12: 415.147 | C12: 51025294.09 | D12: 9349357.279 | E12: 18.32298558 | H12: 32412834.66 | I12: 5621459.99 | J12: 17.34331492 | N12: 50736187.84 | O12: 8803079.84 | P12: 17.3506923
A13: S19 | B13: 422.2377 | C13: 30370493.89 | D13: 6252273.048 | E13: 20.58666899 | H13: 29899153.53 | I13: 7111157.39 | J13: 23.7838084 | N13: 33922776.57 | O13: 6633763.586 | P13: 19.5554853
A14: S18 | B14: 425.1758 | C14: 5066114.261 | D14: 1126426.413 | E14: 22.23452444 | H14: 2759994.175 | I14: 264373.0692 | J14: 9.578754609 | N14: 6961277.513 | O14: 1122260.226 | P14: 16.12146943
A15: S37 | B15: 426.1711 | C15: 23448660.95 | D15: 8434901.567 | E15: 35.97178357 | H15: 23125958.6 | I15: 3469399.794 | J15: 15.00218803 | N15: 28349876.13 | O15: 5236078.494 | P15: 18.46949338
A16: S34 | B16: 426.2438 | C16: 21468393.81 | D16: 4208549.632 | E16: 19.60346763 | H16: 23808969.42 | I16: 6372568.248 | J16: 26.76540986 | N16: 18581039.38 | O16: 7017843.874 | P16: 37.76884453
A17: S54 | B17: 427.2079 | C17: 28869613.24 | D17: 3186070.749 | E17: 11.03607008 | H17: 28612565.48 | I17: 6674107.491 | J17: 23.32579193 | N17: 32898237.68 | O17: 5135050.448 | P17: 15.60889218
A18: S56 | B18: 427.2079 | C18: 23833191.83 | D18: 2753443.3 | E18: 11.55297754 | H18: 28480839.65 | I18: 4837949.19 | J18: 16.98668034 | N18: 35116169.43 | O18: 5528462.773 | P18: 15.74335374
A19: S62 | B19: 429.1871 | C19: 33824350.57 | D19: 4725265.284 | E19: 13.97001037 | H19: 29314053.01 | I19: 4539982.609 | J19: 15.48739305 | N19: 44925422.58 | O19: 3605140.37 | P19: 8.024722224
A20: S20 | B20: 434.1625 | C20: 12519632.83 | D20: 1965500.622 | E20: 15.69934717 | H20: 12644342.22 | I20: 3109141.462 | J20: 24.58919102 | N20: 17123817.61 | O20: 4656614.252 | P20: 27.19378563
A21: S31 | B21: 434.1625 | C21: 20718557.13 | D21: 4380050.377 | E21: 21.14071144 | H21: 17439159.26 | I21: 5269625.084 | J21: 30.21719686 | N21: 19770474.78 | O21: 5559260.676 | P21: 28.11900442
A22: S39 | B22: 435.1577 | C22: 28967674.03 | D22: 3048649.578 | E22: 10.52431609 | H22: 28482505.79 | I22: 4765785.995 | J22: 16.73232696 | N22: 37085547.86 | O22: 8693338.59 | P22: 23.44131094
A23: S61 | B23: 439.2279 | C23: 42638061.59 | D23: 7532145.933 | E23: 17.66531041 | H23: 41630040.08 | I23: 8379721.997 | J23: 20.12902698 | N23: 51055651.71 | O23: 9680423.046 | P23: 18.96053174
A24: S8 | B24: 440.1867 | C24: 16130089.51 | D24: 2715035.786 | E24: 16.83211854 | H24: 18189070.25 | I24: 2226888.883 | J24: 12.24300557 | N24: 21124489.01 | O24: 2799700.569 | P24: 13.25334103
A25: S21 | B25: 440.2595 | C25: 6945785.328 | D25: 849213.9608 | E25: 12.22632029 | H25: 4350839.885 | I25: 1090667.754 | J25: 25.06798189 | N25: 8125661.873 | O25: 1259904.231 | P25: 15.50525053
A26: S32 | B26: 445.2173 | C26: 30429265.53 | D26: 3610730.751 | E26: 11.86598062 | H26: 32261928.91 | I26: 1896511.57 | J26: 5.878481646 | N26: 73280108.89 | O26: 85024834.69 | P26: 116.0271675
A27: S9 | B27: 447.2078 | C27: 50280157.98 | D27: 11710216.27 | E27: 23.28993531 | H27: 50884690.21 | I27: 8444350.332 | J27: 16.59507073 | N27: 47683351.39 | O27: 7495795.122 | P27: 15.71994187
A28: S28 | B28: 449.1734 | C28: 34332994.76 | D28: 10905205.92 | E28: 31.76304891 | H28: 29096556.02 | I28: 6208765.444 | J28: 21.33848913 | N28: 33464495.32 | O28: 4774752.954 | P28: 14.26811583
A29: S26 | B29: 452.2119 | C29: 24802661.28 | D29: 4227741.292 | E29: 17.04551477 | H29: 25573971.09 | I29: 2998288.56 | J29: 11.7239851 | M29: CE37 | N29: 28482243.72 | O29: 3173606.183 | P29: 11.14240231
A30: S10 | B30: 454.2024 | C30: 30536081.2 | D30: 4015809.264 | E30: 13.15103021 | H30: 21891502.96 | I30: 3445895.1 | J30: 15.74078813 | N30: 29185606.95 | O30: 6018460.186 | P30: 20.62132953
A31: S65 | B31: 456.2544 | C31: 38979328.52 | D31: 11715697.95 | E31: 30.05618207 | H31: 51060317.65 | I31: 5235556.97 | J31: 10.25367097 | N31: 45206915.65 | O31: 9556431.034 | P31: 21.1393122
A32: S22 | B32: 457.2173 | C32: 55660700.69 | D32: 6926437.602 | E32: 12.44403595 | H32: 56854154.88 | I32: 11491859.18 | J32: 20.21287486 | N32: 51630228.45 | O32: 7267650.061 | P32: 14.0763469
A33: S58 | B33: 457.2496 | C33: 48691864.55 | D33: 8732846.963 | E33: 17.93492002 | H33: 43049228.13 | I33: 4173166.479 | J33: 9.693940311 | N33: 45631011.8 | O33: 5801369.646 | P33: 12.71365551
A34: S53 | B34: 459.1977 | C34: 51996204.29 | D34: 13114475.79 | E34: 25.22198681 | H34: 43073728.31 | I34: 13205962.06 | J34: 30.65897144 | N34: 53558920.51 | O34: 7868224.253 | P34: 14.690782
A35: S59 | B35: 459.1977 | C35: 33673781.08 | D35: 5028486.619 | E35: 14.93294325 | H35: 36775319.67 | I35: 10241963.44 | J35: 27.85010036 | N35: 40448943.71 | O35: 3965263.019 | P35: 9.803131195
A36: S48 | B36: 464.2031 | C36: 22128400.89 | D36: 2785910.31 | E36: 12.58974981 | H36: 23481656.2 | I36: 4102408.075 | J36: 17.47069304 | N36: 26646968.05 | O36: 5410866.574 | P36: 20.30574947
A37: S29 | B37: 465.2435 | C37: 28675665.44 | D37: 5095407.043 | E37: 17.76909782 | H37: 45094563.03 | I37: 8569362.672 | J37: 19.00309504 | N37: 39954485.97 | O37: 4877699.751 | P37: 12.20814042
A38: S60 | B38: 471.2177 | C38: 39767759.34 | D38: 11190204.36 | E38: 28.13888574 | H38: 41139690.18 | I38: 6712839.918 | J38: 16.31718637 | N38: 39950899.09 | O38: 10990300.53 | P38: 27.50951989
A39: S44 | B39: 476.1867 | C39: 33877674.55 | D39: 9348168.458 | E39: 27.59389061 | H39: 39865076.92 | I39: 7341167.933 | J39: 18.41503516 | N39: 33753832.16 | O39: 9739931.731 | P39: 28.85578053
A40: S47 | B40: 476.1867 | C40: 32316556.23 | D40: 6301519.309 | E40: 19.49935279 | H40: 45929960.92 | I40: 5103373.522 | J40: 11.11120806 | N40: 56921850.67 | O40: 9100417.546 | P40: 15.98756442
A41: S16 | B41: 477.182 | C41: 24353156.05 | D41: 5830739.376 | E41: 23.94243836 | H41: 27130634.66 | I41: 6402659.471 | J41: 23.59937227 | N41: 33003935.75 | O41: 6598080.382 | P41: 19.99179865
A42: S55 | B42: 485.1545 | C42: 24808551.21 | D42: 5509236.327 | E42: 22.20700548 | H42: 22914664.91 | I42: 3977656.167 | J42: 17.35856135 | N42: 30813917.31 | O42: 2435871.81 | P42: 7.905102701
A43: S27 | B43: 485.2234 | C43: 24918130.57 | D43: 6028703.212 | E43: 24.19404295 | H43: 18084837.54 | I43: 2839249.46 | J43: 15.69961274 | N43: 28706388.41 | O43: 6140884.68 | P43: 21.39204902
A44: S12 | B44: 488.2231 | C44: 34754802.77 | D44: 7116690.623 | E44: 20.47685516 | H44: 39743156.47 | I44: 8025648.703 | J44: 20.19378785 | N44: 44416214.43 | O44: 4415720.206 | P44: 9.941685178
A45: S35 | B45: 493.1632 | C45: 2645054.364 | D45: 262320.9162 | E45: 9.917411142 | H45: 2700427.833 | I45: 364152.1607 | J45: 13.48498028 | N45: 2836843.597 | O45: 482456.1461 | P45: 17.00679398
A46: S43 | B46: 494.1584 | C46: 17796254.42 | D46: 2957298.859 | E46: 16.6175353 | H46: 23021285.6 | I46: 3602717.679 | J46: 15.6495069 | N46: 22437445.89 | O46: 5406600.942 | P46: 24.09632972
A47: S46 | B47: 494.1584 | C47: 33623302.71 | D47: 6112764.62 | E47: 18.18014332 | H47: 28752318.83 | I47: 8199226.142 | J47: 28.51674744 | N47: 34901645.22 | O47: 7837927.606 | P47: 22.45718664
A48: S11 | B48: 495.1537 | C48: 13906504.96 | D48: 3076923.212 | E48: 22.12578374 | H48: 13506198.3 | I48: 3070256.026 | J48: 22.73220012 | N48: 16352711.08 | O48: 2511161.977 | P48: 15.35624255
A49: S52 | B49: 512.149 | C49: 16820564.47 | D49: 4348745.451 | E49: 25.85374265 | H49: 15926675.12 | I49: 3346055.011 | J49: 21.00912454 | M49: CE42 | N49: 15053286.7 | O49: 2837444.894 | P49: 18.84933803
A50: S42 | B50: 518.2159 | C50: 21096665.46 | D50: 3565064.356 | E50: 16.89871019 | H50: 30330570.45 | I50: 6717255.657 | J50: 22.14681609 | N50: 25206746.29 | O50: 4223506.031 | P50: 16.75545896
A51: S45 | B51: 520.2316 | C51: 37731873.26 | D51: 10098976.4 | E51: 26.7651074 | H51: 55903236.4 | I51: 10083869.98 | J51: 18.03807906 | N51: 38073983.96 | O51: 8120446.354 | P51: 21.32807106
A52: S30 | B52: 521.1792 | C52: 28148442.77 | D52: 9240707.023 | E52: 32.82848397 | H52: 60572749.89 | I52: 12068444.4 | J52: 19.92388396 | N52: 39202785.6 | O52: 8052169.837 | P52: 20.53979
A53: S33 | B53: 521.1792 | C53: 12412244.35 | D53: 3246708.159 | E53: 26.15730135 | H53: 19885048.74 | I53: 1968559.573 | J53: 9.899696999 | N53: 13632413.57 | O53: 1766885.418 | P53: 12.96091414
A54: S15 | B54: 523.1697 | C54: 38439470.39 | D54: 10873847.62 | E54: 28.28823475 | H54: 49415977.77 | I54: 9640364.193 | J54: 19.50859748 | N54: 41651759.76 | O54: 6279294.893 | P54: 15.07570131
A55: S25 | B55: 530.2353 | C55: 1914999.602 | D55: 378170.732 | E55: 19.747823 | H55: 1777374.454 | I55: 218823.818 | J55: 12.3116329 | N55: 2244240.214 | O55: 204982.3614 | P55: 9.133708598
A56: S41 | B56: 531.2306 | C56: 14193975.17 | D56: 4851086.238 | E56: 34.17707992 | H56: 13950285.85 | I56: 4124835.247 | J56: 29.56810557 | N56: 15007655.5 | O56: 1824800.178 | P56: 12.1591289
A57: S13 | B57: 532.2258 | C57: 38385899.79 | D57: 8716232.143 | E57: 22.706859 | H57: 39463114.01 | I57: 5674627.629 | J57: 14.37957387 | N57: 44551809.85 | O57: 8048730.977 | P57: 18.06600226
A58: S49 | B58: 536.2065 | C58: 30081641.28 | D58: 6038714.606 | E58: 20.07441864 | H58: 36140075.24 | I58: 7390277.319 | J58: 20.44898155 | N58: 29112346.26 | O58: 5610637.171 | P58: 19.27236342
A59: S50 | B59: 538.2221 | C59: 27353297.39 | D59: 5795936.062 | E59: 21.18916772 | H59: 36873718.48 | I59: 5936277.531 | J59: 16.09893923 | N59: 26915599.23 | O59: 5049647.774 | P59: 18.76104534
A60: S51 | B60: 540.165 | C60: 24251255.39 | D60: 6629326.206 | E60: 27.3360125 | H60: 32953748.36 | I60: 5921772.058 | J60: 17.96994987 | N60: 25064267.11 | O60: 5903638.492 | P60: 23.55400406
A61: S63 | B61: 547.2312 | C61: 13400240.58 | D61: 2846753.752 | E61: 21.24404958 | H61: 28468099.65 | I61: 2884037.163 | J61: 10.13076812 | N61: 25562764.05 | O61: 17692835.05 | P61: 69.21330969
A62: S57 | B62: 550.2421 | C62: 22147749.11 | D62: 5126093.347 | E62: 23.14498562 | H62: 43985617.83 | I62: 9370380.377 | J62: 21.30328239 | N62: 28657952.45 | O62: 6566051.225 | P62: 22.91179468
A63: S64 | B63: 551.1898 | C63: 24175050.05 | D63: 6027354.71 | E63: 24.93212919 | H63: 43582685.76 | I63: 9198030.782 | J63: 21.10478191 | N63: 25024692.65 | O63: 8452861.965 | P63: 33.77808504

Sheet 8
A1: Data associated with Extended Data Fig 3g
C2: 100 Da | F2: 150 Da | I2: 200 Da
A3: ID | B3: Exact mass | C3: signal intensity | D3: Stdev.p | E3: %CV | F3: signal intensity | G3: Stdev.p | H3: %CV | I3: signal intensity | J3: Stdev.p | K3: %CV
A4: S24 | B4: 382.1812 | C4: 17728338.02 | D4: 2326888.307 | E4: 13.1 | F4: 17576193.75 | G4: 2307147.07 | H4: 13.1 | I4: 17530793.75 | J4: 2244516.241 | K4: 12.8 | O4: average %CV | P4: Stdev.p
A5: S40 | B5: 383.1765 | C5: 37612377.34 | D5: 3317201.509 | E5: 8.8 | F5: 35961567.95 | G5: 4880269.392 | H5: 13.6 | I5: 40579026.1 | J5: 6174635.895 | K5: 15.2 | N5: 100 Da | O5: =E64 -> 10.2 | P5: =E65 -> 2.1
A6: S6 | B6: 384.1717 | C6: 18591554.54 | D6: 1639347.158 | E6: 8.8 | F6: 17938375.02 | G6: 1680093.508 | H6: 9.4 | I6: 19274667.53 | J6: 3004285.738 | K6: 15.6 | N6: 150 Da | O6: =H64 -> 12.7 | P6: =H65 -> 2.4
A7: S14 | B7: 390.1282 | C7: 18420393.63 | D7: 1586852.836 | E7: 8.6 | F7: 17474498.84 | G7: 2846583.904 | H7: 16.3 | I7: 18622819.06 | J7: 2661502.718 | K7: 14.3 | N7: 200 Da | O7: =K64 -> 16.5 | P7: =K65 -> 3.7
A8: S17 | B8: 398.1813 | C8: 23111721.66 | D8: 2710166.709 | E8: 11.7 | F8: 22082626.31 | G8: 3025236.422 | H8: 13.7 | I8: 24322187.24 | J8: 3907495.913 | K8: 16.1
A9: S23 | B9: 401.1581 | C9: 49692470.58 | D9: 3552706.348 | E9: 7.1 | F9: 41162009.82 | G9: 5454934.601 | H9: 13.3 | I9: 50170465.19 | J9: 7175361.846 | K9: 14.3
A10: S7 | B10: 403.1486 | C10: 31777053.21 | D10: 3355888.52 | E10: 10.6 | F10: 31926370.6 | G10: 3993625.565 | H10: 12.5 | I10: 31315844.59 | J10: 3764107.902 | K10: 12.0
A11: S38 | B11: 409.2173 | C11: 43367082.95 | D11: 4255429.378 | E11: 9.8 | F11: 43685164.93 | G11: 4936501.018 | H11: 11.3 | I11: 48282622.91 | J11: 7248952.714 | K11: 15.0
A12: S36 | B12: 415.147 | C12: 49309045.26 | D12: 3676295.195 | E12: 7.5 | F12: 45986138.38 | G12: 4221542.849 | H12: 9.2 | I12: 51402874.82 | J12: 7224497.698 | K12: 14.1
A13: S19 | B13: 422.2377 | C13: 5127100.35 | D13: 579669.3954 | E13: 11.3 | F13: 5061433.652 | G13: 792477.0418 | H13: 15.7 | I13: 5042251.859 | J13: 754123.2308 | K13: 15.0
A14: S18 | B14: 425.1758 | C14: 28852554.81 | D14: 3511146.044 | E14: 12.2 | F14: 29128446.76 | G14: 2835354.642 | H14: 9.7 | I14: 28090434.05 | J14: 4584679.245 | K14: 16.3
A15: S37 | B15: 426.1711 | C15: 24366895.01 | D15: 2728753.76 | E15: 11.2 | F15: 22771459.29 | G15: 3392687.037 | H15: 14.9 | I15: 22736953.2 | J15: 4148943.125 | K15: 18.2
A16: S34 | B16: 426.2438 | C16: 18727502.2 | D16: 1543660.165 | E16: 8.2 | F16: 16937154.68 | G16: 2221369.765 | H16: 13.1 | I16: 18106196.18 | J16: 2516392.724 | K16: 13.9
A17: S54 | B17: 427.2079 | C17: 27727665.87 | D17: 3091973.258 | E17: 11.2 | F17: 25402481.2 | G17: 3364267.356 | H17: 13.2 | I17: 26908105.94 | J17: 6320803.846 | K17: 23.5
A18: S56 | B18: 427.2079 | C18: 30074926.91 | D18: 2454451.61 | E18: 8.2 | F18: 28976450.35 | G18: 3344366.155 | H18: 11.5 | I18: 29656455.27 | J18: 3897755.273 | K18: 13.1
A19: S62 | B19: 429.1871 | C19: 40612013.81 | D19: 3727206.384 | E19: 9.2 | F19: 38219246.43 | G19: 2720403.138 | H19: 7.1 | I19: 42634858.09 | J19: 7539193.613 | K19: 17.7
A20: S20 | B20: 434.1625 | C20: 14065118.02 | D20: 1372232.601 | E20: 9.8 | F20: 14096279.2 | G20: 2191128.514 | H20: 15.5 | I20: 15782725.22 | J20: 3272972.823 | K20: 20.7
A21: S31 | B21: 434.1625 | C21: 17731942.37 | D21: 1932957.459 | E21: 10.9 | F21: 15739377.34 | G21: 2105763.627 | H21: 13.4 | I21: 19948389.96 | J21: 2632546.094 | K21: 13.2
A22: S39 | B22: 435.1577 | C22: 29607424.7 | D22: 2127642.813 | E22: 7.2 | F22: 25539591.64 | G22: 3410383.067 | H22: 13.4 | I22: 33735110.89 | J22: 5157149.415 | K22: 15.3
A23: S61 | B23: 439.2279 | C23: 48788486.71 | D23: 2983543.762 | E23: 6.1 | F23: 43401673.9 | G23: 4013918.181 | H23: 9.2 | I23: 51238920.49 | J23: 7195650.813 | K23: 14.0
A24: S8 | B24: 440.1867 | C24: 18763585.5 | D24: 1771877.47 | E24: 9.4 | F24: 16749070.71 | G24: 2555536.808 | H24: 15.3 | I24: 20405742.95 | J24: 3002401.586 | K24: 14.7
A25: S21 | B25: 440.2595 | C25: N/A | D25: N/A | E25: N/A | F25: 7375277.027 | G25: 997618.9058 | H25: 13.5 | I25: 8645879.831 | J25: 1095162.588 | K25: 12.7
A26: S32 | B26: 445.2173 | C26: 27542613.84 | D26: 3040576.317 | E26: 11.0 | F26: 28888331.8 | G26: 3527779.284 | H26: 12.2 | I26: 30490000.29 | J26: 3332123.939 | K26: 10.9
A27: S9 | B27: 447.2078 | C27: 45364529.26 | D27: 4016930.844 | E27: 8.9 | F27: 42805585.97 | G27: 6048645.581 | H27: 14.1 | I27: 48629003.41 | J27: 10012525.08 | K27: 20.6
A28: S28 | B28: 449.1734 | C28: 39579037.32 | D28: 3450840.257 | E28: 8.7 | F28: 34037222.61 | G28: 4835775.149 | H28: 14.2 | I28: 41819275.36 | J28: 6162558.901 | K28: 14.7
A29: S26 | B29: 452.2119 | C29: 28655334.18 | D29: 1777118.649 | E29: 6.2 | F29: 27263094.34 | G29: 2413264.789 | H29: 8.9 | I29: 31297489.06 | J29: 2814314.872 | K29: 9.0
A30: S10 | B30: 454.2024 | C30: 30213773.08 | D30: 2453811.951 | E30: 8.1 | F30: 30227457.19 | G30: 4641496.665 | H30: 15.4 | I30: 30072107.38 | J30: 4869548.568 | K30: 16.2
A31: S65 | B31: 456.2544 | C31: 44640747.54 | D31: 4285334.64 | E31: 9.6 | F31: 37907593.47 | G31: 4615229.544 | H31: 12.2 | I31: 46115094.93 | J31: 6653717.553 | K31: 14.4
A32: S22 | B32: 457.2173 | C32: 54628166.66 | D32: 4954945.863 | E32: 9.1 | F32: 48568424.2 | G32: 5341791.156 | H32: 11.0 | I32: 59035138.03 | J32: 7487310.89 | K32: 12.7
A33: S58 | B33: 457.2496 | C33: 49174933.05 | D33: 5164202.568 | E33: 10.5 | F33: 39608596.69 | G33: 4345759.515 | H33: 11.0 | I33: 49748607.67 | J33: 5708207.52 | K33: 11.5
A34: S53 | B34: 459.1977 | C34: 44911916.7 | D34: 3272903.128 | E34: 7.3 | F34: 41467422.72 | G34: 3888981.284 | H34: 9.4 | I34: 49438066.34 | J34: 5940602.488 | K34: 12.0
A35: S59 | B35: 459.1977 | C35: 35115422.52 | D35: 3011213.982 | E35: 8.6 | F35: 34932787.3 | G35: 2799159.473 | H35: 8.0 | I35: 36942092.42 | J35: 6320278.541 | K35: 17.1
A36: S48 | B36: 464.2031 | C36: 25537138.29 | D36: 3196308.869 | E36: 12.5 | F36: 24146141.81 | G36: 2238231.305 | H36: 9.3 | I36: 25942589.08 | J36: 4669419.067 | K36: 18.0
A37: S29 | B37: 465.2435 | C37: 49005125.64 | D37: 4986969.048 | E37: 10.2 | F37: 44244441.79 | G37: 4317260.365 | H37: 9.8 | I37: 53743620.48 | J37: 7899998.182 | K37: 14.7
A38: S60 | B38: 471.2177 | C38: 45816354.7 | D38: 3512126.396 | E38: 7.7 | F38: 43445577.29 | G38: 3947823.394 | H38: 9.1 | I38: 46738351.07 | J38: 8291978.959 | K38: 17.7
A39: S44 | B39: 476.1867 | C39: 26828080.42 | D39: 2718854.386 | E39: 10.1 | F39: 27187443.09 | G39: 3582599.545 | H39: 13.2 | I39: 30516349.98 | J39: 3267039.196 | K39: 10.7
A40: S47 | B40: 476.1867 | C40: 45121685.3 | D40: 3436760.781 | E40: 7.6 | F40: 45563462.87 | G40: 7122911.044 | H40: 15.6 | I40: 45384410.96 | J40: 11089977.11 | K40: 24.4
A41: S16 | B41: 477.182 | C41: 46563529.43 | D41: 4170863.732 | E41: 9.0 | F41: 43270289.73 | G41: 4446578.25 | H41: 10.3 | I41: 39210990.23 | J41: 11588925.87 | K41: 29.6
A42: S55 | B42: 485.1545 | C42: 24086407.04 | D42: 2003761.596 | E42: 8.3 | F42: 22618226.94 | G42: 2234777.474 | H42: 9.9 | I42: 25456578.98 | J42: 3660752.726 | K42: 14.4
A43: S27 | B43: 485.2234 | C43: 23779221.36 | D43: 1785884.102 | E43: 7.5 | F43: 23993116.73 | G43: 3030843.953 | H43: 12.6 | I43: 26504806.28 | J43: 4388592.573 | K43: 16.6
A44: S12 | B44: 488.2231 | C44: 42527115.47 | D44: 4136198.509 | E44: 9.7 | F44: 41552814.5 | G44: 4631204.544 | H44: 11.1 | I44: 47618472.61 | J44: 8290256.305 | K44: 17.4
A45: S35 | B45: 493.1632 | C45: 2666627.224 | D45: 256313.3404 | E45: 9.6 | F45: 2686236.861 | G45: 278351.795 | H45: 10.4 | I45: 3058537.095 | J45: 525079.1478 | K45: 17.2
A46: S43 | B46: 494.1584 | C46: 18488557.47 | D46: 1851387.819 | E46: 10.0 | F46: 20270896.74 | G46: 3066243.533 | H46: 15.1 | I46: 20135303.58 | J46: 3316627.951 | K46: 16.5
A47: S46 | B47: 494.1584 | C47: 29384425.65 | D47: 3057980.19 | E47: 10.4 | F47: 27887783.56 | G47: 2497898.899 | H47: 9.0 | I47: 32959420.48 | J47: 4844390.896 | K47: 14.7
A48: S11 | B48: 495.1537 | C48: 14202592.65 | D48: 1716319.626 | E48: 12.1 | F48: 13539200.04 | G48: 1962745.581 | H48: 14.5 | I48: 15905468.57 | J48: 2444811.281 | K48: 15.4
A49: S52 | B49: 512.149 | C49: 17007303.18 | D49: 2313524.111 | E49: 13.6 | F49: 27613001.37 | G49: 4126773.8 | H49: 14.9 | I49: 17143630.82 | J49: 3412875.58 | K49: 19.9
A50: S42 | B50: 518.2159 | C50: 46160323.21 | D50: 4940828.425 | E50: 10.7 | F50: 45529279.24 | G50: 7149160.542 | H50: 15.7 | I50: 50028705.99 | J50: 9937095.615 | K50: 19.9
A51: S45 | B51: 520.2316 | C51: 45220935.95 | D51: 5881324.111 | E51: 13.0 | F51: 44077729.28 | G51: 6739888.196 | H51: 15.3 | I51: 47841140.63 | J51: 9197588.037 | K51: 19.2
A52: S30 | B52: 521.1792 | C52: 50374675.71 | D52: 5636903.907 | E52: 11.2 | F52: 46378905.13 | G52: 7392847.587 | H52: 15.9 | I52: 46647175.69 | J52: 11572287.78 | K52: 24.8
A53: S33 | B53: 521.1792 | C53: 19615832.49 | D53: 2736687.494 | E53: 14.0 | F53: 20356742.67 | G53: 2952745.563 | H53: 14.5 | I53: 20830163.09 | J53: 4337462.779 | K53: 20.8
A54: S15 | B54: 523.1697 | C54: 46659620.76 | D54: 6464324.069 | E54: 13.9 | F54: 54131069.1 | G54: 8977847.168 | H54: 16.6 | I54: 55075176.23 | J54: 10964936.38 | K54: 19.9
A55: S25 | B55: 530.2353 | C55: 1284219.705 | D55: 162965.5761 | E55: 12.7 | F55: 1363807.285 | G55: 175005.8968 | H55: 12.8 | I55: 1406035.77 | J55: 230217.1831 | K55: 16.4
A56: S41 | B56: 531.2306 | C56: 39602544.87 | D56: 5092820.138 | E56: 12.9 | F56: 37669308.74 | G56: 4922516.358 | H56: 13.1 | I56: 40680510.73 | J56: 6647049.903 | K56: 16.3
A57: S13 | B57: 532.2258 | C57: 1284219.705 | D57: 162965.5761 | E57: 12.7 | F57: 1363807.285 | G57: 175005.8968 | H57: 12.8 | I57: 1406035.77 | J57: 230217.1831 | K57: 16.4
A58: S49 | B58: 536.2065 | C58: 40766912.2 | D58: 4842091.115 | E58: 11.9 | F58: 40143327.89 | G58: 5767745.919 | H58: 14.4 | I58: 40404221.98 | J58: 8795044.983 | K58: 21.8
A59: S50 | B59: 538.2221 | C59: 45263127.31 | D59: 6432133.701 | E59: 14.2 | F59: 46303128.17 | G59: 6986865.302 | H59: 15.1 | I59: 46300061.84 | J59: 8867341.588 | K59: 19.2
A60: S51 | B60: 540.165 | C60: 32037751.27 | D60: 4136637.624 | E60: 12.9 | F60: 30476032.01 | G60: 5033405.972 | H60: 16.5 | I60: 34141922.19 | J60: 7437317.903 | K60: 21.8
A61: S63 | B61: 547.2312 | C61: 24432780.27 | D61: 3438842.454 | E61: 14.1 | F61: 24089729.93 | G61: 3206959.434 | H61: 13.3 | I61: 26277113.48 | J61: 5064682.453 | K61: 19.3
A62: S57 | B62: 550.2421 | C62: 38492089.88 | D62: 3288918.129 | E62: 8.5 | F62: 38843237.38 | G62: 4237557.94 | H62: 10.9 | I62: 38865544.22 | J62: 5981844.219 | K62: 15.4
A63: S64 | B63: 551.1898 | C63: 41799566.65 | D63: 4493849.123 | E63: 10.8 | F63: 73143035.36 | G63: 10221947.66 | H63: 14.0 | I63: 45302078.84 | J63: 6841858.41 | K63: 15.1
D64: average %CV | E64: =AVERAGE(E4:E63) -> 10.2 | G64: average %CV | H64: =AVERAGE(H4:H63) -> 12.7 | J64: average %CV | K64: =AVERAGE(K4:K63) -> 16.5
D65: Stdev.p | E65: =_xlfn.STDEV.P(E4:E63) -> 2.1 | G65: Stdev.p | H65: =_xlfn.STDEV.P(H4:H63) -> 2.4 | J65: Stdev.p | K65: =_xlfn.STDEV.P(K4:K63) -> 3.7

Sheet 9
A1: Data associated with Extended Data Fig 3h
A2: TIDA 1_50µM | I2: Average signal | J2: Average signal carry over | K2: Average % carry over
A3: Well | B3: Area | C3: Average signal | D3: Average signal carry over | E3: Average % carry over | G3: 1 | H3: TIDA 1_50µM | I3: =C4 -> 179987103.3 | J3: =D4 -> 2933.333333 | K3: =E4 -> 0.002
A4: 1 | B4: 166819140 | C4: =AVERAGE(B4,B6,B8,B10,B12,B14,B16,B18,B20,B22,B24,B26) -> 179987103.3 | D4: =AVERAGE(B5,B7,B9,B11,B13,B15,B17,B19,B21,B23,B25,B27) -> 2933.333333 | E4: =100*D4/C4 -> 0.002 | G4: 7 | H4: Boc 7_250µM | I4: =C30 -> 159587376.7 | J4: =D30 -> 10946.66667 | K4: =E30 -> 0.007
A5: 2 | B5: 0 | G5: 9 | H5: THP 9_250µM | I5: =C56 -> 3942283.333 | J5: =D56 -> 0 | K5: =E56 -> 0.000
A6: 3 | B6: 184257460
A7: 4 | B7: 0
A8: 5 | B8: 178600240
A9: 6 | B9: 0
A10: 7 | B10: 166301160
A11: 8 | B11: 0
A12: 9 | B12: 181108960
A13: 10 | B13: 0
A14: 11 | B14: 182759200
A15: 12 | B15: 34800
A16: 13 | B16: 173813880
A17: 14 | B17: 0
A18: 15 | B18: 178601700
A19: 16 | B19: 0
A20: 17 | B20: 187402540
A21: 18 | B21: 0
A22: 19 | B22: 186245300
A23: 20 | B23: 0
A24: 21 | B24: 192220220
A25: 22 | B25: 400
A26: 23 | B26: 181715440
A27: 24 | B27: 0
A28: Boc 7_250µM
A29: Well | B29: Area | C29: Average signal | D29: Average signal carry over | E29: Average % carry over
A30: 1 | B30: 156027160 | C30: =AVERAGE(B30,B32,B34,B36,B38,B40,B42,B44,B46,B48,B50,B52) -> 159587376.7 | D30: =AVERAGE(B31,B33,B35,B37,B39,B41,B43,B45,B47,B49,B51,B53) -> 10946.66667 | E30: =100*D30/C30 -> 0.007
A31: 2 | B31: 0
A32: 3 | B32: 163019780
A33: 4 | B33: 80160
A34: 5 | B34: 164541800
A35: 6 | B35: 23400
A36: 7 | B36: 158878340
A37: 8 | B37: 0
A38: 9 | B38: 159587360
A39: 10 | B39: 0
A40: 11 | B40: 164624820
A41: 12 | B41: 0
A42: 13 | B42: 152634420
A43: 14 | B43: 0
A44: 15 | B44: 178044560
A45: 16 | B45: 0
A46: 17 | B46: 164451860
A47: 18 | B47: 25200
A48: 19 | B48: 153712420
A49: 20 | B49: 0
A50: 21 | B50: 143271660
A51: 22 | B51: 2600
A52: 23 | B52: 156254340
A53: 24 | B53: 0
A54: THP 9_250µM
A55: Well | B55: Area | C55: Average signal | D55: Average signal carry over | E55: Average % carry over
A56: 1 | B56: 3683500 | C56: =AVERAGE(B56,B58,B60,B62,B64,B66,B68,B70,B72,B74,B76,B78) -> 3942283.333 | D56: =AVERAGE(B57,B59,B61,B63,B65,B67,B69,B71,B73,B75,B77,B79) -> 0 | E56: =100*D56/C56 -> 0.000
A57: 2 | B57: 0
A58: 3 | B58: 3494500
A59: 4 | B59: 0
A60: 5 | B60: 3939920
A61: 6 | B61: 0
A62: 7 | B62: 4147740
A63: 8 | B63: 0
A64: 9 | B64: 4127140
A65: 10 | B65: 0
A66: 11 | B66: 4067940
A67: 12 | B67: 0
A68: 13 | B68: 3945160
A69: 14 | B69: 0
A70: 15 | B70: 3964140
A71: 16 | B71: 0
A72: 17 | B72: 4208580
A73: 18 | B73: 0
A74: 19 | B74: 4172400
A75: 20 | B75: 0
A76: 21 | B76: 3712920
A77: 22 | B77: 0
A78: 23 | B78: 3843460
A79: 24 | B79: 0

Sheet 10
A1: Data associated with Extended Data Fig 3i
A2: Mass | B2: MassLabel | C2: Well | D2: Time | E2: Set | F2: Neutral Loss | G2: PeakArea | I2: average | J2: stdev.p | K2: %CV
A3: 399.13 | B3: product 1 | C3: E1 | D3: 20.01320163 | E3: Set1 | F3: 86 | G3: 124525440 | H3: S5 | I3: =AVERAGE(G67:G130) -> 1.2E+8 | J3: =_xlfn.STDEV.P(G67:G130) -> 7006623.355 | K3: =100*J3/I3 -> 5.6
A4: 399.13 | B4: product 1 | C4: E2 | D4: 21.21904763 | E4: Set1 | F4: 86 | G4: 126180480 | H4: S5+reaction mixture | I4: =AVERAGE(G3:G66) -> 1.2E+8 | J4: =_xlfn.STDEV.P(G3:G66) -> 9491439.734 | K4: =100*J4/I4 -> 7.9
A5: 399.13 | B5: product 1 | C5: E3 | D5: 22.42489363 | E5: Set1 | F5: 86 | G5: 121082880
A6: 399.13 | B6: product 1 | C6: E4 | D6: 23.63073963 | E6: Set1 | F6: 86 | G6: 122436480
A7: 399.13 | B7: product 1 | C7: E5 | D7: 24.83658563 | E7: Set1 | F7: 86 | G7: 141701760
A8: 399.13 | B8: product 1 | C8: E6 | D8: 26.04243163 | E8: Set1 | F8: 86 | G8: 138024960
A9: 399.13 | B9: product 1 | C9: E7 | D9: 27.24827763 | E9: Set1 | F9: 86 | G9: 131059200
A10: 399.13 | B10: product 1 | C10: E8 | D10: 28.45412363 | E10: Set1 | F10: 86 | G10: 123728640
A11: 399.13 | B11: product 1 | C11: E9 | D11: 29.65996963 | E11: Set1 | F11: 86 | G11: 139956480
A12: 399.13 | B12: product 1 | C12: E10 | D12: 30.86581563 | E12: Set1 | F12: 86 | G12: 133392000
A13: 399.13 | B13: product 1 | C13: E11 | D13: 32.07166163 | E13: Set1 | F13: 86 | G13: 123504000
A14: 399.13 | B14: product 1 | C14: E12 | D14: 33.27750763 | E14: Set1 | F14: 86 | G14: 118945920
A15: 399.13 | B15: product 1 | C15: E13 | D15: 34.48335363 | E15: Set1 | F15: 86 | G15: 132270720
A16: 399.13 | B16: product 1 | C16: E14 | D16: 35.68919963 | E16: Set1 | F16: 86 | G16: 117976320
A17: 399.13 | B17: product 1 | C17: E15 | D17: 36.89504563 | E17: Set1 | F17: 86 | G17: 124199040
A18: 399.13 | B18: product 1 | C18: E16 | D18: 38.10089163 | E18: Set1 | F18: 86 | G18: 102305280
A19: 399.13 | B19: product 1 | C19: F16 | D19: 39.30673763 | E19: Set1 | F19: 86 | G19: 113857920
A20: 399.13 | B20: product 1 | C20: F15 | D20: 40.51258363 | E20: Set1 | F20: 86 | G20: 112174080
A21: 399.13 | B21: product 1 | C21: F14 | D21: 41.71842963 | E21: Set1 | F21: 86 | G21: 117607680
A22: 399.13 | B22: product 1 | C22: F13 | D22: 42.92427563 | E22: Set1 | F22: 86 | G22: 104313600
A23: 399.13 | B23: product 1 | C23: F12 | D23: 44.13012163 | E23: Set1 | F23: 86 | G23: 129623040
A24: 399.13 | B24: product 1 | C24: F11 | D24: 45.33596763 | E24: Set1 | F24: 86 | G24: 104968320
A25: 399.13 | B25: product 1 | C25: F10 | D25: 46.54181363 | E25: Set1 | F25: 86 | G25: 117521280
A26: 399.13 | B26: product 1 | C26: F9 | D26: 47.74765963 | E26: Set1 | F26: 86 | G26: 123974400
A27: 399.13 | B27: product 1 | C27: F8 | D27: 48.95350563 | E27: Set1 | F27: 86 | G27: 109282560
A28: 399.13 | B28: product 1 | C28: F7 | D28: 50.15935163 | E28: Set1 | F28: 86 | G28: 118189440
A29: 399.13 | B29: product 1 | C29: F6 | D29: 51.36519763 | E29: Set1 | F29: 86 | G29: 119658240
A30: 399.13 | B30: product 1 | C30: F5 | D30: 52.57104363 | E30: Set1 | F30: 86 | G30: 130692480
A31: 399.13 | B31: product 1 | C31: F4 | D31: 53.77688963 | E31: Set1 | F31: 86 | G31: 130926720
A32: 399.13 | B32: product 1 | C32: F3 | D32: 54.98273563 | E32: Set1 | F32: 86 | G32: 107226240
A33: 399.13 | B33: product 1 | C33: F2 | D33: 56.18858163 | E33: Set1 | F33: 86 | G33: 118316160
A34: 399.13 | B34: product 1 | C34: F1 | D34: 57.39442763 | E34: Set1 | F34: 86 | G34: 125308800
A35: 399.13 | B35: product 1 | C35: G1 | D35: 58.60027363 | E35: Set1 | F35: 86 | G35: 134328960
A36: 399.13 | B36: product 1 | C36: G2 | D36: 59.80611963 | E36: Set1 | F36: 86 | G36: 109347840
A37: 399.13 | B37: product 1 | C37: G3 | D37: 61.01196563 | E37: Set1 | F37: 86 | G37: 122699520
A38: 399.13 | B38: product 1 | C38: G4 | D38: 62.21781163 | E38: Set1 | F38: 86 | G38: 115288320
A39: 399.13 | B39: product 1 | C39: G5 | D39: 63.42365763 | E39: Set1 | F39: 86 | G39: 144339840
A40: 399.13 | B40: product 1 | C40: G6 | D40: 64.62950363 | E40: Set1 | F40: 86 | G40: 126817920
A41: 399.13 | B41: product 1 | C41: G7 | D41: 65.83534963 | E41: Set1 | F41: 86 | G41: 123064320
A42: 399.13 | B42: product 1 | C42: G8 | D42: 67.04119563 | E42: Set1 | F42: 86 | G42: 125141760
A43: 399.13 | B43: product 1 | C43: G9 | D43: 68.24704163 | E43: Set1 | F43: 86 | G43: 116280960
A44: 399.13 | B44: product 1 | C44: G10 | D44: 69.45288763 | E44: Set1 | F44: 86 | G44: 112765440
A45: 399.13 | B45: product 1 | C45: G11 | D45: 70.65873363 | E45: Set1 | F45: 86 | G45: 121008000
A46: 399.13 | B46: product 1 | C46: G12 | D46: 71.86457963 | E46: Set1 | F46: 86 | G46: 114904320
A47: 399.13 | B47: product 1 | C47: G13 | D47: 73.07042563 | E47: Set1 | F47: 86 | G47: 128776320
A48: 399.13 | B48: product 1 | C48: G14 | D48: 74.27627163 | E48: Set1 | F48: 86 | G48: 112368000
A49: 399.13 | B49: product 1 | C49: G15 | D49: 75.48211763 | E49: Set1 | F49: 86 | G49: 112536960
A50: 399.13 | B50: product 1 | C50: G16 | D50: 76.68796363 | E50: Set1 | F50: 86 | G50: 103845120
A51: 399.13 | B51: product 1 | C51: H16 | D51: 77.89380963 | E51: Set1 | F51: 86 | G51: 112266240
A52: 399.13 | B52: product 1 | C52: H15 | D52: 79.09965563 | E52: Set1 | F52: 86 | G52: 116494080
A53: 399.13 | B53: product 1 | C53: H14 | D53: 80.30550163 | E53: Set1 | F53: 86 | G53: 124133760
A54: 399.13 | B54: product 1 | C54: H13 | D54: 81.51134763 | E54: Set1 | F54: 86 | G54: 111772800
A55: 399.13 | B55: product 1 | C55: H12 | D55: 82.71719363 | E55: Set1 | F55: 86 | G55: 117607680
A56: 399.13 | B56: product 1 | C56: H11 | D56: 83.92303963 | E56: Set1 | F56: 86 | G56: 119383680
A57: 399.13 | B57: product 1 | C57: H10 | D57: 85.12888563 | E57: Set1 | F57: 86 | G57: 115048320
A58: 399.13 | B58: product 1 | C58: H9 | D58: 86.33473163 | E58: Set1 | F58: 86 | G58: 125913600
A59: 399.13 | B59: product 1 | C59: H8 | D59: 87.54057763 | E59: Set1 | F59: 86 | G59: 109144320
A60: 399.13 | B60: product 1 | C60: H7 | D60: 88.74642363 | E60: Set1 | F60: 86 | G60: 110060160
A61: 399.13 | B61: product 1 | C61: H6 | D61: 89.95226963 | E61: Set1 | F61: 86 | G61: 112784640
A62: 399.13 | B62: product 1 | C62: H5 | D62: 91.15811563 | E62: Set1 | F62: 86 | G62: 126336000
A63: 399.13 | B63: product 1 | C63: H4 | D63: 92.36396163 | E63: Set1 | F63: 86 | G63: 116317440
A64: 399.13 | B64: product 1 | C64: H3 | D64: 93.56980763 | E64: Set1 | F64: 86 | G64: 109626240
A65: 399.13 | B65: product 1 | C65: H2 | D65: 94.77565363 | E65: Set1 | F65: 86 | G65: 109643520
A66: 399.13 | B66: product 1 | C66: H1 | D66: 95.98149963 | E66: Set1 | F66: 86 | G66: 131412480
A67: 399.13 | B67: product 1 | C67: I1 | D67: 97.18734563 | E67: Set1 | F67: 86 | G67: 114958080
A68: 399.13 | B68: product 1 | C68: I2 | D68: 98.39319163 | E68: Set1 | F68: 86 | G68: 114850560
A69: 399.13 | B69: product 1 | C69: I3 | D69: 99.59903763 | E69: Set1 | F69: 86 | G69: 128449920
A70: 399.13 | B70: product 1 | C70: I4 | D70: 100.8048836 | E70: Set1 | F70: 86 | G70: 116273280
A71: 399.13 | B71: product 1 | C71: I5 | D71: 102.0107296 | E71: Set1 | F71: 86 | G71: 123515520
A72: 399.13 | B72: product 1 | C72: I6 | D72: 103.2165756 | E72: Set1 | F72: 86 | G72: 116426880
A73: 399.13 | B73: product 1 | C73: I7 | D73: 104.4224216 | E73: Set1 | F73: 86 | G73: 131817600
A74: 399.13 | B74: product 1 | C74: I8 | D74: 105.6282676 | E74: Set1 | F74: 86 | G74: 115584000
A75: 399.13 | B75: product 1 | C75: I9 | D75: 106.8341136 | E75: Set1 | F75: 86 | G75: 122622720
A76: 399.13 | B76: product 1 | C76: I10 | D76: 108.0399596 | E76: Set1 | F76: 86 | G76: 130757760
A77: 399.13 | B77: product 1 | C77: I11 | D77: 109.2458056 | E77: Set1 | F77: 86 | G77: 125846400
A78: 399.13 | B78: product 1 | C78: I12 | D78: 110.4516516 | E78: Set1 | F78: 86 | G78: 126099840
A79: 399.13 | B79: product 1 | C79: I13 | D79: 111.6574976 | E79: Set1 | F79: 86 | G79: 134922240
A80: 399.13 | B80: product 1 | C80: I14 | D80: 112.8633436 | E80: Set1 | F80: 86 | G80: 122234880
A81: 399.13 | B81: product 1 | C81: I15 | D81: 114.0691896 | E81: Set1 | F81: 86 | G81: 110791680
A82: 399.13 | B82: product 1 | C82: I16 | D82: 115.2750356 | E82: Set1 | F82: 86 | G82: 118116480
A83: 399.13 | B83: product 1 | C83: J16 | D83: 116.4808816 | E83: Set1 | F83: 86 | G83: 118176000
A84: 399.13 | B84: product 1 | C84: J15 | D84: 117.6867276 | E84: Set1 | F84: 86 | G84: 133547520
A85: 399.13 | B85: product 1 | C85: J14 | D85: 118.8925736 | E85: Set1 | F85: 86 | G85: 137281920
A86: 399.13 | B86: product 1 | C86: J13 | D86: 120.0984196 | E86: Set1 | F86: 86 | G86: 121438080
A87: 399.13 | B87: product 1 | C87: J12 | D87: 121.3042656 | E87: Set1 | F87: 86 | G87: 123409920
A88: 399.13 | B88: product 1 | C88: J11 | D88: 122.5101116 | E88: Set1 | F88: 86 | G88: 124940160
A89: 399.13 | B89: product 1 | C89: J10 | D89: 123.7159576 | E89: Set1 | F89: 86 | G89: 129711360
A90: 399.13 | B90: product 1 | C90: J9 | D90: 124.9218036 | E90: Set1 | F90: 86 | G90: 136790400
A91: 399.13 | B91: product 1 | C91: J8 | D91: 126.1276496 | E91: Set1 | F91: 86 | G91: 137134080
A92: 399.13 | B92: product 1 | C92: J7 | D92: 127.3334956 | E92: Set1 | F92: 86 | G92: 124734720
A93: 399.13 | B93: product 1 | C93: J6 | D93: 128.5393416 | E93: Set1 | F93: 86 | G93: 127799040
A94: 399.13 | B94: product 1 | C94: J5 | D94: 129.7451876 | E94: Set1 | F94: 86 | G94: 120149760
A95: 399.13 | B95: product 1 | C95: J4 | D95: 130.9510336 | E95: Set1 | F95: 86 | G95: 132474240
A96: 399.13 | B96: product 1 | C96: J3 | D96: 132.1568796 | E96: Set1 | F96: 86 | G96: 134718720
A97: 399.13 | B97: product 1 | C97: J2 | D97: 133.3627256 | E97: Set1 | F97: 86 | G97: 133608960
A98: 399.13 | B98: product 1 | C98: J1 | D98: 134.5685716 | E98: Set1 | F98: 86 | G98: 119996160
A99: 399.13 | B99: product 1 | C99: K1 | D99: 135.7744176 | E99: Set1 | F99: 86 | G99: 127616640
A100: 399.13 | B100: product 1 | C100: K2 | D100: 136.9802636 | E100: Set1 | F100: 86 | G100: 126416640
A101: 399.13 | B101: product 1 | C101: K3 | D101: 138.1861096 | E101: Set1 | F101: 86 | G101: 134490240
A102: 399.13 | B102: product 1 | C102: K4 | D102: 139.3919556 | E102: Set1 | F102: 86 | G102: 125389440
A103: 399.13 | B103: product 1 | C103: K5 | D103: 140.5978016 | E103: Set1 | F103: 86 | G103: 123736320
A104: 399.13 | B104: product 1 | C104: K6 | D104: 141.8036476 | E104: Set1 | F104: 86 | G104: 113493120
A105: 399.13 | B105: product 1 | C105: K7 | D105: 143.0094936 | E105: Set1 | F105: 86 | G105: 128129280
A106: 399.13 | B106: product 1 | C106: K8 | D106: 144.2153396 | E106: Set1 | F106: 86 | G106: 119585280
A107: 399.13 | B107: product 1 | C107: K9 | D107: 145.4211856 | E107: Set1 | F107: 86 | G107: 133128960
A108: 399.13 | B108: product 1 | C108: K10 | D108: 146.6270316 | E108: Set1 | F108: 86 | G108: 119936640
A109: 399.13 | B109: product 1 | C109: K11 | D109: 147.8328776 | E109: Set1 | F109: 86 | G109: 126357120
A110: 399.13 | B110: product 1 | C110: K12 | D110: 149.0387236 | E110: Set1 | F110: 86 | G110: 120343680
A111: 399.13 | B111: product 1 | C111: K13 | D111: 150.2445696 | E111: Set1 | F111: 86 | G111: 114393600
A112: 399.13 | B112: product 1 | C112: K14 | D112: 151.4504156 | E112: Set1 | F112: 86 | G112: 129039360
A113: 399.13 | B113: product 1 | C113: K15 | D113: 152.6562616 | E113: Set1 | F113: 86 | G113: 120716160
A114: 399.13 | B114: product 1 | C114: K16 | D114: 153.8621076 | E114: Set1 | F114: 86 | G114: 122269440
A115: 399.13 | B115: product 1 | C115: L16 | D115: 155.0679536 | E115: Set1 | F115: 86 | G115: 118151040
A116: 399.13 | B116: product 1 | C116: L15 | D116: 156.2737996 | E116: Set1 | F116: 86 | G116: 135369600
A117: 399.13 | B117: product 1 | C117: L14 | D117: 157.4796456 | E117: Set1 | F117: 86 | G117: 112360320
A118: 399.13 | B118: product 1 | C118: L13 | D118: 158.6854916 | E118: Set1 | F118: 86 | G118: 120040320
A119: 399.13 | B119: product 1 | C119: L12 | D119: 159.8913376 | E119: Set1 | F119: 86 | G119: 122709120
A120: 399.13 | B120: product 1 | C120: L11 | D120: 161.0971836 | E120: Set1 | F120: 86 | G120: 122511360
A121: 399.13 | B121: product 1 | C121: L10 | D121: 162.3030296 | E121: Set1 | F121: 86 | G121: 129214080
A122: 399.13 | B122: product 1 | C122: L9 | D122: 163.5088756 | E122: Set1 | F122: 86 | G122: 117734400
A123: 399.13 | B123: product 1 | C123: L8 | D123: 164.7147216 | E123: Set1 | F123: 86 | G123: 124005120
A124: 399.13 | B124: product 1 | C124: L7 | D124: 165.9205676 | E124: Set1 | F124: 86 | G124: 123321600
A125: 399.13 | B125: product 1 | C125: L6 | D125: 167.1264136 | E125: Set1 | F125: 86 | G125: 115324800
A126: 399.13 | B126: product 1 | C126: L5 | D126: 168.3322596 | E126: Set1 | F126: 86 | G126: 140807040
A127: 399.13 | B127: product 1 | C127: L4 | D127: 169.5381056 | E127: Set1 | F127: 86 | G127: 126606720
A128: 399.13 | B128: product 1 | C128: L3 | D128: 170.7439516 | E128: Set1 | F128: 86 | G128: 121918080
A129: 399.13 | B129: product 1 | C129: L2 | D129: 171.9497976 | E129: Set1 | F129: 86 | G129: 119170560
A130: 399.13 | B130: product 1 | C130: L1 | D130: 173.1556436 | E130: Set1 | F130: 86 | G130: 129801600

Sheet 11
A1: Data associated with Extended Data Fig 3j
A2: Water-10nL | B2: Time | C2: Area | D2: Height | E2: Width | F2: Width at 50% | G2: Average | H2: Stdev.p | I2: %CV | J2: Water-2.5nL | K2: Time | L2: Area | M2: Height | N2: Width | O2: Width at 50% | P2: Average | Q2: Stdev.p | R2: %CV
A3: 1 | B3: 0.5024410652 | C3: 67173224.89 | D3: 69348848.13 | E3: 0.05111666667 | F3: 0.0147757836 | G3: =AVERAGE(C3:C386) -> 6.7E+7 | H3: =_xlfn.STDEV.P(C3:C386) -> 4.2E+6 | I3: =100*H3/G3 -> 6.2 | K3: 0.5513587284 | L3: 18466190.76 | M3: 22522028.15 | N3: 0.04623333333 | O3: 0.01241058516 | P3: =AVERAGE(L3:L386) -> 2.0E+7 | Q3: =_xlfn.STDEV.P(L3:L386) -> 7.7E+5 | R3: =100*Q3/P3 -> 3.9
A4: 2 | B4: 0.5488402727 | C4: 63064758.83 | D4: 67574969.88 | E4: 0.04908333333 | F4: 0.01411046399 | K4: 0.5963331481 | L4: 18290082.33 | M4: 21593419.73 | N4: 0.04556666667 | O4: 0.01259188752
A5: 3 | B5: 0.6019024009 | C5: 67717490.47 | D5: 55898938.54 | E5: 0.05043333333 | F5: 0.0196578487 | K5: 0.6506296484 | L5: 18371711.02 | M5: 17785472.93 | N5: 0.05681666667 | O5: 0.01644116328
A6: 4 | B6: 0.6489620097 | C6: 63929898.94 | D6: 64640253.56 | E6: 0.04808333333 | F6: 0.01533648336 | K6: 0.7006382719 | L6: 17635824.57 | M6: 21360016.79 | N6: 0.04488333333 | O6: 0.01231487572 | U6: S2_10nL
A7: 5 | B7: 0.6964429944 | C7: 66036382.93 | D7: 66599450.75 | E7: 0.05295 | F7: 0.01506540376 | K7: 0.7487480098 | L7: 18402533.77 | M7: 20927452.96 | N7: 0.0501 | O7: 0.01292575723 | U7: S2_2.5nL
A8: 6 | B8: 0.7531473586 | C8: 60958915.79 | D8: 62653335.71 | E8: 0.0511 | F8: 0.01506639374 | K8: 0.7948875679 | L8: 18999082.6 | M8: 20196251.46 | N8: 0.0501 | O8: 0.01427380511
A9: 7 | B9: 0.8021895841 | C9: 64096943.24 | D9: 70964224.48 | E9: 0.04505 | F9: 0.01377749252 | K9: 0.8518438755 | L9: 18320727 | M9: 20268428.65 | N9: 0.04925 | O9: 0.01366660938
A10: 8 | B10: 0.8478590354 | C10: 70545219.68 | D10: 69138710.66 | E10: 0.05446666667 | F10: 0.01510516772 | K10: 0.8957394072 | L10: 18912200.13 | M10: 22251859.38 | N10: 0.05128333333 | O10: 0.01309902852
A11: 9 | B11: 0.9028169586 | C11: 60861457.6 | D11: 59728539.83 | E11: 0.04876666667 | F11: 0.0160065807 | K11: 0.9538400274 | L11: 19596618.86 | M11: 18724804.01 | N11: 0.04891666667 | O11: 0.01676098793
A12: 10 | B12: 0.951396348 | C12: 70205565.97 | D12: 74641285.48 | E12: 0.04706666667 | F12: 0.01401263393 | K12: 0.9982241853 | L12: 21617708.74 | M12: 24346774.3 | N12: 0.05346666667 | O12: 0.01386761908
A13: 11 | B13: 0.9977159561 | C13: 87482348.32 | D13: 89124446.92 | E13: 0.05245 | F13: 0.01511310307 | K13: 1.05115657 | L13: 18717479.35 | M13: 20060502.7 | N13: 0.04606666667 | O13: 0.01453276301
A14: 12 | B14: 1.056017976 | C14: 74077260.34 | D14: 72237891.67 | E14: 0.04791666667 | F14: 0.01577911147 | K14: 1.100448764 | L14: 19300630.16 | M14: 22646173.02 | N14: 0.05345 | O14: 0.01320906007
A15: 13 | B15: 1.099799523 | C15: 75642876.47 | D15: 71996198.67 | E15: 0.05043333333 | F15: 0.01651602512 | K15: 1.150286634 | L15: 21082216.95 | M15: 22434807.28 | N15: 0.04876666667 | O15: 0.01381035431
A16: 14 | B16: 1.152837895 | C16: 76505530.32 | D16: 75150415.93 | E16: 0.04976666667 | F16: 0.0161423607 | K16: 1.203448883 | L16: 20323652.21 | M16: 23118254.95 | N16: 0.04808333333 | O16: 0.01377804707
A17: 15 | B17: 1.203227636 | C17: 68154121.75 | D17: 68498304.02 | E17: 0.04741666667 | F17: 0.01557203892 | K17: 1.247284464 | L17: 18368324.42 | M17: 21264344.23 | N17: 0.04723333333 | O17: 0.0131950531
A18: 16 | B18: 1.248056954 | C18: 74871241.37 | D18: 77543213.38 | E18: 0.05026666667 | F18: 0.01470982287 | K18: 1.304804642 | L18: 18900453.86 | M18: 17611636.05 | N18: 0.05666666667 | O18: 0.017233138
A19: 17 | B19: 1.305685109 | C19: 71137792.4 | D19: 72053989.86 | E19: 0.05126666667 | F19: 0.01529002149 | K19: 1.351993854 | L19: 19630184.4 | M19: 23789282.35 | N19: 0.0464 | O19: 0.01237818711
A20: 18 | B20: 1.352220116 | C20: 67443764.26 | D20: 72045314.9 | E20: 0.04706666667 | F20: 0.01442200824 | K20: 1.398087864 | L20: 17688195.88 | M20: 20881920.36 | N20: 0.04941666667 | O20: 0.01220930551
A21: 19 | B21: 1.399204981 | C21: 64455158.49 | D21: 67247589.01 | E21: 0.0491 | F21: 0.01425736955 | K21: 1.454097868 | L21: 20006092.14 | M21: 20725694.46 | N21: 0.05211666667 | O21: 0.01420660506
A22: 20 | B22: 1.455528195 | C22: 73269478.82 | D22: 70259228.42 | E22: 0.05615 | F22: 0.01531324501 | K22: 1.50331355 | L22: 18720416.93 | M22: 23172320.72 | N22: 0.05043333333 | O22: 0.01190199782
A23: 21 | B23: 1.504332051 | C23: 64214213.5 | D23: 69066100.65 | E23: 0.04571666667 | F23: 0.01389505049 | K23: 1.549937856 | L23: 20433373.27 | M23: 23983296.43 | N23: 0.04875 | O23: 0.01259681518
A24: 22 | B24: 1.550820278 | C24: 70690971.79 | D24: 64263634.14 | E24: 0.05211666667 | F24: 0.01729562779 | K24: 1.600445231 | L24: 19394341.55 | M24: 21048175.66 | N24: 0.04773333333 | O24: 0.01459173681
A25: 23 | B25: 1.603893629 | C25: 66807512.23 | D25: 62133613.34 | E25: 0.0491 | F25: 0.01695964627 | K25: 1.651939038 | L25: 21124136.08 | M25: 23232390.08 | N25: 0.04708333333 | O25: 0.01414078178
A26: 24 | B26: 1.653526524 | C26: 70661876.49 | D26: 70502574.6 | E26: 0.04656666667 | F26: 0.01561295597 | K26: 1.700035806 | L26: 20131995.87 | M26: 17655682.01 | N26: 0.0543 | O26: 0.0179543448
A27: 25 | B27: 1.700020307 | C27: 71191988.78 | D27: 62275577.44 | E27: 0.05546666667 | F27: 0.01776939364 | K27: 1.755844112 | L27: 20341076.61 | M27: 24288487.64 | N27: 0.04841666667 | O27: 0.01307559028
A28: 26 | B28: 1.756748734 | C28: 66723265.17 | D28: 71168726.34 | E28: 0.04773333333 | F28: 0.0145657143 | K28: 1.797874616 | L28: 20106526.5 | M28: 23392077.33 | N28: 0.05413333333 | O28: 0.01319574529
A29: 27 | B29: 1.802631906 | C29: 67108107.29 | D29: 71649234.39 | E29: 0.04538333333 | F29: 0.01423120654 | K29: 1.857060167 | L29: 19959259.46 | M29: 20773148.45 | N29: 0.04876666667 | O29: 0.01514872038
A30: 28 | B30: 1.848209316 | C30: 73221176.81 | D30: 62738519.26 | E30: 0.05413333333 | F30: 0.01808689033 | K30: 1.902010039 | L30: 19557650.84 | M30: 23144528.37 | N30: 0.04521666667 | O30: 0.01302920352
A31: 29 | B31: 1.906519746 | C31: 67422239.61 | D31: 73015522.57 | E31: 0.04538333333 | F31: 0.0139682258 | K31: 1.94725888 | L31: 20088663.67 | M31: 21451475.76 | N31: 0.05766666667 | O31: 0.01338461927
A32: 30 | B32: 1.949410821 | C32: 65847367.82 | D32: 66116516.71 | E32: 0.05026666667 | F32: 0.01539043466 | K32: 2.006356726 | L32: 20326639.27 | M32: 23888445.03 | N32: 0.04623333333 | O32: 0.01304722956
A33: 31 | B33: 2.00844541 | C33: 77601665.21 | D33: 77325053.01 | E33: 0.04975 | F33: 0.01558518362 | K33: 2.051997513 | L33: 19351211.57 | M33: 23792618.75 | N33: 0.04656666667 | O33: 0.01183179337
A34: 32 | B34: 2.05337489 | C34: 73274029.2 | D34: 77140308.87 | E34: 0.04708333333 | F34: 0.01460833473 | K34: 2.09909367 | L34: 20054148.83 | M34: 23235864.27 | N34: 0.0538 | O34: 0.01238021409
A35: 33 | B35: 2.101057345 | C35: 71425213.69 | D35: 72579208.49 | E35: 0.05278333333 | F35: 0.01458461662 | K35: 2.155472004 | L35: 17695345.53 | M35: 20421071.67 | N35: 0.04606666667 | O35: 0.01317872053
A36: 34 | B36: 2.156276061 | C36: 66932447.53 | D36: 65692179.08 | E36: 0.05026666667 | F36: 0.01616194604 | K36: 2.202178642 | L36: 20808000.97 | M36: 21628124.13 | N36: 0.05496666667 | O36: 0.0141881752
A37: 35 | B37: 2.205921089 | C37: 75996342.66 | D37: 78934858.49 | E37: 0.04908333333 | F37: 0.01444456485 | K37: 2.254703602 | L37: 18824259.88 | M37: 20628820.34 | N37: 0.04656666667 | O37: 0.01438150323
A38: 36 | B38: 2.25268005 | C38: 69732268.38 | D38: 72726248.79 | E38: 0.05078333333 | F38: 0.01419266457 | K38: 2.305606811 | L38: 18868037.13 | M38: 21533532.97 | N38: 0.04756666667 | O38: 0.01333556377
A39: 37 | B39: 2.307454421 | C39: 68117066.65 | D39: 61017647.99 | E39: 0.04993333333 | F39: 0.0177916892 | K39: 2.34856396 | L39: 20969102.14 | M39: 21606626.61 | N39: 0.0543 | O39: 0.01486401295
A40: 38 | B40: 2.354686814 | C40: 85558328.84 | D40: 93165470.67 | E40: 0.04925 | F40: 0.014243174 | K40: 2.406676316 | L40: 20643261.77 | M40: 20945546.25 | N40: 0.04823333333 | O40: 0.01526562477
A41: 39 | B41: 2.405616111 | C41: 65524104.99 | D41: 61246003.07 | E41: 0.0511 | F41: 0.01685611257 | K41: 2.452503583 | L41: 19743576.54 | M41: 21062531.15 | N41: 0.0464 | O41: 0.01456181899
A42: 40 | B42: 2.457553214 | C42: 66485964.04 | D42: 72087954.9 | E42: 0.04756666667 | F42: 0.0143449575 | K42: 2.506348138 | L42: 19373738.43 | M42: 17629125.77 | N42: 0.04841666667 | O42: 0.01835936855
A43: 41 | B43: 2.503526765 | C43: 70949709.31 | D43: 71270817.1 | E43: 0.05211666667 | F43: 0.01520757535 | K43: 2.555508433 | L43: 19752201.84 | M43: 23561806.23 | N43: 0.04623333333 | O43: 0.01277817675
A44: 42 | B44: 2.55933601 | C44: 70152609.58 | D44: 65804625.85 | E44: 0.05128333333 | F44: 0.01700975065 | K44: 2.60260742 | L44: 19037857.24 | M44: 18517171.9 | N44: 0.05548333333 | O44: 0.01540302733
A45: 43 | B45: 2.60730816 | C45: 66160221.91 | D45: 67772018.08 | E45: 0.04891666667 | F45: 0.01457920805 | K45: 2.659036551 | L45: 19866788.48 | M45: 22284275.09 | N45: 0.04891666667 | O45: 0.01348047219
A46: 44 | B46: 2.654249916 | C46: 61977594.83 | D46: 63298150.91 | E46: 0.04606666667 | F46: 0.01454462432 | K46: 2.70547271 | L46: 19840054.05 | M46: 23116904.71 | N46: 0.04538333333 | O46: 0.01267314908
A47: 45 | B47: 2.702080356 | C47: 67835003.4 | D47: 60501702.57 | E47: 0.05413333333 | F47: 0.01830614255 | K47: 2.751911549 | L47: 20644130.55 | M47: 21348751.6 | N47: 0.05548333333 | O47: 0.01409483295
A48: 46 | B48: 2.758660605 | C48: 66285777.77 | D48: 70981461.21 | E48: 0.0496 | F48: 0.01376582405 | K48: 2.809098832 | L48: 19365082.55 | M48: 22351192.87 | N48: 0.04741666667 | O48: 0.01305223918
A49: 47 | B49: 2.806430785 | C49: 69342862.8 | D49: 70781856.7 | E49: 0.04841666667 | F49: 0.01501118693 | K49: 2.854922985 | L49: 19228173.04 | M49: 22474250.02 | N49: 0.04521666667 | O49: 0.01278405092
A50: 48 | B50: 2.855038958 | C50: 66423994.6 | D50: 63371354.51 | E50: 0.05176666667 | F50: 0.01643597737 | K50: 2.901348385 | L50: 20035938.7 | M50: 16428223.44 | N50: 0.05665 | O50: 0.01947416456
A51: 49 | B51: 2.908251807 | C51: 67067448.51 | D51: 69752639.92 | E51: 0.04623333333 | F51: 0.01476707302 | K51: 2.959126686 | L51: 20657847.02 | M51: 24503421.27 | N51: 0.04623333333 | O51: 0.01274659761
A52: 50 | B52: 2.952575291 | C52: 67766312.57 | D52: 69443276.88 | E52: 0.05261666667 | F52: 0.01500323852 | K52: 3.003070991 | L52: 20555255.07 | M52: 23189818.78 | N52: 0.04488333333 | O52: 0.01376538725
A53: 51 | B53: 3.011027232 | C53: 63666132.09 | D53: 67347318.64 | E53: 0.04858333333 | F53: 0.01459906285 | K53: 3.06051587 | L53: 20159227.87 | M53: 19922038.35 | N53: 0.04775 | O53: 0.0160603698
A54: 52 | B54: 3.056498344 | C54: 64286787.89 | D54: 68137680.03 | E54: 0.0464 | F54: 0.01410890622 | K54: 3.106448189 | L54: 19242518.04 | M54: 22136314.39 | N54: 0.0464 | O54: 0.01321398378
A55: 53 | B55: 3.102684301 | C55: 65506131.37 | D55: 63734276.73 | E55: 0.0533 | F55: 0.01537135285 | K55: 3.154357597 | L55: 19459303.25 | M55: 18069670.82 | N55: 0.05546666667 | O55: 0.01645451034
A56: 54 | B56: 3.161060388 | C56: 68277625.71 | D56: 71676393.7 | E56: 0.04891666667 | F56: 0.01437529451 | K56: 3.210839583 | L56: 21143767.66 | M56: 24031052.44 | N56: 0.04723333333 | O56: 0.0136516631
A57: 55 | B57: 3.206806857 | C57: 65896697.22 | D57: 65611037.42 | E57: 0.04656666667 | F57: 0.01503881234 | K57: 3.255794824 | L57: 19284539.5 | M57: 23218074.05 | N57: 0.0459 | O57: 0.0125595189
A58: 56 | B58: 3.25282338 | C58: 64503256.66 | D58: 63905656.3 | E58: 0.05328333333 | F58: 0.01477402104 | K58: 3.303691921 | L58: 19892674.76 | M58: 18168578.82 | N58: 0.05631666667 | O58: 0.01713180538
A59: 57 | B59: 3.311049001 | C59: 69407815.44 | D59: 72963628.91 | E59: 0.0506 | F59: 0.0145322199 | K59: 3.359787113 | L59: 20260281.85 | M59: 24660688.2 | N59: 0.0474 | O59: 0.01237874484
A60: 58 | B60: 3.358693874 | C60: 62931008.17 | D60: 68384483.14 | E60: 0.04186666667 | F60: 0.01387240157 | K60: 3.405636495 | L60: 19464358.28 | M60: 22516530.94 | N60: 0.0533 | O60: 0.01272058702
A61: 59 | B61: 3.401797759 | C61: 73217169.25 | D61: 60793308.93 | E61: 0.05548333333 | F61: 0.01837835804 | K61: 3.460073733 | L61: 18739215.06 | M61: 18097919.45 | N61: 0.04775 | O61: 0.01661433879
A62: 60 | B62: 3.461859688 | C62: 65593185.26 | D62: 66156163.86 | E62: 0.04773333333 | F62: 0.01540637814 | K62: 3.509329277 | L62: 19868185.59 | M62: 23545465.61 | N62: 0.04773333333 | O62: 0.01259354577
A63: 61 | B63: 3.506798388 | C63: 72993653.65 | D63: 72688974.97 | E63: 0.05093333333 | F63: 0.0155766027 | K63: 3.554726761 | L63: 19074734.02 | M63: 22614301.51 | N63: 0.05413333333 | O63: 0.01260630328
A64: 62 | B64: 3.559140592 | C64: 74040729.07 | D64: 73495443.66 | E64: 0.0516 | F64: 0.01538173108 | K64: 3.611598924 | L64: 20003178.63 | M64: 20150190.78 | N64: 0.04756666667 | O64: 0.01578244775
A65: 63 | B65: 3.61094599 | C65: 73006041.39 | D65: 78002054.3 | E65: 0.04926666667 | F65: 0.01449694085 | K65: 3.658943324 | L65: 19345926.26 | M65: 23315821.31 | N65: 0.05261666667 | O65: 0.01237741638
A66: 64 | B66: 3.658552804 | C66: 71181482.23 | D66: 74126447.74 | E66: 0.04756666667 | F66: 0.01387939936 | K66: 3.708334821 | L66: 18099306.9 | M66: 19071986.9 | N66: 0.04858333333 | O66: 0.0148420305
A67: 65 | B67: 3.708086892 | C67: 66985048.99 | D67: 58793762.1 | E67: 0.05263333333 | F67: 0.01827385919 | K67: 3.761376855 | L67: 20447602.33 | M67: 22908483.24 | N67: 0.04756666667 | O67: 0.01370896691
A68: 66 | B68: 3.762016924 | C68: 68417734.05 | D68: 64364258.88 | E68: 0.04841666667 | F68: 0.01631961482 | K68: 3.806301227 | L68: 19802599.82 | M68: 23424202.18 | N68: 0.04573333333 | O68: 0.01291543493
A69: 67 | B69: 3.807406015 | C69: 67479009.95 | D69: 73411687.09 | E69: 0.0459 | F69: 0.0142272978 | K69: 3.862540127 | L69: 19201982.41 | M69: 20151538.9 | N69: 0.04806666667 | O69: 0.01512688085
A70: 68 | B70: 3.858489247 | C70: 72015002.36 | D70: 60417985.93 | E70: 0.05513333333 | F70: 0.01911514204 | K70: 3.910256117 | L70: 18471153.9 | M70: 21194457.37 | N70: 0.0474 | O70: 0.01277785817
A71: 69 | B71: 3.911598389 | C71: 63303281.66 | D71: 68884762.99 | E71: 0.04876666667 | F71: 0.01407275722 | K71: 3.95596699 | L71: 19947804.41 | M71: 22206606.77 | N71: 0.05363333333 | O71: 0.01317476505
A72: 70 | B72: 3.958857874 | C72: 67821119.58 | D72: 70417577.97 | E72: 0.05076666667 | F72: 0.01449329029 | K72: 4.013122226 | L72: 20145875.7 | M72: 22447759.16 | N72: 0.04758333333 | O72: 0.01372885932
A73: 71 | B73: 4.010709296 | C73: 64734372.14 | D73: 59789297.99 | E73: 0.05093333333 | F73: 0.01748062087 | K73: 4.059775242 | L73: 19809486.4 | M73: 22336983.82 | N73: 0.04673333333 | O73: 0.01307099812
A74: 72 | B74: 4.062233197 | C74: 66493831.1 | D74: 67109802.7 | E74: 0.04573333333 | F74: 0.01540397389 | K74: 4.104217814 | L74: 20505125.37 | M74: 24471392.51 | N74: 0.05295 | O74: 0.0125033659
A75: 73 | B75: 4.106889499 | C75: 67866182.46 | D75: 57747073.72 | E75: 0.05211666667 | F75: 0.01858658345 | K75: 4.162756866 | L75: 20220292.3 | M75: 22951964.24 | N75: 0.04943333333 | O75: 0.01337623892
A76: 74 | B76: 4.162781769 | C76: 65615244.66 | D76: 62660932.97 | E76: 0.05043333333 | F76: 0.01652230796 | K76: 4.209187414 | L76: 18674620.05 | M76: 21861472.94 | N76: 0.04471666667 | O76: 0.01286611459
A77: 75 | B77: 4.210131488 | C77: 65818571.55 | D77: 70381050.24 | E77: 0.04623333333 | F77: 0.01437206118 | K77: 4.255245619 | L77: 20190256.96 | M77: 16702523.25 | N77: 0.0548 | O77: 0.01894345704
A78: 76 | B78: 4.255604456 | C78: 71132541.59 | D78: 71991019.74 | E78: 0.05413333333 | F78: 0.01461845343 | K78: 4.313445624 | L78: 19224409.23 | M78: 23362772.53 | N78: 0.04756666667 | O78: 0.01240954146
A79: 77 | B79: 4.313886192 | C79: 66783230.41 | D79: 70642571.05 | E79: 0.04975 | F79: 0.01431461301 | K79: 4.355989803 | L79: 20088992.64 | M79: 23093840.21 | N79: 0.0449 | O79: 0.01349971387
A80: 78 | B80: 4.360158554 | C80: 70439238.27 | D80: 75201029.03 | E80: 0.0501 | F80: 0.01394213734 | K80: 4.415182919 | L80: 20280410.41 | M80: 20748283.62 | N80: 0.04858333333 | O80: 0.01520205898
A81: 79 | B81: 4.414263289 | C81: 66120955.52 | D81: 58321929.51 | E81: 0.05128333333 | F81: 0.01813598216 | K81: 4.459501292 | L81: 20570933.46 | M81: 25198936.97 | N81: 0.04488333333 | O81: 0.01257162114
A82: 80 | B82: 4.463495242 | C82: 66499264.55 | D82: 69721342.88 | E82: 0.04706666667 | F82: 0.01455304267 | K82: 4.505926242 | L82: 20431051.72 | M82: 21512940.82 | N82: 0.05698333333 | O82: 0.01372196406
A83: 81 | B83: 4.50955055 | C83: 75951943.7 | D83: 82818185.78 | E83: 0.04673333333 | F83: 0.01389499138 | K83: 4.564183539 | L83: 20780015.13 | M83: 24972080.06 | N83: 0.04708333333 | O83: 0.01282351208
A84: 82 | B84: 4.560346557 | C84: 71809936.7 | D84: 55096324.56 | E84: 0.05581666667 | F84: 0.02151283021 | K84: 4.610062445 | L84: 21236358.08 | M84: 25073264.14 | N84: 0.04806666667 | O84: 0.0124545016
A85: 83 | B85: 4.614062884 | C85: 81471103.95 | D85: 89390542.83 | E85: 0.04555 | F85: 0.01388619304 | K85: 4.65840287 | L85: 20147662.63 | M85: 17729586.88 | N85: 0.05515 | O85: 0.01863787424
A86: 84 | B86: 4.6592499 | C86: 71211588.16 | D86: 63735003.44 | E86: 0.05346666667 | F86: 0.01723679257 | K86: 4.714260761 | L86: 19507406.7 | M86: 23557480.74 | N86: 0.04606666667 | O86: 0.01237647862
A87: 85 | B87: 4.716155014 | C87: 70926818.15 | D87: 63879741.83 | E87: 0.04908333333 | F87: 0.017512654 | K87: 4.759882797 | L87: 19243340.46 | M87: 22226692.89 | N87: 0.0496 | O87: 0.01289697627
A88: 86 | B88: 4.762284512 | C88: 78383289.07 | D88: 79231286.46 | E88: 0.04455 | F88: 0.01555625905 | K88: 4.812407266 | L88: 21215557.42 | M88: 19713263.22 | N88: 0.05193333333 | O88: 0.01733755508
A89: 87 | B89: 4.806080596 | C89: 66582245.79 | D89: 69312725.02 | E89: 0.0543 | F89: 0.01462444343 | K89: 4.86420043 | L89: 20450451.58 | M89: 24578835.05 | N89: 0.04791666667 | O89: 0.01245897851
A90: 88 | B90: 4.865199124 | C90: 67917048.8 | D90: 73108756.44 | E90: 0.04841666667 | F90: 0.01438286657 | K90: 4.908793054 | L90: 19284175.25 | M90: 21718188.07 | N90: 0.05211666667 | O90: 0.01324705973
A91: 89 | B91: 4.91107579 | C91: 69199849.3 | D91: 68431743.68 | E91: 0.05078333333 | F91: 0.01487440855 | K91: 4.96508592 | L91: 20402819.02 | M91: 19747092.37 | N91: 0.04908333333 | O91: 0.01647537836
A92: 90 | B92: 4.966030089 | C92: 70848619.1 | D92: 62044931.11 | E92: 0.05193333333 | F92: 0.01832758676 | K92: 5.013691587 | L92: 19779376.7 | M92: 22320569.48 | N92: 0.0538 | O92: 0.01314604676
A93: 91 | B93: 5.014765061 | C93: 65972631.57 | D93: 68400688.5 | E93: 0.0479 | F93: 0.01447622964 | K93: 5.063551632 | L93: 19318138.27 | M93: 21405164.32 | N93: 0.04808333333 | O93: 0.01362869655
A94: 92 | B94: 5.061519731 | C94: 63991677.61 | D94: 64924884.65 | E94: 0.0454 | F94: 0.01470978726 | K94: 5.115724977 | L94: 21697118.9 | M94: 23575346.64 | N94: 0.04791666667 | O94: 0.01415925306
A95: 93 | B95: 5.11111248 | C95: 71565796.68 | D95: 49127367.64 | E95: 0.05631666667 | F95: 0.02399866981 | K95: 5.160473541 | L95: 20546397.58 | M95: 23699486.29 | N95: 0.05228333333 | O95: 0.01316933973
A96: 94 | B96: 5.165022704 | C96: 63781584.77 | D96: 68367745.37 | E96: 0.04673333333 | F96: 0.01408825183 | K96: 5.215172171 | L96: 19405674.39 | M96: 18674295.77 | N96: 0.04875 | O96: 0.01666134542
A97: 95 | B97: 5.211338226 | C97: 68948995.45 | D97: 66957840.71 | E97: 0.04993333333 | F97: 0.01535105744 | K97: 5.264096179 | L97: 20381602.65 | M97: 24359817.24 | N97: 0.04725 | O97: 0.01254797302
A98: 96 | B98: 5.26453905 | C98: 70343444.65 | D98: 55594351.77 | E98: 0.05178333333 | F98: 0.0203825891 | K98: 5.309869793 | L98: 19304333.79 | M98: 21886252.24 | N98: 0.05496666667 | O98: 0.01313521544
A99: 97 | B99: 5.315020648 | C99: 63458073.94 | D99: 57727893.21 | E99: 0.04941666667 | F99: 0.01714489926 | K99: 5.367855712 | L99: 21237650.66 | M99: 22703906.18 | N99: 0.04858333333 | O99: 0.01440489824
A100: 98 | B100: 5.36499771 | C100: 66934920.24 | D100: 58429704.96 | E100: 0.05296666667 | F100: 0.01808152139 | K100: 5.414528045 | L100: 21156864.77 | M100: 25005266.32 | N100: 0.04556666667 | O100: 0.01264875667
A101: 99 | B101: 5.416871046 | C101: 57344283.81 | D101: 60014029.98 | E101: 0.04941666667 | F101: 0.01478271842 | K101: 5.45955272 | L101: 19829435.18 | M101: 22474851.47 | N101: 0.0553 | O101: 0.01296538459
A102: 100 | B102: 5.467138824 | C102: 65645122.17 | D102: 63509009.03 | E102: 0.04773333333 | F102: 0.01508437282 | K102: 5.518125016 | L102: 19200131.54 | M102: 21484013.26 | N102: 0.04806666667 | O102: 0.01355059046
A103: 101 | B103: 5.512572313 | C103: 66797542.08 | D103: 60478324.82 | E103: 0.04993333333 | F103: 0.01733155168 | K103: 5.564356876 | L103: 20367480.03 | M103: 23850451.7 | N103: 0.05043333333 | O103: 0.01262294915
A104: 102 | B104: 5.566673421 | C104: 65090194.97 | D104: 60960825.04 | E104: 0.05145 | F104: 0.01676602562 | K104: 5.612655744 | L104: 19027422.44 | M104: 20239013.98 | N104: 0.04943333333 | O104: 0.01420131993
A105: 103 | B105: 5.617662355 | C105: 67499884.68 | D105: 69769520.04 | E105: 0.04858333333 | F105: 0.01514162339 | K105: 5.66606937 | L105: 17662413.76 | M105: 17796464.85 | N105: 0.04808333333 | O105: 0.01555033263
A106: 104 | B106: 5.665472607 | C106: 61438488.89 | D106: 66356065.54 | E106: 0.04908333333 | F106: 0.01361284878 | K106: 5.712756096 | L106: 20400075.5 | M106: 21010291.92 | N106: 0.05363333333 | O106: 0.0148414867
A107: 105 | B107: 5.714042839 | C107: 69068197.05 | D107: 67220891.35 | E107: 0.04976666667 | F107: 0.01601192786 | K107: 5.764774672 | L107: 18629267.33 | M107: 20328794.79 | N107: 0.04808333333 | O107: 0.01438978921
A108: 106 | B108: 5.768335387 | C108: 65340173.93 | D108: 63185786.83 | E108: 0.0474 | F108: 0.01626787107 | K108: 5.816385784 | L108: 19751253.29 | M108: 21408775.3 | N108: 0.0474 | O108: 0.01434896659
A109: 107 | B109: 5.812017424 | C109: 68532843.18 | D109: 73053710.05 | E109: 0.04925 | F109: 0.01458956263 | K109: 5.860211082 | L109: 19372566.57 | M109: 22535485.2 | N109: 0.04371666667 | O109: 0.01320305139
A110: 108 | B110: 5.87024675 | C110: 71860293.05 | D110: 59648061.72 | E110: 0.05161666667 | F110: 0.01946945126 | K110: 5.918109413 | L110: 20190746.48 | M110: 22611671 | N110: 0.04758333333 | O110: 0.01378305962
A111: 109 | B111: 5.915480021 | C111: 65404911.18 | D111: 64937169.74 | E111: 0.04875 | F111: 0.01564218889 | K111: 5.964403565 | L111: 18433467.47 | M111: 21382503.76 | N111: 0.0474 | O111: 0.01261908671
A112: 110 | B112: 5.963284575 | C112: 62489961.84 | D112: 65511117.09 | E112: 0.04891666667 | F112: 0.01433723225 | K112: 6.009340325 | L112: 19087367.37 | M112: 21480670.44 | N112: 0.05396666667 | O112: 0.01325799383
A113: 111 | B113: 6.015918604 | C113: 63350573.09 | D113: 57892089.73 | E113: 0.0516 | F113: 0.01754804935 | K113: 6.068377741 | L113: 19539565.97 | M113: 22642382.75 | N113: 0.04925 | O113: 0.01291982201
A114: 112 | B114: 6.066209728 | C114: 63376377.69 | D114: 64430130.09 | E114: 0.05043333333 | F114: 0.01524439482 | K114: 6.114389658 | L114: 20129229.51 | M114: 24372072.14 | N114: 0.04573333333 | O114: 0.01246298673
A115: 113 | B115: 6.121937981 | C115: 69712954.43 | D115: 56368580.34 | E115: 0.04488333333 | F115: 0.02041724769 | K115: 6.162161898 | L115: 19166318.69 | M115: 16818141.39 | N115: 0.0553 | O115: 0.01889821502
A116: 114 | B116: 6.162663184 | C116: 67430896.25 | D116: 54927325.27 | E116: 0.0501 | F116: 0.01996462723 | K116: 6.218279743 | L116: 19931011.42 | M116: 23652758.88 | N116: 0.04706666667 | O116: 0.01264935955
A117: 115 | B117: 6.219201249 | C117: 66884136.53 | D117: 60131418.04 | E117: 0.0491 | F117: 0.01765327499 | K117: 6.263746423 | L117: 19663215.43 | M117: 23192871.89 | N117: 0.05278333333 | O117: 0.01265892495
A118: 116 | B118: 6.266768471 | C118: 70887938.76 | D118: 69850874.52 | E118: 0.04858333333 | F118: 0.01612389654 | K118: 6.317142834 | L118: 19099481.85 | M118: 18778060.76 | N118: 0.0496 | O118: 0.01641032572
A119: 117 | B119: 6.315567852 | C119: 59819814.66 | D119: 63642555.54 | E119: 0.05261666667 | F119: 0.01415245565 | K119: 6.36868632 | L119: 19388678.98 | M119: 23145034.88 | N119: 0.04573333333 | O119: 0.01254132328
A120: 118 | B120: 6.370064906 | C120: 63052853.78 | D120: 68924618.25 | E120: 0.04555 | F120: 0.0143631751 | K120: 6.413924015 | L120: 19994998.64 | M120: 19186216.16 | N120: 0.0538 | O120: 0.0159422119
A121: 119 | B121: 6.413722333 | C121: 65804815.33 | D121: 64353017.19 | E121: 0.05128333333 | F121: 0.01598791297 | K121: 6.468917755 | L121: 19163427.17 | M121: 18684518.43 | N121: 0.04756666667 | O121: 0.01631370182
A122: 120 | B122: 6.471166559 | C122: 64875045.94 | D122: 57357337.71 | E122: 0.05078333333 | F122: 0.01821729245 | K122: 6.515261214 | L122: 19528738.61 | M122: 21937242.29 | N122: 0.04556666667 | O122: 0.01382952494
A123: 121 | B123: 6.518333042 | C123: 67218826.65 | D123: 68224746.77 | E123: 0.04773333333 | F123: 0.01534712061 | K123: 6.561686939 | L123: 20887976.28 | M123: 19792777.08 | N123: 0.05715 | O123: 0.0152456193
A124: 122 | B124: 6.563864901 | C124: 64224289.13 | D124: 64595262.99 | E124: 0.05396666667 | F124: 0.01432080125 | K124: 6.618957276 | L124: 19438153.84 | M124: 23132566.81 | N124: 0.0469 | O124: 0.01280915677
A125: 123 | B125: 6.622331075 | C125: 67512423.95 | D125: 71362780.02 | E125: 0.05161666667 | F125: 0.01458754181 | K125: 6.664332951 | L125: 19559878.07 | M125: 23210414.88 | N125: 0.0464 | O125: 0.01256326475
A126: 124 | B126: 6.670670011 | C126: 61062673.01 | D126: 68213494.67 | E126: 0.04488333333 | F126: 0.01357703059 | K126: 6.718852585 | L126: 18845858.84 | M126: 18812823.36 | N126: 0.04891666667 | O126: 0.01592420348
A127: 125 | B127: 6.716749925 | C127: 70359042.54 | D127: 66413124.92 | E127: 0.05261666667 | F127: 0.01592648033 | K127: 6.768529074 | L127: 18839391.46 | M127: 22349309.35 | N127: 0.04673333333 | O127: 0.01267612206
A128: 126 | B128: 6.769907253 | C128: 62437905.25 | D128: 61391931.43 | E128: 0.05026666667 | F128: 0.01606337978 | K128: 6.814203015 | L128: 19781147.55 | M128: 22736008.09 | N128: 0.0538 | O128: 0.01269576792
A129: 127 | B129: 6.821270833 | C129: 63616429.57 | D129: 67616327.12 | E129: 0.04908333333 | F129: 0.01441408527 | K129: 6.870299639 | L129: 19163667.86 | M129: 19354692.12 | N129: 0.04706666667 | O129: 0.01572214731
A130: 128 | B130: 6.868375402 | C130: 63353492.58 | D130: 67913278.5 | E130: 0.04235 | F130: 0.01382019798 | K130: 6.918263897 | L130: 19349682.82 | M130: 22953466.99 | N130: 0.04673333333 | O130: 0.01271789551
A131: 129 | B131: 6.913643542 | C131: 73524752.28 | D131: 54120179.77 | E131: 0.05346666667 | F131: 0.02202513897 | K131: 6.963388505 | L131: 20379711.27 | M131: 19559066.51 | N131: 0.05496666667 | O131: 0.01571001924
A132: 130 | B132: 6.97140053 | C132: 65568181.35 | D132: 60992301.16 | E132: 0.04891666667 | F132: 0.01678310225 | K132: 7.020256536 | L132: 19591056.82 | M132: 20109923.94 | N132: 0.04741666667 | O132: 0.0153910507
A133: 131 | B133: 7.017269543 | C133: 70646920.9 | D133: 68183825.16 | E133: 0.05161666667 | F133: 0.01582462114 | K133: 7.065366711 | L133: 20102281.55 | M133: 23306919.1 | N133: 0.04621666667 | O133: 0.01334702306
A134: 132 | B134: 7.072619634 | C134: 66060080.89 | D134: 60939140.21 | E134: 0.0501 | F134: 0.0173865741 | K134: 7.122933941 | L134: 20930807.5 | M134: 19224290.44 | N134: 0.04925 | O134: 0.01772548733
A135: 133 | B135: 7.120832885 | C135: 66129828.97 | D135: 67942472.04 | E135: 0.04825 | F135: 0.01498960638 | K135: 7.169890892 | L135: 20209057.08 | M135: 23766791.91 | N135: 0.0459 | O135: 0.01299235831
A136: 134 | B136: 7.16782137 | C136: 61347936.93 | D136: 66942071.74 | E136: 0.04403333333 | F136: 0.0139484516 | K136: 7.215332395 | L136: 20555272.83 | M136: 22786272.94 | N136: 0.05548333333 | O136: 0.01301538559
A137: 135 | B137: 7.214879933 | C137: 72743800.15 | D137: 52970003.06 | E137: 0.05716666667 | F137: 0.02306884662 | K137: 7.272946204 | L137: 19814148.83 | M137: 22543194.41 | N137: 0.04841666667 | O137: 0.01335978927
A138: 136 | B138: 7.272440564 | C138: 60046524.64 | D138: 66159072.82 | E138: 0.04573333333 | F138: 0.01361212098 | K138: 7.319343863 | L138: 19889398.94 | M138: 21933072.69 | N138: 0.0459 | O138: 0.01345408859
A139: 137 | B139: 7.316452797 | C139: 66060880.69 | D139: 65546241.07 | E139: 0.05345 | F139: 0.01528559519 | K139: 7.364591686 | L139: 19380237.61 | M139: 22246812.61 | N139: 0.05411666667 | O139: 0.01302935505
A140: 138 | B140: 7.376101039 | C140: 71270608.37 | D140: 71383766.01 | E140: 0.0506 | F140: 0.01550032832 | K140: 7.422591656 | L140: 19630689.1 | M140: 22605844.39 | N140: 0.04841666667 | O140: 0.01305680191
A141: 139 | B141: 7.422203705 | C141: 68844219.76 | D141: 76597190.21 | E141: 0.04521666667 | F141: 0.01362526025 | K141: 7.469530591 | L141: 20484790.07 | M141: 23860328.75 | N141: 0.04656666667 | O141: 0.01280120468
A142: 140 | B142: 7.46696541 | C142: 68485188.12 | D142: 71317494.58 | E142: 0.05161666667 | F142: 0.01466471933 | K142: 7.514414059 | L142: 20536457.84 | M142: 22906827.33 | N142: 0.05261666667 | O142: 0.01329300493
A143: 141 | B143: 7.524887449 | C143: 67606227.59 | D143: 62496528.22 | E143: 0.05176666667 | F143: 0.01694579839 | K143: 7.572729113 | L143: 19716006.54 | M143: 22251646.25 | N143: 0.0479 | O143: 0.01341828374
A144: 142 | B144: 7.572621775 | C144: 61024708.46 | D144: 66936668.18 | E144: 0.04506666667 | F144: 0.01415024079 | K144: 7.61733152 | L144: 20424429.63 | M144: 21518348.09 | N144: 0.05396666667 | O144: 0.01431129712
A145: 143 | B145: 7.618729279 | C145: 69468755.29 | D145: 68138552.57 | E145: 0.05413333333 | F145: 0.01478977287 | K145: 7.671752419 | L145: 20023318.23 | M145: 20717529.95 | N145: 0.04808333333 | O145: 0.01545192267
A146: 144 | B146: 7.675576819 | C146: 65985331.95 | D146: 60996769.71 | E146: 0.04958333333 | F146: 0.01729408664 | K146: 7.720451157 | L146: 20008600.43 | M146: 22788918.96 | N146: 0.04673333333 | O146: 0.01351905533
A147: 145 | B147: 7.722697694 | C147: 63393253.92 | D147: 65609363.58 | E147: 0.04775 | F147: 0.0144273776 | K147: 7.765457983 | L147: 20056349.44 | M147: 22029341.53 | N147: 0.05531666667 | O147: 0.01293861742
A148: 146 | B148: 7.769065704 | C148: 71370138.01 | D148: 69498867.65 | E148: 0.05178333333 | F148: 0.01540153427 | K148: 7.823993968 | L148: 20493359.95 | M148: 24519762.28 | N148: 0.04706666667 | O148: 0.01281038762
A149: 147 | B149: 7.826016812 | C149: 69648346.76 | D149: 70867088.17 | E149: 0.05093333333 | F149: 0.01501009722 | K149: 7.869869044 | L149: 21301105.03 | M149: 24928200.54 | N149: 0.0479 | O149: 0.01258767049
A150: 148 | B150: 7.873031588 | C150: 67972575.31 | D150: 69981046.72 | E150: 0.04623333333 | F150: 0.01452903006 | K150: 7.917783656 | L150: 20463809.44 | M150: 17922975.66 | N150: 0.05515 | O150: 0.01897281679
A151: 149 | B151: 7.921049831 | C151: 68354822.07 | D151: 56821964.48 | E151: 0.0543 | F151: 0.01934882231 | K151: 7.97377957 | L151: 20669950.32 | M151: 24504483.93 | N151: 0.04673333333 | O151: 0.01273992503
A152: 150 | B152: 7.976396595 | C152: 68771390.37 | D152: 71678592.3 | E152: 0.04825 | F152: 0.01469165618 | K152: 8.019403639 | L152: 19840240.6 | M152: 23492311.91 | N152: 0.04825 | O152: 0.01265134066
A153: 151 | B153: 8.022583275 | C153: 67759212.95 | D153: 74471390.95 | E153: 0.04571666667 | F153: 0.01402108042 | K153: 8.072977888 | L153: 19245522.99 | M153: 16462755.86 | N153: 0.05311666667 | O153: 0.01851332929
A154: 152 | B154: 8.068705973 | C154: 66982361.4 | D154: 65473128.16 | E154: 0.05463333333 | F154: 0.01522928227 | K154: 8.123140694 | L154: 18495292.13 | M154: 21737207.88 | N154: 0.04841666667 | O154: 0.01268540066
A155: 153 | B155: 8.126533773 | C155: 65380070.52 | D155: 69274370.12 | E155: 0.04673333333 | F155: 0.0144965919 | K155: 8.16866173 | L155: 20321187.01 | M155: 24105784.08 | N155: 0.05295 | O155: 0.01253082742
A156: 154 | B156: 8.171274743 | C156: 72145486.72 | D156: 64159432 | E156: 0.05245 | F156: 0.0170262984 | K156: 8.225261146 | L156: 20281498.57 | M156: 20346053.18 | N156: 0.04808333333 | O156: 0.01582704331
A157: 155 | B157: 8.227050743 | C157: 69289813.2 | D157: 58881574.7 | E157: 0.04993333333 | F157: 0.01902148831 | K157: 8.27306072 | L157: 19614081.56 | M157: 22518723.23 | N157: 0.05093333333 | O157: 0.013121268
A158: 156 | B158: 8.274636225 | C158: 66146151.78 | D158: 64717624.86 | E158: 0.04656666667 | F158: 0.01594142459 | K158: 8.322057196 | L158: 18761151.84 | M158: 21139438.71 | N158: 0.0501 | O158: 0.01305774106
A159: 157 | B159: 8.319444626 | C159: 68542802.61 | D159: 65254948.83 | E159: 0.05498333333 | F159: 0.01509518598 | K159: 8.375174879 | L159: 20668164.37 | M159: 23330443.08 | N159: 0.04758333333 | O159: 0.01382609412
A160: 158 | B160: 8.377588396 | C160: 67708219.22 | D160: 72575638.58 | E160: 0.04941666667 | F160: 0.01445222766 | K160: 8.419408175 | L160: 20282889.62 | M160: 23598489.71 | N160: 0.05413333333 | O160: 0.01265657137
A161: 159 | B161: 8.425873519 | C161: 64561326.33 | D161: 67600658.6 | E161: 0.0479 | F161: 0.01402841117 | K161: 8.474859444 | L161: 19805870.41 | M161: 18623897.19 | N161: 0.04756666667 | O161: 0.01718319977
A162: 160 | B162: 8.472834957 | C162: 68700741.51 | D162: 67664412.67 | E162: 0.05043333333 | F162: 0.01560288043 | K162: 8.523804043 | L162: 20577914.76 | M162: 24672958.16 | N162: 0.0479 | O162: 0.01258337646
A163: 161 | B163: 8.527866246 | C163: 68320991.74 | D163: 61304142.32 | E163: 0.05211666667 | F163: 0.01740502269 | K163: 8.569278925 | L163: 18585019.09 | M163: 20747274.9 | N163: 0.05481666667 | O163: 0.01318412057
A164: 162 | B164: 8.576164416 | C164: 64550850.58 | D164: 70097944.66 | E164: 0.04353333333 | F164: 0.01398703835 | K164: 8.626685706 | L164: 20277277.56 | M164: 21391605.43 | N164: 0.0474 | O164: 0.01482900172
A165: 163 | B165: 8.620405986 | C165: 69677638.12 | D165: 62104621.43 | E165: 0.05396666667 | F165: 0.01696718512 | K165: 8.673294078 | L165: 18322389.3 | M165: 21699769.83 | N165: 0.04808333333 | O165: 0.0125470769
A166: 164 | B166: 8.677370509 | C166: 64146293.83 | D166: 59852073.9 | E166: 0.0486 | F166: 0.01704775451 | K166: 8.719661694 | L166: 19241696.9 | M166: 19412965.42 | N166: 0.05245 | O166: 0.01416892872
A167: 165 | B167: 8.723534531 | C167: 66121913.11 | D167: 67506568.41 | E167: 0.05143333333 | F167: 0.01503097362 | K167: 8.776673808 | L167: 18872380.67 | M167: 20828297.7 | N167: 0.04941666667 | O167: 0.0137749068
A168: 166 | B168: 8.779476701 | C168: 69605378.07 | D168: 57380388.56 | E168: 0.05195 | F168: 0.01965377626 | K168: 8.823176478 | L168: 20332437.19 | M168: 24650337.96 | N168: 0.05076666667 | O168: 0.01227914185
A169: 167 | B169: 8.82729246 | C169: 64943817.16 | D169: 70172156.4 | E169: 0.04623333333 | F169: 0.01420600264 | K169: 8.872077912 | L169: 19845823.46 | M169: 24067665.56 | N169: 0.04858333333 | O169: 0.0122475631
A170: 168 | B170: 8.872982713 | C170: 65928643.74 | D170: 66062689.02 | E170: 0.05195 | F170: 0.01486735877 | K170: 8.926246543 | L170: 19272593.05 | M170: 20705445.7 | N170: 0.04841666667 | O170: 0.01429511016
A171: 169 | B171: 8.929522256 | C171: 68825695.37 | D171: 65522345.09 | E171: 0.05178333333 | F171: 0.01630210069 | K171: 8.970441589 | L171: 19747792.63 | M171: 23120612.9 | N171: 0.0464 | O171: 0.01303583281
A172: 170 | B172: 8.977854638 | C172: 65474875.84 | D172: 67148023.07 | E172: 0.04573333333 | F172: 0.01469410838 | K172: 9.027741222 | L172: 19785142.99 | M172: 18871173.11 | N172: 0.04858333333 | O172: 0.01691717213
A173: 171 | B173: 9.023220527 | C173: 68505578.72 | D173: 67973069.14 | E173: 0.05245 | F173: 0.01500661795 | K173: 9.07498566 | L173: 19211788.87 | M173: 21633635.01 | N173: 0.04723333333 | O173: 0.01324802366
A174: 172 | B174: 9.079140102 | C174: 58636017.62 | D174: 56656139.11 | E174: 0.04891666667 | F174: 0.01646475108 | K174: 9.120388601 | L174: 19337378.54 | M174: 20607029.44 | N174: 0.05481666667 | O174: 0.0136908278
A175: 173 | B175: 9.127465129 | C175: 66270761.94 | D175: 66291369.02 | E175: 0.04775 | F175: 0.01497424256 | K175: 9.17885909 | L175: 18572989.57 | M175: 21712998.14 | N175: 0.04791666667 | O175: 0.01281008445
A176: 174 | B176: 9.172734994 | C176: 65939744.58 | D176: 68321088.59 | E176: 0.0506 | F176: 0.0148971152 | K176: 9.224862741 | L176: 20270238.75 | M176: 21961813.5 | N176: 0.04588333333 | O176: 0.01350825586
A177: 175 | B177: 9.230066393 | C177: 67462359.26 | D177: 67395086.31 | E177: 0.04825 | F177: 0.01552101413 | K177: 9.269955709 | L177: 20119427.08 | M177: 21922485.15 | N177: 0.0538 | O177: 0.0132902892
A178: 176 | B178: 9.275126141 | C178: 66808489.06 | D178: 63340992.11 | E178: 0.05228333333 | F178: 0.0163045615 | K178: 9.328467093 | L178: 20407591.71 | M178: 23993802.11 | N178: 0.04841666667 | O178: 0.01274134854
A179: 177 | B179: 9.331394908 | C179: 68355728.34 | D179: 58003496.61 | E179: 0.04993333333 | F179: 0.01911448556 | K179: 9.374148875 | L179: 19443867.65 | M179: 21830427.86 | N179: 0.0469 | O179: 0.0133186508
A180: 178 | B180: 9.379152776 | C180: 66741789.96 | D180: 67733295.81 | E180: 0.04691666667 | F180: 0.01531002639 | K180: 9.423905481 | L180: 19604972.08 | M180: 16248416.95 | N180: 0.05311666667 | O180: 0.02025646804
A181: 179 | B181: 9.424251234 | C181: 67779629.72 | D181: 65792773.79 | E181: 0.05278333333 | F181: 0.0156255319 | K181: 9.478170974 | L181: 19818495.97 | M181: 23869510.24 | N181: 0.04706666667 | O181: 0.01243101321
A182: 180 | B182: 9.481435554 | C182: 68333411.88 | D182: 68961876.23 | E182: 0.04993333333 | F182: 0.01539836323 | K182: 9.521848566 | L182: 21245514.2 | M182: 22041931.85 | N182: 0.05396666667 | O182: 0.01477144514
A183: 181 | B183: 9.528379084 | C183: 67321204.18 | D183: 68056764.76 | E183: 0.0469 | F183: 0.01473412259 | K183: 9.578733246 | L183: 19281937.7 | M183: 19150957.31 | N183: 0.04841666667 | O183: 0.01597954442
A184: 182 | B184: 9.573804764 | C184: 67816272.05 | D184: 66802041.64 | E184: 0.05161666667 | F184: 0.01519176072 | K184: 9.625455655 | L184: 19770952.25 | M184: 22756539.73 | N184: 0.04556666667 | O184: 0.01338679332
A185: 183 | B185: 9.631963557 | C185: 65361945.44 | D185: 66332639.61 | E185: 0.04908333333 | F185: 0.01487766002 | K185: 9.672308515 | L185: 20925820.34 | M185: 18557078.31 | N185: 0.05631666667 | O185: 0.016549775
A186: 184 | B186: 9.677851039 | C186: 67686844.97 | D186: 66883398.07 | E186: 0.0459 | F186: 0.01521028369 | K186: 9.729219268 | L186: 19543261.98 | M186: 23017472.61 | N186: 0.0474 | O186: 0.01300912838
A187: 185 | B187: 9.723179355 | C187: 65612692.45 | D187: 63937882.37 | E187: 0.05446666667 | F187: 0.01512794631 | K187: 9.774564645 | L187: 19713284.81 | M187: 22167162.71 | N187: 0.04893333333 | O187: 0.01300222997
A188: 186 | B188: 9.781518914 | C188: 67790896.03 | D188: 72387432.26 | E188: 0.04841666667 | F188: 0.01410019979 | K188: 9.828844022 | L188: 19588289.8 | M188: 17137395.36 | N188: 0.05361666667 | O188: 0.0180724811
A189: 187 | B189: 9.828040001 | C189: 65283928.4 | D189: 65059151.8 | E189: 0.04588333333 | F189: 0.01516231401 | K189: 9.878334914 | L189: 19994271.28 | M189: 23916670.8 | N189: 0.04656666667 | O189: 0.01254531066
A190: 188 | B190: 9.873129058 | C190: 70962346.89 | D190: 71350779.25 | E190: 0.05346666667 | F190: 0.01482107781 | K190: 9.923711228 | L190: 20839475.4 | M190: 24032406.77 | N190: 0.05363333333 | O190: 0.01274791686
A191: 189 | B191: 9.93168276 | C191: 64141819.41 | D191: 68229070.14 | E191: 0.04875 | F191: 0.01412348409 | K191: 9.980131507 | L191: 19305439.37 | M191: 19176890.69 | N191: 0.04943333333 | O191: 0.01596084224
A192: 190 | B192: 9.977740104 | C192: 68746907.99 | D192: 71818413.28 | E192: 0.04438333333 | F192: 0.0144828719 | K192: 10.02834003 | L192: 18570510.81 | M192: 22071600.31 | N192: 0.0464 | O192: 0.0125799805
A193: 191 | B193: 10.02906894 | C193: 74134967.88 | D193: 51650882.91 | E193: 0.05631666667 | F193: 0.02379867275 | K193: 10.07376419 | L193: 19392611.08 | M193: 22231137.79 | N193: 0.05345 | O193: 0.01287761353
A194: 192 | B194: 10.08159963 | C194: 62284042.81 | D194: 68179889.5 | E194: 0.04588333333 | F194: 0.01384357207 | K194: 10.12990739 | L194: 20505951.71 | M194: 21017987.36 | N194: 0.0474 | O194: 0.01539515494
A195: 193 | B195: 10.12657682 | C195: 74104072.74 | D195: 65151316.65 | E195: 0.0538 | F195: 0.01712386103 | K195: 10.17669111 | L195: 20307129.5 | M195: 21680149.48 | N195: 0.05363333333 | O195: 0.01446686042
A196: 194 | B196: 10.18234304 | C196: 71354215.41 | D196: 68760910.12 | E196: 0.04841666667 | F196: 0.01642762634 | K196: 10.22792645 | L196: 18415140.69 | M196: 20514144.76 | N196: 0.04875 | O196: 0.01356673194
A197: 195 | B197: 10.22851138 | C197: 64693066.15 | D197: 66769455.55 | E197: 0.04725 | F197: 0.01491906616 | K197: 10.27975526 | L197: 19558429.66 | M197: 22141984.37 | N197: 0.04775 | O197: 0.01364135998
A198: 196 | B198: 10.28179668 | C198: 70196404.8 | D198: 52354597.59 | E198: 0.05581666667 | F198: 0.02185846127 | K198: 10.32482814 | L198: 20966909.16 | M198: 23573756.61 | N198: 0.0543 | O198: 0.01314314285
A199: 197 | B199: 10.33254414 | C199: 66046547.46 | D199: 71535022.52 | E199: 0.04623333333 | F199: 0.01433463628 | K199: 10.38218791 | L199: 19983313.87 | M199: 21137134.77 | N199: 0.04858333333 | O199: 0.01482504197
A200: 198 | B200: 10.37835036 | C200: 68333799.1 | D200: 69963139.31 | E200: 0.05076666667 | F200: 0.01445898421 | K200: 10.42911965 | L200: 18902499.25 | M200: 21456595.63 | N200: 0.04706666667 | O200: 0.01296211061
... 186 more rows

Sheet 12
A1: data associated with Fig 2c. Extended Data Fig 4a | G1: TIDA 1 C-N coupling: 384 Data points | BK1: TIDA 1 C-N coupling: 64 conditions
H3: LC-MS | AI3: NL-ADE-MS | BK3: Conditions | BL3: LC-MS | BN3: Average | BO3: LC-MS | BP3: DMSO | BQ3: DMF | BR3: DMAc | BS3: NMP | BU3: Conditions | BV3: NL-ADE-MS | BX3: Solvents(Average) | BY3: NL-ADE-MS | BZ3: DMSO | CA3: DMF | CB3: DMAc | CC3: NMP
H4: =K5 -> 0 | J4: processed data: LC-MS | K4: 1 | L4: 2 | M4: 3 | N4: 4 | O4: 5 | P4: 6 | Q4: 7 | R4: 8 | S4: 9 | T4: 10 | U4: 11 | V4: 12 | W4: 13 | X4: 14 | Y4: 15 | Z4: 16 | AA4: 17 | AB4: 18 | AC4: 19 | AD4: 20 | AE4: 21 | AF4: 22 | AG4: 23 | AH4: 24 | AI4: =AK5 -> 6 | AJ4: processed data:NL-ADE-MS | AK4: 1 | AL4: 2 | AM4: 3 | AN4: 4 | AO4: 5 | AP4: 6 | AQ4: 7 | AR4: 8 | AS4: 9 | AT4: 10 | AU4: 11 | AV4: 12 | AW4: 13 | AX4: 14 | AY4: 15 | AZ4: 16 | BA4: 17 | BB4: 18 | BC4: 19 | BD4: 20 | BE4: 21 | BF4: 22 | BG4: 23 | BH4: 24 | BJ4: A | BK4: cataCXium Pd G4, DBU_DMSO | BL4: =BP4 -> 0 | BM4: DMSO | BN4: =AVERAGE(BL4:BL19) -> 28 | BO4: A | BP4: =AVERAGE(K5,O5,S5,W5,AA5,AE5) -> 0 | BQ4: =AVERAGE(L5,P5,T5,X5,AB5,AF5) -> 0 | BR4: =AVERAGE(M5,Q5,U5,Y5,AC5,AG5) -> 0 | BS4: =AVERAGE(N5,R5,V5,Z5,AD5,AH5) -> 1 | BU4: cataCXium Pd G4, DBU_DMSO | BV4: =BZ4 -> 4 | BW4: DMSO | BX4: =AVERAGE(BV4:BV19) -> 24 | BY4: A | BZ4: =AVERAGE(AK5,AO5,AS5,AW5,BA5,BE5) -> 4 | CA4: =AVERAGE(AL5,AP5,AT5,AX5,BB5,BF5) -> 4 | CB4: =AVERAGE(AM5,AQ5,AU5,AY5,BC5,BG5) -> 4 | CC4: =AVERAGE(AN5,AR5,AV5,AZ5,BD5,BH5) -> 3
H5: =K6 -> 1 | J5: A | K5: 0 | L5: 0 | M5: 1 | N5: 1 | O5: 0 | P5: 0 | Q5: 0 | R5: 2 | S5: 1 | T5: 1 | U5: 1 | V5: 0 | W5: 0 | X5: 0 | Y5: 0 | Z5: 0 | AA5: 0 | AB5: 0 | AC5: 0 | AD5: 0 | AE5: 1 | AF5: 1 | AG5: 1 | AH5: 1 | AI5: =AK6 -> 6 | AJ5: A | AK5: 6 | AL5: 7 | AM5: 4 | AN5: 3 | AO5: 2 | AP5: 2 | AQ5: 1 | AR5: 2 | AS5: 4 | AT5: 5 | AU5: 6 | AV5: 4 | AW5: 3 | AX5: 3 | AY5: 3 | AZ5: 2 | BA5: 3 | BB5: 5 | BC5: 5 | BD5: 4 | BE5: 3 | BF5: 4 | BG5: 5 | BH5: 5 | BJ5: B | BK5: tBuXphos Pd G4, DBU_DMSO | BL5: 2 | BM5: DMF | BN5: =AVERAGE(BL20:BL35) -> 49 | BO5: B | BP5: 2 | BQ5: 39 | BR5: 40 | BS5: 32 | BU5: tBuXphos Pd G4, DBU_DMSO | BV5: =BZ5 -> 5 | BW5: DMF | BX5: =AVERAGE(BV20:BV35) -> 39 | BY5: B | BZ5: 5 | CA5: 41 | CB5: 34 | CC5: 33
H6: 4 | J6: B | K6: 1 | L6: 32 | M6: 36 | N6: 18 | O6: 0 | P6: 28 | Q6: 29 | R6: 26 | S6: 5 | T6: 76 | U6: 90 | V6: 82 | W6: 0 | X6: 10 | Y6: 7 | Z6: 2 | AA6: 1 | AB6: 48 | AC6: 37 | AD6: 33 | AE6: 1 | AF6: 42 | AG6: 42 | AH6: 32 | AI6: 6 | AJ6: B | AK6: 6 | AL6: 59 | AM6: 65 | AN6: 33 | AO6: 3 | AP6: 19 | AQ6: 18 | AR6: 21 | AS6: 7 | AT6: 53 | AU6: 55 | AV6: 74 | AW6: 3 | AX6: 14 | AY6: 12 | AZ6: 5 | BA6: 4 | BB6: 47 | BC6: 33 | BD6: 31 | BE6: 5 | BF6: 53 | BG6: 22 | BH6: 32 | BJ6: C | BK6: tBuBrettPhos Pd G4, DBU_DMSO | BL6: 7 | BM6: DMAc | BN6: =AVERAGE(BL36:BL51) -> 41 | BO6: C | BP6: 7 | BQ6: 61 | BR6: 44 | BS6: 30 | BU6: tBuBrettPhos Pd G4, DBU_DMSO | BV6: 7 | BW6: DMAc | BX6: =AVERAGE(BV36:BV51) -> 31 | BY6: C | BZ6: 7 | CA6: 42 | CB6: 35 | CC6: 32
H7: 52 | J7: C | K7: 4 | L7: 96 | M7: 71 | N7: 28 | O7: 2 | P7: 86 | Q7: 74 | R7: 47 | S7: 24 | T7: 96 | U7: 66 | V7: 78 | W7: 0 | X7: 3 | Y7: 1 | Z7: 1 | AA7: 7 | AB7: 61 | AC7: 41 | AD7: 18 | AE7: 3 | AF7: 22 | AG7: 9 | AH7: 4 | AI7: 70 | AJ7: C | AK7: 6 | AL7: 72 | AM7: 49 | AN7: 44 | AO7: 4 | AP7: 32 | AQ7: 31 | AR7: 32 | AS7: 19 | AT7: 47 | AU7: 53 | AV7: 56 | AW7: 2 | AX7: 8 | AY7: 5 | AZ7: 6 | BA7: 6 | BB7: 52 | BC7: 52 | BD7: 26 | BE7: 7 | BF7: 44 | BG7: 21 | BH7: 28 | BJ7: D | BK7: XantPhos Pd G4, DBU_DMSO | BL7: 68 | BM7: NMP | BN7: =AVERAGE(BL52:BL67) -> 26 | BO7: D | BP7: 68 | BQ7: 51 | BR7: 42 | BS7: 70 | BU7: XantPhos Pd G4, DBU_DMSO | BV7: 56 | BW7: NMP | BX7: =AVERAGE(BV52:BV67) -> 21 | BY7: D | BZ7: 56 | CA7: 40 | CB7: 27 | CC7: 45
H8: 2 | J8: D | K8: 52 | L8: 37 | M8: 34 | N8: 88 | O8: 53 | P8: 28 | Q8: 24 | R8: 60 | S8: 72 | T8: 65 | U8: 47 | V8: 66 | W8: 90 | X8: 68 | Y8: 62 | Z8: 84 | AA8: 81 | AB8: 44 | AC8: 24 | AD8: 55 | AE8: 60 | AF8: 62 | AG8: 63 | AH8: 67 | AI8: 1 | AJ8: D | AK8: 70 | AL8: 42 | AM8: 42 | AN8: 74 | AO8: 20 | AP8: 14 | AQ8: 15 | AR8: 42 | AS8: 56 | AT8: 47 | AU8: 48 | AV8: 66 | AW8: 83 | AX8: 46 | AY8: 26 | AZ8: 48 | BA8: 73 | BB8: 43 | BC8: 19 | BD8: 36 | BE8: 31 | BF8: 46 | BG8: 14 | BH8: 6 | BJ8: E | BK8: cataCXium Pd G4,BTMG_DMSO | BL8: 3 | BO8: E | BP8: 3 | BQ8: 2 | BR8: 2 | BS8: 2 | BU8: cataCXium Pd G4,BTMG_DMSO | BV8: 3 | BY8: E | BZ8: 3 | CA8: 3 | CB8: 3 | CC8: 3
H9: 13 | J9: E | K9: 2 | L9: 1 | M9: 1 | N9: 2 | O9: 1 | P9: 1 | Q9: 1 | R9: 1 | S9: 1 | T9: 1 | U9: 1 | V9: 0 | W9: 2 | X9: 1 | Y9: 0 | Z9: 1 | AA9: 7 | AB9: 3 | AC9: 2 | AD9: 3 | AE9: 4 | AF9: 7 | AG9: 4 | AH9: 4 | AI9: 10 | AJ9: E | AK9: 1 | AL9: 1 | AM9: 2 | AN9: 2 | AO9: 3 | AP9: 4 | AQ9: 4 | AR9: 2 | AS9: 2 | AT9: 8 | AU9: 5 | AV9: 3 | AW9: 2 | AX9: 1 | AY9: 1 | AZ9: 1 | BA9: 4 | BB9: 2 | BC9: 2 | BD9: 2 | BE9: 6 | BF9: 5 | BG9: 5 | BH9: 6 | BJ9: F | BK9: tBuXphos Pd G4,BTMG_DMSO | BL9: 6 | BO9: F | BP9: 6 | BQ9: 41 | BR9: 32 | BS9: 19 | BU9: tBuXphos Pd G4,BTMG_DMSO | BV9: 5 | BY9: F | BZ9: 5 | CA9: 29 | CB9: 21 | CC9: 16
H10: 23 | J10: F | K10: 13 | L10: 38 | M10: 23 | N10: 7 | O10: 4 | P10: 26 | Q10: 20 | R10: 12 | S10: 8 | T10: 87 | U10: 85 | V10: 67 | W10: 1 | X10: 5 | Y10: 3 | Z10: 2 | AA10: 4 | AB10: 47 | AC10: 22 | AD10: 9 | AE10: 5 | AF10: 41 | AG10: 40 | AH10: 16 | AI10: 15 | AJ10: F | AK10: 10 | AL10: 51 | AM10: 30 | AN10: 7 | AO10: 4 | AP10: 26 | AQ10: 22 | AR10: 12 | AS10: 6 | AT10: 59 | AU10: 53 | AV10: 55 | AW10: 1 | AX10: 3 | AY10: 2 | AZ10: 2 | BA10: 2 | BB10: 28 | BC10: 12 | BD10: 10 | BE10: 6 | BF10: 8 | BG10: 7 | BH10: 8 | BJ10: G | BK10: tBuBrettPhos Pd G4,BTMG_DMSO | BL10: 28 | BO10: G | BP10: 28 | BQ10: 64 | BR10: 31 | BS10: 26 | BU10: tBuBrettPhos Pd G4,BTMG_DMSO | BV10: 22 | BY10: G | BZ10: 22 | CA10: 46 | CB10: 27 | CC10: 21
H11: 91 | J11: G | K11: 23 | L11: 86 | M11: 19 | N11: 19 | O11: 20 | P11: 73 | Q11: 43 | R11: 27 | S11: 64 | T11: 93 | U11: 88 | V11: 76 | W11: 0 | X11: 2 | Y11: 1 | Z11: 1 | AA11: 23 | AB11: 76 | AC11: 18 | AD11: 22 | AE11: 36 | AF11: 54 | AG11: 19 | AH11: 12 | AI11: 64 | AJ11: G | AK11: 15 | AL11: 62 | AM11: 25 | AN11: 22 | AO11: 27 | AP11: 67 | AQ11: 50 | AR11: 24 | AS11: 58 | AT11: 69 | AU11: 66 | AV11: 48 | AW11: 2 | AX11: 2 | AY11: 2 | AZ11: 3 | BA11: 17 | BB11: 53 | BC11: 13 | BD11: 16 | BE11: 14 | BF11: 21 | BG11: 7 | BH11: 11 | BJ11: H | BK11: XantPhos Pd G4,BTMG_DMSO | BL11: 82 | BO11: H | BP11: 82 | BQ11: 85 | BR11: 80 | BS11: 80 | BU11: XantPhos Pd G4,BTMG_DMSO | BV11: 56 | BY11: H | BZ11: 56 | CA11: 68 | CB11: 56 | CC11: 52
H12: 2 | J12: H | K12: 91 | L12: 57 | M12: 41 | N12: 90 | O12: 91 | P12: 100 | Q12: 89 | R12: 91 | S12: 54 | T12: 89 | U12: 71 | V12: 41 | W12: 93 | X12: 100 | Y12: 95 | Z12: 92 | AA12: 94 | AB12: 96 | AC12: 87 | AD12: 93 | AE12: 69 | AF12: 66 | AG12: 100 | AH12: 72 | AI12: 6 | AJ12: H | AK12: 64 | AL12: 36 | AM12: 50 | AN12: 79 | AO12: 67 | AP12: 100 | AQ12: 61 | AR12: 44 | AS12: 43 | AT12: 72 | AU12: 59 | AV12: 41 | AW12: 50 | AX12: 89 | AY12: 86 | AZ12: 56 | BA12: 69 | BB12: 78 | BC12: 59 | BD12: 79 | BE12: 39 | BF12: 32 | BG12: 23 | BH12: 11 | BJ12: I | BK12: cataCXium Pd G4, MTBD_DMSO | BL12: 3 | BO12: I | BP12: 3 | BQ12: 2 | BR12: 1 | BS12: 1 | BU12: cataCXium Pd G4, MTBD_DMSO | BV12: 8 | BY12: I | BZ12: 8 | CA12: 8 | CB12: 6 | CC12: 4
H13: 7 | J13: I | K13: 2 | L13: 1 | M13: 1 | N13: 2 | O13: 1 | P13: 1 | Q13: 1 | R13: 0 | S13: 1 | T13: 1 | U13: 1 | V13: 1 | W13: 3 | X13: 1 | Y13: 0 | Z13: 0 | AA13: 6 | AB13: 3 | AC13: 1 | AD13: 2 | AE13: 4 | AF13: 2 | AG13: 2 | AH13: 2 | AI13: 9 | AJ13: I | AK13: 6 | AL13: 4 | AM13: 5 | AN13: 3 | AO13: 5 | AP13: 6 | AQ13: 6 | AR13: 3 | AS13: 7 | AT13: 10 | AU13: 7 | AV13: 5 | AW13: 4 | AX13: 3 | AY13: 2 | AZ13: 1 | BA13: 8 | BB13: 6 | BC13: 5 | BD13: 3 | BE13: 18 | BF13: 20 | BG13: 14 | BH13: 8 | BJ13: J | BK13: tBuXphos Pd G4, MTBD_DMSO | BL13: 11 | BO13: J | BP13: 11 | BQ13: 45 | BR13: 40 | BS13: 24 | BU13: tBuXphos Pd G4, MTBD_DMSO | BV13: 12 | BY13: J | BZ13: 12 | CA13: 37 | CB13: 36 | CC13: 20
H14: 19 | J14: J | K14: 7 | L14: 38 | M14: 30 | N14: 10 | O14: 4 | P14: 30 | Q14: 27 | R14: 10 | S14: 23 | T14: 100 | U14: 95 | V14: 90 | W14: 8 | X14: 5 | Y14: 4 | Z14: 3 | AA14: 15 | AB14: 44 | AC14: 27 | AD14: 10 | AE14: 7 | AF14: 54 | AG14: 57 | AH14: 19 | AI14: 20 | AJ14: J | AK14: 9 | AL14: 51 | AM14: 51 | AN14: 16 | AO14: 8 | AP14: 17 | AQ14: 17 | AR14: 9 | AS14: 18 | AT14: 64 | AU14: 100 | AV14: 71 | AW14: 9 | AX14: 7 | AY14: 6 | AZ14: 4 | BA14: 11 | BB14: 37 | BC14: 31 | BD14: 10 | BE14: 14 | BF14: 44 | BG14: 11 | BH14: 11 | BJ14: K | BK14: tBuBrettPhos Pd G4, MTBD_DMSO | BL14: 24 | BO14: K | BP14: 24 | BQ14: 62 | BR14: 36 | BS14: 24 | BU14: tBuBrettPhos Pd G4, MTBD_DMSO | BV14: 23 | BY14: K | BZ14: 23 | CA14: 46 | CB14: 34 | CC14: 20
H15: 56 | J15: K | K15: 19 | L15: 92 | M15: 38 | N15: 19 | O15: 16 | P15: 84 | Q15: 52 | R15: 30 | S15: 70 | T15: 92 | U15: 90 | V15: 74 | W15: 0 | X15: 2 | Y15: 1 | Z15: 1 | AA15: 21 | AB15: 70 | AC15: 24 | AD15: 15 | AE15: 18 | AF15: 32 | AG15: 11 | AH15: 5 | AI15: 63 | AJ15: K | AK15: 20 | AL15: 89 | AM15: 47 | AN15: 21 | AO15: 12 | AP15: 51 | AQ15: 46 | AR15: 27 | AS15: 53 | AT15: 77 | AU15: 70 | AV15: 40 | AW15: 3 | AX15: 3 | AY15: 2 | AZ15: 2 | BA15: 21 | BB15: 43 | BC15: 24 | BD15: 13 | BE15: 31 | BF15: 14 | BG15: 13 | BH15: 18 | BJ15: L | BK15: XantPhos Pd G4, MTBD_DMSO | BL15: 78 | BO15: L | BP15: 78 | BQ15: 81 | BR15: 81 | BS15: 86 | BU15: XantPhos Pd G4, MTBD_DMSO | BV15: 63 | BY15: L | BZ15: 63 | CA15: 67 | CB15: 58 | CC15: 62
H16: 39 | J16: L | K16: 56 | L16: 44 | M16: 46 | N16: 88 | O16: 93 | P16: 76 | Q16: 87 | R16: 92 | S16: 80 | T16: 93 | U16: 91 | V16: 82 | W16: 92 | X16: 95 | Y16: 97 | Z16: 91 | AA16: 81 | AB16: 100 | AC16: 96 | AD16: 87 | AE16: 68 | AF16: 78 | AG16: 72 | AH16: 73 | AI16: 43 | AJ16: L | AK16: 63 | AL16: 57 | AM16: 71 | AN16: 75 | AO16: 58 | AP16: 49 | AQ16: 36 | AR16: 63 | AS16: 56 | AT16: 80 | AU16: 54 | AV16: 62 | AW16: 84 | AX16: 77 | AY16: 90 | AZ16: 97 | BA16: 64 | BB16: 100 | BC16: 69 | BD16: 64 | BE16: 55 | BF16: 42 | BG16: 29 | BH16: 9 | BJ16: M | BK16: cataCXium Pd G4, P2ET_DMSO | BL16: 27 | BO16: M | BP16: 27 | BQ16: 46 | BR16: 47 | BS16: 4 | BU16: cataCXium Pd G4, P2ET_DMSO | BV16: 27 | BY16: M | BZ16: 27 | CA16: 31 | CB16: 36 | CC16: 4
H17: 40 | J17: M | K17: 39 | L17: 85 | M17: 50 | N17: 1 | O17: 11 | P17: 41 | Q17: 86 | R17: 9 | S17: 2 | T17: 9 | U17: 9 | V17: 0 | W17: 36 | X17: 45 | Y17: 50 | Z17: 1 | AA17: 31 | AB17: 48 | AC17: 38 | AD17: 0 | AE17: 44 | AF17: 49 | AG17: 48 | AH17: 11 | AI17: 59 | AJ17: M | AK17: 43 | AL17: 57 | AM17: 73 | AN17: 3 | AO17: 20 | AP17: 43 | AQ17: 48 | AR17: 4 | AS17: 4 | AT17: 10 | AU17: 10 | AV17: 3 | AW17: 19 | AX17: 30 | AY17: 31 | AZ17: 2 | BA17: 29 | BB17: 36 | BC17: 43 | BD17: 3 | BE17: 45 | BF17: 12 | BG17: 10 | BH17: 7 | BJ17: N | BK17: tBuXphos Pd G4, P2ET_DMSO | BL17: 20 | BO17: N | BP17: 20 | BQ17: 54 | BR17: 53 | BS17: 5 | BU17: tBuXphos Pd G4, P2ET_DMSO | BV17: 22 | BY17: N | BZ17: 22 | CA17: 49 | CB17: 34 | CC17: 5
H18: 61 | J18: N | K18: 40 | L18: 25 | M18: 41 | N18: 2 | O18: 14 | P18: 55 | Q18: 56 | R18: 12 | S18: 9 | T18: 100 | U18: 86 | V18: 1 | W18: 14 | X18: 22 | Y18: 65 | Z18: 1 | AA18: 16 | AB18: 44 | AC18: 39 | AD18: 0 | AE18: 27 | AF18: 79 | AG18: 32 | AH18: 12 | AI18: 48 | AJ18: N | AK18: 59 | AL18: 35 | AM18: 34 | AN18: 2 | AO18: 22 | AP18: 24 | AQ18: 46 | AR18: 5 | AS18: 9 | AT18: 73 | AU18: 32 | AV18: 4 | AW18: 9 | AX18: 18 | AY18: 34 | AZ18: 2 | BA18: 14 | BB18: 42 | BC18: 52 | BD18: 1 | BE18: 23 | BF18: 100 | BG18: 9 | BH18: 14 | BJ18: O | BK18: tBuBrettPhos Pd G4, P2ET_DMSO | BL18: 32 | BO18: O | BP18: 32 | BQ18: 68 | BR18: 55 | BS18: 4 | BU18: tBuBrettPhos Pd G4, P2ET_DMSO | BV18: 25 | BY18: O | BZ18: 25 | CA18: 42 | CB18: 38 | CC18: 4
H19: 56 | J19: O | K19: 61 | L19: 52 | M19: 43 | N19: 1 | O19: 12 | P19: 86 | Q19: 84 | R19: 10 | S19: 14 | T19: 91 | U19: 77 | V19: 2 | W19: 27 | X19: 53 | Y19: 31 | Z19: 0 | AA19: 31 | AB19: 60 | AC19: 33 | AD19: 0 | AE19: 46 | AF19: 67 | AG19: 60 | AH19: 12 | AI19: 68 | AJ19: O | AK19: 48 | AL19: 80 | AM19: 48 | AN19: 4 | AO19: 18 | AP19: 27 | AQ19: 48 | AR19: 5 | AS19: 11 | AT19: 56 | AU19: 70 | AV19: 4 | AW19: 16 | AX19: 30 | AY19: 21 | AZ19: 2 | BA19: 24 | BB19: 42 | BC19: 32 | BD19: 3 | BE19: 36 | BF19: 18 | BG19: 9 | BH19: 7 | BJ19: P | BK19: XantPhos Pd G4, P2ET_DMSO | BL19: 54 | BO19: P | BP19: 54 | BQ19: 82 | BR19: 76 | BS19: 10 | BU19: XantPhos Pd G4, P2ET_DMSO | BV19: 51 | BY19: P | BZ19: 51 | CA19: 67 | CB19: 51 | CC19: 9
H20: =L5 -> 0 | J20: P | K20: 56 | L20: 100 | M20: 90 | N20: 4 | O20: 18 | P20: 86 | Q20: 89 | R20: 12 | S20: 47 | T20: 46 | U20: 69 | V20: 16 | W20: 88 | X20: 95 | Y20: 94 | Z20: 2 | AA20: 51 | AB20: 72 | AC20: 53 | AD20: 1 | AE20: 66 | AF20: 92 | AG20: 62 | AH20: 23 | AI20: =AL5 -> 7 | AJ20: P | AK20: 68 | AL20: 100 | AM20: 56 | AN20: 4 | AO20: 24 | AP20: 63 | AQ20: 68 | AR20: 8 | AS20: 35 | AT20: 32 | AU20: 50 | AV20: 27 | AW20: 81 | AX20: 100 | AY20: 66 | AZ20: 3 | BA20: 49 | BB20: 73 | BC20: 52 | BD20: 5 | BE20: 50 | BF20: 35 | BG20: 17 | BH20: 8 | BK20: cataCXium Pd G4, DBU_DMF | BL20: =BQ4 -> 0 | BU20: cataCXium Pd G4, DBU_DMF | BV20: =CA4 -> 4
H21: =L6 -> 32 | AI21: =AL6 -> 59 | BK21: tBuXphos Pd G4, DBU_DMF | BL21: 39 | BU21: tBuXphos Pd G4, DBU_DMF | BV21: =CA5 -> 41
H22: 96 | AI22: 72 | BK22: tBuBrettPhos Pd G4, DBU_DMF | BL22: 61 | BU22: tBuBrettPhos Pd G4, DBU_DMF | BV22: 42
H23: 37 | AI23: 42 | BK23: XantPhos Pd G4, DBU_DMF | BL23: 51 | BU23: XantPhos Pd G4, DBU_DMF | BV23: 40
H24: 1 | AI24: 1 | BK24: cataCXium Pd G4,BTMG_DMF | BL24: 2 | BU24: cataCXium Pd G4,BTMG_DMF | BV24: 3
H25: 38 | AI25: 51 | BK25: tBuXphos Pd G4,BTMG_DMF | BL25: 41 | BU25: tBuXphos Pd G4,BTMG_DMF | BV25: 29
H26: 86 | AI26: 62 | BK26: tBuBrettPhos Pd G4,BTMG_DMF | BL26: 64 | BU26: tBuBrettPhos Pd G4,BTMG_DMF | BV26: 46
H27: 57 | AI27: 36 | BK27: XantPhos Pd G4,BTMG_DMF | BL27: 85 | BU27: XantPhos Pd G4,BTMG_DMF | BV27: 68
H28: 1 | J28: LC-MS | K28: 1 | L28: 2 | M28: 3 | N28: 4 | O28: 5 | P28: 6 | Q28: 7 | R28: 8 | S28: 9 | T28: 10 | U28: 11 | V28: 12 | W28: 13 | X28: 14 | Y28: 15 | Z28: 16 | AA28: 17 | AB28: 18 | AC28: 19 | AD28: 20 | AE28: 21 | AF28: 22 | AG28: 23 | AH28: 24 | AI28: 4 | BK28: cataCXium Pd G4, MTBD_DMF | BL28: 2 | BU28: cataCXium Pd G4, MTBD_DMF | BV28: 8
H29: 38 | J29: A | K29: =K5 -> 0.3742538507 | L29: =L5 -> 0.2226228432 | M29: 0.5429209644 | N29: 0.6779023072 | O29: 0.2292996622 | P29: 0.4060148941 | Q29: 0.2429745859 | R29: 1.697647194 | S29: 0.8872339753 | T29: 0.6183476372 | U29: 0.5246241571 | V29: 0.4542472404 | W29: 0.1379706298 | X29: 0.07043247825 | Y29: 0.05388014933 | Z29: 0.04202286559 | AA29: 0.4135055663 | AB29: 0.2458116643 | AC29: 0.2230813893 | AD29: 0.2309864168 | AE29: 0.6908459171 | AF29: 1.119707723 | AG29: 0.7496862948 | AH29: 0.6442412934 | AI29: 51 | AK29: =AK5 -> 6.094206076 | AL29: =AL5 -> 6.948809487 | AM29: 3.750436556 | AN29: 3.440854503 | AO29: 2.052176292 | AP29: 1.816370027 | AQ29: 1.227117182 | AR29: 1.676425168 | AS29: 3.893550633 | AT29: 5.439764163 | AU29: 6.172810216 | AV29: 4.35622088 | AW29: 2.700338633 | AX29: 2.991952435 | AY29: 2.583290198 | AZ29: 2.274487852 | BA29: 3.159798231 | BB29: 5.488378194 | BC29: 5.213003715 | BD29: 4.176620511 | BE29: 3.194758842 | BF29: 3.907065878 | BG29: 5.078436869 | BH29: 4.648410641 | BK29: tBuXphos Pd G4, MTBD_DMF | BL29: 45 | BU29: tBuXphos Pd G4, MTBD_DMF | BV29: 37
H30: 92 | J30: B | K30: =K6 -> 1.461310523 | L30: 32.11391321 | M30: 35.5729203 | N30: 17.99028244 | O30: 0.4711184819 | P30: 28.23682574 | Q30: 28.90710954 | R30: 26.47198964 | S30: 5.38858875 | T30: 76.16738441 | U30: 89.90403726 | V30: 82.00085335 | W30: 0.1614029115 | X30: 9.758599112 | Y30: 7.269425283 | Z30: 1.95246871 | AA30: 0.9873058349 | AB30: 47.9698786 | AC30: 36.8945608 | AD30: 32.72388447 | AE30: 1.339289512 | AF30: 42.39590955 | AG30: 41.8567311 | AH30: 32.40912631 | AI30: 89 | AK30: =AK6 -> 6.304557891 | AL30: 59.16163544 | AM30: 64.85371984 | AN30: 32.67727677 | AO30: 3.261972939 | AP30: 19.09701431 | AQ30: 18.14586044 | AR30: 21.23160722 | AS30: 6.503481096 | AT30: 53.14592194 | AU30: 55.16077478 | AV30: 73.54481843 | AW30: 2.554889056 | AX30: 14.27172142 | AY30: 11.63591684 | AZ30: 4.887824116 | BA30: 3.698766832 | BB30: 46.84565969 | BC30: 33.05151923 | BD30: 31.26258795 | BE30: 4.920007756 | BF30: 53.04873316 | BG30: 21.71462001 | BH30: 32.36665702 | BK30: tBuBrettPhos Pd G4, MTBD_DMF | BL30: 62 | BU30: tBuBrettPhos Pd G4, MTBD_DMF | BV30: 46
H31: 44 | J31: C | K31: 4.488522241 | L31: 95.52678847 | M31: 70.589086 | N31: 28.47239013 | O31: 1.869087342 | P31: 86.20029614 | Q31: 73.97591543 | R31: 47.31067712 | S31: 24.21182376 | T31: 95.80709535 | U31: 66.32904212 | V31: 77.90478482 | W31: 0.09622085668 | X31: 3.450704901 | Y31: 0.8348426182 | Z31: 1.388798529 | AA31: 6.758219586 | AB31: 60.8405012 | AC31: 41.11838001 | AD31: 18.33991041 | AE31: 3.256401471 | AF31: 21.78388143 | AG31: 8.736199998 | AH31: 3.672097723 | AI31: 57 | AK31: 6.418196547 | AL31: 72.20561342 | AM31: 49.41783324 | AN31: 44.01802598 | AO31: 3.570671109 | AP31: 31.64053968 | AQ31: 30.82499261 | AR31: 31.7968678 | AS31: 18.54189888 | AT31: 46.74172371 | AU31: 52.89727654 | AV31: 56.38358608 | AW31: 2.386355081 | AX31: 7.814706518 | AY31: 5.249676837 | AZ31: 6.432008345 | BA31: 6.252591361 | BB31: 51.58955855 | BC31: 51.60358662 | BD31: 25.81889903 | BE31: 6.686926113 | BF31: 43.56383628 | BG31: 21.47674805 | BH31: 27.94969594 | BK31: XantPhos Pd G4, MTBD_DMF | BL31: 81 | BU31: XantPhos Pd G4, MTBD_DMF | BV31: 67
H32: 85 | J32: D | K32: 52.22378754 | L32: 36.92572055 | M32: 33.86335564 | N32: 87.75492109 | O32: 53.40807245 | P32: 28.06658607 | Q32: 23.96955289 | R32: 59.98759886 | S32: 71.69659762 | T32: 65.10043332 | U32: 47.42494212 | V32: 66.29428708 | W32: 89.60543272 | X32: 68.26480292 | Y32: 61.70713116 | Z32: 84.4559943 | AA32: 80.99517818 | AB32: 44.43050967 | AC32: 23.53389036 | AD32: 54.58781472 | AE32: 60.0314899 | AF32: 61.65888269 | AG32: 63.30405451 | AH32: 66.90031025 | AI32: 57 | AK32: 70.24935356 | AL32: 42.43845791 | AM32: 41.62992073 | AN32: 73.52302599 | AO32: 20.40312834 | AP32: 13.91958015 | AQ32: 14.96225105 | AR32: 41.78182395 | AS32: 55.61171846 | AT32: 47.41142215 | AU32: 47.60143475 | AV32: 66.37679193 | AW32: 82.91922703 | AX32: 45.86603828 | AY32: 26.38222071 | AZ32: 48.13711923 | BA32: 72.50002565 | BB32: 42.69502052 | BC32: 18.71979338 | BD32: 36.4671656 | BE32: 31.4523034 | BF32: 46.4788711 | BG32: 13.64100541 | BH32: 6.336890607 | BK32: cataCXium Pd G4, P2ET_DMF | BL32: 46 | BU32: cataCXium Pd G4, P2ET_DMF | BV32: 31
H33: 25 | J33: E | K33: 1.854497933 | L33: 1.123982838 | M33: 1.318367598 | N33: 2.336140829 | O33: 0.8463000651 | P33: 0.8940834568 | Q33: 1.146125015 | R33: 0.5385254538 | S33: 0.8049249087 | T33: 0.7655425441 | U33: 0.6051698766 | V33: 0.4427622184 | W33: 2.250533082 | X33: 1.032023077 | Y33: 0.3785969479 | Z33: 0.5146466532 | AA33: 7.23314914 | AB33: 3.306555268 | AC33: 2.439469871 | AD33: 3.185286489 | AE33: 4.36814767 | AF33: 6.803770829 | AG33: 3.81142829 | AH33: 4.251608287 | AI33: 35 | AK33: 1.404075926 | AL33: 1.421473375 | AM33: 1.824705525 | AN33: 1.948736381 | AO33: 2.888223018 | AP33: 4.164072017 | AQ33: 3.619358596 | AR33: 2.458293766 | AS33: 2.438157503 | AT33: 7.682816478 | AU33: 5.073112689 | AV33: 3.429006555 | AW33: 1.52719283 | AX33: 0.7523961384 | AY33: 0.7184687879 | AZ33: 0.8322766589 | BA33: 3.819267661 | BB33: 1.803685546 | BC33: 2.417428288 | BD33: 1.745475369 | BE33: 5.692855714 | BF33: 4.844552276 | BG33: 4.69543715 | BH33: 5.815459455 | BK33: tBuXphos Pd G4, P2ET_DMF | BL33: 54 | BU33: tBuXphos Pd G4, P2ET_DMF | BV33: 49
H34: 52 | J34: F | K34: 12.65456061 | L34: 38.42369951 | M34: 23.34537435 | N34: 7.21887908 | O34: 4.153131409 | P34: 26.15651694 | Q34: 19.74020726 | R34: 11.93594515 | S34: 7.536139018 | T34: 87.01363596 | U34: 85.43097476 | V34: 66.69214022 | W34: 0.6941606678 | X34: 5.203669317 | Y34: 2.894969157 | Z34: 2.113504434 | AA34: 3.659959864 | AB34: 46.8472955 | AC34: 21.82224444 | AD34: 9.393869966 | AE34: 4.998585636 | AF34: 41.17854541 | AG34: 39.81640383 | AH34: 16.15672061 | AI34: 80 | AK34: 9.85718175 | AL34: 51.20600412 | AM34: 30.43837315 | AN34: 7.27826905 | AO34: 4.383729336 | AP34: 25.79842127 | AQ34: 22.39664279 | AR34: 12.00160476 | AS34: 6.469162772 | AT34: 58.79019067 | AU34: 52.89437512 | AV34: 54.72772316 | AW34: 0.7402039781 | AX34: 3.275076698 | AY34: 2.359247701 | AZ34: 2.408749474 | BA34: 1.968818019 | BB34: 27.51955833 | BC34: 11.79949095 | BD34: 9.653990642 | BE34: 5.647564164 | BF34: 8.243670978 | BG34: 7.238216816 | BH34: 8.147578622 | BK34: tBuBrettPhos Pd G4, P2ET_DMF | BL34: 68 | BU34: tBuBrettPhos Pd G4, P2ET_DMF | BV34: 42
H35: 100 | J35: G | K35: 22.94116308 | L35: 86.21531731 | M35: 19.43584678 | N35: 18.75124803 | O35: 19.52889768 | P35: 73.47302926 | Q35: 42.6325196 | R35: 27.4862043 | S35: 64.45198454 | T35: 92.61059843 | U35: 87.94154406 | V35: 75.56823234 | W35: 0.4358055257 | X35: 2.212923123 | Y35: 0.6144343354 | Z35: 0.933002849 | AA35: 22.93007748 | AB35: 76.11383046 | AC35: 17.97022227 | AD35: 22.3889291 | AE35: 36.28887241 | AF35: 53.79210696 | AG35: 19.21327353 | AH35: 11.55702115 | AI35: 100 | AK35: 14.51896701 | AL35: 62.43121761 | AM35: 25.05871176 | AN35: 21.78386409 | AO35: 27.12753645 | AP35: 66.8593753 | AQ35: 49.96408918 | AR35: 23.6290353 | AS35: 57.62170538 | AT35: 69.42293232 | AU35: 66.36855613 | AV35: 47.85373715 | AW35: 2.458861162 | AX35: 2.387322322 | AY35: 1.614959134 | AZ35: 3.169265505 | BA35: 17.26556485 | BB35: 52.59651391 | BC35: 12.73113042 | BD35: 15.63959901 | BE35: 14.00988196 | BF35: 21.36035364 | BG35: 6.886081097 | BH35: 11.18351266 | BK35: XantPhos Pd G4, P2ET_DMF | BL35: 82 | BU35: XantPhos Pd G4, P2ET_DMF | BV35: 67
H36: =M5 -> 1 | J36: H | K36: 90.5406051 | L36: 57.2349879 | M36: 41.02186337 | N36: 90.49341331 | O36: 90.66408191 | P36: 100 | Q36: 89.41913162 | R36: 91.49586899 | S36: 54.29104117 | T36: 88.56640545 | U36: 70.75527691 | V36: 41.17571314 | W36: 92.57647549 | X36: 100 | Y36: 95.13946427 | Z36: 92.2750684 | AA36: 94.34338265 | AB36: 95.55421377 | AC36: 86.55083455 | AD36: 93.42217152 | AE36: 68.6212782 | AF36: 66.27385744 | AG36: 100 | AH36: 72.30999401 | AI36: =AM5 -> 4 | AK36: 64.3863855 | AL36: 36.2908102 | AM36: 50.16359154 | AN36: 78.50078779 | AO36: 67.47086936 | AP36: 100 | AQ36: 60.96900004 | AR36: 44.48074333 | AS36: 43.35291387 | AT36: 71.66587885 | AU36: 59.26005401 | AV36: 40.60817329 | AW36: 50.30835261 | AX36: 88.88080528 | AY36: 85.80969929 | AZ36: 56.43854492 | BA36: 68.50220836 | BB36: 78.2714782 | BC36: 58.52776205 | BD36: 79.35879819 | BE36: 39.10353168 | BF36: 32.27424764 | BG36: 23.12291938 | BH36: 11.46548909 | BK36: cataCXium Pd G4, DBU_DMAc | BL36: =BR4 -> 0 | BU36: cataCXium Pd G4, DBU_DMAc | BV36: =CB4 -> 4
H37: =M6 -> 36 | J37: I | K37: 1.606338567 | L37: 1.287851548 | M37: 1.286696401 | N37: 1.677033259 | O37: 0.5031811563 | P37: 0.7455146049 | Q37: 0.6407098141 | R37: 0.3784589482 | S37: 1.060304871 | T37: 0.9606514459 | U37: 0.7145006223 | V37: 1.156296782 | W37: 2.840809429 | X37: 0.8332243811 | Y37: 0.2238249085 | Z37: 0.4134628432 | AA37: 6.183699685 | AB37: 3.284932019 | AC37: 1.0947365 | AD37: 1.821997204 | AE37: 4.03325837 | AF37: 2.11173615 | AG37: 1.650961991 | AH37: 2.016154951 | AI37: =AM6 -> 65 | AK37: 6.071765217 | AL37: 4.490383375 | AM37: 5.198459548 | AN37: 2.585223902 | AO37: 4.922622804 | AP37: 5.778751218 | AQ37: 5.735579704 | AR37: 3.06838825 | AS37: 6.6590847 | AT37: 9.895736368 | AU37: 7.29259099 | AV37: 4.857803361 | AW37: 3.687651024 | AX37: 3.29361445 | AY37: 2.298237614 | AZ37: 1.132010354 | BA37: 7.801731297 | BB37: 6.460015545 | BC37: 4.67729719 | BD37: 3.146588555 | BE37: 17.53355243 | BF37: 20.49820097 | BG37: 13.6663906 | BH37: 8.438869038 | BK37: tBuXphos Pd G4, DBU_DMAc | BL37: 40 | BU37: tBuXphos Pd G4, DBU_DMAc | BV37: =CB5 -> 34
H38: 71 | J38: J | K38: 6.50193922 | L38: 38.40143969 | M38: 30.06453608 | N38: 9.589559991 | O38: 4.030157425 | P38: 30.01900649 | Q38: 27.39490098 | R38: 9.776558706 | S38: 22.91819479 | T38: 100 | U38: 95.11482386 | V38: 90.25933734 | W38: 7.853858698 | X38: 4.531538779 | Y38: 3.760319483 | Z38: 3.128045416 | AA38: 14.84448681 | AB38: 44.09468654 | AC38: 26.53368556 | AD38: 9.92258654 | AE38: 7.192225975 | AF38: 54.05095373 | AG38: 56.57370667 | AH38: 18.65563413 | AI38: 49 | AK38: 9.115356377 | AL38: 51.47063042 | AM38: 50.83744657 | AN38: 15.73514124 | AO38: 8.273066631 | AP38: 17.32026936 | AQ38: 17.04233652 | AR38: 8.979909129 | AS38: 18.41665438 | AT38: 64.45085543 | AU38: 100 | AV38: 71.02214204 | AW38: 8.694057606 | AX38: 6.88572428 | AY38: 5.552232163 | AZ38: 3.565600045 | BA38: 11.38221044 | BB38: 36.66120721 | BC38: 30.58542493 | BD38: 9.980463282 | BE38: 13.57720764 | BF38: 43.50192565 | BG38: 11.23099574 | BH38: 11.27683517 | BK38: tBuBrettPhos Pd G4, DBU_DMAc | BL38: 44 | BU38: tBuBrettPhos Pd G4, DBU_DMAc | BV38: 35
H39: 34 | J39: K | K39: 19.4089107 | L39: 92.34949682 | M39: 38.48679869 | N39: 18.83944923 | O39: 16.41215046 | P39: 84.38690555 | Q39: 51.7304721 | R39: 29.82372075 | S39: 70.48234158 | T39: 91.79434929 | U39: 89.87805555 | V39: 73.77398322 | W39: 0.4298845134 | X39: 2.212925915 | Y39: 0.655374969 | Z39: 0.6086020032 | AA39: 21.42884167 | AB39: 69.60510525 | AC39: 24.17756039 | AD39: 14.80460864 | AE39: 17.84322693 | AF39: 31.6320388 | AG39: 11.07042433 | AH39: 4.836503282 | AI39: 42 | AK39: 20.03379177 | AL39: 88.62760224 | AM39: 46.65302694 | AN39: 20.58274606 | AO39: 11.71001181 | AP39: 50.94125235 | AQ39: 46.03451251 | AR39: 26.6246013 | AS39: 53.34885491 | AT39: 76.8749048 | AU39: 70.25113578 | AV39: 40.47375608 | AW39: 3.284139189 | AX39: 3.140969096 | AY39: 2.399064746 | AZ39: 2.335861425 | BA39: 20.86524759 | BB39: 42.86952425 | BC39: 23.55114582 | BD39: 13.32873569 | BE39: 31.20119097 | BF39: 13.52388049 | BG39: 12.84599868 | BH39: 17.68248492 | BK39: XantPhos Pd G4, DBU_DMAc | BL39: 42 | BU39: XantPhos Pd G4, DBU_DMAc | BV39: 27
H40: 1 | J40: L | K40: 55.65121268 | L40: 44.18760809 | M40: 45.56530791 | N40: 87.76850047 | O40: 93.23795566 | P40: 76.21603215 | Q40: 86.51047575 | R40: 92.40530118 | S40: 79.95398329 | T40: 92.96846416 | U40: 90.54228051 | V40: 81.77828228 | W40: 92.23455895 | X40: 94.78457631 | Y40: 96.70591011 | Z40: =Z16 -> 91.26007581 | AA40: 80.8211904 | AB40: 100 | AC40: 96.16498215 | AD40: 87.47121193 | AE40: 67.90644424 | AF40: 77.57121934 | AG40: 72.25186914 | AH40: 72.7909937 | AI40: 2 | AK40: 63.22962171 | AL40: 57.19063403 | AM40: 71.28017092 | AN40: 75.32468915 | AO40: 58.22328672 | AP40: 49.04016053 | AQ40: 35.76299808 | AR40: 63.16999361 | AS40: 56.48191692 | AT40: 79.76223794 | AU40: 53.99201748 | AV40: 62.37998409 | AW40: 83.91054392 | AX40: 77.40944256 | AY40: 89.97159393 | AZ40: =AZ16 -> 96.8149198 | BA40: 63.50051334 | BB40: 100 | BC40: 69.23231382 | BD40: 63.8350893 | BE40: 55.29803088 | BF40: 41.5096453 | BG40: 29.4102267 | BH40: 9.434217827 | BK40: cataCXium Pd G4,BTMG_DMAc | BL40: 2 | BU40: cataCXium Pd G4,BTMG_DMAc | BV40: 3
H41: 23 | J41: M | K41: =K17 -> 38.99816318 | L41: 85.43252311 | M41: 49.51927616 | N41: 1.21942896 | O41: 11.43702964 | P41: 40.99063692 | Q41: 86.38513698 | R41: 8.500940698 | S41: 1.768020164 | T41: 8.931897981 | U41: 8.860487841 | V41: 0.4230413904 | W41: 35.50227939 | X41: 45.4127194 | Y41: 50.12335967 | Z41: 0.5772198575 | AA41: 30.73858947 | AB41: 48.4607059 | AC41: 38.25576842 | AD41: 0.2242369266 | AE41: 43.74033843 | AF41: 49.14240735 | AG41: 47.63722519 | AH41: 11.45135324 | AI41: 30 | AK41: =AK17 -> 43.39652988 | AL41: 56.95715656 | AM41: 72.91804821 | AN41: 3.268397663 | AO41: 20.34949484 | AP41: 43.34423757 | AQ41: 47.73531942 | AR41: 3.991461958 | AS41: 4.233379111 | AT41: 9.914580467 | AU41: 10.1992518 | AV41: 3.067553453 | AW41: 19.0291344 | AX41: 29.87490191 | AY41: 30.88205813 | AZ41: 1.594696367 | BA41: 29.37367349 | BB41: 36.0159157 | BC41: 42.9366792 | BD41: 3.243862947 | BE41: 45.27608822 | BF41: 11.5984417 | BG41: 10.38628397 | BH41: 7.05409814 | BK41: tBuXphos Pd G4,BTMG_DMAc | BL41: 32 | BU41: tBuXphos Pd G4,BTMG_DMAc | BV41: 21
H42: 19 | J42: N | K42: 39.75350307 | L42: 25.04688814 | M42: 41.07118883 | N42: 1.954177971 | O42: 13.59356828 | P42: 54.61657567 | Q42: 56.11234149 | R42: 12.18199986 | S42: 9.211402886 | T42: 99.76931899 | U42: 86.07584304 | V42: 1.090024149 | W42: 13.70263478 | X42: 21.65128402 | Y42: 64.83339544 | Z42: 0.7420769866 | AA42: 16.10706306 | AB42: 44.21533176 | AC42: 39.48732071 | AD42: 0.4282242057 | AE42: 27.11383316 | AF42: 78.67038546 | AG42: 31.68997923 | AH42: 11.81340774 | AI42: 25 | AK42: 58.89419593 | AL42: 35.05752541 | AM42: 34.06697204 | AN42: 2.379989528 | AO42: 21.71541062 | AP42: 24.46874245 | AQ42: 45.99986511 | AR42: 5.420117976 | AS42: 8.625112128 | AT42: 72.58952685 | AU42: 32.16027428 | AV42: 4.093763525 | AW42: 8.540580549 | AX42: 17.6794333 | AY42: 33.84794435 | AZ42: 2.084847085 | BA42: 13.93014479 | BB42: 42.19379055 | BC42: 52.0404857 | BD42: 1.246043581 | BE42: 23.1906132 | BF42: 100 | BG42: 8.827073633 | BH42: 13.96623405 | BK42: tBuBrettPhos Pd G4,BTMG_DMAc | BL42: 31 | BU42: tBuBrettPhos Pd G4,BTMG_DMAc | BV42: 27
H43: 41 | J43: O | K43: 61.2353301 | L43: 52.28981394 | M43: 42.52596399 | N43: 1.407022248 | O43: 12.03317486 | P43: 86.07077809 | Q43: 84.26826282 | R43: 10.08024764 | S43: 14.15464249 | T43: 91.39722543 | U43: 77.21670449 | V43: 1.526188929 | W43: 26.78794122 | X43: 53.41930712 | Y43: 30.99401583 | Z43: 0.3949924653 | AA43: 31.46498304 | AB43: 60.25726063 | AC43: 33.31865744 | AD43: 0.2554350041 | AE43: 46.13021082 | AF43: 67.02418728 | AG43: 60.14583283 | AH43: 11.52945101 | AI43: 50 | AK43: 47.52001216 | AL43: 79.75218259 | AM43: 48.14472864 | AN43: 3.512896599 | AO43: 17.95348534 | AP43: 27.15815612 | AQ43: 48.28855062 | AR43: 5.208921437 | AS43: 11.453072 | AT43: 55.8101633 | AU43: 70.17393089 | AV43: 4.092086143 | AW43: 15.65018098 | AX43: 29.89542958 | AY43: 21.33576298 | AZ43: 1.611502943 | BA43: 23.53004031 | BB43: 41.90015767 | BC43: 31.57228914 | BD43: 2.96559525 | BE43: 35.67336635 | BF43: 18.25699972 | BG43: 9.318614797 | BH43: 7.054767773 | BK43: XantPhos Pd G4,BTMG_DMAc | BL43: 80 | BU43: XantPhos Pd G4,BTMG_DMAc | BV43: 56
H44: 1 | J44: P | K44: 56.03460953 | L44: 100 | M44: 89.77042668 | N44: 4.485325799 | O44: 18.46818369 | P44: 85.56822049 | Q44: 89.29010642 | R44: 12.28287001 | S44: 46.80040583 | T44: 45.65337098 | U44: 69.32515391 | V44: 15.94966262 | W44: 88.45596135 | X44: 94.77013564 | Y44: 93.94079387 | Z44: 1.528271786 | AA44: 50.78644119 | AB44: 71.62691016 | AC44: 52.68189424 | AD44: 1.146592973 | AE44: 65.66289547 | AF44: 91.79857307 | AG44: 61.64484269 | AH44: 22.58516692 | AI44: 5 | AK44: 67.95070636 | AL44: 100 | AM44: 55.68964136 | AN44: 4.420589992 | AO44: 24.03023842 | AP44: 63.08476518 | AQ44: 68.49459216 | AR44: 8.086251833 | AS44: 34.50173299 | AT44: 32.0514258 | AU44: 49.59522209 | AV44: 27.48000138 | AW44: 81.28985786 | AX44: 100 | AY44: 65.81673119 | AZ44: 2.772678373 | BA44: 49.42684877 | BB44: 72.83675711 | BC44: 51.83866352 | BD44: 4.963241714 | BE44: 50.10968286 | BF44: 34.95978092 | BG44: 16.94795824 | BH44: 8.18775661 | BK44: cataCXium Pd G4, MTBD_DMAc | BL44: 1 | BU44: cataCXium Pd G4, MTBD_DMAc | BV44: 6
H45: 30 | AI45: 51 | BK45: tBuXphos Pd G4, MTBD_DMAc | BL45: 40 | BU45: tBuXphos Pd G4, MTBD_DMAc | BV45: 36
H46: 38 | K46: scale | AI46: 47 | BK46: tBuBrettPhos Pd G4, MTBD_DMAc | BL46: 36 | BU46: tBuBrettPhos Pd G4, MTBD_DMAc | BV46: 34
H47: 46 | K47: 100 | L47: 100 | AI47: 71 | BK47: XantPhos Pd G4, MTBD_DMAc | BL47: 81 | BU47: XantPhos Pd G4, MTBD_DMAc | BV47: 58
H48: 50 | K48: 90 | AI48: 73 | BK48: cataCXium Pd G4, P2ET_DMAc | BL48: 47 | BU48: cataCXium Pd G4, P2ET_DMAc | BV48: 36
H49: 41 | K49: 80 | AI49: 34 | BK49: tBuXphos Pd G4, P2ET_DMAc | BL49: 53 | BU49: tBuXphos Pd G4, P2ET_DMAc | BV49: 34
H50: 43 | K50: 70 | AI50: 48 | BK50: tBuBrettPhos Pd G4, P2ET_DMAc | BL50: 55 | BU50: tBuBrettPhos Pd G4, P2ET_DMAc | BV50: 38
H51: 90 | K51: 60 | AI51: 56 | BK51: XantPhos Pd G4, P2ET_DMAc | BL51: 76 | BU51: XantPhos Pd G4, P2ET_DMAc | BV51: 51
H52: =N5 -> 1 | K52: 50 | AI52: =AN5 -> 3 | BK52: cataCXium Pd G4, DBU_NMP | BL52: =BS4 -> 1 | BU52: cataCXium Pd G4, DBU_NMP | BV52: =CC4 -> 3
H53: =N6 -> 18 | K53: 40 | AI53: =AN6 -> 33 | BK53: tBuXphos Pd G4, DBU_NMP | BL53: 32 | BU53: tBuXphos Pd G4, DBU_NMP | BV53: =CC5 -> 33
H54: 28 | K54: 30 | AI54: 44 | BK54: tBuBrettPhos Pd G4, DBU_NMP | BL54: 30 | BU54: tBuBrettPhos Pd G4, DBU_NMP | BV54: 32
H55: 88 | K55: 20 | AI55: 74 | BK55: XantPhos Pd G4, DBU_NMP | BL55: 70 | BU55: XantPhos Pd G4, DBU_NMP | BV55: 45
H56: 2 | K56: 10 | AI56: 2 | BK56: cataCXium Pd G4,BTMG_NMP | BL56: 2 | BU56: cataCXium Pd G4,BTMG_NMP | BV56: 3
H57: 7 | K57: 0 | L57: 0 | AI57: 7 | BK57: tBuXphos Pd G4,BTMG_NMP | BL57: 19 | BU57: tBuXphos Pd G4,BTMG_NMP | BV57: 16
H58: 19 | AI58: 22 | BK58: tBuBrettPhos Pd G4,BTMG_NMP | BL58: 26 | BU58: tBuBrettPhos Pd G4,BTMG_NMP | BV58: 21
H59: 90 | AI59: 79 | BK59: XantPhos Pd G4,BTMG_NMP | BL59: 80 | BU59: XantPhos Pd G4,BTMG_NMP | BV59: 52
H60: 2 | AI60: 3 | BK60: cataCXium Pd G4, MTBD_NMP | BL60: 1 | BU60: cataCXium Pd G4, MTBD_NMP | BV60: 4
H61: 10 | AI61: 16 | BK61: tBuXphos Pd G4, MTBD_NMP | BL61: 24 | BU61: tBuXphos Pd G4, MTBD_NMP | BV61: 20
H62: 19 | AI62: 21 | BK62: tBuBrettPhos Pd G4, MTBD_NMP | BL62: 24 | BU62: tBuBrettPhos Pd G4, MTBD_NMP | BV62: 20
H63: 88 | AI63: 75 | BK63: XantPhos Pd G4, MTBD_NMP | BL63: 86 | BU63: XantPhos Pd G4, MTBD_NMP | BV63: 62
H64: 1 | AI64: 3 | BK64: cataCXium Pd G4, P2ET_NMP | BL64: 4 | BU64: cataCXium Pd G4, P2ET_NMP | BV64: 4
H65: 2 | AI65: 2 | BK65: tBuXphos Pd G4, P2ET_NMP | BL65: 5 | BU65: tBuXphos Pd G4, P2ET_NMP | BV65: 5
H66: 1 | AI66: 4 | BK66: tBuBrettPhos Pd G4, P2ET_NMP | BL66: 4 | BU66: tBuBrettPhos Pd G4, P2ET_NMP | BV66: 4
H67: 4 | AI67: 4 | BK67: XantPhos Pd G4, P2ET_NMP | BL67: 10 | BU67: XantPhos Pd G4, P2ET_NMP | BV67: 9
H68: =O5 -> 0 | AI68: =AO5 -> 2
H69: 0 | AI69: 3
H70: 2 | AI70: 4
H71: 53 | AI71: 20
H72: 1 | AI72: 3
H73: 4 | AI73: 4
H74: 20 | AI74: 27
H75: 91 | AI75: 67
H76: 1 | AI76: 5
H77: 4 | AI77: 8
H78: 16 | AI78: 12
H79: 93 | AI79: 58
H80: 11 | AI80: 20
H81: 14 | AI81: 22
H82: 12 | AI82: 18
H83: 18 | AI83: 24
H84: =P5 -> 0 | AI84: =AP5 -> 2
H85: 28 | AI85: 19
H86: 86 | AI86: 32
H87: 28 | AI87: 14
H88: 1 | AI88: 4
H89: 26 | AI89: 26
H90: 73 | AI90: 67
H91: 100 | AI91: 100
H92: 1 | AI92: 6
H93: =P14 -> 30 | AI93: 17
H94: 84 | AI94: 51
H95: 76 | AI95: 49
H96: 41 | AI96: 43
H97: 55 | AI97: 24
H98: 86 | AI98: 27
H99: 86 | AI99: 63
H100: =Q5 -> 0 | AI100: =AQ5 -> 1
H101: 29 | AI101: 18
H102: 74 | AI102: 31
H103: 24 | AI103: 15
H104: 1 | AI104: 4
H105: 20 | AI105: 22
H106: 43 | AI106: 50
H107: 89 | AI107: 61
H108: 1 | AI108: 6
H109: 27 | AI109: 17
H110: 52 | AI110: 46
H111: 87 | AI111: 36
H112: 86 | AI112: 48
H113: 56 | AI113: 46
H114: 84 | AI114: 48
H115: 89 | AI115: 68
H116: =R5 -> 2 | AI116: =AR5 -> 2
H117: 26 | AI117: 21
H118: 47 | AI118: 32
H119: 60 | AI119: 42
H120: 1 | AI120: 2
H121: 12 | AI121: 12
H122: 27 | AI122: 24
H123: 91 | AI123: 44
H124: 0 | AI124: 3
H125: 10 | AI125: 9
H126: 30 | AI126: 27
H127: 92 | AI127: 63
H128: 9 | AI128: 4
H129: 12 | AI129: 5
H130: 10 | AI130: 5
H131: 12 | AI131: 8
H132: =S5 -> 1 | AI132: =AS5 -> 4
H133: 5 | AI133: 7
H134: 24 | AI134: 19
H135: 72 | AI135: 56
H136: 1 | AI136: 2
H137: 8 | AI137: 6
H138: 64 | AI138: 58
H139: 54 | AI139: 43
H140: 1 | AI140: 7
H141: 23 | AI141: 18
H142: 70 | AI142: 53
H143: 80 | AI143: 56
H144: 2 | AI144: 4
H145: 9 | AI145: 9
H146: 14 | AI146: 11
H147: 47 | AI147: 35
H148: =T5 -> 1 | AI148: =AT5 -> 5
H149: 76 | AI149: 53
H150: 96 | AI150: 47
H151: 65 | AI151: 47
H152: 1 | AI152: 8
H153: 87 | AI153: 59
H154: 93 | AI154: 69
H155: 89 | AI155: 72
H156: 1 | AI156: 10
H157: 100 | AI157: 64
H158: 92 | AI158: 77
H159: 93 | AI159: 80
H160: 9 | AI160: 10
H161: 100 | AI161: 73
H162: 91 | AI162: 56
H163: 46 | AI163: 32
H164: =U5 -> 1 | AI164: =AU5 -> 6
H165: 90 | AI165: 55
H166: 66 | AI166: 53
H167: 47 | AI167: 48
H168: 1 | AI168: 5
H169: 85 | AI169: 53
H170: 88 | AI170: 66
H171: 71 | AI171: 59
H172: 1 | AI172: 7
H173: 95 | AI173: 100
H174: 90 | AI174: 70
H175: 91 | AI175: 54
H176: 9 | AI176: 10
H177: 86 | AI177: 32
H178: 77 | AI178: 70
H179: 69 | AI179: 50
H180: =V5 -> 0 | AI180: =AV5 -> 4
H181: 82 | AI181: 74
H182: 78 | AI182: 56
H183: 66 | AI183: 66
H184: 0 | AI184: 3
H185: 67 | AI185: 55
H186: 76 | AI186: 48
H187: 41 | AI187: 41
H188: 1 | AI188: 5
H189: 90 | AI189: 71
H190: 74 | AI190: 40
H191: 82 | AI191: 62
H192: 0 | AI192: 3
H193: 1 | AI193: 4
H194: 2 | AI194: 4
H195: 16 | AI195: 27
H196: =W5 -> 0 | AI196: =AW5 -> 3
H197: 0 | AI197: 3
H198: 0 | AI198: 2
H199: 90 | AI199: 83
H200: 2 | AI200: 2
H201: 1 | AI201: 1
... 186 more rows

Sheet 13
A1: Data associated with Extended Data Fig 4b | G1: TIDA 1 C-C coupling: 384 Data points | BK1: TIDA 1 C-C coupling: 64 conditions
H3: LC-MS | AI3: NL-ADE-MS | BK3: Conditions | BL3: LC-MS | BN3: Average | BO3: LC-MS | BP3: DMSO | BQ3: DMF | BR3: DMAc | BS3: NMP | BU3: Conditions | BV3: NL-ADE-MS | BX3: Solvents(Average) | BY3: NL-ADE-MS | BZ3: DMSO | CA3: DMF | CB3: DMAc | CC3: NMP
H4: =K5 -> 0 | J4: processed data: LC-MS | K4: 1 | L4: 2 | M4: 3 | N4: 4 | O4: 5 | P4: 6 | Q4: 7 | R4: 8 | S4: 9 | T4: 10 | U4: 11 | V4: 12 | W4: 13 | X4: 14 | Y4: 15 | Z4: 16 | AA4: 17 | AB4: 18 | AC4: 19 | AD4: 20 | AE4: 21 | AF4: 22 | AG4: 23 | AH4: 24 | AI4: =AK5 -> 4 | AJ4: processed data:NL-ADE-MS | AK4: 1 | AL4: 2 | AM4: 3 | AN4: 4 | AO4: 5 | AP4: 6 | AQ4: 7 | AR4: 8 | AS4: 9 | AT4: 10 | AU4: 11 | AV4: 12 | AW4: 13 | AX4: 14 | AY4: 15 | AZ4: 16 | BA4: 17 | BB4: 18 | BC4: 19 | BD4: 20 | BE4: 21 | BF4: 22 | BG4: 23 | BH4: 24 | BK4: RuPhos G4, DBU_DMSO-H2O | BL4: =BP4 -> 3 | BM4: DMSO-H₂O | BN4: =AVERAGE(BL4:BL19) -> 13 | BO4: A | BP4: =AVERAGE(K5,O5,S5,W5,AA5,AE5) -> 3 | BQ4: =AVERAGE(L5,P5,T5,X5,AB5,AF5) -> 3 | BR4: 3 | BS4: 3 | BU4: RuPhos G4, DBU_DMSO-H2O | BV4: =BZ4 -> 2 | BW4: DMSO-H₂O | BX4: =AVERAGE(BV4:BV19) -> 13 | BY4: A | BZ4: =AVERAGE(AK5,AO5,AS5,AW5,BA5,BE5) -> 2 | CA4: 3 | CB4: 5 | CC4: 3
H5: =K6 -> 0 | J5: A | K5: 0 | L5: 1 | M5: 12 | N5: 10 | O5: 1 | P5: 2 | Q5: 5 | R5: 8 | S5: 1 | T5: 1 | U5: 1 | V5: 0 | W5: 2 | X5: 3 | Y5: 0 | Z5: 0 | AA5: 11 | AB5: 13 | AC5: 0 | AD5: 0 | AE5: 0 | AF5: 0 | AG5: 0 | AH5: 0 | AI5: =AK6 -> 0 | AJ5: A | AK5: 4 | AL5: 3 | AM5: 8 | AN5: 3 | AO5: 6 | AP5: 4 | AQ5: 22 | AR5: 11 | AS5: 1 | AT5: 0 | AU5: 0 | AV5: 0 | AW5: 0 | AX5: 1 | AY5: 0 | AZ5: 0 | BA5: 4 | BB5: 11 | BC5: 0 | BD5: 1 | BE5: 0 | BF5: 0 | BG5: 0 | BH5: 0 | BK5: tBuXphos Pd G4, DBU_DMSO-H2O | BL5: 1 | BM5: DMF-H₂O | BN5: =AVERAGE(BL20:BL35) -> 21 | BO5: B | BP5: 1 | BQ5: 1 | BR5: 1 | BS5: 1 | BU5: tBuXphos Pd G4, DBU_DMSO-H2O | BV5: =BZ5 -> 1 | BW5: DMF-H₂O | BX5: =AVERAGE(BV20:BV35) -> 19 | BY5: B | BZ5: 1 | CA5: 1 | CB5: 3 | CC5: 2
H6: 0 | J6: B | K6: 0 | L6: 0 | M6: 1 | N6: 1 | O6: 4 | P6: 4 | Q6: 4 | R6: 6 | S6: 0 | T6: 0 | U6: 0 | V6: 1 | W6: 0 | X6: 0 | Y6: 0 | Z6: 0 | AA6: 0 | AB6: 0 | AC6: 0 | AD6: 0 | AE6: 0 | AF6: 0 | AG6: 0 | AH6: 0 | AI6: 0 | AJ6: B | AK6: 0 | AL6: 0 | AM6: 0 | AN6: 1 | AO6: 4 | AP6: 4 | AQ6: 15 | AR6: 11 | AS6: 0 | AT6: 0 | AU6: 0 | AV6: 0 | AW6: 0 | AX6: 0 | AY6: 0 | AZ6: 0 | BA6: 0 | BB6: 0 | BC6: 0 | BD6: 0 | BE6: 0 | BF6: 0 | BG6: 0 | BH6: 0 | BK6: tBu3P Pd G3, DBU_DMSO-H2O | BL6: 0 | BM6: DMSO-tAmOH | BN6: =AVERAGE(BL36:BL51) -> 18 | BO6: C | BP6: 0 | BQ6: 2 | BR6: 1 | BS6: 2 | BU6: tBu3P Pd G3, DBU_DMSO-H2O | BV6: 1 | BW6: DMSO-tAmOH | BX6: =AVERAGE(BV36:BV51) -> 14 | BY6: C | BZ6: 1 | CA6: 2 | CB6: 2 | CC6: 5
H7: 1 | J7: C | K7: 0 | L7: 1 | M7: 0 | N7: 0 | O7: 1 | P7: 3 | Q7: 8 | R7: 13 | S7: 0 | T7: 0 | U7: 0 | V7: 0 | W7: 0 | X7: 4 | Y7: 0 | Z7: 0 | AA7: 0 | AB7: 0 | AC7: 0 | AD7: 0 | AE7: 0 | AF7: 1 | AG7: 0 | AH7: 0 | AI7: 1 | AJ7: C | AK7: 0 | AL7: 2 | AM7: 0 | AN7: 0 | AO7: 4 | AP7: 9 | AQ7: 14 | AR7: 28 | AS7: 0 | AT7: 0 | AU7: 0 | AV7: 0 | AW7: 0 | AX7: 2 | AY7: 0 | AZ7: 0 | BA7: 0 | BB7: 0 | BC7: 0 | BD7: 0 | BE7: 0 | BF7: 1 | BG7: 0 | BH7: 0 | BK7: XantPhos Pd G4, DBU_DMSO-H2O | BL7: 2 | BM7: DMF-tAmOH | BN7: =AVERAGE(BL52:BL67) -> 14 | BO7: D | BP7: 2 | BQ7: 2 | BR7: 5 | BS7: 3 | BU7: XantPhos Pd G4, DBU_DMSO-H2O | BV7: 1 | BW7: DMF-tAmOH | BX7: =AVERAGE(BV52:BV67) -> 13 | BY7: D | BZ7: 1 | CA7: 2 | CB7: 4 | CC7: 2
H8: 14 | J8: D | K8: 1 | L8: 0 | M8: 13 | N8: 7 | O8: 7 | P8: 2 | Q8: 7 | R8: 8 | S8: 0 | T8: 0 | U8: 0 | V8: 0 | W8: 0 | X8: 1 | Y8: 0 | Z8: 0 | AA8: 4 | AB8: 6 | AC8: 7 | AD8: 4 | AE8: 0 | AF8: 0 | AG8: 0 | AH8: 0 | AI8: 7 | AJ8: D | AK8: 1 | AL8: 0 | AM8: 7 | AN8: 2 | AO8: 4 | AP8: 3 | AQ8: 10 | AR8: 8 | AS8: 0 | AT8: 0 | AU8: 0 | AV8: 2 | AW8: 0 | AX8: 0 | AY8: 0 | AZ8: 0 | BA8: 3 | BB8: 6 | BC8: 9 | BD8: 2 | BE8: 0 | BF8: 0 | BG8: 0 | BH8: 0 | BK8: RuPhos G4, BTMG_DMSO-H2O | BL8: 37 | BO8: E | BP8: 37 | BQ8: 43 | BR8: 72 | BS8: 55 | BU8: RuPhos G4, BTMG_DMSO-H2O | BV8: 36 | BY8: E | BZ8: 36 | CA8: 38 | CB8: 71 | CC8: 58
H9: 2 | J9: E | K9: 14 | L9: 9 | M9: 31 | N9: 12 | O9: 35 | P9: 41 | Q9: 77 | R9: 49 | S9: 21 | T9: 23 | U9: 62 | V9: 96 | W9: 67 | X9: 91 | Y9: 84 | Z9: 56 | AA9: 41 | AB9: 51 | AC9: 86 | AD9: 75 | AE9: 46 | AF9: 41 | AG9: 94 | AH9: 40 | AI9: 1 | AJ9: E | AK9: 7 | AL9: 13 | AM9: 100 | AN9: 6 | AO9: 60 | AP9: 37 | AQ9: 100 | AR9: 93 | AS9: 9 | AT9: 17 | AU9: 54 | AV9: 100 | AW9: 38 | AX9: 54 | AY9: 36 | AZ9: 33 | BA9: 77 | BB9: 72 | BC9: 63 | BD9: 82 | BE9: 23 | BF9: 34 | BG9: 76 | BH9: 33 | BK9: tBuXphos Pd G4, BTMG_DMSO-H2O | BL9: 2 | BO9: F | BP9: 2 | BQ9: 1 | BR9: 1 | BS9: 1 | BU9: tBuXphos Pd G4, BTMG_DMSO-H2O | BV9: 2 | BY9: F | BZ9: 2 | CA9: 2 | CB9: 2 | CC9: 2
H10: 14 | J10: F | K10: 2 | L10: 2 | M10: 2 | N10: 2 | O10: 6 | P10: 4 | Q10: 2 | R10: 4 | S10: 0 | T10: 0 | U10: 2 | V10: 2 | W10: 1 | X10: 0 | Y10: 0 | Z10: 0 | AA10: 2 | AB10: 0 | AC10: 0 | AD10: 0 | AE10: 1 | AF10: 0 | AG10: 0 | AH10: 0 | AI10: 12 | AJ10: F | AK10: 1 | AL10: 1 | AM10: 1 | AN10: 1 | AO10: 8 | AP10: 8 | AQ10: 9 | AR10: 9 | AS10: 0 | AT10: 0 | AU10: 0 | AV10: 1 | AW10: 0 | AX10: 0 | AY10: 0 | AZ10: 0 | BA10: 2 | BB10: 0 | BC10: 0 | BD10: 0 | BE10: 1 | BF10: 0 | BG10: 0 | BH10: 1 | BK10: tBu3P Pd G3, BTMG_DMSO-H2O | BL10: 18 | BO10: G | BP10: 18 | BQ10: 48 | BR10: 38 | BS10: 21 | BU10: tBu3P Pd G3, BTMG_DMSO-H2O | BV10: 14 | BY10: G | BZ10: 14 | CA10: 45 | CB10: 29 | CC10: 21
H11: 16 | J11: G | K11: 14 | L11: 13 | M11: 59 | N11: 37 | O11: 5 | P11: 36 | Q11: 32 | R11: 15 | S11: 11 | T11: 42 | U11: 40 | V11: 39 | W11: 31 | X11: 100 | Y11: 29 | Z11: 11 | AA11: 29 | AB11: 27 | AC11: 36 | AD11: 11 | AE11: 16 | AF11: 72 | AG11: 31 | AH11: 13 | AI11: 15 | AJ11: G | AK11: 12 | AL11: 6 | AM11: 38 | AN11: 30 | AO11: 15 | AP11: 79 | AQ11: 48 | AR11: 8 | AS11: 5 | AT11: 31 | AU11: 13 | AV11: 59 | AW11: 10 | AX11: 58 | AY11: 10 | AZ11: 5 | BA11: 24 | BB11: 34 | BC11: 39 | BD11: 9 | BE11: 17 | BF11: 62 | BG11: 23 | BH11: 12 | BK11: XantPhos Pd G4, BTMG_DMSO-H2O | BL11: 20 | BO11: H | BP11: 20 | BQ11: 29 | BR11: 29 | BS11: 40 | BU11: XantPhos Pd G4, BTMG_DMSO-H2O | BV11: 22 | BY11: H | BZ11: 22 | CA11: 21 | CB11: 14 | CC11: 39
H12: 15 | J12: H | K12: 16 | L12: 10 | M12: 29 | N12: 42 | O12: 12 | P12: 20 | Q12: 13 | R12: 28 | S12: 11 | T12: 11 | U12: 15 | V12: 53 | W12: 27 | X12: 58 | Y12: 11 | Z12: 24 | AA12: 39 | AB12: 60 | AC12: 100 | AD12: 75 | AE12: 13 | AF12: 14 | AG12: 8 | AH12: 16 | AI12: 23 | AJ12: H | AK12: 15 | AL12: 11 | AM12: 10 | AN12: 37 | AO12: 20 | AP12: 34 | AQ12: 22 | AR12: 21 | AS12: 8 | AT12: 5 | AU12: 6 | AV12: 57 | AW12: 16 | AX12: 18 | AY12: 3 | AZ12: 6 | BA12: 50 | BB12: 54 | BC12: 38 | BD12: 100 | BE12: 20 | BF12: 7 | BG12: 3 | BH12: 11 | BK12: RuPhos G4, MTBD_DMSO-H2O | BL12: 36 | BO12: I | BP12: 36 | BQ12: 51 | BR12: 85 | BS12: 50 | BU12: RuPhos G4, MTBD_DMSO-H2O | BV12: 40 | BY12: I | BZ12: 40 | CA12: 33 | CB12: =AVERAGE(AM13,AQ13,AU13,AY13,BC13,BG13) -> 55 | CC12: 38
H13: 1 | J13: I | K13: 15 | L13: 8 | M13: 100 | N13: 82 | O13: 43 | P13: 81 | Q13: 100 | R13: 43 | S13: 27 | T13: 17 | U13: 100 | V13: 66 | W13: 50 | X13: 90 | Y13: 55 | Z13: 34 | AA13: 36 | AB13: 69 | AC13: 89 | AD13: 48 | AE13: 46 | AF13: 39 | AG13: 64 | AH13: 24 | AI13: 1 | AJ13: I | AK13: 23 | AL13: 8 | AM13: 58 | AN13: 69 | AO13: 39 | AP13: 30 | AQ13: 41 | AR13: 34 | AS13: 31 | AT13: 9 | AU13: 61 | AV13: 59 | AW13: 26 | AX13: 45 | AY13: 35 | AZ13: 19 | BA13: 61 | BB13: 52 | BC13: 82 | BD13: 26 | BE13: 63 | BF13: 52 | BG13: 56 | BH13: 21 | BK13: tBuXphos Pd G4, MTBD_DMSO-H2O | BL13: 1 | BO13: J | BP13: 1 | BQ13: 1 | BR13: 1 | BS13: 2 | BU13: tBuXphos Pd G4, MTBD_DMSO-H2O | BV13: 1 | BY13: J | BZ13: 1 | CA13: 1 | CB13: 3 | CC13: 2
H14: 7 | J14: J | K14: 1 | L14: 1 | M14: 2 | N14: 4 | O14: 3 | P14: 2 | Q14: 4 | R14: 3 | S14: 0 | T14: 0 | U14: 2 | V14: 2 | W14: 0 | X14: 0 | Y14: 0 | Z14: 0 | AA14: 1 | AB14: 0 | AC14: 0 | AD14: 0 | AE14: 0 | AF14: 0 | AG14: 0 | AH14: 0 | AI14: 7 | AJ14: J | AK14: 1 | AL14: 0 | AM14: 1 | AN14: 1 | AO14: 4 | AP14: 7 | AQ14: 18 | AR14: 7 | AS14: 0 | AT14: 0 | AU14: 1 | AV14: 1 | AW14: 0 | AX14: 0 | AY14: 0 | AZ14: 0 | BA14: 1 | BB14: 0 | BC14: 0 | BD14: 0 | BE14: 0 | BF14: 0 | BG14: 0 | BH14: 0 | BK14: tBu3P Pd G3, MTBD_DMSO-H2O | BL14: 15 | BO14: K | BP14: 15 | BQ14: 21 | BR14: 20 | BS14: 10 | BU14: tBu3P Pd G3, MTBD_DMSO-H2O | BV14: 12 | BY14: K | BZ14: 12 | CA14: 17 | CB14: 18 | CC14: 9
H15: 5 | J15: K | K15: 7 | L15: 8 | M15: 49 | N15: 14 | O15: 12 | P15: 49 | Q15: 16 | R15: 11 | S15: 3 | T15: 23 | U15: 17 | V15: 26 | W15: 30 | X15: 46 | Y15: 3 | Z15: 2 | AA15: 24 | AB15: 0 | AC15: 27 | AD15: 2 | AE15: 13 | AF15: 0 | AG15: 5 | AH15: 6 | AI15: 9 | AJ15: K | AK15: 7 | AL15: 7 | AM15: 38 | AN15: 4 | AO15: 14 | AP15: 50 | AQ15: 36 | AR15: 16 | AS15: 3 | AT15: 18 | AU15: 4 | AV15: 25 | AW15: 13 | AX15: 29 | AY15: 1 | AZ15: 0 | BA15: 24 | BB15: 0 | BC15: 22 | BD15: 2 | BE15: 9 | BF15: 0 | BG15: 5 | BH15: 6 | BK15: XantPhos Pd G4, MTBD_DMSO-H2O | BL15: 10 | BO15: L | BP15: 10 | BQ15: 16 | BR15: 20 | BS15: 19 | BU15: XantPhos Pd G4, MTBD_DMSO-H2O | BV15: 10 | BY15: L | BZ15: 10 | CA15: 14 | CB15: 15 | CC15: 20
H16: 10 | J16: L | K16: 5 | L16: 8 | M16: 28 | N16: 28 | O16: 9 | P16: 23 | Q16: 9 | R16: 10 | S16: 2 | T16: 3 | U16: 6 | V16: 15 | W16: 12 | X16: 20 | Y16: 4 | Z16: 4 | AA16: 30 | AB16: 41 | AC16: 69 | AD16: 42 | AE16: 4 | AF16: 0 | AG16: 4 | AH16: 15 | AI16: 11 | AJ16: L | AK16: 9 | AL16: 11 | AM16: 16 | AN16: 29 | AO16: 17 | AP16: 23 | AQ16: 14 | AR16: 7 | AS16: 1 | AT16: 1 | AU16: 3 | AV16: 5 | AW16: 5 | AX16: 5 | AY16: 1 | AZ16: 1 | BA16: 27 | BB16: 46 | BC16: 55 | BD16: 65 | BE16: 1 | BF16: 0 | BG16: 2 | BH16: 16 | BK16: RuPhos G4, Cs2CO3_DMSO-H2O | BL16: 31 | BO16: M | BP16: 31 | BQ16: 41 | BR16: 2 | BS16: 2 | BU16: RuPhos G4, Cs2CO3_DMSO-H2O | BV16: 28 | BY16: M | BZ16: 28 | CA16: 45 | CB16: 1 | CC16: 1
H17: 1 | J17: M | K17: 10 | L17: 7 | M17: 0 | N17: 0 | O17: 0 | P17: 38 | Q17: 13 | R17: 9 | S17: 19 | T17: 15 | U17: 0 | V17: 0 | W17: 73 | X17: 82 | Y17: 0 | Z17: 0 | AA17: 38 | AB17: 66 | AC17: 0 | AD17: 0 | AE17: 44 | AF17: 36 | AG17: 0 | AH17: 0 | AI17: 1 | AJ17: M | AK17: 11 | AL17: 6 | AM17: 0 | AN17: 0 | AO17: 22 | AP17: 52 | AQ17: 5 | AR17: 4 | AS17: 16 | AT17: 11 | AU17: 0 | AV17: 0 | AW17: 54 | AX17: 100 | AY17: 0 | AZ17: 0 | BA17: 39 | BB17: 64 | BC17: 0 | BD17: 0 | BE17: 29 | BF17: 39 | BG17: 0 | BH17: 0 | BK17: tBuXphos Pd G4, Cs2CO3_DMSO-H2O | BL17: 2 | BO17: N | BP17: 2 | BQ17: 1 | BR17: 3 | BS17: 2 | BU17: tBuXphos Pd G4, Cs2CO3_DMSO-H2O | BV17: 2 | BY17: N | BZ17: 2 | CA17: 3 | CB17: 1 | CC17: 1
H18: 10 | J18: N | K18: 1 | L18: 2 | M18: 0 | N18: 0 | O18: 6 | P18: 5 | Q18: 15 | R18: 9 | S18: 1 | T18: 0 | U18: 0 | V18: 0 | W18: 1 | X18: 0 | Y18: 0 | Z18: 0 | AA18: 1 | AB18: 0 | AC18: 0 | AD18: 0 | AE18: 1 | AF18: 0 | AG18: 0 | AH18: 0 | AI18: 6 | AJ18: N | AK18: 1 | AL18: 1 | AM18: 0 | AN18: 0 | AO18: 8 | AP18: 15 | AQ18: 4 | AR18: 4 | AS18: 1 | AT18: 0 | AU18: 0 | AV18: 0 | AW18: 0 | AX18: 0 | AY18: 0 | AZ18: 0 | BA18: 1 | BB18: 0 | BC18: 0 | BD18: 0 | BE18: 0 | BF18: 0 | BG18: 0 | BH18: 0 | BK18: tBu3P Pd G3, Cs2CO3_DMSO-H2O | BL18: 9 | BO18: O | BP18: 9 | BQ18: 51 | BR18: 3 | BS18: 2 | BU18: tBu3P Pd G3, Cs2CO3_DMSO-H2O | BV18: 8 | BY18: O | BZ18: 8 | CA18: 48 | CB18: 2 | CC18: 1
H19: 12 | J19: O | K19: 10 | L19: 10 | M19: 0 | N19: 1 | O19: 8 | P19: 86 | Q19: 15 | R19: 8 | S19: 5 | T19: 24 | U19: 0 | V19: 0 | W19: 11 | X19: 65 | Y19: 0 | Z19: 0 | AA19: 10 | AB19: 22 | AC19: 0 | AD19: 0 | AE19: 10 | AF19: 100 | AG19: 0 | AH19: 0 | AI19: 12 | AJ19: O | AK19: 6 | AL19: 3 | AM19: 0 | AN19: 0 | AO19: 18 | AP19: 94 | AQ19: 11 | AR19: 5 | AS19: 4 | AT19: 25 | AU19: 0 | AV19: 0 | AW19: 5 | AX19: 39 | AY19: 0 | AZ19: 0 | BA19: 9 | BB19: 29 | BC19: 0 | BD19: 0 | BE19: 8 | BF19: 100 | BG19: 0 | BH19: 0 | BK19: XantPhos Pd G4, Cs2CO3_DMSO-H2O | BL19: 25 | BO19: P | BP19: 25 | BQ19: 34 | BR19: 5 | BS19: 7 | BU19: XantPhos Pd G4, Cs2CO3_DMSO-H2O | BV19: 29 | BY19: P | BZ19: 29 | CA19: 33 | CB19: 4 | CC19: 7
H20: =L5 -> 1 | J20: P | K20: 12 | L20: 8 | M20: 0 | N20: 0 | O20: 16 | P20: 43 | Q20: 29 | R20: 40 | S20: 14 | T20: 18 | U20: 0 | V20: 0 | W20: 42 | X20: 93 | Y20: 0 | Z20: 0 | AA20: 33 | AB20: 40 | AC20: 0 | AD20: 0 | AE20: 32 | AF20: 0 | AG20: 0 | AH20: 0 | AI20: =AL5 -> 3 | AJ20: P | AK20: 12 | AL20: 7 | AM20: 0 | AN20: 0 | AO20: 25 | AP20: 57 | AQ20: 24 | AR20: 41 | AS20: 15 | AT20: 10 | AU20: 0 | AV20: 0 | AW20: 12 | AX20: 56 | AY20: 0 | AZ20: 0 | BA20: 46 | BB20: 68 | BC20: 0 | BD20: 0 | BE20: 62 | BF20: 0 | BG20: 0 | BH20: 0 | BK20: RuPhos G4, DBU_DMF-H2O | BL20: =BQ4 -> 3 | BU20: RuPhos G4, DBU_DMF-H2O | BV20: =CA4 -> 3
H21: =L6 -> 0 | AI21: =AL6 -> 0 | BK21: tBuXphos Pd G4, DBU_DMF-H2O | BL21: 1 | BU21: tBuXphos Pd G4, DBU_DMF-H2O | BV21: =CA5 -> 1
H22: 1 | AI22: 2 | BK22: tBu3P Pd G3, DBU_DMF-H2O | BL22: 2 | BU22: tBu3P Pd G3, DBU_DMF-H2O | BV22: 2
H23: 0 | AI23: 0 | BK23: XantPhos Pd G4, DBU_DMF-H2O | BL23: 2 | BU23: XantPhos Pd G4, DBU_DMF-H2O | BV23: 2
H24: 9 | AI24: 13 | BK24: RuPhos G4, BTMG_DMF-H2O | BL24: 43 | BU24: RuPhos G4, BTMG_DMF-H2O | BV24: 38
H25: 2 | AI25: 1 | BK25: tBuXphos Pd G4, BTMG_DMF-H2O | BL25: 1 | BU25: tBuXphos Pd G4, BTMG_DMF-H2O | BV25: 2
H26: 13 | AI26: 6 | BK26: tBu3P Pd G3, BTMG_DMF-H2O | BL26: 48 | BU26: tBu3P Pd G3, BTMG_DMF-H2O | BV26: 45
H27: 10 | AI27: 11 | BK27: XantPhos Pd G4, BTMG_DMF-H2O | BL27: 29 | BU27: XantPhos Pd G4, BTMG_DMF-H2O | BV27: 21
H28: 8 | J28: LC-MS | K28: 1 | L28: 2 | M28: 3 | N28: 4 | O28: 5 | P28: 6 | Q28: 7 | R28: 8 | S28: 9 | T28: 10 | U28: 11 | V28: 12 | W28: 13 | X28: 14 | Y28: 15 | Z28: 16 | AA28: 17 | AB28: 18 | AC28: 19 | AD28: 20 | AE28: 21 | AF28: 22 | AG28: 23 | AH28: 24 | AI28: 8 | BK28: RuPhos G4, MTBD_DMF-H2O | BL28: 51 | BU28: RuPhos G4, MTBD_DMF-H2O | BV28: 33
H29: 1 | J29: A | K29: =K5 -> 0 | L29: =L5 -> 1 | M29: 12 | N29: 10 | O29: 1 | P29: 2 | Q29: 5 | R29: 8 | S29: 1 | T29: 1 | U29: 1 | V29: 0 | W29: 2 | X29: 3 | Y29: 0 | Z29: 0 | AA29: 11 | AB29: 13 | AC29: 0 | AD29: 0 | AE29: 0 | AF29: 0 | AG29: 0 | AH29: 0 | AI29: 0 | AK29: =AK5 -> 3.551290929 | AL29: =AL5 -> 3.012167376 | AM29: 7.982985459 | AN29: 3.172915224 | AO29: 5.719953711 | AP29: 4.033724583 | AQ29: 22.02016862 | AR29: 11.2332617 | AS29: 0.5219049531 | AT29: 0.140512872 | AU29: 0.4064836654 | AV29: 0.1856777237 | AW29: 0.4684022969 | AX29: 0.639579216 | AY29: 0 | AZ29: 0.01400538429 | BA29: 3.722020735 | BB29: 11.17338902 | BC29: 0.3260431549 | BD29: 0.5861449976 | BE29: 0.4709408113 | BF29: 0.3532056085 | BG29: 0.09097720218 | BH29: 0.1980092048 | BK29: tBuXphos Pd G4, MTBD_DMF-H2O | BL29: 1 | BU29: tBuXphos Pd G4, MTBD_DMF-H2O | BV29: 1
H30: 8 | J30: B | K30: =K6 -> 0 | L30: 0 | M30: 1 | N30: 1 | O30: 4 | P30: 4 | Q30: 4 | R30: 6 | S30: 0 | T30: 0 | U30: 0 | V30: 1 | W30: 0 | X30: 0 | Y30: 0 | Z30: 0 | AA30: 0 | AB30: 0 | AC30: 0 | AD30: 0 | AE30: 0 | AF30: 0 | AG30: 0 | AH30: 0 | AI30: 7 | AK30: =AK6 -> 0.3239687407 | AL30: 0.445147888 | AM30: 0.3585913542 | AN30: 0.863092294 | AO30: 3.851876343 | AP30: 3.843610514 | AQ30: 15.36617623 | AR30: 11.07621094 | AS30: 0.04014653485 | AT30: 0.01505495057 | AU30: 0.2659707934 | AV30: 0.2408792091 | AW30: 0.02645461477 | AX30: 0.0606899986 | AY30: 0.007780769051 | AZ30: 0.006224615241 | BA30: 0.1611898743 | BB30: 0.05495109353 | BC30: 0.02198043741 | BD30: 0.4579257794 | BE30: 0.01070320026 | BF30: 0 | BG30: 0 | BH30: 0.05351600128 | BK30: tBu3P Pd G3, MTBD_DMF-H2O | BL30: 21 | BU30: tBu3P Pd G3, MTBD_DMF-H2O | BV30: 17
H31: 8 | J31: C | K31: 0 | L31: 1 | M31: 0 | N31: 0 | O31: 1 | P31: 3 | Q31: 8 | R31: 13 | S31: 0 | T31: 0 | U31: 0 | V31: 0 | W31: 0 | X31: 4 | Y31: 0 | Z31: 0 | AA31: 0 | AB31: 0 | AC31: 0 | AD31: 0 | AE31: 0 | AF31: 1 | AG31: 0 | AH31: 0 | AI31: 11 | AK31: 0.3140765654 | AL31: 1.558017608 | AM31: 0.06429913938 | AN31: 0.01483826293 | AO31: 4.413952719 | AP31: 9.142006943 | AQ31: 14.26682096 | AR31: 27.6161349 | AS31: 0.09534802027 | AT31: 0.07527475285 | AU31: 0.01505495057 | AV31: 0.3813920811 | AW31: 0.03423538383 | AX31: 1.567046887 | AY31: 0.00311230762 | AZ31: 0.05913384479 | BA31: 0.1062387808 | BB31: 0.09891196835 | BC31: 0.2637652489 | BD31: 0.09524856211 | BE31: 0.02140640051 | BF31: 0.6475436155 | BG31: 0 | BH31: 0.2996896072 | BK31: XantPhos Pd G4, MTBD_DMF-H2O | BL31: 16 | BU31: XantPhos Pd G4, MTBD_DMF-H2O | BV31: 14
H32: 7 | J32: D | K32: 1 | L32: 0 | M32: 13 | N32: 7 | O32: 7 | P32: 2 | Q32: 7 | R32: 8 | S32: 0 | T32: 0 | U32: 0 | V32: 0 | W32: 0 | X32: 1 | Y32: 0 | Z32: 0 | AA32: 4 | AB32: 6 | AC32: 7 | AD32: 4 | AE32: 0 | AF32: 0 | AG32: 0 | AH32: 0 | AI32: 6 | AK32: 1.251360174 | AL32: 0.3561183104 | AM32: 6.692056583 | AN32: 1.768226333 | AO32: 4.331294429 | AP32: 2.512812035 | AQ32: 9.869399901 | AR32: 7.786410977 | AS32: 0.1304762383 | AT32: 0.04516485171 | AU32: 0.140512872 | AV32: 2.248205952 | AW32: 0.2598776863 | AX32: 0.2178615334 | AY32: 0.0606899986 | AZ32: 0.02801076858 | BA32: 2.776861926 | BB32: 6.176502912 | BC32: 9.132871744 | BD32: 2.410521303 | BE32: 0.1016804024 | BF32: 0.06421920154 | BG32: 0.01605480039 | BH32: 0.3960184095 | BK32: RuPhos G4, Cs2CO3_DMF-H2O | BL32: 41 | BU32: RuPhos G4, Cs2CO3_DMF-H2O | BV32: 45
H33: 2 | J33: E | K33: 14 | L33: 9 | M33: 31 | N33: 12 | O33: 35 | P33: 41 | Q33: 77 | R33: 49 | S33: 21 | T33: 23 | U33: 62 | V33: 96 | W33: 67 | X33: 91 | Y33: 84 | Z33: 56 | AA33: 41 | AB33: 51 | AC33: 86 | AD33: 75 | AE33: 46 | AF33: 41 | AG33: 94 | AH33: 40 | AI33: 1 | AK33: 6.914630527 | AL33: 13.09724008 | AM33: 100 | AN33: 6.224651301 | AO33: 60.14217226 | AP33: 36.74161018 | AQ33: 100 | AR33: 93.230286 | AS33: 9.489637176 | AT33: 17.00707583 | AU33: 53.71104532 | AV33: 100 | AW33: 38.09308912 | AX33: 54.22417952 | AY33: 35.72929148 | AZ33: 32.72902694 | BA33: 77.27955453 | BB33: 71.67454299 | BC33: 63.37326446 | BD33: 82.4303037 | BE33: 23.25805416 | BF33: 34.43219523 | BG33: 75.54853901 | BH33: 33.431446 | BK33: tBuXphos Pd G4, Cs2CO3_DMF-H2O | BL33: 1 | BU33: tBuXphos Pd G4, Cs2CO3_DMF-H2O | BV33: 3
H34: 10 | J34: F | K34: 2 | L34: 2 | M34: 2 | N34: 2 | O34: 6 | P34: 4 | Q34: 2 | R34: 4 | S34: 0 | T34: 0 | U34: 2 | V34: 2 | W34: 1 | X34: 0 | Y34: 0 | Z34: 0 | AA34: 2 | AB34: 0 | AC34: 0 | AD34: 0 | AE34: 1 | AF34: 0 | AG34: 0 | AH34: 0 | AI34: 3 | AK34: 0.9867444851 | AL34: 1.090612326 | AM34: 0.8433079434 | AN34: 0.8062122861 | AO34: 8.406348157 | AP34: 8.365019011 | AQ34: 8.579930567 | AR34: 8.869234584 | AS34: 0.2057509911 | AT34: 0.05018316857 | AU34: 0.4867767351 | AV34: 1.124102976 | AW34: 0.3236799925 | AX34: 0.02022999953 | AY34: 0.04824076812 | AZ34: 0.01867384572 | BA34: 1.937941898 | BB34: 0.05128768729 | BC34: 0.1428728432 | BD34: 0.1318826245 | BE34: 0.9418816226 | BF34: 0.05351600128 | BG34: 0.2675800064 | BH34: 0.6368404153 | BK34: tBu3P Pd G3, Cs2CO3_DMF-H2O | BL34: 51 | BU34: tBu3P Pd G3, Cs2CO3_DMF-H2O | BV34: 48
H35: 8 | J35: G | K35: 14 | L35: 13 | M35: 59 | N35: 37 | O35: 5 | P35: 36 | Q35: 32 | R35: 15 | S35: 11 | T35: 42 | U35: 40 | V35: 39 | W35: 31 | X35: 100 | Y35: 29 | Z35: 11 | AA35: 29 | AB35: 27 | AC35: 36 | AD35: 11 | AE35: 16 | AF35: 72 | AG35: 31 | AH35: 13 | AI35: 7 | AK35: 11.70491641 | AL35: 6.407656544 | AM35: 37.93649223 | AN35: 29.92135721 | AO35: 14.94461895 | AP35: 79.32716151 | AQ35: 48.09885932 | AR35: 8.414613986 | AS35: 5.495056958 | AT35: 30.65689768 | AU35: 12.92718422 | AV35: 59.16595574 | AW35: 9.872239772 | AX35: 58.44135634 | AY35: 9.876908234 | AZ35: 4.828745273 | BA35: 24.41660256 | BB35: 33.79492252 | BC35: 39.09953475 | BD35: 9.180496025 | BE35: 16.90035321 | BF35: 61.62902708 | BG35: 23.08680295 | BH35: 11.74676228 | BK35: XantPhos Pd G4, Cs2CO3_DMF-H2O | BL35: 34 | BU35: XantPhos Pd G4, Cs2CO3_DMF-H2O | BV35: 33
H36: =M5 -> 12 | J36: H | K36: 16 | L36: 10 | M36: 29 | N36: 42 | O36: 12 | P36: 20 | Q36: 13 | R36: 28 | S36: 11 | T36: 11 | U36: 15 | V36: 53 | W36: 27 | X36: 58 | Y36: 11 | Z36: 24 | AA36: 39 | AB36: 60 | AC36: 100 | AD36: 75 | AE36: 13 | AF36: 14 | AG36: 8 | AH36: 16 | AI36: =AM5 -> 8 | AK36: 15.29824908 | AL36: 10.53763973 | AM36: 10.44366406 | AN36: 36.71233554 | AO36: 20.00330633 | AP36: 33.54273434 | AQ36: 22.0697636 | AR36: 20.89601587 | AS36: 7.858684197 | AT36: 5.264214382 | AU36: 6.187584684 | AV36: 56.56646761 | AW36: 16.27270039 | AX36: 17.54096575 | AY36: 3.201008388 | AZ36: 6.370893699 | BA36: 50.28025058 | BB36: 54.21841228 | BC36: 38.40715097 | BD36: 100 | BE36: 19.69924007 | BF36: 6.764422562 | BG36: 2.836348068 | BH36: 10.87445146 | BK36: RuPhos G4, DBU_DMSO-tAmOH | BL36: =BR4 -> 3 | BU36: RuPhos G4, DBU_DMSO-tAmOH | BV36: =CB4 -> 5
H37: =M6 -> 1 | J37: I | K37: 15 | L37: 8 | M37: 100 | N37: 82 | O37: 43 | P37: 81 | Q37: 100 | R37: 43 | S37: 27 | T37: 17 | U37: 100 | V37: 66 | W37: 50 | X37: 90 | Y37: 55 | Z37: 34 | AA37: 36 | AB37: 69 | AC37: 89 | AD37: 48 | AE37: 46 | AF37: 39 | AG37: 64 | AH37: 24 | AI37: =AM6 -> 0 | AK37: 22.64071619 | AL37: 8.428133347 | AM37: 57.88900979 | AN37: 68.74567217 | AO37: 38.91552323 | AP37: 29.83964292 | AQ37: 41.28781617 | AR37: 33.76591172 | AS37: 30.68700758 | AT37: 8.656596578 | AU37: 60.90229337 | AV37: 59.17599237 | AW37: 25.94264017 | AX37: 44.87169512 | AY37: 34.61975382 | AZ37: 18.73920418 | BA37: 61.05432831 | BB37: 51.56244276 | BC37: 81.85148551 | BD37: 25.83434077 | BE37: 62.91341111 | BF37: 52.15134325 | BG37: 55.75832174 | BH37: 21.17628171 | BK37: tBuXphos Pd G4, DBU_DMSO-tAmOH | BL37: 1 | BU37: tBuXphos Pd G4, DBU_DMSO-tAmOH | BV37: =CB5 -> 3
H38: 0 | J38: J | K38: 1 | L38: 1 | M38: 2 | N38: 4 | O38: 3 | P38: 2 | Q38: 4 | R38: 3 | S38: 0 | T38: 0 | U38: 2 | V38: 2 | W38: 0 | X38: 0 | Y38: 0 | Z38: 0 | AA38: 1 | AB38: 0 | AC38: 0 | AD38: 0 | AE38: 0 | AF38: 0 | AG38: 0 | AH38: 0 | AI38: 0 | AK38: 0.5885844297 | AL38: 0.2423582946 | AM38: 0.7493322782 | AN38: 0.8457809872 | AO38: 3.603901471 | AP38: 6.951562242 | AQ38: 17.51529178 | AR38: 6.984625558 | AS38: 0.1154212877 | AT38: 0.1505495057 | AU38: 0.6573995082 | AV38: 1.124102976 | AW38: 0.1167115358 | AX38: 0.02178615334 | AY38: 0.0451284605 | AZ38: 0.03734769145 | BA38: 0.9598124336 | BB38: 0.1611898743 | BC38: 0.062277906 | BD38: 0.06594131223 | BE38: 0.3532056085 | BF38: 0.01605480039 | BG38: 0.1444932035 | BH38: 0.2889864069 | BK38: tBu3P Pd G3, DBU_DMSO-tAmOH | BL38: 1 | BU38: tBu3P Pd G3, DBU_DMSO-tAmOH | BV38: 2
H39: 13 | J39: K | K39: 7 | L39: 8 | M39: 49 | N39: 14 | O39: 12 | P39: 49 | Q39: 16 | R39: 11 | S39: 3 | T39: 23 | U39: 17 | V39: 26 | W39: 30 | X39: 46 | Y39: 3 | Z39: 2 | AA39: 24 | AB39: 0 | AC39: 27 | AD39: 2 | AE39: 13 | AF39: 0 | AG39: 5 | AH39: 6 | AI39: 7 | AK39: 6.635176575 | AL39: 6.6252844 | AM39: 38.29755663 | AN39: 3.712038777 | AO39: 14.33294759 | AP39: 50.48768391 | AQ39: 35.55959663 | AR39: 15.84559431 | AS39: 2.805239123 | AT39: 17.59923722 | AU39: 4.059818337 | AV39: 25.03136448 | AW39: 13.03590047 | AX39: 28.72193088 | AY39: 1.048847668 | AZ39: 0.2910007625 | BA39: 24.3250174 | BB39: 0.02198043741 | BC39: 21.81558413 | BD39: 1.850020149 | BE39: 8.648185808 | BF39: 0 | BG39: 4.532805309 | BH39: 6.304184951 | BK39: XantPhos Pd G4, DBU_DMSO-tAmOH | BL39: 5 | BU39: XantPhos Pd G4, DBU_DMSO-tAmOH | BV39: 4
H40: 31 | J40: L | K40: 5 | L40: 8 | M40: 28 | N40: 28 | O40: 9 | P40: 23 | Q40: 9 | R40: 10 | S40: 2 | T40: 3 | U40: 6 | V40: 15 | W40: 12 | X40: 20 | Y40: 4 | Z40: =Z16 -> 4 | AA40: 30 | AB40: 41 | AC40: 69 | AD40: 42 | AE40: 4 | AF40: 0 | AG40: 4 | AH40: 15 | AI40: 100 | AK40: 8.957364725 | AL40: 11.40320506 | AM40: 15.89919873 | AN40: 28.9618162 | AO40: 17.45743098 | AP40: 23.22697967 | AQ40: 13.9940486 | AR40: 7.075549678 | AS40: 0.943443569 | AT40: 0.7025643599 | AU40: 3.0963015 | AV40: 5.128719827 | AW40: 5.353169107 | AX40: 5.10107219 | AY40: 1.227805356 | AZ40: =AZ16 -> 0.6442476774 | BA40: 27.06890867 | BB40: 46.31644503 | BC40: 55.46763381 | BD40: 65.17199692 | BE40: 1.059616825 | BF40: 0 | BG40: 1.969388847 | BH40: 15.92101038 | BK40: RuPhos G4, BTMG_DMSO-tAmOH | BL40: 72 | BU40: RuPhos G4, BTMG_DMSO-tAmOH | BV40: 71
H41: 2 | J41: M | K41: =K17 -> 10 | L41: 7 | M41: 0 | N41: 0 | O41: 0 | P41: 38 | Q41: 13 | R41: 9 | S41: 19 | T41: 15 | U41: 0 | V41: 0 | W41: 73 | X41: 82 | Y41: 0 | Z41: 0 | AA41: 38 | AB41: 66 | AC41: 0 | AD41: 0 | AE41: 44 | AF41: 36 | AG41: 0 | AH41: 0 | AI41: 1 | AK41: =AK17 -> 10.81214759 | AL41: 6.150459986 | AM41: 0 | AN41: 0 | AO41: 21.8713837 | AP41: 51.89287486 | AQ41: 4.769383369 | AR41: 4.256901967 | AS41: 15.78762483 | AT41: 10.99513223 | AU41: 0 | AV41: 0.005018316857 | AW41: 54.38135105 | AX41: 100 | AY41: 0.00311230762 | AZ41: 0 | BA41: 38.71121369 | BB41: 63.75792212 | BC41: 0.01099021871 | BD41: 0.03297065612 | BE41: 29.2250883 | BF41: 39.27004174 | BG41: 0 | BH41: 0.02675800064 | BK41: tBuXphos Pd G4, BTMG_DMSO-tAmOH | BL41: 1 | BU41: tBuXphos Pd G4, BTMG_DMSO-tAmOH | BV41: 2
H42: 59 | J42: N | K42: 1 | L42: 2 | M42: 0 | N42: 0 | O42: 6 | P42: 5 | Q42: 15 | R42: 9 | S42: 1 | T42: 0 | U42: 0 | V42: 0 | W42: 1 | X42: 0 | Y42: 0 | Z42: 0 | AA42: 1 | AB42: 0 | AC42: 0 | AD42: 0 | AE42: 1 | AF42: 0 | AG42: 0 | AH42: 0 | AI42: 38 | AK42: 0.6924522703 | AL42: 1.105450589 | AM42: 0 | AN42: 0.02473043822 | AO42: 7.836005951 | AP42: 15.3579104 | AQ42: 4.397421061 | AR42: 3.96759795 | AS42: 1.370000502 | AT42: 0.1906960405 | AU42: 0.02509158428 | AV42: 0 | AW42: 0.3143430697 | AX42: 0.02022999953 | AY42: 0 | AZ42: 0.01089307667 | BA42: 0.8609004653 | BB42: 0.2161409679 | BC42: 0 | BD42: 0.003663406235 | BE42: 0.2782832067 | BF42: 0.1605480039 | BG42: 0.04816440116 | BH42: 0 | BK42: tBu3P Pd G3, BTMG_DMSO-tAmOH | BL42: 38 | BU42: tBu3P Pd G3, BTMG_DMSO-tAmOH | BV42: 29
H43: 29 | J43: O | K43: 10 | L43: 10 | M43: 0 | N43: 1 | O43: 8 | P43: 86 | Q43: 15 | R43: 8 | S43: 5 | T43: 24 | U43: 0 | V43: 0 | W43: 11 | X43: 65 | Y43: 0 | Z43: 0 | AA43: 10 | AB43: 22 | AC43: 0 | AD43: 0 | AE43: 10 | AF43: 100 | AG43: 0 | AH43: 0 | AI43: 10 | AK43: 6.380453062 | AL43: 3.313878722 | AM43: 0 | AN43: 0.417944406 | AO43: 18.10216565 | AP43: 93.79236237 | AQ43: 11.22499587 | AR43: 5.017358241 | AS43: 4.160184674 | AT43: 24.55462438 | AU43: 0.01505495057 | AV43: 0.01003663371 | AW43: 4.698028353 | AX43: 39.40025832 | AY43: 0 | AZ43: 0.01711769191 | BA43: 8.60167784 | BB43: 28.58555885 | BC43: 0.01465362494 | BD43: 0.00732681247 | BE43: 7.759820186 | BF43: 100 | BG43: 0 | BH43: 0.1444932035 | BK43: XantPhos Pd G4, BTMG_DMSO-tAmOH | BL43: 29 | BU43: XantPhos Pd G4, BTMG_DMSO-tAmOH | BV43: 14
H44: 100 | J44: P | K44: 12 | L44: 8 | M44: 0 | N44: 0 | O44: 16 | P44: 43 | Q44: 29 | R44: 40 | S44: 14 | T44: 18 | U44: 0 | V44: 0 | W44: 42 | X44: 93 | Y44: 0 | Z44: 0 | AA44: 33 | AB44: 40 | AC44: 0 | AD44: 0 | AE44: 32 | AF44: 0 | AG44: 0 | AH44: 0 | AI44: 58 | AK44: 12.0709269 | AL44: 6.758828766 | AM44: 0.03709565734 | AN44: 0.01236521911 | AO44: 25.25210779 | AP44: 56.53000496 | AQ44: 23.67333444 | AR44: 41.19689205 | AS44: 14.71370502 | AT44: 9.77066292 | AU44: 0.005018316857 | AV44: 0.01505495057 | AW44: 11.55288589 | AX44: 55.69163256 | AY44: 0 | AZ44: 0 | BA44: 45.69000256 | BB44: 67.93420522 | BC44: 0 | BD44: 0 | BE44: 62.4799315 | BF44: 0.01070320026 | BG44: 0.02140640051 | BH44: 0.01070320026 | BK44: RuPhos G4, MTBD_DMSO-tAmOH | BL44: 85 | BU44: RuPhos G4, MTBD_DMSO-tAmOH | BV44: 55
H45: 2 | AI45: 1 | BK45: tBuXphos Pd G4, MTBD_DMSO-tAmOH | BL45: 1 | BU45: tBuXphos Pd G4, MTBD_DMSO-tAmOH | BV45: 3
H46: 49 | K46: scale | AI46: 38 | BK46: tBu3P Pd G3, MTBD_DMSO-tAmOH | BL46: 20 | BU46: tBu3P Pd G3, MTBD_DMSO-tAmOH | BV46: 18
H47: 28 | K47: 100 | L47: 100 | AI47: 16 | BK47: XantPhos Pd G4, MTBD_DMSO-tAmOH | BL47: 20 | BU47: XantPhos Pd G4, MTBD_DMSO-tAmOH | BV47: 15
H48: 0 | K48: 90 | AI48: 0 | BK48: RuPhos G4, Cs2CO3_DMSO-tAmOH | BL48: 2 | BU48: RuPhos G4, Cs2CO3_DMSO-tAmOH | BV48: 1
H49: 0 | K49: 80 | AI49: 0 | BK49: tBuXphos Pd G4, Cs2CO3_DMSO-tAmOH | BL49: 3 | BU49: tBuXphos Pd G4, Cs2CO3_DMSO-tAmOH | BV49: 1
H50: 0 | K50: 70 | AI50: 0 | BK50: tBu3P Pd G3, Cs2CO3_DMSO-tAmOH | BL50: 3 | BU50: tBu3P Pd G3, Cs2CO3_DMSO-tAmOH | BV50: 2
H51: 0 | K51: 60 | AI51: 0 | BK51: XantPhos Pd G4, Cs2CO3_DMSO-tAmOH | BL51: 5 | BU51: XantPhos Pd G4, Cs2CO3_DMSO-tAmOH | BV51: 4
H52: =N5 -> 10 | K52: 50 | AI52: =AN5 -> 3 | BK52: RuPhos G4, DBU_DMF-tAmOH | BL52: =BS4 -> 3 | BU52: RuPhos G4, DBU_DMF-tAmOH | BV52: =CC4 -> 3
H53: =N6 -> 1 | K53: 40 | AI53: =AN6 -> 1 | BK53: tBuXphos Pd G4, DBU_DMF-tAmOH | BL53: 1 | BU53: tBuXphos Pd G4, DBU_DMF-tAmOH | BV53: =CC5 -> 2
H54: 0 | K54: 30 | AI54: 0 | BK54: tBu3P Pd G3, DBU_DMF-tAmOH | BL54: 2 | BU54: tBu3P Pd G3, DBU_DMF-tAmOH | BV54: 5
H55: 7 | K55: 20 | AI55: 2 | BK55: XantPhos Pd G4, DBU_DMF-tAmOH | BL55: 3 | BU55: XantPhos Pd G4, DBU_DMF-tAmOH | BV55: 2
H56: 12 | K56: 10 | AI56: 6 | BK56: RuPhos G4, BTMG_DMF-tAmOH | BL56: 55 | BU56: RuPhos G4, BTMG_DMF-tAmOH | BV56: 58
H57: 2 | K57: 0 | L57: 0 | AI57: 1 | BK57: tBuXphos Pd G4, BTMG_DMF-tAmOH | BL57: 1 | BU57: tBuXphos Pd G4, BTMG_DMF-tAmOH | BV57: 2
H58: 37 | AI58: 30 | BK58: tBu3P Pd G3, BTMG_DMF-tAmOH | BL58: 21 | BU58: tBu3P Pd G3, BTMG_DMF-tAmOH | BV58: 21
H59: 42 | AI59: 37 | BK59: XantPhos Pd G4, BTMG_DMF-tAmOH | BL59: 40 | BU59: XantPhos Pd G4, BTMG_DMF-tAmOH | BV59: 39
H60: 82 | AI60: 69 | BK60: RuPhos G4, MTBD_DMF-tAmOH | BL60: 50 | BU60: RuPhos G4, MTBD_DMF-tAmOH | BV60: 38
H61: 4 | AI61: 1 | BK61: tBuXphos Pd G4, MTBD_DMF-tAmOH | BL61: 2 | BU61: tBuXphos Pd G4, MTBD_DMF-tAmOH | BV61: 2
H62: 14 | AI62: 4 | BK62: tBu3P Pd G3, MTBD_DMF-tAmOH | BL62: 10 | BU62: tBu3P Pd G3, MTBD_DMF-tAmOH | BV62: 9
H63: 28 | AI63: 29 | BK63: XantPhos Pd G4, MTBD_DMF-tAmOH | BL63: 19 | BU63: XantPhos Pd G4, MTBD_DMF-tAmOH | BV63: 20
H64: 0 | AI64: 0 | BK64: RuPhos G4, Cs2CO3_DMF-tAmOH | BL64: 2 | BU64: RuPhos G4, Cs2CO3_DMF-tAmOH | BV64: 1
H65: 0 | AI65: 0 | BK65: tBuXphos Pd G4, Cs2CO3_DMF-tAmOH | BL65: 2 | BU65: tBuXphos Pd G4, Cs2CO3_DMF-tAmOH | BV65: 1
H66: 1 | AI66: 0 | BK66: tBu3P Pd G3, Cs2CO3_DMF-tAmOH | BL66: 2 | BU66: tBu3P Pd G3, Cs2CO3_DMF-tAmOH | BV66: 1
H67: 0 | AI67: 0 | BK67: XantPhos Pd G4, Cs2CO3_DMF-tAmOH | BL67: 7 | BU67: XantPhos Pd G4, Cs2CO3_DMF-tAmOH | BV67: 7
H68: =O5 -> 1 | AI68: =AO5 -> 6
H69: 4 | AI69: 4
H70: 1 | AI70: 4
H71: 7 | AI71: 4
H72: 35 | AI72: 60
H73: 6 | AI73: 8
H74: 5 | AI74: 15
H75: 12 | AI75: 20
H76: 43 | AI76: 39
H77: 3 | AI77: 4
H78: 12 | AI78: 14
H79: 9 | AI79: 17
H80: 0 | AI80: 22
H81: 6 | AI81: 8
H82: 8 | AI82: 18
H83: 16 | AI83: 25
H84: =P5 -> 2 | AI84: =AP5 -> 4
H85: 4 | AI85: 4
H86: 3 | AI86: 9
H87: 2 | AI87: 3
H88: 41 | AI88: 37
H89: 4 | AI89: 8
H90: 36 | AI90: 79
H91: 20 | AI91: 34
H92: 81 | AI92: 30
H93: =P14 -> 2 | AI93: 7
H94: 49 | AI94: 50
H95: 23 | AI95: 23
H96: 38 | AI96: 52
H97: 5 | AI97: 15
H98: 86 | AI98: 94
H99: 43 | AI99: 57
H100: =Q5 -> 5 | AI100: =AQ5 -> 22
H101: 4 | AI101: 15
H102: 8 | AI102: 14
H103: 7 | AI103: 10
H104: 77 | AI104: 100
H105: 2 | AI105: 9
H106: 32 | AI106: 48
H107: 13 | AI107: 22
H108: 100 | AI108: 41
H109: 4 | AI109: 18
H110: 16 | AI110: 36
H111: 9 | AI111: 14
H112: 13 | AI112: 5
H113: 15 | AI113: 4
H114: 15 | AI114: 11
H115: 29 | AI115: 24
H116: =R5 -> 8 | AI116: =AR5 -> 11
H117: 6 | AI117: 11
H118: 13 | AI118: 28
H119: 8 | AI119: 8
H120: 49 | AI120: 93
H121: 4 | AI121: 9
H122: 15 | AI122: 8
H123: 28 | AI123: 21
H124: 43 | AI124: 34
H125: 3 | AI125: 7
H126: 11 | AI126: 16
H127: 10 | AI127: 7
H128: 9 | AI128: 4
H129: 9 | AI129: 4
H130: 8 | AI130: 5
H131: 40 | AI131: 41
H132: =S5 -> 1 | AI132: =AS5 -> 1
H133: 0 | AI133: 0
H134: 0 | AI134: 0
H135: 0 | AI135: 0
H136: 21 | AI136: 9
H137: 0 | AI137: 0
H138: 11 | AI138: 5
H139: 11 | AI139: 8
H140: 27 | AI140: 31
H141: 0 | AI141: 0
H142: 3 | AI142: 3
H143: 2 | AI143: 1
H144: 19 | AI144: 16
H145: 1 | AI145: 1
H146: 5 | AI146: 4
H147: 14 | AI147: 15
H148: =T5 -> 1 | AI148: =AT5 -> 0
H149: 0 | AI149: 0
H150: 0 | AI150: 0
H151: 0 | AI151: 0
H152: 23 | AI152: 17
H153: 0 | AI153: 0
H154: 42 | AI154: 31
H155: 11 | AI155: 5
H156: 17 | AI156: 9
H157: 0 | AI157: 0
H158: 23 | AI158: 18
H159: 3 | AI159: 1
H160: 15 | AI160: 11
H161: 0 | AI161: 0
H162: 24 | AI162: 25
H163: 18 | AI163: 10
H164: =U5 -> 1 | AI164: =AU5 -> 0
H165: 0 | AI165: 0
H166: 0 | AI166: 0
H167: 0 | AI167: 0
H168: 62 | AI168: 54
H169: 2 | AI169: 0
H170: 40 | AI170: 13
H171: 15 | AI171: 6
H172: 100 | AI172: 61
H173: 2 | AI173: 1
H174: 17 | AI174: 4
H175: 6 | AI175: 3
H176: 0 | AI176: 0
H177: 0 | AI177: 0
H178: 0 | AI178: 0
H179: 0 | AI179: 0
H180: =V5 -> 0 | AI180: =AV5 -> 0
H181: 1 | AI181: 0
H182: 0 | AI182: 0
H183: 0 | AI183: 2
H184: 96 | AI184: 100
H185: 2 | AI185: 1
H186: 39 | AI186: 59
H187: 53 | AI187: 57
H188: 66 | AI188: 59
H189: 2 | AI189: 1
H190: 26 | AI190: 25
H191: 15 | AI191: 5
H192: 0 | AI192: 0
H193: 0 | AI193: 0
H194: 0 | AI194: 0
H195: 0 | AI195: 0
H196: =W5 -> 2 | AI196: =AW5 -> 0
H197: 0 | AI197: 0
H198: 0 | AI198: 0
H199: 0 | AI199: 0
H200: 67 | AI200: 38
H201: 1 | AI201: 0
... 186 more rows

Sheet 14
A1: Data associated with Extended Data Fig 4c | G1: TIDA 1 C-O coupling: 384 Data points | BK1: TIDA 1 C-O coupling: 64 conditions
H3: LC-MS | AI3: NL-ADE-MS | BK3: Conditions | BL3: LC-MS | BN3: Average | BO3: LC-MS | BP3: DMSO | BQ3: DMF | BR3: DMAc | BS3: NMP | BU3: Conditions | BV3: NL-ADE-MS | BX3: Solvents(Average) | BY3: NL-ADE-MS | BZ3: DMSO | CA3: DMF | CB3: DMAc | CC3: NMP
H4: =K5 -> 75 | J4: processed data: LC-MS | K4: 1 | L4: 2 | M4: 3 | N4: 4 | O4: 5 | P4: 6 | Q4: 7 | R4: 8 | S4: 9 | T4: 10 | U4: 11 | V4: 12 | W4: 13 | X4: 14 | Y4: 15 | Z4: 16 | AA4: 17 | AB4: 18 | AC4: 19 | AD4: 20 | AE4: 21 | AF4: 22 | AG4: 23 | AH4: 24 | AI4: =AK5 -> 43 | AJ4: processed data:NL-ADE-MS | AK4: 1 | AL4: 2 | AM4: 3 | AN4: 4 | AO4: 5 | AP4: 6 | AQ4: 7 | AR4: 8 | AS4: 9 | AT4: 10 | AU4: 11 | AV4: 12 | AW4: 13 | AX4: 14 | AY4: 15 | AZ4: 16 | BA4: 17 | BB4: 18 | BC4: 19 | BD4: 20 | BE4: 21 | BF4: 22 | BG4: 23 | BH4: 24 | BK4: cataCXium Pd G4, DBU_DMSO | BL4: =BP4 -> 50 | BM4: DMSO | BN4: =AVERAGE(BL4:BL19) -> 61 | BO4: A | BP4: =AVERAGE(K5,O5,S5,W5,AA5,AE5) -> 50 | BQ4: =AVERAGE(L5,P5,T5,X5,AB5,AF5) -> 41 | BR4: 34 | BS4: 20 | BU4: cataCXium Pd G4, DBU_DMSO | BV4: =BZ4 -> 33 | BW4: DMSO | BX4: =AVERAGE(BV4:BV19) -> 47 | BY4: A | BZ4: =AVERAGE(AK5,AO5,AS5,AW5,BA5,BE5) -> 33 | CA4: =AVERAGE(AL5,AP5,AT5,AX5,BB5,BF5) -> 31 | CB4: 28 | CC4: 14
H5: =K6 -> 80 | J5: A | K5: 75 | L5: 64 | M5: 60 | N5: 35 | O5: 27 | P5: 17 | Q5: 11 | R5: 7 | S5: 63 | T5: 65 | U5: 56 | V5: 35 | W5: 72 | X5: 56 | Y5: 45 | Z5: 27 | AA5: 32 | AB5: 20 | AC5: 16 | AD5: 8 | AE5: 32 | AF5: 22 | AG5: 18 | AH5: 9 | AI5: =AK6 -> 65 | AJ5: A | AK5: 43 | AL5: 61 | AM5: 52 | AN5: 38 | AO5: 17 | AP5: 14 | AQ5: 7 | AR5: 4 | AS5: 43 | AT5: 49 | AU5: 59 | AV5: 24 | AW5: 56 | AX5: 44 | AY5: 36 | AZ5: 14 | BA5: 22 | BB5: 9 | BC5: 7 | BD5: 2 | BE5: 17 | BF5: 6 | BG5: 9 | BH5: 3 | BK5: tBuXphos Pd G4, DBU_DMSO | BL5: 53 | BM5: DMF | BN5: =AVERAGE(BL20:BL35) -> 61 | BO5: B | BP5: 53 | BQ5: 49 | BR5: 41 | BS5: 29 | BU5: tBuXphos Pd G4, DBU_DMSO | BV5: =BZ5 -> 36 | BW5: DMF | BX5: =AVERAGE(BV20:BV35) -> 47 | BY5: B | BZ5: 36 | CA5: 33 | CB5: 29 | CC5: 19
H6: 79 | J6: B | K6: 80 | L6: 75 | M6: 69 | N6: 50 | O6: 30 | P6: 24 | Q6: 16 | R6: 10 | S6: 65 | T6: 64 | U6: 56 | V6: 46 | W6: 75 | X6: 66 | Y6: 58 | Z6: 37 | AA6: 36 | AB6: 41 | AC6: 31 | AD6: 19 | AE6: 32 | AF6: 24 | AG6: 19 | AH6: 12 | AI6: 68 | AJ6: B | AK6: 65 | AL6: 51 | AM6: 48 | AN6: 38 | AO6: 19 | AP6: 14 | AQ6: 12 | AR6: 6 | AS6: 47 | AT6: 49 | AU6: 45 | AV6: 31 | AW6: 57 | AX6: 46 | AY6: 44 | AZ6: 20 | BA6: 12 | BB6: 19 | BC6: 15 | BD6: 11 | BE6: 15 | BF6: 16 | BG6: 9 | BH6: 5 | BK6: tBuBrettPhos Pd G4, DBU_DMSO | BL6: 56 | BM6: DMAc | BN6: =AVERAGE(BL36:BL51) -> 53 | BO6: C | BP6: 56 | BQ6: 50 | BR6: 41 | BS6: 28 | BU6: tBuBrettPhos Pd G4, DBU_DMSO | BV6: 41 | BW6: DMAc | BX6: =AVERAGE(BV36:BV51) -> 43 | BY6: C | BZ6: 41 | CA6: 33 | CB6: 30 | CC6: 18
H7: 73 | J7: C | K7: 79 | L7: 76 | M7: 71 | N7: 53 | O7: 36 | P7: 27 | Q7: 18 | R7: 9 | S7: 65 | T7: 65 | U7: 56 | V7: 46 | W7: 80 | X7: 74 | Y7: 60 | Z7: 36 | AA7: 45 | AB7: 31 | AC7: 23 | AD7: 13 | AE7: 35 | AF7: 24 | AG7: 19 | AH7: 12 | AI7: 68 | AJ7: C | AK7: 68 | AL7: 63 | AM7: 53 | AN7: 33 | AO7: 23 | AP7: 16 | AQ7: 14 | AR7: 7 | AS7: 50 | AT7: 38 | AU7: 53 | AV7: 36 | AW7: 56 | AX7: 51 | AY7: 38 | AZ7: 18 | BA7: 23 | BB7: 12 | BC7: 10 | BD7: 6 | BE7: 26 | BF7: 15 | BG7: 9 | BH7: 5 | BK7: XantPhos Pd G4, DBU_DMSO | BL7: 48 | BM7: NMP | BN7: =AVERAGE(BL52:BL67) -> 39 | BO7: D | BP7: 48 | BQ7: 44 | BR7: 36 | BS7: 24 | BU7: XantPhos Pd G4, DBU_DMSO | BV7: 35 | BW7: NMP | BX7: =AVERAGE(BV52:BV67) -> 30 | BY7: D | BZ7: 35 | CA7: 31 | CB7: 28 | CC7: 18
H8: 75 | J8: D | K8: 73 | L8: 76 | M8: 63 | N8: 43 | O8: 27 | P8: 21 | Q8: 13 | R8: 7 | S8: 60 | T8: 62 | U8: 56 | V8: 38 | W8: 68 | X8: 60 | Y8: 51 | Z8: 31 | AA8: 32 | AB8: 23 | AC8: 16 | AD8: 10 | AE8: 30 | AF8: 25 | AG8: 18 | AH8: 12 | AI8: 56 | AJ8: D | AK8: 68 | AL8: 61 | AM8: 52 | AN8: 43 | AO8: 14 | AP8: 13 | AQ8: 7 | AR8: 4 | AS8: 43 | AT8: 50 | AU8: 56 | AV8: 39 | AW8: 53 | AX8: 39 | AY8: 38 | AZ8: 14 | BA8: 19 | BB8: 11 | BC8: 6 | BD8: 3 | BE8: 15 | BF8: 13 | BG8: 7 | BH8: 6 | BK8: cataCXium Pd G4,BTMG_DMSO | BL8: 76 | BO8: E | BP8: 76 | BQ8: 86 | BR8: 71 | BS8: 54 | BU8: cataCXium Pd G4,BTMG_DMSO | BV8: 57 | BY8: E | BZ8: 57 | CA8: 71 | CB8: 56 | CC8: 41
H9: 81 | J9: E | K9: 75 | L9: 100 | M9: 91 | N9: 71 | O9: 67 | P9: 77 | Q9: 47 | R9: 33 | S9: 75 | T9: 100 | U9: 89 | V9: 70 | W9: 91 | X9: 100 | Y9: 98 | Z9: 81 | AA9: 87 | AB9: 85 | AC9: 59 | AD9: 41 | AE9: 60 | AF9: 55 | AG9: 42 | AH9: 30 | AI9: 71 | AJ9: E | AK9: 56 | AL9: 89 | AM9: 90 | AN9: 59 | AO9: 53 | AP9: 59 | AQ9: 43 | AR9: 18 | AS9: 52 | AT9: 90 | AU9: 64 | AV9: 85 | AW9: 98 | AX9: 98 | AY9: 66 | AZ9: 50 | BA9: 58 | BB9: 55 | BC9: 51 | BD9: 21 | BE9: 27 | BF9: 33 | BG9: 23 | BH9: 14 | BK9: tBuXphos Pd G4,BTMG_DMSO | BL9: 81 | BO9: F | BP9: 81 | BQ9: 79 | BR9: 71 | BS9: 48 | BU9: tBuXphos Pd G4,BTMG_DMSO | BV9: 65 | BY9: F | BZ9: 65 | CA9: 59 | CB9: 52 | CC9: 40
H10: 83 | J10: F | K10: 81 | L10: 78 | M10: 81 | N10: 68 | O10: 72 | P10: 64 | Q10: 48 | R10: 26 | S10: 81 | T10: 92 | U10: 80 | V10: 63 | W10: 95 | X10: 88 | Y10: 85 | Z10: 64 | AA10: 94 | AB10: 100 | AC10: 93 | AD10: 43 | AE10: 61 | AF10: 48 | AG10: 38 | AH10: 24 | AI10: 70 | AJ10: F | AK10: 71 | AL10: 57 | AM10: 64 | AN10: 68 | AO10: 63 | AP10: 47 | AQ10: 45 | AR10: 18 | AS10: 89 | AT10: 76 | AU10: 75 | AV10: 72 | AW10: 79 | AX10: 91 | AY10: 60 | AZ10: 48 | BA10: 49 | BB10: 57 | BC10: 51 | BD10: 24 | BE10: 39 | BF10: 26 | BG10: 19 | BH10: 11 | BK10: tBuBrettPhos Pd G4,BTMG_DMSO | BL10: 81 | BO10: G | BP10: 81 | BQ10: 75 | BR10: 67 | BS10: 46 | BU10: tBuBrettPhos Pd G4,BTMG_DMSO | BV10: 62 | BY10: G | BZ10: 62 | CA10: 59 | CB10: 55 | CC10: 35
H11: 79 | J11: G | K11: 83 | L11: 85 | M11: 92 | N11: 68 | O11: 66 | P11: 63 | Q11: 43 | R11: 25 | S11: 84 | T11: 95 | U11: 87 | V11: 62 | W11: 94 | X11: 94 | Y11: 87 | Z11: 62 | AA11: 95 | AB11: 67 | AC11: 54 | AD11: 35 | AE11: 67 | AF11: 44 | AG11: 36 | AH11: 22 | AI11: 64 | AJ11: G | AK11: 70 | AL11: 79 | AM11: 100 | AN11: 47 | AO11: 65 | AP11: 62 | AQ11: 32 | AR11: 18 | AS11: 59 | AT11: 68 | AU11: 68 | AV11: 58 | AW11: 89 | AX11: 73 | AY11: 85 | AZ11: 59 | BA11: 49 | BB11: 42 | BC11: 28 | BD11: 16 | BE11: 41 | BF11: 29 | BG11: 17 | BH11: 13 | BK11: XantPhos Pd G4,BTMG_DMSO | BL11: 77 | BO11: H | BP11: 77 | BQ11: 79 | BR11: 72 | BS11: 51 | BU11: XantPhos Pd G4,BTMG_DMSO | BV11: 59 | BY11: H | BZ11: 59 | CA11: 66 | CB11: 60 | CC11: 39
H12: 79 | J12: H | K12: 79 | L12: 95 | M12: 94 | N12: 73 | O12: 65 | P12: 68 | Q12: 45 | R12: 28 | S12: 73 | T12: 91 | U12: 88 | V12: 66 | W12: 92 | X12: 97 | Y12: 96 | Z12: 74 | AA12: 96 | AB12: 73 | AC12: 65 | AD12: 37 | AE12: 55 | AF12: 52 | AG12: 41 | AH12: 29 | AI12: 63 | AJ12: H | AK12: 64 | AL12: 75 | AM12: 92 | AN12: 89 | AO12: 48 | AP12: 64 | AQ12: 37 | AR12: 18 | AS12: 68 | AT12: 100 | AU12: 84 | AV12: 54 | AW12: 79 | AX12: 79 | AY12: 84 | AZ12: 51 | BA12: 59 | BB12: 47 | BC12: 48 | BD12: 14 | BE12: 34 | BF12: 33 | BG12: 17 | BH12: 8 | BK12: cataCXium Pd G4, MTBD_DMSO | BL12: 73 | BO12: I | BP12: 73 | BQ12: 65 | BR12: 58 | BS12: 40 | BU12: cataCXium Pd G4, MTBD_DMSO | BV12: 59 | BY12: I | BZ12: 59 | CA12: 53 | CB12: 44 | CC12: 30
H13: 82 | J13: I | K13: 79 | L13: 86 | M13: 84 | N13: 59 | O13: 60 | P13: 47 | Q13: 32 | R13: 20 | S13: 77 | T13: 82 | U13: 78 | V13: 53 | W13: 94 | X13: 89 | Y13: 83 | Z13: 60 | AA13: 75 | AB13: 47 | AC13: 41 | AD13: 26 | AE13: 53 | AF13: 39 | AG13: 31 | AH13: 23 | AI13: 64 | AJ13: I | AK13: 63 | AL13: 82 | AM13: 79 | AN13: 46 | AO13: 42 | AP13: 43 | AQ13: 23 | AR13: 11 | AS13: 70 | AT13: 80 | AU13: 64 | AV13: 43 | AW13: 81 | AX13: 68 | AY13: 63 | AZ13: 49 | BA13: 61 | BB13: 22 | BC13: 19 | BD13: 16 | BE13: 34 | BF13: 21 | BG13: 15 | BH13: 12 | BK13: tBuXphos Pd G4, MTBD_DMSO | BL13: 73 | BO13: J | BP13: 73 | BQ13: 61 | BR13: 51 | BS13: 35 | BU13: tBuXphos Pd G4, MTBD_DMSO | BV13: 55 | BY13: J | BZ13: 55 | CA13: 50 | CB13: 44 | CC13: 27
H14: 73 | J14: J | K14: 82 | L14: 83 | M14: 75 | N14: 55 | O14: 61 | P14: 33 | Q14: 23 | R14: 14 | S14: 75 | T14: 80 | U14: 75 | V14: 54 | W14: 93 | X14: 80 | Y14: 71 | Z14: 50 | AA14: 75 | AB14: 58 | AC14: 39 | AD14: 22 | AE14: 53 | AF14: 33 | AG14: 25 | AH14: 15 | AI14: 78 | AJ14: J | AK14: 64 | AL14: 96 | AM14: 85 | AN14: 61 | AO14: 65 | AP14: 22 | AQ14: 15 | AR14: 12 | AS14: 52 | AT14: 78 | AU14: 66 | AV14: 38 | AW14: 71 | AX14: 55 | AY14: 58 | AZ14: 38 | BA14: 48 | BB14: 31 | BC14: 19 | BD14: 7 | BE14: 31 | BF14: 19 | BG14: 19 | BH14: 7 | BK14: tBuBrettPhos Pd G4, MTBD_DMSO | BL14: 70 | BO14: K | BP14: 70 | BQ14: 58 | BR14: 51 | BS14: 33 | BU14: tBuBrettPhos Pd G4, MTBD_DMSO | BV14: 62 | BY14: K | BZ14: 62 | CA14: 44 | CB14: 42 | CC14: 21
H15: 73 | J15: K | K15: 73 | L15: 81 | M15: 79 | N15: 56 | O15: 58 | P15: 35 | Q15: 22 | R15: 12 | S15: 73 | T15: 72 | U15: 74 | V15: 52 | W15: 91 | X15: 81 | Y15: 70 | Z15: 45 | AA15: 76 | AB15: 52 | AC15: 36 | AD15: 17 | AE15: 50 | AF15: 27 | AG15: 24 | AH15: 14 | AI15: 66 | AJ15: K | AK15: 78 | AL15: 57 | AM15: 71 | AN15: 35 | AO15: 45 | AP15: 20 | AQ15: 18 | AR15: 7 | AS15: 82 | AT15: 60 | AU15: 79 | AV15: 48 | AW15: 100 | AX15: 79 | AY15: 57 | AZ15: 24 | BA15: 38 | BB15: 30 | BC15: 16 | BD15: 7 | BE15: 27 | BF15: 15 | BG15: 9 | BH15: 7 | BK15: XantPhos Pd G4, MTBD_DMSO | BL15: 66 | BO15: L | BP15: 66 | BQ15: 59 | BR15: 51 | BS15: 37 | BU15: XantPhos Pd G4, MTBD_DMSO | BV15: 52 | BY15: L | BZ15: 52 | CA15: 43 | CB15: 40 | CC15: 25
H16: 40 | J16: L | K16: 73 | L16: 82 | M16: 77 | N16: 57 | O16: 52 | P16: 40 | Q16: 24 | R16: 14 | S16: 68 | T16: 77 | U16: 69 | V16: 59 | W16: 85 | X16: 79 | Y16: 75 | Z16: 53 | AA16: 70 | AB16: 42 | AC16: 35 | AD16: 21 | AE16: 45 | AF16: 33 | AG16: 28 | AH16: 17 | AI16: 28 | AJ16: L | AK16: 66 | AL16: 50 | AM16: 59 | AN16: 37 | AO16: 37 | AP16: 29 | AQ16: 18 | AR16: 8 | AS16: 62 | AT16: 64 | AU16: 71 | AV16: 57 | AW16: 74 | AX16: 76 | AY16: 58 | AZ16: 29 | BA16: 42 | BB16: 18 | BC16: 21 | BD16: 11 | BE16: 28 | BF16: 20 | BG16: 15 | BH16: 6 | BK16: cataCXium Pd G4, P2ET_DMSO | BL16: 45 | BO16: M | BP16: 45 | BQ16: 63 | BR16: 47 | BS16: 53 | BU16: cataCXium Pd G4, P2ET_DMSO | BV16: 41 | BY16: M | BZ16: 41 | CA16: 51 | CB16: 41 | CC16: 49
H17: 44 | J17: M | K17: 40 | L17: 46 | M17: 58 | N17: 31 | O17: 2 | P17: 35 | Q17: 1 | R17: 39 | S17: 54 | T17: 69 | U17: 63 | V17: 57 | W17: 32 | X17: 38 | Y17: 36 | Z17: 54 | AA17: 56 | AB17: 89 | AC17: 42 | AD17: 76 | AE17: 85 | AF17: 99 | AG17: 84 | AH17: 59 | AI17: 38 | AJ17: M | AK17: 28 | AL17: 46 | AM17: 40 | AN17: 25 | AO17: 21 | AP17: 26 | AQ17: 1 | AR17: 28 | AS17: 36 | AT17: 71 | AU17: 58 | AV17: 53 | AW17: 20 | AX17: 25 | AY17: 23 | AZ17: 40 | BA17: 53 | BB17: 67 | BC17: 42 | BD17: 94 | BE17: 89 | BF17: 72 | BG17: 80 | BH17: 53 | BK17: tBuXphos Pd G4, P2ET_DMSO | BL17: 49 | BO17: N | BP17: 49 | BQ17: 64 | BR17: 61 | BS17: 48 | BU17: tBuXphos Pd G4, P2ET_DMSO | BV17: 44 | BY17: N | BZ17: 44 | CA17: 55 | CB17: 52 | CC17: 35
H18: 41 | J18: N | K18: 44 | L18: 44 | M18: 66 | N18: 28 | O18: 25 | P18: 40 | Q18: 31 | R18: 37 | S18: 61 | T18: 71 | U18: 73 | V18: 48 | W18: 27 | X18: 38 | Y18: 38 | Z18: 50 | AA18: 48 | AB18: 96 | AC18: 82 | AD18: 69 | AE18: 86 | AF18: 96 | AG18: 77 | AH18: 56 | AI18: 27 | AJ18: N | AK18: 38 | AL18: 31 | AM18: 54 | AN18: 20 | AO18: 17 | AP18: 25 | AQ18: 29 | AR18: 30 | AS18: 63 | AT18: 55 | AU18: 63 | AV18: 29 | AW18: 11 | AX18: 31 | AY18: 22 | AZ18: 38 | BA18: 50 | BB18: 95 | BC18: 81 | BD18: 52 | BE18: 83 | BF18: 91 | BG18: 60 | BH18: 40 | BK18: tBuBrettPhos Pd G4, P2ET_DMSO | BL18: 56 | BO18: O | BP18: 56 | BQ18: 61 | BR18: 66 | BS18: 53 | BU18: tBuBrettPhos Pd G4, P2ET_DMSO | BV18: 44 | BY18: O | BZ18: 44 | CA18: 53 | CB18: 61 | CC18: 44
H19: 21 | J19: O | K19: 41 | L19: 46 | M19: 73 | N19: 38 | O19: 34 | P19: 29 | Q19: 100 | R19: 47 | S19: 62 | T19: 87 | U19: 80 | V19: 50 | W19: 31 | X19: 39 | Y19: 55 | Z19: 50 | AA19: 69 | AB19: 77 | AC19: 0 | AD19: 88 | AE19: 100 | AF19: 89 | AG19: 85 | AH19: 45 | AI19: 17 | AJ19: O | AK19: 27 | AL19: 41 | AM19: 56 | AN19: 37 | AO19: 28 | AP19: 16 | AQ19: 100 | AR19: 35 | AS19: 47 | AT19: 83 | AU19: 69 | AV19: 38 | AW19: 16 | AX19: 23 | AY19: 38 | AZ19: 28 | BA19: 70 | BB19: 95 | BC19: 0 | BD19: 100 | BE19: 75 | BF19: 61 | BG19: 100 | BH19: 28 | BK19: XantPhos Pd G4, P2ET_DMSO | BL19: 21 | BO19: P | BP19: 21 | BQ19: 39 | BR19: 35 | BS19: 32 | BU19: XantPhos Pd G4, P2ET_DMSO | BV19: 13 | BY19: P | BZ19: 13 | CA19: 30 | CB19: 29 | CC19: 27
H20: =L5 -> 64 | J20: P | K20: 21 | L20: 32 | M20: 33 | N20: 13 | O20: 11 | P20: 47 | Q20: 28 | R20: 31 | S20: 18 | T20: 30 | U20: 54 | V20: 20 | W20: 28 | X20: 21 | Y20: 26 | Z20: 44 | AA20: 15 | AB20: 40 | AC20: 22 | AD20: 49 | AE20: 33 | AF20: 65 | AG20: 49 | AH20: 37 | AI20: =AL5 -> 61 | AJ20: P | AK20: 17 | AL20: 25 | AM20: 20 | AN20: 10 | AO20: 8 | AP20: 39 | AQ20: 19 | AR20: 24 | AS20: 8 | AT20: 17 | AU20: 60 | AV20: 14 | AW20: 14 | AX20: 10 | AY20: 14 | AZ20: 34 | BA20: 12 | BB20: 40 | BC20: 21 | BD20: 54 | BE20: 20 | BF20: 50 | BG20: 40 | BH20: 25 | BK20: cataCXium Pd G4, DBU_DMF | BL20: =BQ4 -> 41 | BU20: cataCXium Pd G4, DBU_DMF | BV20: =CA4 -> 31
H21: =L6 -> 75 | AI21: =AL6 -> 51 | BK21: tBuXphos Pd G4, DBU_DMF | BL21: 49 | BU21: tBuXphos Pd G4, DBU_DMF | BV21: =CA5 -> 33
H22: 76 | AI22: 63 | BK22: tBuBrettPhos Pd G4, DBU_DMF | BL22: 50 | BU22: tBuBrettPhos Pd G4, DBU_DMF | BV22: 33
H23: 76 | AI23: 61 | BK23: XantPhos Pd G4, DBU_DMF | BL23: 44 | BU23: XantPhos Pd G4, DBU_DMF | BV23: 31
H24: 100 | AI24: 89 | BK24: cataCXium Pd G4,BTMG_DMF | BL24: 86 | BU24: cataCXium Pd G4,BTMG_DMF | BV24: 71
H25: 78 | AI25: 57 | BK25: tBuXphos Pd G4,BTMG_DMF | BL25: 79 | BU25: tBuXphos Pd G4,BTMG_DMF | BV25: 59
H26: 85 | AI26: 79 | BK26: tBuBrettPhos Pd G4,BTMG_DMF | BL26: 75 | BU26: tBuBrettPhos Pd G4,BTMG_DMF | BV26: 59
H27: 95 | AI27: 75 | BK27: XantPhos Pd G4,BTMG_DMF | BL27: 79 | BU27: XantPhos Pd G4,BTMG_DMF | BV27: 66
H28: 86 | J28: LC-MS | K28: 1 | L28: 2 | M28: 3 | N28: 4 | O28: 5 | P28: 6 | Q28: 7 | R28: 8 | S28: 9 | T28: 10 | U28: 11 | V28: 12 | W28: 13 | X28: 14 | Y28: 15 | Z28: 16 | AA28: 17 | AB28: 18 | AC28: 19 | AD28: 20 | AE28: 21 | AF28: 22 | AG28: 23 | AH28: 24 | AI28: 82 | BK28: cataCXium Pd G4, MTBD_DMF | BL28: 65 | BU28: cataCXium Pd G4, MTBD_DMF | BV28: 53
H29: 83 | J29: A | K29: =K5 -> 74.96559457 | L29: =L5 -> 63.5431158 | M29: 59.66485766 | N29: 34.6072186 | O29: 27.29685147 | P29: 17.37179045 | Q29: 11.0307981 | R29: 6.747015372 | S29: 62.767163 | T29: 64.88739816 | U29: 56.03495015 | V29: 34.98041309 | W29: 71.93773954 | X29: 56.24175921 | Y29: 44.62147264 | Z29: 27.18993312 | AA29: 31.53962953 | AB29: 20.30818984 | AC29: 15.71309143 | AD29: 8.18935213 | AE29: 32.01108063 | AF29: 22.40127356 | AG29: 17.90594123 | AH29: 9.425902194 | AI29: 96 | AK29: =AK5 -> 43 | AL29: =AL5 -> 61 | AM29: 52 | AN29: 38 | AO29: 17 | AP29: 14 | AQ29: 7 | AR29: 4 | AS29: 43 | AT29: 49 | AU29: 59 | AV29: 24 | AW29: 56 | AX29: 44 | AY29: 36 | AZ29: 14 | BA29: 22 | BB29: 9 | BC29: 7 | BD29: 2 | BE29: 17 | BF29: 6 | BG29: 9 | BH29: 3 | BK29: tBuXphos Pd G4, MTBD_DMF | BL29: 61 | BU29: tBuXphos Pd G4, MTBD_DMF | BV29: 50
H30: 81 | J30: B | K30: =K6 -> 79.60492304 | L30: 74.66851318 | M30: 68.99430275 | N30: 50.42440442 | O30: 29.87439567 | P30: 23.79661074 | Q30: 16.05211603 | R30: 9.529438196 | S30: 64.81390092 | T30: 63.82147178 | U30: 55.92141123 | V30: 46.41255236 | W30: 74.65292312 | X30: 65.77503383 | Y30: 57.95858669 | Z30: 36.80350498 | AA30: 36.17161683 | AB30: 40.86060266 | AC30: 30.76630543 | AD30: 18.97067724 | AE30: 32.42720521 | AF30: 23.89207912 | AG30: 18.75110778 | AH30: 11.87190296 | AI30: 57 | AK30: =AK6 -> 65 | AL30: 51 | AM30: 48 | AN30: 38 | AO30: 19 | AP30: 14 | AQ30: 12 | AR30: 6 | AS30: 47 | AT30: 49 | AU30: 45 | AV30: 31 | AW30: 57 | AX30: 46 | AY30: 44 | AZ30: 20 | BA30: 12 | BB30: 19 | BC30: 15 | BD30: 11 | BE30: 15 | BF30: 16 | BG30: 9 | BH30: 5 | BK30: tBuBrettPhos Pd G4, MTBD_DMF | BL30: 58 | BU30: tBuBrettPhos Pd G4, MTBD_DMF | BV30: 44
H31: 82 | J31: C | K31: 78.98434226 | L31: 75.85152796 | M31: 70.74148922 | N31: 52.9314376 | O31: 36.03546147 | P31: 26.75883771 | Q31: 17.63659996 | R31: 9.380131879 | S31: 64.53524249 | T31: 64.98409779 | U31: 56.09527509 | V31: 46.00315823 | W31: 79.62502195 | X31: 74.19040171 | Y31: 60.27222695 | Z31: 35.67922602 | AA31: 44.82345644 | AB31: 31.14937595 | AC31: 23.30313613 | AD31: 12.5744115 | AE31: 34.99536671 | AF31: 24.09529502 | AG31: 18.64641912 | AH31: 11.80483259 | AI31: 50 | AK31: 68 | AL31: 63 | AM31: 53 | AN31: 33 | AO31: 23 | AP31: 16 | AQ31: 14 | AR31: 7 | AS31: 50 | AT31: 38 | AU31: 53 | AV31: 36 | AW31: 56 | AX31: 51 | AY31: 38 | AZ31: 18 | BA31: 23 | BB31: 12 | BC31: 10 | BD31: 6 | BE31: 26 | BF31: 15 | BG31: 9 | BH31: 5 | BK31: XantPhos Pd G4, MTBD_DMF | BL31: 59 | BU31: XantPhos Pd G4, MTBD_DMF | BV31: 43
H32: 46 | J32: D | K32: 73.21813194 | L32: 76.42505089 | M32: 62.72600602 | N32: 43.09247098 | O32: 26.81707675 | P32: 20.71023094 | Q32: 13.19477376 | R32: 7.469147296 | S32: 59.64723033 | T32: 62.0102412 | U32: 55.9864265 | V32: 38.38297625 | W32: 67.82051512 | X32: 59.60353956 | Y32: 50.91764443 | Z32: 31.25057208 | AA32: 32.23912777 | AB32: 22.86899675 | AC32: 16.26850211 | AD32: 10.46486137 | AE32: 29.52392279 | AF32: 24.95411058 | AG32: 18.15575778 | AH32: 12.13582275 | AI32: 46 | AK32: 68 | AL32: 61 | AM32: 52 | AN32: 43 | AO32: 14 | AP32: 13 | AQ32: 7 | AR32: 4 | AS32: 43 | AT32: 50 | AU32: 56 | AV32: 39 | AW32: 53 | AX32: 39 | AY32: 38 | AZ32: 14 | BA32: 19 | BB32: 11 | BC32: 6 | BD32: 3 | BE32: 15 | BF32: 13 | BG32: 7 | BH32: 6 | BK32: cataCXium Pd G4, P2ET_DMF | BL32: 63 | BU32: cataCXium Pd G4, P2ET_DMF | BV32: 51
H33: 44 | J33: E | K33: 74.74383294 | L33: 100 | M33: 91.37132438 | N33: 71.3942449 | O33: 66.68977908 | P33: 77.33969124 | Q33: 47.35342782 | R33: 32.83636542 | S33: 74.94315018 | T33: 100 | U33: 89.42173145 | V33: 69.75499588 | W33: 90.60179372 | X33: 100 | Y33: 97.78794268 | Z33: 80.55006464 | AA33: 87.41651156 | AB33: 85.0106581 | AC33: 58.73361789 | AD33: 41.06507925 | AE33: 59.99652666 | AF33: 55.05125429 | AG33: 42.41627085 | AH33: 29.92495744 | AI33: 31 | AK33: 56 | AL33: 89 | AM33: 90 | AN33: 59 | AO33: 53 | AP33: 59 | AQ33: 43 | AR33: 18 | AS33: 52 | AT33: 90 | AU33: 64 | AV33: 85 | AW33: 98 | AX33: 98 | AY33: 66 | AZ33: 50 | BA33: 58 | BB33: 55 | BC33: 51 | BD33: 21 | BE33: 27 | BF33: 33 | BG33: 23 | BH33: 14 | BK33: tBuXphos Pd G4, P2ET_DMF | BL33: 64 | BU33: tBuXphos Pd G4, P2ET_DMF | BV33: 55
H34: 46 | J34: F | K34: 80.88980304 | L34: 78.38957617 | M34: 80.9614095 | N34: 68.44201449 | O34: 71.61717387 | P34: 63.97393744 | Q34: 47.84635641 | R34: 25.54542905 | S34: 81.24287471 | T34: 92.4669861 | U34: 80.14957383 | V34: 63.22327356 | W34: 94.68091895 | X34: 87.92628562 | Y34: 85.3387165 | Z34: 64.42704862 | AA34: 94.18181054 | AB34: 100 | AC34: 93.3540224 | AD34: 43.31461853 | AE34: 60.96837625 | AF34: 48.41928802 | AG34: 37.78882375 | AH34: 24.27568907 | AI34: 41 | AK34: 71 | AL34: 57 | AM34: 64 | AN34: 68 | AO34: 63 | AP34: 47 | AQ34: 45 | AR34: 18 | AS34: 89 | AT34: 76 | AU34: 75 | AV34: 72 | AW34: 79 | AX34: 91 | AY34: 60 | AZ34: 48 | BA34: 49 | BB34: 57 | BC34: 51 | BD34: 24 | BE34: 39 | BF34: 26 | BG34: 19 | BH34: 11 | BK34: tBuBrettPhos Pd G4, P2ET_DMF | BL34: 61 | BU34: tBuBrettPhos Pd G4, P2ET_DMF | BV34: 53
H35: 32 | J35: G | K35: 83.01434882 | L35: 84.64681796 | M35: 92.12640838 | N35: 68.46382272 | O35: 66.35045906 | P35: 62.56894785 | Q35: 43.00184294 | R35: 25.21738538 | S35: 83.68152134 | T35: 95.12701659 | U35: 87.29735043 | V35: 61.91642792 | W35: 93.69077907 | X35: 94.33237542 | Y35: 87.27007858 | Z35: 62.47888245 | AA35: 94.85707919 | AB35: 66.81823329 | AC35: 53.80045248 | AD35: 35.1091656 | AE35: 67.38207332 | AF35: 43.94039371 | AG35: 36.37965664 | AH35: 21.54988017 | AI35: 25 | AK35: 70 | AL35: 79 | AM35: 100 | AN35: 47 | AO35: 65 | AP35: 62 | AQ35: 32 | AR35: 18 | AS35: 59 | AT35: 68 | AU35: 68 | AV35: 58 | AW35: 89 | AX35: 73 | AY35: 85 | AZ35: 59 | BA35: 49 | BB35: 42 | BC35: 28 | BD35: 16 | BE35: 41 | BF35: 29 | BG35: 17 | BH35: 13 | BK35: XantPhos Pd G4, P2ET_DMF | BL35: 39 | BU35: XantPhos Pd G4, P2ET_DMF | BV35: 30
H36: =M5 -> 60 | J36: H | K36: 79.08523029 | L36: 95.2979957 | M36: 94.3188813 | N36: 73.06530013 | O36: 64.87160108 | P36: 68.46233703 | Q36: 45.15950337 | R36: 28.1734879 | S36: 72.98512193 | T36: 91.15054331 | U36: 87.75132246 | V36: 66.39723366 | W36: 91.93788972 | X36: 96.82704631 | Y36: 95.69918715 | Z36: 73.77122902 | AA36: 96.06300608 | AB36: 73.18563453 | AC36: 65.39495703 | AD36: 37.47284791 | AE36: 54.69443043 | AF36: 51.62422558 | AG36: 40.89347789 | AH36: 28.86877295 | AI36: =AM5 -> 52 | AK36: 64 | AL36: 75 | AM36: 92 | AN36: 89 | AO36: 48 | AP36: 64 | AQ36: 37 | AR36: 18 | AS36: 68 | AT36: 100 | AU36: 84 | AV36: 54 | AW36: 79 | AX36: 79 | AY36: 84 | AZ36: 51 | BA36: 59 | BB36: 47 | BC36: 48 | BD36: 14 | BE36: 34 | BF36: 33 | BG36: 17 | BH36: 8 | BK36: cataCXium Pd G4, DBU_DMAc | BL36: =BR4 -> 34 | BU36: cataCXium Pd G4, DBU_DMAc | BV36: =CB4 -> 28
